Workbook

Sheet V_Matrix
A2: Report by dose
A3: Vaccine Name | B3: All | C3: 1 | D3: 2 | E3: 3 | F3: 4 | G3: 5 | H3: 6 | I3: 7+ | J3: UNK | K3: N/A | N3: Normalized | O3: GBS Normalized | T3: COVID19 | U3: 2001
A4: COVID19 | B4: 1116854 | C4: 519290 | D4: 327654 | E4: 73932 | F4: 4679 | G4: 249 | H4: 120 | I4: 317 | J4: 187572 | K4: 3041 | M4: COVID19 | T4: FLU3 | U4: 1386 | V4: =U4/U$3 -> 0.6926536732
A5: VARZOS | B5: 105019 | C5: 41910 | D5: 20786 | E5: 466 | F5: 30 | G5: 16 | H5: 5 | I5: 29 | J5: 41643 | K5: 134 | M5: VARZOS | N5: =B5/B$4 -> 0.0940310909 | T5: FLUX | U5: 779 | V5: 0.3893053473
A6: FLU3 | B6: 97513 | C6: 27697 | D6: 8239 | E6: 2681 | F6: 1761 | G6: 1086 | H6: 897 | I6: 2167 | J6: 52064 | K6: 921 | M6: FLU3 | N6: 0.08731042733 | O6: =V4 -> 0.6926536732 | P6: =O6/N6 -> 7.933229677 | T6: FLU4 | U6: 297 | V6: 0.1484257871
A7: MMR | B7: 86556 | C7: 30018 | D7: 26239 | E7: 1452 | F7: 156 | G7: 59 | H7: 14 | I7: 22 | J7: 28547 | K7: 49 | M7: MMR | N7: 0.07749983436 | O7: =V14 -> 0.06646676662 | P7: =O7/N7 -> 0.8576375313 | T7: VARZOS | U7: 270 | V7: 0.1349325337
A8: VARCEL | B8: 82205 | C8: 32269 | D8: 18727 | E8: 777 | F8: 101 | G8: 29 | H8: 11 | I8: 19 | J8: 30240 | K8: 32 | M8: VARCEL | N8: 0.07360407 | O8: =V25 -> 0.02748625687 | T8: TDAP | U8: 267 | V8: 0.1334332834
A9: HEP | B9: 71720 | C9: 17849 | D9: 15787 | E9: 13231 | F9: 2046 | G9: 409 | H9: 178 | I9: 56 | J9: 22145 | K9: 19 | M9: HEP | N9: 0.0642160927 | O9: =V9 -> 0.1094452774 | P9: =O9/N9 -> 1.704327883 | T9: HEP | U9: 219 | V9: 0.1094452774
A10: PPV | B10: 68903 | C10: 23210 | D10: 8280 | E10: 714 | F10: 366 | G10: 78 | H10: 24 | I10: 52 | J10: 35356 | K10: 823 | M10: PPV | N10: 0.06169382927 | O10: =V10 -> 0.09945027486 | P10: =O10/N10 -> 1.611997116 | T10: PPV | U10: 199 | V10: 0.09945027486
A11: DTAP | B11: 62560 | C11: 7241 | D11: 5505 | E11: 4146 | F11: 13568 | G11: 17844 | H11: 732 | I11: 54 | J11: 13429 | K11: 41 | M11: DTAP | N11: 0.05601448354 | O11: =V26 -> 0.0259870065 | T11: HPV4 | U11: 154 | V11: 0.07696151924
A12: HIBV | B12: 57999 | C12: 13986 | D12: 10009 | E12: 8183 | F12: 9954 | G12: 387 | H12: 15 | I12: 10 | J12: 15435 | K12: 20 | M12: HIBV | N12: 0.05193069103 | T12: FLU(H1N1) | U12: 139 | V12: 0.06946526737
A13: HPV4 | B13: 46341 | C13: 16548 | D13: 8865 | E13: 6394 | F13: 321 | G13: 14 | H13: 13 | I13: 9 | J13: 14177 | M13: HPV4 | N13: 0.04149244216 | O13: =V11 -> 0.07696151924 | P13: =O13/N13 -> 1.854832235 | T13: PNC13 | U13: 137 | V13: 0.06846576712
A14: IPV | B14: 43249 | C14: 6582 | D14: 5102 | E14: 5330 | F14: 14657 | G14: 1357 | H14: 92 | I14: 27 | J14: 10075 | K14: 27 | M14: IPV | N14: 0.03872395138 | O14: =V19 -> 0.04047976012 | P14: 1.045341673 | T14: MMR | U14: 133 | V14: 0.06646676662
A15: TDAP | B15: 42404 | C15: 18373 | D15: 2190 | E15: 248 | F15: 235 | G15: 435 | H15: 1157 | I15: 163 | J15: 18813 | K15: 790 | M15: TDAP | N15: 0.03796736189 | O15: =V8 -> 0.1334332834 | P15: 3.514420721 | T15: MNQ | U15: 132 | V15: 0.06596701649
A16: HEPA | B16: 41067 | C16: 18057 | D16: 8843 | E16: 653 | F16: 95 | G16: 27 | H16: 8 | I16: 8 | J16: 13349 | K16: 27 | M16: HEPA | N16: 0.03677024929 | O16: =V16 -> 0.06546726637 | P16: 1.780441189 | T16: HEPA | U16: 131 | V16: 0.06546726637
A17: PNC13 | B17: 38876 | C17: 11656 | D17: 4806 | E17: 3260 | F17: 3867 | G17: 448 | H17: 19 | I17: 15 | J17: 14567 | K17: 238 | M17: PNC13 | N17: 0.03480848884 | O17: =V13 -> 0.06846576712 | P17: 1.966927304 | T17: TD | U17: 94 | V17: 0.04697651174
A18: FLU4 | B18: 37252 | C18: 14377 | D18: 1518 | E18: 554 | F18: 374 | G18: 374 | H18: 237 | I18: 583 | J18: 16087 | K18: 3148 | M18: FLU4 | N18: 0.03335440443 | O18: =V6 -> 0.1484257871 | P18: 4.449960647 | T18: HEPAB | U18: 84 | V18: 0.04197901049
A19: FLUX | B19: 29755 | C19: 3207 | D19: 1129 | E19: 264 | F19: 183 | G19: 118 | H19: 100 | I19: 319 | J19: 24393 | K19: 42 | M19: FLUX | N19: 0.0266417992 | O19: =V5 -> 0.3893053473 | P19: 14.61257719 | T19: IPV | U19: 81 | V19: 0.04047976012
A20: PNC | B20: 28244 | C20: 8026 | D20: 5652 | E20: 4096 | F20: 4858 | G20: 237 | H20: 11 | I20: 13 | J20: 5351 | M20: PNC | N20: 0.02528889183 | T20: UNK | U20: 78 | V20: 0.03898050975
A21: MNQ | B21: 26174 | C21: 13976 | D21: 3368 | E21: 227 | F21: 23 | G21: 12 | H21: 5 | I21: 9 | J21: 8461 | K21: 93 | M21: MNQ | N21: 0.02343547142 | O21: =V15 -> 0.06596701649 | P21: =O21/N21 -> 2.814836335 | T21: TYP | U21: 77 | V21: =U21/U$3 -> 0.03848075962
A22: OPV | B22: 24834 | C22: 6325 | D22: 4822 | E22: 5521 | F22: 3719 | G22: 900 | H22: 36 | I22: 7 | J22: 3504 | M22: OPV | N22: =B22/B$4 -> 0.0222356727 | T22: FLUX(H1N1) | U22: 65 | V22: 0.03248375812
A23: DTP | B23: 23996 | C23: 5428 | D23: 4089 | E23: 3363 | F23: 3690 | G23: 2179 | H23: 68 | I23: 6 | J23: 5173 | M23: DTP | N23: 0.02148535082 | T23: HPV2 | U23: 61 | V23: 0.03048475762
A24: UNK | B24: 23789 | C24: 3279 | D24: 1821 | E24: 453 | F24: 108 | G24: 38 | H24: 7 | I24: 18 | J24: 17908 | K24: 157 | M24: UNK | N24: 0.02130000877 | O24: =V20 -> 0.03898050975 | P24: =O24/N24 -> 1.830070126 | T24: FLUN3 | U24: 58 | V24: 0.02898550725
A25: RV5 | B25: 23264 | C25: 6030 | D25: 3821 | E25: 2919 | F25: 85 | G25: 2 | H25: 2 | I25: 5 | J25: 10394 | K25: 6 | M25: RV5 | N25: 0.02082993838 | T25: VARCEL | U25: 55 | V25: 0.02748625687
A26: TD | B26: 18558 | C26: 3330 | D26: 1781 | E26: 506 | F26: 351 | G26: 469 | H26: 872 | I26: 172 | J26: 11001 | K26: 76 | M26: TD | N26: 0.0166163169 | T26: DTAP | U26: 52 | V26: 0.0259870065
A27: MMRV | B27: 18154 | C27: 4522 | D27: 2843 | E27: 160 | F27: 18 | G27: 14 | H27: 3 | I27: 6 | J27: 10539 | K27: 49 | M27: MMRV | N27: 0.01625458654 | T27: YF | U27: 50 | V27: 0.02498750625
A28: HPV9 | B28: 17297 | C28: 5246 | D28: 2857 | E28: 1260 | F28: 151 | G28: 11 | H28: 3 | I28: 9 | J28: 7735 | K28: 25 | M28: HPV9 | N28: 0.01548725259
A29: DTAPHEPBIP | B29: 11736 | C29: 3860 | D29: 3183 | E29: 2082 | F29: 284 | G29: 105 | H29: 5 | I29: 7 | J29: 2191 | K29: 19 | M29: DTAPHEPBIP | N29: 0.0105080879
A30: MENB | B30: 11713 | C30: 4348 | D30: 1914 | E30: 319 | F30: 32 | G30: 2 | I30: 2 | J30: 5082 | K30: 14 | M30: MENB | N30: 0.01048749434
A31: DTAPIPVHIB | B31: 11555 | C31: 3006 | D31: 2029 | E31: 1672 | F31: 941 | G31: 91 | H31: 6 | I31: 1 | J31: 3795 | K31: 14 | M31: DTAPIPVHIB | N31: 0.01034602553
A32: DTAPIPV | B32: 11407 | C32: 3274 | D32: 471 | E32: 265 | F32: 553 | G32: 1709 | H32: 86 | I32: 22 | J32: 4909 | K32: 118 | M32: DTAPIPV | N32: 0.01021351045
A33: TYP | B33: 9923 | C33: 3141 | D33: 963 | E33: 514 | F33: 420 | G33: 142 | H33: 41 | I33: 42 | J33: 4581 | K33: 79 | M33: TYP | N33: 0.008884778136 | O33: =V21 -> 0.03848075962 | P33: =O33/N33 -> 4.331088411
A34: RV1 | B34: 9668 | C34: 3141 | D34: 2692 | E34: 137 | F34: 5 | G34: 1 | I34: 1 | J34: 3686 | K34: 5 | M34: RV1 | N34: 0.00865645823
A35: ANTH | B35: 9279 | C35: 1967 | D35: 1489 | E35: 1211 | F35: 1000 | G35: 800 | H35: 538 | I35: 562 | J35: 1709 | K35: 3 | M35: ANTH | N35: 0.008308158452
A36: FLU(H1N1) | B36: 9179 | C36: 5907 | D36: 739 | E36: 21 | F36: 3 | G36: 5 | H36: 2 | I36: 9 | J36: 2493 | M36: FLU(H1N1) | N36: 0.008218621234 | O36: =V12 -> 0.06946526737 | P36: =O36/N36 -> 8.452180163
A37: FLUN3 | B37: 6443 | C37: 1636 | D37: 426 | E37: 134 | F37: 67 | G37: 34 | H37: 12 | I37: 12 | J37: 4122 | M37: FLUN3 | N37: 0.005768882952 | O37: =V24 -> 0.02898550725 | P37: =O37/N37 -> 5.024457506
A38: DTPHIB | B38: 6374 | C38: 2059 | D38: 1395 | E38: 1118 | F38: 1036 | G38: 48 | H38: 3 | I38: 1 | J38: 714 | M38: DTPHIB | N38: 0.005707102271
A39: SMALL | B39: 5741 | C39: 2852 | D39: 684 | E39: 82 | F39: 33 | G39: 13 | H39: 4 | I39: 30 | J39: 2019 | K39: 24 | M39: SMALL | N39: 0.005140331682
A40: HEPAB | B40: 5707 | C40: 1776 | D40: 1012 | E40: 584 | F40: 46 | G40: 6 | H40: 3 | I40: 5 | J40: 2273 | K40: 2 | M40: HEPAB | N40: 0.005109889028
A41: RAB | B41: 5638 | C41: 1204 | D41: 1262 | E41: 807 | F41: 459 | G41: 179 | H41: 30 | I41: 21 | J41: 1673 | K41: 3 | M41: RAB | N41: 0.005048108347
A42: HBHEPB | B42: 5579 | C42: 1456 | D42: 1338 | E42: 1618 | F42: 160 | G42: 8 | H42: 7 | I42: 3 | J42: 989 | M42: HBHEPB | N42: 0.004995281389
A43: FLUC4 | B43: 5448 | C43: 2196 | D43: 62 | E43: 8 | F43: 11 | G43: 13 | H43: 7 | I43: 30 | J43: 2652 | K43: 469 | M43: FLUC4 | N43: 0.004877987633
A44: 6VAX-F | B44: 5289 | C44: 1129 | D44: 664 | E44: 420 | F44: 107 | G44: 1 | H44: 1 | J44: 2967 | M44: 6VAX-F | N44: 0.004735623457
A45: MEN | B45: 4892 | C45: 1603 | D45: 364 | E45: 98 | F45: 22 | G45: 2 | J45: 2803 | M45: MEN | N45: 0.004380160701
A46: HPV2 | B46: 4798 | C46: 1289 | D46: 649 | E46: 816 | F46: 4 | G46: 1 | J46: 2039 | M46: HPV2 | N46: 0.004295995717 | O46: =V23 -> 0.03048475762
A47: FLUN4 | B47: 4295 | C47: 531 | D47: 202 | E47: 83 | F47: 47 | G47: 32 | H47: 17 | I47: 20 | J47: 3345 | K47: 18 | M47: FLUN4 | N47: 0.00384562351
A48: YF | B48: 4239 | C48: 2186 | D48: 260 | E48: 25 | F48: 2 | G48: 2 | H48: 1 | I48: 1 | J48: 1735 | K48: 27 | M48: YF | N48: 0.003795482668 | O48: =V27 -> 0.02498750625
A49: TTOX | B49: 3647 | C49: 553 | D49: 258 | E49: 78 | F49: 50 | G49: 33 | H49: 52 | I49: 13 | J49: 2608 | K49: 2 | M49: TTOX | N49: 0.003265422338
A50: FLUA3 | B50: 3250 | C50: 1122 | D50: 53 | E50: 3 | F50: 1 | G50: 2 | H50: 1 | I50: 6 | J50: 1835 | K50: 227 | M50: FLUA3 | N50: 0.002909959583
A51: FLUN(H1N1) | B51: 2892 | C51: 1630 | D51: 327 | E51: 12 | F51: 4 | I51: 2 | J51: 917 | M51: FLUN(H1N1) | N51: 0.002589416343
A52: DT | B52: 2724 | C52: 425 | D52: 277 | E52: 149 | F52: 201 | G52: 191 | H52: 86 | I52: 13 | J52: 1380 | K52: 2 | M52: DT | N52: 0.002438993817
A53: FLUX(H1N1) | B53: 2681 | C53: 870 | D53: 175 | E53: 5 | F53: 1 | G53: 1 | H53: 1 | I53: 2 | J53: 1626 | M53: FLUX(H1N1) | N53: 0.002400492813 | O53: =V22 -> 0.03248375812
A54: HPVX | B54: 2651 | C54: 331 | D54: 242 | E54: 173 | F54: 32 | G54: 3 | J54: 1870 | M54: HPVX | N54: 0.002373631647
A55: FLUR4 | B55: 2379 | C55: 1000 | D55: 20 | E55: 1 | G55: 1 | H55: 1 | I55: 2 | J55: 1134 | K55: 220 | M55: FLUR4 | N55: 0.002130090415
A56: LYME | B56: 2225 | C56: 762 | D56: 647 | E56: 463 | F56: 34 | G56: 3 | J56: 316 | M56: LYME | N56: 0.001992203099
A57: RVX | B57: 1982 | C57: 448 | D57: 305 | E57: 83 | F57: 6 | J57: 1139 | K57: 1 | M57: RVX | N57: 0.001774627659
A58: FLUA4 | B58: 1547 | C58: 831 | D58: 26 | E58: 2 | F58: 2 | G58: 6 | H58: 1 | I58: 1 | J58: 480 | K58: 198 | M58: FLUA4 | N58: 0.001385140761
A59: FLUC3 | B59: 1167 | C59: 189 | D59: 63 | E59: 4 | F59: 1 | G59: 2 | H59: 3 | I59: 16 | J59: 889 | M59: FLUC3 | N59: 0.001044899333
A60: RUB | B60: 943 | C60: 277 | D60: 42 | E60: 11 | F60: 2 | G60: 1 | I60: 1 | J60: 609 | M60: RUB | N60: 0.0008443359651
A61: DTAPH | B61: 861 | C61: 181 | D61: 60 | E61: 49 | F61: 266 | G61: 22 | H61: 4 | I61: 1 | J61: 278 | M61: DTAPH | N61: 0.0007709154464
A62: PNC10 | B62: 853 | C62: 257 | D62: 127 | E62: 38 | F62: 5 | J62: 426 | M62: PNC10 | N62: 0.000763752469
A63: MEA | B63: 783 | C63: 201 | D63: 105 | E63: 19 | F63: 2 | G63: 1 | I63: 2 | J63: 453 | M63: MEA | N63: 0.0007010764164
A64: RV | B64: 702 | C64: 450 | D64: 104 | E64: 43 | F64: 2 | J64: 103 | M64: RV | N64: 0.0006285512699
A65: BCG | B65: 689 | C65: 83 | D65: 9 | E65: 4 | F65: 2 | G65: 1 | H65: 1 | J65: 589 | M65: BCG | N65: 0.0006169114316
A66: DTPIPV | B66: 672 | C66: 165 | D66: 88 | E66: 74 | F66: 25 | G66: 9 | H66: 6 | I66: 2 | J66: 303 | M66: DTPIPV | N66: 0.0006016901045
A67: JEV | B67: 566 | C67: 186 | D67: 181 | E67: 61 | F67: 7 | G67: 1 | J67: 130 | M67: JEV | N67: 0.0005067806535
A68: JEV1 | B68: 554 | C68: 217 | D68: 118 | E68: 25 | F68: 4 | G68: 2 | H68: 2 | J68: 185 | K68: 1 | M68: JEV1 | N68: 0.0004960361874
A69: DTIPV | B69: 393 | C69: 22 | D69: 9 | E69: 4 | F69: 3 | G69: 1 | H69: 8 | J69: 346 | M69: DTIPV | N69: 0.0003518812665
A70: DTPHEP | B70: 345 | C70: 126 | D70: 86 | E70: 9 | F70: 4 | G70: 2 | J70: 118 | M70: DTPHEP | N70: 0.0003089034019
A71: MENHIB | B71: 321 | C71: 28 | D71: 4 | E71: 1 | F71: 1 | J71: 287 | M71: MENHIB | N71: 0.0002874144696
A72: CHOL | B72: 295 | C72: 77 | D72: 21 | E72: 3 | F72: 3 | J72: 186 | K72: 5 | M72: CHOL | N72: 0.0002641347929
A73: HBPV | B73: 260 | C73: 45 | D73: 48 | E73: 38 | F73: 81 | G73: 2 | J73: 46 | M73: HBPV | N73: 0.0002327967666
A74: MER | B74: 226 | C74: 79 | D74: 54 | E74: 2 | F74: 1 | G74: 1 | J74: 89 | M74: MER | N74: 0.0002023541125
A75: DPP | B75: 215 | C75: 24 | D75: 24 | E75: 7 | F75: 10 | G75: 7 | J75: 143 | M75: DPP | N75: 0.0001925050186
A76: MU | B76: 213 | C76: 55 | D76: 11 | E76: 1 | J76: 146 | M76: MU | N76: 0.0001907142742
A77: FLUR3 | B77: 205 | C77: 90 | D77: 21 | E77: 3 | F77: 1 | I77: 2 | J77: 85 | K77: 3 | M77: FLUR3 | N77: 0.0001835512968
A78: DTPIHI | B78: 204 | C78: 38 | D78: 28 | E78: 23 | F78: 10 | J78: 105 | M78: DTPIHI | N78: 0.0001826559246
A79: ADEN_4_7 | B79: 185 | C79: 44 | D79: 13 | J79: 127 | K79: 1 | M79: ADEN_4_7 | N79: 0.0001656438532
A80: DTPPHIB | B80: 184 | C80: 41 | D80: 24 | E80: 32 | F80: 7 | J80: 80 | M80: DTPPHIB | N80: 0.000164748481
A81: PER | B81: 184 | C81: 24 | D81: 13 | E81: 1 | F81: 1 | G81: 1 | H81: 1 | J81: 143 | M81: PER | N81: 0.000164748481
A82: TBE | B82: 170 | C82: 45 | D82: 9 | E82: 7 | F82: 2 | J82: 107 | M82: TBE | N82: 0.0001522132705
A83: PNC20 | B83: 167 | C83: 106 | D83: 3 | J83: 51 | K83: 7 | M83: PNC20 | N83: 0.000149527154
A84: JEVX | B84: 134 | C84: 23 | D84: 20 | E84: 3 | F84: 2 | J84: 86 | M84: JEVX | N84: 0.000119979872
A85: DTOX | B85: 132 | C85: 9 | D85: 8 | E85: 2 | F85: 3 | G85: 4 | H85: 3 | J85: 103 | M85: DTOX | N85: 0.0001181891277
A86: MNC | B86: 120 | C86: 11 | D86: 10 | E86: 3 | F86: 1 | J86: 95 | M86: MNC | N86: =B86/B$4 -> 0.0001074446615
A87: TDAPIPV | B87: 120 | C87: 8 | E87: 1 | F87: 1 | G87: 3 | H87: 4 | J87: 103 | M87: TDAPIPV | N87: 0.0001074446615
A88: MM | B88: 118 | C88: 27 | D88: 23 | F88: 1 | J88: 67 | M88: MM | N88: 0.0001056539172
A89: DTPPVHBHPB | B89: 88 | C89: 23 | D89: 15 | E89: 3 | F89: 1 | J89: 46
A90: DF | B90: 50 | C90: 20 | D90: 9 | E90: 9 | F90: 1 | J90: 11
A91: EBZR | B91: 47 | C91: 24 | D91: 16 | E91: 1 | J91: 6
A92: HEPATYP | B92: 38 | C92: 4 | D92: 1 | J92: 33
A93: MUR | B93: 32 | C93: 11 | D93: 6 | E93: 1 | J93: 14
A94: PLAGUE | B94: 28 | C94: 7 | D94: 3 | E94: 4 | F94: 1 | J94: 13
A95: CEE | B95: 26 | C95: 4 | D95: 1 | E95: 1 | G95: 1 | J95: 19
A96: MNQHIB | B96: 23 | C96: 11 | E96: 1 | F96: 3 | J96: 8
A97: SSEV | B97: 12 | C97: 1 | D97: 1 | E97: 2 | J97: 8
A98: ADEN | B98: 11 | J98: 11
A99: PNC15 | B99: 6 | C99: 3 | J99: 3
A100: H5N1 | B100: 5 | C100: 3 | J100: 2
A101: DPIPV | B101: 2 | C101: 2
A103: Adverse Events Matrix
A104: Symptom | B104: COVID19 | C104: VARZOS | D104: FLU3 | E104: MMR | F104: VARCEL | G104: HEP | H104: PPV | I104: DTAP | J104: HIBV | K104: HPV4 | L104: IPV | M104: TDAP | N104: HEPA | O104: PNC13 | P104: FLU4 | Q104: FLUX | R104: PNC | S104: MNQ | T104: OPV | U104: DTP | V104: UNK | W104: RV5 | X104: TD | Y104: MMRV | Z104: HPV9 | AA104: DTAPHEPBIP | AB104: MENB | AC104: DTAPIPVHIB | AD104: DTAPIPV | AE104: TYP | AF104: RV1 | AG104: ANTH | AH104: FLU(H1N1) | AI104: FLUN3 | AJ104: DTPHIB | AK104: SMALL | AL104: HEPAB | AM104: RAB | AN104: HBHEPB | AO104: FLUC4 | AP104: 6VAX-F | AQ104: MEN | AR104: HPV2 | AS104: FLUN4 | AT104: YF | AU104: TTOX | AV104: FLUA3 | AW104: FLUN(H1N1) | AX104: DT | AY104: FLUX(H1N1) | AZ104: HPVX | BA104: FLUR4 | BB104: LYME | BC104: RVX | BD104: FLUA4 | BE104: FLUC3 | BF104: RUB | BG104: DTAPH | BH104: PNC10 | BI104: MEA | BJ104: RV | BK104: BCG | BL104: DTPIPV | BM104: JEV | BN104: JEV1 | BO104: DTIPV | BP104: DTPHEP | BQ104: MENHIB | BR104: CHOL | BS104: HBPV | BT104: MER | BU104: DPP | BV104: MU | BW104: FLUR3 | BX104: DTPIHI | BY104: ADEN_4_7 | BZ104: DTPPHIB | CA104: PER | CB104: TBE | CC104: PNC20 | CD104: JEVX | CE104: DTOX | CF104: MNC | CG104: TDAPIPV | CH104: MM | CI104: DTPPVHBHPB | CJ104: DF | CK104: EBZR | CL104: HEPATYP | CM104: MUR | CN104: PLAGUE | CO104: CEE | CP104: MNQHIB | CQ104: SSEV | CR104: ADEN | CS104: PNC15 | CT104: H5N1 | CU104: DPIPV
A105: Pyrexia | B105: 153429 | C105: 14461 | D105: 12757 | E105: 21749 | F105: 11961 | G105: 11117 | H105: 14372 | I105: 12832 | J105: 18576 | K105: 2681 | L105: 8900 | M105: 5935 | N105: 5691 | O105: 7916 | P105: 3956 | Q105: 5249 | R105: 8081 | S105: 2957 | T105: 10360 | U105: 10871 | V105: 3450 | W105: 2606 | X105: 3596 | Y105: 2097 | Z105: 733 | AA105: 2971 | AB105: 2802 | AC105: 2282 | AD105: 1433 | AE105: 1592 | AF105: 1973 | AG105: 970 | AH105: 1065 | AI105: 993 | AJ105: 2652 | AK105: 869 | AL105: 636 | AM105: 954 | AN105: 1739 | AO105: 359 | AP105: 1325 | AQ105: 1237 | AR105: 513 | AS105: 641 | AT105: 871 | AU105: 588 | AV105: 315 | AW105: 531 | AX105: 659 | AY105: 581 | AZ105: 217 | BA105: 140 | BB105: 285 | BC105: 449 | BD105: 154 | BE105: 73 | BF105: 215 | BG105: 231 | BH105: 281 | BI105: 253 | BJ105: 196 | BK105: 168 | BL105: 172 | BM105: 81 | BN105: 76 | BO105: 102 | BP105: 118 | BQ105: 128 | BR105: 58 | BS105: 77 | BT105: 78 | BU105: 64 | BV105: 55 | BW105: 19 | BX105: 64 | BY105: 17 | BZ105: 68 | CA105: 40 | CB105: 38 | CC105: 19 | CD105: 36 | CE105: 20 | CF105: 25 | CG105: 17 | CH105: 42 | CI105: 6 | CJ105: 5 | CK105: 9 | CL105: 5 | CM105: 10 | CN105: 12 | CO105: 5 | CP105: 5 | CS105: 1 | CU105: 1
A106: Headache | B106: 182521 | C106: 12418 | D106: 7118 | E106: 2336 | F106: 1562 | G106: 4351 | H106: 3543 | I106: 776 | J106: 165 | K106: 5049 | L106: 679 | M106: 4194 | N106: 1764 | O106: 872 | P106: 2716 | Q106: 2970 | R106: 86 | S106: 2802 | T106: 362 | U106: 320 | V106: 2750 | W106: 14 | X106: 1595 | Y106: 139 | Z106: 1086 | AA106: 38 | AB106: 1429 | AC106: 31 | AD106: 178 | AE106: 1266 | AF106: 11 | AG106: 1375 | AH106: 966 | AI106: 570 | AJ106: 15 | AK106: 671 | AL106: 537 | AM106: 912 | AN106: 7 | AO106: 343 | AP106: 11 | AQ106: 639 | AR106: 899 | AS106: 372 | AT106: 640 | AU106: 317 | AV106: 275 | AW106: 394 | AX106: 160 | AY106: 421 | AZ106: 449 | BA106: 115 | BB106: 402 | BC106: 10 | BD106: 144 | BE106: 63 | BF106: 73 | BG106: 4 | BH106: 9 | BI106: 51 | BK106: 21 | BL106: 20 | BM106: 79 | BN106: 73 | BO106: 84 | BP106: 5 | BQ106: 5 | BR106: 42 | BS106: 1 | BT106: 21 | BU106: 15 | BV106: 16 | BW106: 29 | BX106: 4 | BY106: 19 | BZ106: 3 | CA106: 14 | CB106: 37 | CC106: 11 | CD106: 13 | CE106: 13 | CF106: 7 | CG106: 12 | CH106: 5 | CJ106: 7 | CK106: 8 | CL106: 4 | CM106: 1 | CN106: 3 | CO106: 6 | CP106: 1 | CQ106: 2
A107: Pain | B107: 117160 | C107: 15708 | D107: 11349 | E107: 3276 | F107: 1856 | G107: 3964 | H107: 9409 | I107: 2195 | J107: 947 | K107: 2268 | L107: 1513 | M107: 4803 | N107: 1470 | O107: 2061 | P107: 4104 | Q107: 3588 | R107: 456 | S107: 1541 | T107: 747 | U107: 764 | V107: 2533 | W107: 195 | X107: 2867 | Y107: 280 | Z107: 644 | AA107: 194 | AB107: 1021 | AC107: 215 | AD107: 330 | AE107: 780 | AF107: 152 | AG107: 1166 | AH107: 667 | AI107: 301 | AJ107: 98 | AK107: 600 | AL107: 426 | AM107: 466 | AN107: 95 | AO107: 559 | AP107: 108 | AQ107: 343 | AR107: 526 | AS107: 145 | AT107: 404 | AU107: 557 | AV107: 391 | AW107: 163 | AX107: 245 | AY107: 271 | AZ107: 212 | BA107: 196 | BB107: 513 | BC107: 49 | BD107: 215 | BE107: 60 | BF107: 99 | BG107: 30 | BH107: 16 | BI107: 24 | BJ107: 22 | BK107: 24 | BL107: 14 | BM107: 40 | BN107: 43 | BO107: 25 | BP107: 16 | BQ107: 25 | BR107: 28 | BS107: 3 | BT107: 21 | BU107: 19 | BV107: 13 | BW107: 18 | BX107: 7 | BY107: 10 | BZ107: 3 | CA107: 18 | CB107: 9 | CC107: 14 | CD107: 8 | CE107: 8 | CF107: 2 | CG107: 5 | CH107: 5 | CI107: 3 | CJ107: 2 | CK107: 11 | CL107: 5 | CM107: 1 | CN107: 3 | CO107: 1 | CP107: 5 | CQ107: 1 | CS107: 1 | CT107: 1
A108: Fatigue | B108: 154437 | C108: 9752 | D108: 3576 | E108: 1185 | F108: 779 | G108: 1805 | H108: 2215 | I108: 687 | J108: 342 | K108: 3024 | L108: 474 | M108: 2178 | N108: 1092 | O108: 1079 | P108: 1794 | Q108: 1797 | R108: 182 | S108: 1007 | T108: 28 | U108: 67 | V108: 2356 | W108: 145 | X108: 518 | Y108: 133 | Z108: 604 | AA108: 105 | AB108: 674 | AC108: 126 | AD108: 157 | AE108: 551 | AF108: 108 | AG108: 856 | AH108: 458 | AI108: 245 | AJ108: 3 | AK108: 408 | AL108: 424 | AM108: 299 | AN108: 27 | AO108: 271 | AP108: 104 | AQ108: 265 | AR108: 394 | AS108: 193 | AT108: 284 | AU108: 148 | AV108: 189 | AW108: 144 | AX108: 46 | AY108: 228 | AZ108: 239 | BA108: 91 | BB108: 477 | BC108: 27 | BD108: 104 | BE108: 40 | BF108: 14 | BG108: 12 | BH108: 25 | BI108: 15 | BJ108: 1 | BK108: 24 | BL108: 10 | BM108: 23 | BN108: 31 | BO108: 53 | BP108: 6 | BQ108: 7 | BR108: 26 | BS108: 3 | BT108: 4 | BU108: 11 | BV108: 7 | BW108: 13 | BX108: 2 | BY108: 8 | BZ108: 4 | CA108: 12 | CB108: 11 | CC108: 13 | CD108: 7 | CE108: 6 | CF108: 3 | CG108: 7 | CH108: 3 | CJ108: 3 | CK108: 5 | CL108: 3 | CM108: 2 | CN108: 2 | CO108: 2 | CP108: 1 | CS108: 1
A109: Injection site erythema | B109: 29576 | C109: 14578 | D109: 11384 | E109: 10993 | F109: 10723 | G109: 2432 | H109: 14793 | I109: 14470 | J109: 3811 | K109: 1553 | L109: 9561 | M109: 7186 | N109: 4947 | O109: 5407 | P109: 4373 | Q109: 1463 | R109: 3035 | S109: 3611 | T109: 100 | U109: 314 | V109: 939 | W109: 592 | X109: 2149 | Y109: 2663 | Z109: 637 | AA109: 1046 | AB109: 968 | AC109: 982 | AD109: 3619 | AE109: 474 | AF109: 205 | AG109: 1166 | AH109: 390 | AI109: 201 | AJ109: 36 | AK109: 490 | AL109: 239 | AM109: 155 | AN109: 582 | AO109: 447 | AP109: 134 | AQ109: 301 | AR109: 63 | AS109: 87 | AT109: 399 | AU109: 343 | AV109: 302 | AW109: 27 | AX109: 227 | AY109: 63 | AZ109: 51 | BA109: 226 | BB109: 27 | BC109: 71 | BD109: 99 | BE109: 59 | BF109: 14 | BG109: 134 | BH109: 41 | BI109: 18 | BK109: 24 | BL109: 58 | BM109: 29 | BN109: 27 | BO109: 9 | BP109: 30 | BQ109: 13 | BR109: 10 | BS109: 20 | BT109: 14 | BU109: 26 | BV109: 4 | BW109: 25 | BX109: 7 | BY109: 3 | BZ109: 8 | CA109: 7 | CB109: 2 | CC109: 30 | CD109: 10 | CE109: 12 | CF109: 2 | CG109: 2 | CH109: 9 | CI109: 3 | CM109: 3 | CP109: 3 | CQ109: 1 | CS109: 1
A110: Chills | B110: 117962 | C110: 11811 | D110: 6223 | E110: 846 | F110: 375 | G110: 1460 | H110: 4885 | I110: 448 | J110: 393 | K110: 576 | L110: 296 | M110: 2400 | N110: 603 | O110: 1054 | P110: 2000 | Q110: 2222 | R110: 118 | S110: 741 | T110: 326 | U110: 323 | V110: 1708 | W110: 23 | X110: 979 | Y110: 42 | Z110: 228 | AA110: 42 | AB110: 760 | AC110: 48 | AD110: 63 | AE110: 686 | AF110: 24 | AG110: 412 | AH110: 411 | AI110: 193 | AJ110: 74 | AK110: 303 | AL110: 193 | AM110: 287 | AN110: 15 | AO110: 221 | AP110: 35 | AQ110: 202 | AR110: 68 | AS110: 101 | AT110: 265 | AU110: 160 | AV110: 234 | AW110: 107 | AX110: 97 | AY110: 187 | AZ110: 54 | BA110: 82 | BB110: 111 | BC110: 8 | BD110: 115 | BE110: 28 | BF110: 21 | BG110: 5 | BH110: 7 | BI110: 16 | BK110: 28 | BL110: 4 | BM110: 30 | BN110: 29 | BO110: 24 | BP110: 2 | BQ110: 11 | BR110: 24 | BS110: 3 | BT110: 6 | BU110: 10 | BV110: 3 | BW110: 9 | BX110: 1 | BY110: 14 | CA110: 12 | CB110: 13 | CC110: 5 | CD110: 3 | CE110: 4 | CF110: 2 | CG110: 6 | CJ110: 4 | CK110: 9 | CL110: 1 | CM110: 2 | CN110: 3 | CO110: 3 | CP110: 1
A111: Nausea | B111: 102858 | C111: 6603 | D111: 5642 | E111: 1478 | F111: 1007 | G111: 4096 | H111: 3304 | I111: 582 | J111: 180 | K111: 3835 | L111: 501 | M111: 3443 | N111: 1540 | O111: 692 | P111: 2125 | Q111: 1918 | R111: 90 | S111: 1906 | T111: 215 | U111: 228 | V111: 1540 | W111: 47 | X111: 1239 | Y111: 105 | Z111: 942 | AA111: 39 | AB111: 922 | AC111: 28 | AD111: 107 | AE111: 1118 | AF111: 72 | AG111: 766 | AH111: 738 | AI111: 232 | AJ111: 16 | AK111: 327 | AL111: 483 | AM111: 732 | AN111: 15 | AO111: 302 | AP111: 12 | AQ111: 332 | AR111: 502 | AS111: 107 | AT111: 416 | AU111: 272 | AV111: 212 | AW111: 162 | AX111: 115 | AY111: 256 | AZ111: 179 | BA111: 93 | BB111: 132 | BC111: 8 | BD111: 90 | BE111: 45 | BF111: 21 | BG111: 2 | BH111: 9 | BI111: 33 | BJ111: 1 | BK111: 16 | BL111: 7 | BM111: 61 | BN111: 58 | BO111: 40 | BP111: 6 | BQ111: 2 | BR111: 35 | BT111: 9 | BU111: 11 | BV111: 8 | BW111: 21 | BX111: 3 | BY111: 20 | BZ111: 1 | CA111: 11 | CB111: 12 | CC111: 4 | CD111: 6 | CE111: 4 | CG111: 7 | CH111: 3 | CJ111: 5 | CK111: 5 | CL111: 5 | CM111: 4 | CN111: 4 | CP111: 2 | CQ111: 1
A112: Pain in extremity | B112: 96033 | C112: 10210 | D112: 8157 | E112: 753 | F112: 816 | G112: 907 | H112: 8319 | I112: 686 | J112: 181 | K112: 2065 | L112: 390 | M112: 4000 | N112: 834 | O112: 1868 | P112: 4017 | Q112: 2288 | R112: 126 | S112: 1298 | T112: 21 | U112: 70 | V112: 1584 | W112: 17 | X112: 477 | Y112: 173 | Z112: 635 | AA112: 54 | AB112: 997 | AC112: 57 | AD112: 258 | AE112: 303 | AF112: 13 | AG112: 300 | AH112: 493 | AI112: 119 | AK112: 87 | AL112: 314 | AM112: 192 | AN112: 3 | AO112: 622 | AP112: 32 | AQ112: 169 | AR112: 318 | AS112: 82 | AT112: 108 | AU112: 154 | AV112: 475 | AW112: 44 | AX112: 49 | AY112: 133 | AZ112: 171 | BA112: 223 | BB112: 74 | BC112: 5 | BD112: 271 | BE112: 74 | BF112: 3 | BG112: 3 | BH112: 13 | BI112: 4 | BK112: 7 | BL112: 14 | BM112: 10 | BN112: 43 | BO112: 26 | BP112: 4 | BQ112: 26 | BR112: 11 | BT112: 1 | BU112: 10 | BV112: 2 | BW112: 19 | BX112: 1 | BY112: 11 | BZ112: 4 | CA112: 12 | CB112: 14 | CC112: 14 | CD112: 2 | CE112: 10 | CG112: 2 | CH112: 3 | CJ112: 5 | CK112: 1 | CM112: 2 | CO112: 1 | CP112: 1 | CQ112: 1 | CT112: 1
A113: Dizziness | B113: 99763 | C113: 3563 | D113: 5631 | E113: 1341 | F113: 1106 | G113: 3592 | H113: 1934 | I113: 333 | J113: 78 | K113: 5666 | L113: 397 | M113: 3381 | N113: 1931 | O113: 508 | P113: 2317 | Q113: 1738 | R113: 40 | S113: 2880 | T113: 103 | U113: 92 | V113: 1378 | W113: 2 | X113: 1073 | Y113: 55 | Z113: 1475 | AA113: 11 | AB113: 811 | AC113: 8 | AD113: 44 | AE113: 682 | AF113: 4 | AG113: 667 | AH113: 977 | AI113: 243 | AJ113: 3 | AK113: 217 | AL113: 458 | AM113: 505 | AN113: 5 | AO113: 404 | AP113: 4 | AQ113: 357 | AR113: 623 | AS113: 131 | AT113: 318 | AU113: 238 | AV113: 185 | AW113: 207 | AX113: 104 | AY113: 252 | AZ113: 271 | BA113: 108 | BB113: 159 | BD113: 92 | BE113: 43 | BF113: 28 | BG113: 1 | BH113: 2 | BI113: 29 | BK113: 9 | BL113: 3 | BM113: 50 | BN113: 64 | BO113: 38 | BQ113: 2 | BR113: 20 | BT113: 9 | BU113: 8 | BV113: 1 | BW113: 23 | BY113: 10 | CA113: 4 | CB113: 14 | CC113: 9 | CD113: 4 | CE113: 4 | CF113: 1 | CG113: 4 | CH113: 7 | CJ113: 7 | CK113: 2 | CL113: 4 | CM113: 3 | CN113: 5 | CO113: 2 | CP113: 2 | CQ113: 2
A114: Injection site pain | B114: 44498 | C114: 12795 | D114: 11051 | E114: 3974 | F114: 3536 | G114: 3353 | H114: 13188 | I114: 4322 | J114: 1466 | K114: 2053 | L114: 2618 | M114: 5647 | N114: 1923 | O114: 2834 | P114: 4457 | Q114: 2526 | R114: 718 | S114: 1905 | T114: 1088 | U114: 1003 | V114: 1081 | W114: 95 | X114: 3544 | Y114: 736 | Z114: 786 | AA114: 226 | AB114: 1219 | AC114: 263 | AD114: 1132 | AE114: 494 | AF114: 70 | AG114: 942 | AH114: 398 | AI114: 98 | AJ114: 224 | AK114: 242 | AL114: 332 | AM114: 289 | AN114: 120 | AO114: 586 | AP114: 46 | AQ114: 282 | AR114: 226 | AS114: 40 | AT114: 219 | AU114: 505 | AV114: 386 | AW114: 8 | AX114: 324 | AY114: 119 | AZ114: 80 | BA114: 224 | BB114: 154 | BC114: 50 | BD114: 168 | BE114: 68 | BF114: 14 | BG114: 15 | BH114: 37 | BI114: 25 | BJ114: 1 | BK114: 10 | BL114: 23 | BM114: 21 | BN114: 25 | BO114: 16 | BP114: 30 | BQ114: 7 | BR114: 16 | BS114: 7 | BT114: 9 | BU114: 15 | BV114: 9 | BW114: 18 | BX114: 4 | BY114: 6 | BZ114: 6 | CA114: 12 | CB114: 2 | CC114: 30 | CD114: 8 | CE114: 16 | CF114: 2 | CG114: 1 | CH114: 1 | CK114: 3 | CL114: 1 | CM114: 4 | CN114: 4 | CQ114: 2 | CS114: 1
A115: Rash | B115: 49046 | C115: 9219 | D115: 5335 | E115: 11958 | F115: 8709 | G115: 5428 | H115: 2999 | I115: 4348 | J115: 5005 | K115: 1662 | L115: 2698 | M115: 1907 | N115: 3218 | O115: 2779 | P115: 1934 | Q115: 1338 | R115: 2326 | S115: 1036 | T115: 2280 | U115: 1871 | V115: 1236 | W115: 594 | X115: 1254 | Y115: 1149 | Z115: 461 | AA115: 809 | AB115: 459 | AC115: 608 | AD115: 538 | AE115: 756 | AF115: 305 | AG115: 865 | AH115: 552 | AI115: 237 | AJ115: 435 | AK115: 643 | AL115: 337 | AM115: 361 | AN115: 588 | AO115: 245 | AP115: 232 | AQ115: 322 | AR115: 123 | AS115: 121 | AT115: 318 | AU115: 191 | AV115: 130 | AW115: 135 | AX115: 207 | AY115: 144 | AZ115: 62 | BA115: 107 | BB115: 181 | BC115: 47 | BD115: 70 | BE115: 71 | BF115: 242 | BG115: 77 | BH115: 30 | BI115: 126 | BJ115: 30 | BK115: 43 | BL115: 43 | BM115: 65 | BN115: 46 | BO115: 19 | BP115: 6 | BQ115: 44 | BR115: 17 | BS115: 34 | BT115: 36 | BU115: 17 | BV115: 11 | BW115: 26 | BX115: 8 | BY115: 13 | BZ115: 12 | CA115: 13 | CB115: 5 | CC115: 10 | CD115: 6 | CE115: 7 | CF115: 8 | CG115: 2 | CH115: 13 | CI115: 2 | CJ115: 1 | CK115: 2 | CM115: 3 | CN115: 3 | CO115: 1 | CP115: 2
A116: Erythema | B116: 30154 | C116: 7827 | D116: 8131 | E116: 6063 | F116: 5955 | G116: 1707 | H116: 11633 | I116: 6762 | J116: 2056 | K116: 1395 | L116: 4889 | M116: 4787 | N116: 2912 | O116: 3201 | P116: 3029 | Q116: 1355 | R116: 1775 | S116: 2422 | T116: 71 | U116: 218 | V116: 1007 | W116: 343 | X116: 1101 | Y116: 1080 | Z116: 470 | AA116: 588 | AB116: 664 | AC116: 405 | AD116: 1155 | AE116: 470 | AF116: 164 | AG116: 955 | AH116: 468 | AI116: 235 | AJ116: 16 | AK116: 579 | AL116: 262 | AM116: 152 | AN116: 337 | AO116: 335 | AP116: 193 | AQ116: 235 | AR116: 77 | AS116: 91 | AT116: 220 | AU116: 241 | AV116: 274 | AW116: 86 | AX116: 143 | AY116: 87 | AZ116: 42 | BA116: 166 | BB116: 28 | BC116: 41 | BD116: 110 | BE116: 52 | BF116: 8 | BG116: 73 | BH116: 34 | BI116: 13 | BJ116: 1 | BK116: 29 | BL116: 40 | BM116: 30 | BN116: 37 | BO116: 9 | BP116: 6 | BQ116: 17 | BR116: 5 | BS116: 14 | BT116: 17 | BU116: 10 | BV116: 4 | BW116: 23 | BX116: 6 | BY116: 6 | BZ116: 13 | CA116: 10 | CB116: 3 | CC116: 22 | CD116: 5 | CE116: 11 | CF116: 4 | CG116: 5 | CH116: 10 | CI116: 3 | CJ116: 2 | CL116: 1 | CM116: 3 | CP116: 2 | CQ116: 1
A117: Injection site swelling | B117: 24667 | C117: 9704 | D117: 7781 | E117: 5868 | F117: 6780 | G117: 1494 | H117: 11723 | I117: 7689 | J117: 2007 | K117: 1358 | L117: 4802 | M117: 5662 | N117: 3017 | O117: 3590 | P117: 3480 | Q117: 1216 | R117: 1527 | S117: 2759 | T117: 50 | U117: 147 | V117: 723 | W117: 425 | X117: 1128 | Y117: 1875 | Z117: 603 | AA117: 655 | AB117: 734 | AC117: 700 | AD117: 2656 | AE117: 293 | AF117: 128 | AG117: 668 | AH117: 271 | AI117: 145 | AJ117: 18 | AK117: 183 | AL117: 189 | AM117: 85 | AN117: 240 | AO117: 407 | AP117: 86 | AQ117: 207 | AR117: 89 | AS117: 50 | AT117: 202 | AU117: 229 | AV117: 252 | AW117: 25 | AX117: 120 | AY117: 53 | AZ117: 52 | BA117: 198 | BB117: 14 | BC117: 48 | BD117: 97 | BE117: 40 | BF117: 4 | BG117: 76 | BH117: 19 | BI117: 9 | BK117: 15 | BL117: 35 | BM117: 16 | BN117: 15 | BO117: 11 | BP117: 12 | BQ117: 12 | BR117: 3 | BS117: 5 | BT117: 10 | BU117: 27 | BV117: 4 | BW117: 19 | BX117: 1 | BY117: 3 | BZ117: 8 | CA117: 6 | CB117: 3 | CC117: 36 | CD117: 8 | CE117: 14 | CF117: 5 | CG117: 1 | CH117: 7 | CI117: 3 | CJ117: 1 | CL117: 1 | CM117: 3 | CP117: 2 | CQ117: 3 | CS117: 1
A118: Vomiting | B118: 42942 | C118: 1765 | D118: 4183 | E118: 3927 | F118: 2048 | G118: 4226 | H118: 2206 | I118: 3299 | J118: 4250 | K118: 2100 | L118: 2406 | M118: 2006 | N118: 1860 | O118: 2383 | P118: 1568 | Q118: 1677 | R118: 2106 | S118: 1412 | T118: 2008 | U118: 2020 | V118: 999 | W118: 2482 | X118: 744 | Y118: 451 | Z118: 599 | AA118: 1031 | AB118: 986 | AC118: 1036 | AD118: 595 | AE118: 710 | AF118: 1892 | AG118: 355 | AH118: 621 | AI118: 388 | AJ118: 435 | AK118: 170 | AL118: 261 | AM118: 413 | AN118: 325 | AO118: 137 | AP118: 523 | AQ118: 385 | AR118: 234 | AS118: 216 | AT118: 270 | AU118: 152 | AV118: 110 | AW118: 236 | AX118: 160 | AY118: 214 | AZ118: 112 | BA118: 44 | BB118: 35 | BC118: 243 | BD118: 55 | BE118: 20 | BF118: 27 | BG118: 40 | BH118: 88 | BI118: 39 | BJ118: 177 | BK118: 49 | BL118: 51 | BM118: 37 | BN118: 33 | BO118: 40 | BP118: 41 | BQ118: 42 | BR118: 27 | BS118: 14 | BT118: 14 | BU118: 22 | BV118: 10 | BW118: 3 | BX118: 26 | BY118: 5 | BZ118: 21 | CA118: 17 | CB118: 11 | CC118: 4 | CD118: 12 | CE118: 7 | CF118: 2 | CG118: 8 | CH118: 6 | CI118: 1 | CJ118: 2 | CK118: 2 | CL118: 3 | CM118: 2 | CN118: 2 | CO118: 4 | CP118: 3 | CR118: 1 | CS118: 1
A119: No adverse event | B119: 16558 | C119: 4607 | D119: 3206 | E119: 6464 | F119: 12155 | G119: 5142 | H119: 5197 | I119: 907 | J119: 3795 | K119: 6517 | L119: 684 | M119: 1313 | N119: 5949 | O119: 986 | P119: 1740 | Q119: 174 | R119: 196 | S119: 2212 | T119: 1 | U119: 5 | V119: 986 | W119: 7447 | X119: 185 | Y119: 7075 | Z119: 6057 | AA119: 431 | AB119: 161 | AC119: 1072 | AD119: 710 | AE119: 151 | AF119: 194 | AG119: 41 | AH119: 358 | AI119: 869 | AK119: 17 | AL119: 78 | AM119: 134 | AN119: 108 | AO119: 578 | AP119: 17 | AQ119: 44 | AR119: 31 | AS119: 140 | AT119: 101 | AU119: 26 | AV119: 276 | AW119: 429 | AX119: 33 | AY119: 7 | AZ119: 81 | BA119: 522 | BC119: 56 | BD119: 90 | BE119: 412 | BF119: 5 | BG119: 27 | BH119: 2 | BI119: 2 | BK119: 10 | BL119: 2 | BN119: 8 | BO119: 3 | BQ119: 2 | BR119: 1 | BU119: 1 | BV119: 1 | BW119: 5 | BY119: 1 | BZ119: 1 | CC119: 2 | CE119: 1 | CI119: 18 | CJ119: 2 | CP119: 1 | CT119: 1
A120: Myalgia | B120: 69043 | C120: 6524 | D120: 4591 | E120: 1145 | F120: 354 | G120: 3365 | H120: 2956 | I120: 306 | J120: 159 | K120: 1211 | L120: 261 | M120: 1480 | N120: 651 | O120: 645 | P120: 1179 | Q120: 1825 | R120: 52 | S120: 502 | T120: 352 | U120: 320 | V120: 948 | W120: 3 | X120: 1729 | Y120: 20 | Z120: 192 | AA120: 9 | AB120: 375 | AC120: 9 | AD120: 28 | AE120: 538 | AF120: 5 | AG120: 777 | AH120: 325 | AI120: 140 | AJ120: 36 | AK120: 321 | AL120: 246 | AM120: 499 | AN120: 7 | AO120: 169 | AP120: 4 | AQ120: 172 | AR120: 224 | AS120: 78 | AT120: 311 | AU120: 279 | AV120: 161 | AW120: 63 | AX120: 163 | AY120: 192 | AZ120: 72 | BA120: 64 | BB120: 391 | BD120: 64 | BE120: 31 | BF120: 71 | BG120: 3 | BH120: 4 | BI120: 40 | BJ120: 1 | BK120: 15 | BL120: 2 | BM120: 26 | BN120: 31 | BO120: 28 | BP120: 1 | BQ120: 2 | BR120: 23 | BT120: 15 | BU120: 6 | BV120: 4 | BW120: 5 | BY120: 7 | CA120: 5 | CB120: 21 | CC120: 5 | CD120: 5 | CE120: 5 | CF120: 3 | CG120: 3 | CH120: 1 | CJ120: 3 | CK120: 1 | CL120: 3 | CN120: 3 | CO120: 2 | CP120: 2
A121: Dyspnoea | B121: 69019 | C121: 1152 | D121: 4562 | E121: 1542 | F121: 788 | G121: 2152 | H121: 1778 | I121: 866 | J121: 1057 | K121: 1462 | L121: 803 | M121: 1209 | N121: 773 | O121: 800 | P121: 1254 | Q121: 1575 | R121: 455 | S121: 669 | T121: 635 | U121: 573 | V121: 1255 | W121: 245 | X121: 540 | Y121: 104 | Z121: 228 | AA121: 167 | AB121: 260 | AC121: 205 | AD121: 149 | AE121: 421 | AF121: 187 | AG121: 491 | AH121: 584 | AI121: 190 | AJ121: 164 | AK121: 416 | AL121: 243 | AM121: 250 | AN121: 77 | AO121: 154 | AP121: 166 | AQ121: 211 | AR121: 213 | AS121: 90 | AT121: 276 | AU121: 108 | AV121: 86 | AW121: 96 | AX121: 92 | AY121: 177 | AZ121: 87 | BA121: 49 | BB121: 42 | BC121: 68 | BD121: 50 | BE121: 38 | BF121: 14 | BG121: 10 | BH121: 27 | BI121: 20 | BJ121: 3 | BK121: 31 | BL121: 12 | BM121: 37 | BN121: 32 | BO121: 20 | BP121: 33 | BQ121: 7 | BR121: 14 | BS121: 1 | BT121: 4 | BU121: 8 | BV121: 5 | BW121: 17 | BX121: 9 | BY121: 9 | BZ121: 3 | CA121: 10 | CB121: 8 | CC121: 8 | CD121: 6 | CE121: 8 | CF121: 2 | CG121: 2 | CH121: 1 | CI121: 1 | CJ121: 3 | CK121: 4 | CL121: 2 | CM121: 2 | CN121: 2 | CO121: 1 | CP121: 1 | CQ121: 1 | CR121: 1
A122: Pruritus | B122: 45153 | C122: 5753 | D122: 6296 | E122: 4364 | F122: 4289 | G122: 3906 | H122: 2425 | I122: 2796 | J122: 767 | K122: 1021 | L122: 2078 | M122: 2045 | N122: 1684 | O122: 1229 | P122: 1771 | Q122: 1259 | R122: 380 | S122: 1031 | T122: 618 | U122: 344 | V122: 876 | W122: 32 | X122: 1810 | Y122: 448 | Z122: 283 | AA122: 102 | AB122: 153 | AC122: 85 | AD122: 464 | AE122: 668 | AF122: 16 | AG122: 1128 | AH122: 638 | AI122: 191 | AJ122: 61 | AK122: 567 | AL122: 317 | AM122: 440 | AN122: 78 | AO122: 297 | AP122: 41 | AQ122: 222 | AR122: 57 | AS122: 86 | AT122: 407 | AU122: 284 | AV122: 114 | AW122: 124 | AX122: 178 | AY122: 140 | AZ122: 43 | BA122: 103 | BB122: 63 | BC122: 6 | BD122: 56 | BE122: 59 | BF122: 64 | BG122: 20 | BH122: 3 | BI122: 44 | BK122: 11 | BL122: 35 | BM122: 92 | BN122: 24 | BO122: 11 | BQ122: 6 | BR122: 8 | BS122: 12 | BT122: 16 | BU122: 10 | BV122: 8 | BW122: 24 | BX122: 2 | BY122: 13 | BZ122: 14 | CA122: 3 | CB122: 3 | CC122: 6 | CD122: 3 | CE122: 7 | CG122: 2 | CH122: 4 | CJ122: 1 | CK122: 2 | CL122: 2 | CN122: 1 | CP122: 3 | CQ122: 2 | CR122: 1 | CS122: 1
A123: Arthralgia | B123: 65501 | C123: 3959 | D123: 2710 | E123: 1928 | F123: 370 | G123: 3070 | H123: 1779 | I123: 329 | J123: 130 | K123: 1705 | L123: 298 | M123: 1515 | N123: 621 | O123: 603 | P123: 1311 | Q123: 1163 | R123: 46 | S123: 440 | T123: 143 | U123: 142 | V123: 1066 | W123: 3 | X123: 864 | Y123: 50 | Z123: 266 | AA123: 11 | AB123: 239 | AC123: 9 | AD123: 61 | AE123: 450 | AF123: 3 | AG123: 1189 | AH123: 216 | AI123: 83 | AJ123: 5 | AK123: 212 | AL123: 267 | AM123: 382 | AN123: 5 | AO123: 194 | AP123: 7 | AQ123: 142 | AR123: 405 | AS123: 46 | AT123: 175 | AU123: 173 | AV123: 149 | AW123: 31 | AX123: 69 | AY123: 111 | AZ123: 104 | BA123: 81 | BB123: 1033 | BD123: 112 | BE123: 25 | BF123: 275 | BG123: 1 | BH123: 2 | BI123: 33 | BK123: 20 | BL123: 3 | BM123: 18 | BN123: 13 | BO123: 31 | BQ123: 2 | BR123: 29 | BT123: 23 | BU123: 7 | BV123: 10 | BW123: 10 | BX123: 3 | BY123: 11 | BZ123: 2 | CA123: 4 | CB123: 11 | CC123: 8 | CD123: 4 | CE123: 9 | CF123: 2 | CG123: 3 | CH123: 5 | CJ123: 4 | CK123: 1 | CL123: 1 | CM123: 3 | CN123: 2 | CO123: 2 | CR123: 1 | CS123: 1 | CT123: 1
A124: Urticaria | B124: 29776 | C124: 2490 | D124: 5302 | E124: 4826 | F124: 3289 | G124: 4001 | H124: 1871 | I124: 3808 | J124: 2930 | K124: 1564 | L124: 2520 | M124: 1593 | N124: 2478 | O124: 1467 | P124: 1992 | Q124: 1284 | R124: 1608 | S124: 1074 | T124: 1236 | U124: 1013 | V124: 752 | W124: 431 | X124: 862 | Y124: 667 | Z124: 409 | AA124: 541 | AB124: 375 | AC124: 455 | AD124: 602 | AE124: 567 | AF124: 157 | AG124: 383 | AH124: 704 | AI124: 323 | AJ124: 232 | AK124: 147 | AL124: 271 | AM124: 539 | AN124: 306 | AO124: 266 | AP124: 113 | AQ124: 249 | AR124: 88 | AS124: 162 | AT124: 416 | AU124: 138 | AV124: 91 | AW124: 209 | AX124: 159 | AY124: 209 | AZ124: 44 | BA124: 91 | BB124: 38 | BC124: 46 | BD124: 39 | BE124: 53 | BF124: 32 | BG124: 45 | BH124: 31 | BI124: 30 | BJ124: 17 | BK124: 16 | BL124: 19 | BM124: 75 | BN124: 32 | BO124: 13 | BP124: 8 | BQ124: 8 | BR124: 7 | BS124: 18 | BT124: 5 | BU124: 6 | BV124: 6 | BW124: 18 | BX124: 9 | BY124: 15 | BZ124: 7 | CA124: 12 | CB124: 1 | CC124: 2 | CD124: 7 | CE124: 9 | CF124: 4 | CG124: 2 | CH124: 2 | CK124: 1 | CL124: 1 | CM124: 1 | CN124: 2 | CP124: 1 | CR124: 1
A125: SARS-CoV-2 test | B125: 82569 | C125: 57 | E125: 8 | F125: 9 | G125: 3 | H125: 17 | I125: 5 | J125: 9 | M125: 49 | N125: 61 | O125: 17 | P125: 45 | Q125: 81 | S125: 8 | U125: 1 | V125: 578 | W125: 6 | Y125: 2 | Z125: 4 | AA125: 5 | AB125: 8 | AC125: 9 | AD125: 9 | AE125: 1 | AF125: 3 | AG125: 1 | AK125: 1 | AM125: 7 | AO125: 7 | AP125: 3 | AQ125: 1 | AT125: 1 | AU125: 1 | AV125: 1 | BA125: 2 | BC125: 1 | BD125: 2 | BK125: 4 | BN125: 1
A126: Asthenia | B126: 47509 | C126: 3148 | D126: 4044 | E126: 1221 | F126: 581 | G126: 3478 | H126: 1721 | I126: 454 | J126: 453 | K126: 1638 | L126: 447 | M126: 1378 | N126: 801 | O126: 724 | P126: 1126 | Q126: 1737 | R126: 177 | S126: 839 | T126: 285 | U126: 289 | V126: 997 | W126: 86 | X126: 868 | Y126: 72 | Z126: 337 | AA126: 53 | AB126: 320 | AC126: 75 | AD126: 99 | AE126: 490 | AF126: 109 | AG126: 443 | AH126: 430 | AI126: 158 | AJ126: 50 | AK126: 116 | AL126: 239 | AM126: 301 | AN126: 20 | AO126: 175 | AP126: 87 | AQ126: 235 | AR126: 399 | AS126: 70 | AT126: 217 | AU126: 177 | AV126: 135 | AW126: 87 | AX126: 101 | AY126: 160 | AZ126: 137 | BA126: 46 | BB126: 170 | BC126: 17 | BD126: 70 | BE126: 20 | BF126: 57 | BG126: 7 | BH126: 12 | BI126: 32 | BJ126: 5 | BK126: 10 | BL126: 23 | BM126: 19 | BN126: 17 | BO126: 32 | BP126: 2 | BQ126: 3 | BR126: 22 | BT126: 11 | BU126: 8 | BV126: 6 | BW126: 7 | BX126: 2 | BY126: 8 | BZ126: 4 | CA126: 6 | CB126: 21 | CC126: 1 | CD126: 3 | CE126: 9 | CF126: 5 | CG126: 7 | CH126: 3 | CJ126: 1 | CK126: 1 | CL126: 2 | CN126: 3 | CO126: 1 | CQ126: 1 | CR126: 1
A127: COVID-19 | B127: 76695 | C127: 93 | E127: 7 | F127: 3 | G127: 6 | H127: 6 | I127: 1 | J127: 2 | K127: 1 | L127: 1 | M127: 6 | O127: 13 | P127: 71 | Q127: 119 | U127: 1 | V127: 618 | W127: 1 | Y127: 3 | Z127: 5 | AA127: 1 | AB127: 5 | AD127: 4 | AE127: 1 | AF127: 5 | AG127: 1 | AL127: 3 | AM127: 5 | AO127: 8 | AP127: 1 | AQ127: 4 | AS127: 2 | AU127: 1 | AV127: 22 | BA127: 2 | BC127: 2 | BD127: 21 | CB127: 1 | CJ127: 2 | CK127: 4
A128: Malaise | B128: 42303 | C128: 3700 | D128: 3209 | E128: 1491 | F128: 740 | G128: 2157 | H128: 2388 | I128: 552 | J128: 650 | K128: 1563 | L128: 463 | M128: 1233 | N128: 791 | O128: 815 | P128: 1029 | Q128: 2261 | R128: 233 | S128: 678 | T128: 496 | U128: 476 | V128: 742 | W128: 108 | X128: 696 | Y128: 116 | Z128: 295 | AA128: 51 | AB128: 451 | AC128: 145 | AD128: 116 | AE128: 455 | AF128: 139 | AG128: 397 | AH128: 243 | AI128: 216 | AJ128: 93 | AK128: 285 | AL128: 269 | AM128: 302 | AN128: 40 | AO128: 133 | AP128: 110 | AQ128: 243 | AR128: 604 | AS128: 179 | AT128: 244 | AU128: 130 | AV128: 179 | AW128: 75 | AX128: 85 | AY128: 113 | AZ128: 135 | BA128: 43 | BB128: 90 | BC128: 23 | BD128: 42 | BE128: 31 | BF128: 49 | BG128: 7 | BH128: 15 | BI128: 23 | BJ128: 8 | BK128: 12 | BL128: 18 | BM128: 25 | BN128: 27 | BO128: 37 | BP128: 2 | BQ128: 17 | BR128: 15 | BS128: 2 | BT128: 5 | BU128: 5 | BV128: 9 | BW128: 7 | BX128: 7 | BY128: 2 | BZ128: 9 | CA128: 7 | CB128: 8 | CC128: 2 | CD128: 5 | CE128: 6 | CF128: 2 | CG128: 8 | CH128: 2 | CI128: 1 | CJ128: 4 | CK128: 1 | CL128: 6 | CM128: 1 | CN128: 3 | CO128: 2 | CP128: 1 | CS128: 1
A129: Diarrhoea | B129: 36144 | C129: 1779 | D129: 2273 | E129: 2010 | F129: 897 | G129: 2410 | H129: 1011 | I129: 1608 | J129: 2493 | K129: 713 | L129: 1227 | M129: 853 | N129: 883 | O129: 1618 | P129: 673 | Q129: 1030 | R129: 1406 | S129: 356 | T129: 628 | U129: 698 | V129: 856 | W129: 2418 | X129: 273 | Y129: 192 | Z129: 140 | AA129: 755 | AB129: 339 | AC129: 697 | AD129: 148 | AE129: 716 | AF129: 1668 | AG129: 336 | AH129: 304 | AI129: 127 | AJ129: 156 | AK129: 111 | AL129: 202 | AM129: 207 | AN129: 225 | AO129: 90 | AP129: 375 | AQ129: 184 | AR129: 135 | AS129: 101 | AT129: 207 | AU129: 71 | AV129: 112 | AW129: 85 | AX129: 59 | AY129: 123 | AZ129: 31 | BA129: 33 | BB129: 47 | BC129: 287 | BD129: 39 | BE129: 15 | BF129: 24 | BG129: 26 | BH129: 63 | BI129: 30 | BJ129: 214 | BK129: 30 | BL129: 29 | BM129: 24 | BN129: 20 | BO129: 19 | BP129: 34 | BQ129: 28 | BR129: 35 | BS129: 10 | BT129: 5 | BU129: 20 | BV129: 2 | BW129: 8 | BX129: 14 | BY129: 6 | BZ129: 11 | CA129: 10 | CB129: 7 | CC129: 1 | CD129: 9 | CE129: 6 | CF129: 2 | CG129: 3 | CH129: 2 | CI129: 1 | CK129: 3 | CL129: 1 | CM129: 1 | CN129: 2 | CP129: 5
A130: Injection site warmth | B130: 15028 | C130: 5527 | D130: 5002 | E130: 4197 | F130: 4164 | G130: 888 | H130: 5953 | I130: 5475 | J130: 1017 | K130: 594 | L130: 3626 | M130: 3260 | N130: 1852 | O130: 1936 | P130: 2036 | Q130: 620 | R130: 797 | S130: 1589 | T130: 20 | U130: 80 | V130: 428 | W130: 122 | X130: 829 | Y130: 1176 | Z130: 265 | AA130: 285 | AB130: 328 | AC130: 312 | AD130: 1687 | AE130: 150 | AF130: 59 | AG130: 372 | AH130: 136 | AI130: 79 | AJ130: 21 | AK130: 67 | AL130: 95 | AM130: 50 | AN130: 153 | AO130: 257 | AP130: 21 | AQ130: 113 | AR130: 17 | AS130: 40 | AT130: 118 | AU130: 141 | AV130: 129 | AW130: 7 | AX130: 87 | AY130: 28 | AZ130: 24 | BA130: 107 | BB130: 7 | BC130: 42 | BD130: 51 | BE130: 27 | BF130: 4 | BG130: 51 | BH130: 22 | BI130: 6 | BK130: 7 | BL130: 14 | BM130: 11 | BN130: 6 | BO130: 10 | BP130: 20 | BQ130: 3 | BR130: 1 | BS130: 1 | BT130: 5 | BU130: 10 | BV130: 5 | BW130: 14 | BX130: 1 | BY130: 1 | BZ130: 2 | CA130: 3 | CC130: 12 | CD130: 2 | CE130: 5 | CG130: 1 | CH130: 9 | CJ130: 1 | CM130: 2 | CS130: 1
A131: Cough | B131: 35952 | C131: 651 | D131: 4148 | E131: 1993 | F131: 1181 | G131: 993 | H131: 1087 | I131: 1213 | J131: 1052 | K131: 285 | L131: 787 | M131: 715 | N131: 537 | O131: 862 | P131: 795 | Q131: 1653 | R131: 579 | S131: 218 | T131: 456 | U131: 434 | V131: 745 | W131: 209 | X131: 156 | Y131: 204 | Z131: 64 | AA131: 179 | AB131: 104 | AC131: 401 | AD131: 231 | AE131: 140 | AF131: 167 | AG131: 190 | AH131: 413 | AI131: 469 | AJ131: 120 | AK131: 127 | AL131: 79 | AM131: 60 | AN131: 101 | AO131: 100 | AP131: 137 | AQ131: 119 | AR131: 47 | AS131: 325 | AT131: 92 | AU131: 33 | AV131: 61 | AW131: 308 | AX131: 41 | AY131: 209 | AZ131: 25 | BA131: 22 | BB131: 31 | BC131: 59 | BD131: 25 | BE131: 16 | BF131: 12 | BG131: 13 | BH131: 29 | BI131: 23 | BJ131: 10 | BK131: 48 | BL131: 13 | BM131: 6 | BN131: 7 | BO131: 16 | BP131: 9 | BQ131: 10 | BR131: 1 | BS131: 9 | BT131: 10 | BU131: 5 | BV131: 5 | BW131: 8 | BX131: 8 | BY131: 7 | BZ131: 10 | CA131: 16 | CB131: 5 | CC131: 2 | CD131: 4 | CE131: 1 | CF131: 5 | CG131: 7 | CH131: 8 | CJ131: 3 | CK131: 3 | CM131: 1 | CQ131: 1
A132: Paraesthesia | B132: 35763 | C132: 1793 | D132: 3357 | E132: 649 | F132: 277 | G132: 2367 | H132: 770 | I132: 111 | J132: 26 | K132: 1410 | L132: 161 | M132: 1107 | N132: 500 | O132: 174 | P132: 1175 | Q132: 1005 | R132: 9 | S132: 549 | T132: 56 | U132: 58 | V132: 429 | W132: 1 | X132: 762 | Y132: 8 | Z132: 269 | AA132: 2 | AB132: 219 | AC132: 1 | AD132: 26 | AE132: 297 | AF132: 2 | AG132: 456 | AH132: 512 | AI132: 80 | AJ132: 3 | AK132: 96 | AL132: 295 | AM132: 426 | AN132: 2 | AO132: 238 | AP132: 5 | AQ132: 132 | AR132: 99 | AS132: 38 | AT132: 179 | AU132: 143 | AV132: 53 | AW132: 57 | AX132: 66 | AY132: 128 | AZ132: 58 | BA132: 56 | BB132: 235 | BD132: 30 | BE132: 39 | BF132: 53 | BG132: 2 | BI132: 10 | BK132: 3 | BL132: 3 | BM132: 35 | BN132: 35 | BO132: 19 | BR132: 11 | BS132: 2 | BT132: 7 | BU132: 3 | BV132: 3 | BW132: 6 | BY132: 6 | BZ132: 1 | CA132: 1 | CB132: 11 | CC132: 1 | CD132: 3 | CE132: 5 | CG132: 4 | CH132: 2 | CJ132: 2 | CK132: 3 | CL132: 1 | CN132: 1 | CO132: 2 | CQ132: 1
A133: Syncope | B133: 26054 | C133: 523 | D133: 1409 | E133: 1403 | F133: 945 | G133: 1406 | H133: 484 | I133: 453 | J133: 272 | K133: 5241 | L133: 510 | M133: 2166 | N133: 1546 | O133: 223 | P133: 1086 | Q133: 441 | R133: 104 | S133: 2337 | T133: 370 | U133: 276 | V133: 367 | W133: 32 | X133: 679 | Y133: 68 | Z133: 1480 | AA133: 23 | AB133: 541 | AC133: 41 | AD133: 137 | AE133: 310 | AF133: 50 | AG133: 118 | AH133: 223 | AI133: 97 | AJ133: 54 | AK133: 46 | AL133: 218 | AM133: 106 | AN133: 12 | AO133: 205 | AP133: 60 | AQ133: 231 | AR133: 677 | AS133: 81 | AT133: 106 | AU133: 76 | AV133: 32 | AW133: 34 | AX133: 82 | AY133: 42 | AZ133: 285 | BA133: 36 | BB133: 14 | BC133: 33 | BD133: 14 | BE133: 23 | BF133: 7 | BG133: 6 | BH133: 17 | BI133: 20 | BJ133: 1 | BK133: 13 | BL133: 10 | BM133: 22 | BN133: 29 | BO133: 13 | BP133: 18 | BQ133: 3 | BR133: 8 | BT133: 4 | BU133: 2 | BV133: 1 | BW133: 2 | BX133: 3 | BY133: 5 | BZ133: 3 | CA133: 3 | CB133: 6 | CC133: 3 | CD133: 5 | CE133: 5 | CF133: 10 | CG133: 5 | CH133: 1 | CJ133: 3 | CL133: 2 | CN133: 1 | CP133: 2 | CT133: 1
A134: Hypoaesthesia | B134: 32585 | C134: 1174 | D134: 2752 | E134: 320 | F134: 228 | G134: 969 | H134: 679 | I134: 106 | J134: 18 | K134: 1456 | L134: 121 | M134: 1079 | N134: 422 | O134: 198 | P134: 1164 | Q134: 668 | R134: 9 | S134: 553 | T134: 13 | U134: 17 | V134: 437 | W134: 1 | X134: 339 | Y134: 9 | Z134: 272 | AA134: 1 | AB134: 184 | AC134: 3 | AD134: 14 | AE134: 212 | AF134: 1 | AG134: 410 | AH134: 404 | AI134: 74 | AJ134: 1 | AK134: 92 | AL134: 258 | AM134: 236 | AN134: 3 | AO134: 207 | AP134: 2 | AQ134: 94 | AR134: 327 | AS134: 30 | AT134: 111 | AU134: 94 | AV134: 65 | AW134: 49 | AX134: 23 | AY134: 88 | AZ134: 103 | BA134: 58 | BB134: 175 | BC134: 2 | BD134: 36 | BE134: 43 | BF134: 9 | BI134: 4 | BK134: 4 | BL134: 4 | BM134: 17 | BN134: 20 | BO134: 13 | BR134: 5 | BS134: 1 | BT134: 1 | BU134: 2 | BV134: 2 | BW134: 8 | BY134: 8 | CA134: 1 | CB134: 4 | CC134: 3 | CD134: 1 | CE134: 4 | CH134: 1 | CJ134: 2 | CK134: 2 | CL134: 1 | CN134: 1 | CO134: 2
A135: SARS-CoV-2 test positive | B135: 47637 | C135: 39 | E135: 5 | G135: 6 | H135: 6 | I135: 1 | J135: 2 | K135: 1 | L135: 1 | M135: 3 | O135: 4 | P135: 63 | Q135: 46 | U135: 1 | V135: 252 | W135: 1 | Y135: 4 | Z135: 1 | AA135: 1 | AB135: 2 | AD135: 2 | AE135: 1 | AF135: 3 | AG135: 1 | AL135: 2 | AM135: 2 | AO135: 4 | AQ135: 4 | AS135: 1 | AU135: 1 | BA135: 2 | BC135: 2 | BD135: 20 | CG135: 1 | CJ135: 1 | CK135: 3
A136: Chest pain | B136: 37375 | C136: 569 | D136: 1431 | E136: 312 | F136: 183 | G136: 861 | H136: 614 | I136: 82 | J136: 17 | K136: 796 | L136: 81 | M136: 417 | N136: 252 | O136: 128 | P136: 364 | Q136: 474 | R136: 13 | S136: 233 | T136: 34 | U136: 21 | V136: 452 | W136: 1 | X136: 283 | Y136: 19 | Z136: 115 | AA136: 1 | AB136: 81 | AC136: 1 | AD136: 25 | AE136: 226 | AF136: 1 | AG136: 440 | AH136: 152 | AI136: 78 | AJ136: 2 | AK136: 749 | AL136: 67 | AM136: 114 | AO136: 60 | AP136: 1 | AQ136: 82 | AR136: 75 | AS136: 31 | AT136: 86 | AU136: 52 | AV136: 38 | AW136: 36 | AX136: 26 | AY136: 25 | AZ136: 48 | BA136: 14 | BB136: 64 | BD136: 20 | BE136: 9 | BF136: 8 | BG136: 1 | BI136: 8 | BK136: 3 | BL136: 1 | BM136: 17 | BN136: 22 | BO136: 9 | BR136: 7 | BT136: 2 | BV136: 4 | BW136: 3 | BY136: 6 | CA136: 1 | CB136: 3 | CC136: 2 | CD136: 4 | CE136: 3 | CG136: 1 | CJ136: 1 | CK136: 1 | CM136: 1
A137: Swelling | B137: 16149 | C137: 2907 | D137: 2768 | E137: 2091 | F137: 1684 | G137: 557 | H137: 4093 | I137: 2591 | J137: 571 | K137: 514 | L137: 1807 | M137: 1818 | N137: 993 | O137: 1054 | P137: 1178 | Q137: 536 | R137: 435 | S137: 792 | T137: 17 | U137: 55 | V137: 481 | W137: 70 | X137: 442 | Y137: 411 | Z137: 178 | AA137: 206 | AB137: 276 | AC137: 104 | AD137: 468 | AE137: 139 | AF137: 32 | AG137: 376 | AH137: 111 | AI137: 58 | AJ137: 3 | AK137: 130 | AL137: 90 | AM137: 62 | AN137: 82 | AO137: 152 | AP137: 29 | AQ137: 79 | AR137: 34 | AS137: 29 | AT137: 66 | AU137: 126 | AV137: 100 | AW137: 24 | AX137: 64 | AY137: 27 | AZ137: 21 | BA137: 70 | BB137: 33 | BC137: 6 | BD137: 39 | BE137: 21 | BF137: 3 | BG137: 24 | BH137: 6 | BI137: 8 | BK137: 11 | BL137: 7 | BM137: 9 | BN137: 11 | BO137: 3 | BP137: 2 | BQ137: 6 | BR137: 3 | BS137: 1 | BT137: 6 | BU137: 9 | BV137: 4 | BW137: 7 | BX137: 1 | BY137: 2 | BZ137: 5 | CA137: 4 | CB137: 1 | CC137: 9 | CD137: 3 | CE137: 6 | CF137: 2 | CH137: 4 | CI137: 2 | CJ137: 1 | CK137: 2 | CP137: 1
A138: Lymphadenopathy | B138: 33156 | C138: 682 | D138: 1012 | E138: 1993 | F138: 479 | G138: 876 | H138: 672 | I138: 459 | J138: 356 | K138: 568 | L138: 241 | M138: 815 | N138: 307 | O138: 206 | P138: 384 | Q138: 383 | R138: 122 | S138: 216 | T138: 255 | U138: 208 | V138: 371 | W138: 35 | X138: 486 | Y138: 85 | Z138: 104 | AA138: 24 | AB138: 92 | AC138: 55 | AD138: 44 | AE138: 203 | AF138: 33 | AG138: 225 | AH138: 70 | AI138: 42 | AJ138: 36 | AK138: 475 | AL138: 86 | AM138: 150 | AN138: 34 | AO138: 81 | AP138: 31 | AQ138: 70 | AR138: 40 | AS138: 24 | AT138: 88 | AU138: 83 | AV138: 16 | AW138: 19 | AX138: 49 | AY138: 45 | AZ138: 23 | BA138: 24 | BB138: 31 | BC138: 6 | BD138: 17 | BE138: 10 | BF138: 124 | BG138: 6 | BH138: 7 | BI138: 39 | BJ138: 2 | BK138: 47 | BL138: 6 | BM138: 12 | BN138: 8 | BO138: 12 | BQ138: 4 | BR138: 3 | BS138: 4 | BT138: 17 | BU138: 4 | BV138: 9 | BW138: 2 | BX138: 3 | BY138: 4 | BZ138: 3 | CB138: 2 | CC138: 1 | CD138: 5 | CE138: 3 | CF138: 3 | CH138: 2 | CJ138: 1 | CK138: 2 | CL138: 1 | CR138: 2
A139: Hyperhidrosis | B139: 29631 | C139: 1377 | D139: 2074 | E139: 715 | F139: 361 | G139: 1342 | H139: 981 | I139: 285 | J139: 260 | K139: 847 | L139: 259 | M139: 935 | N139: 624 | O139: 270 | P139: 779 | Q139: 610 | R139: 102 | S139: 661 | T139: 260 | U139: 190 | V139: 399 | W139: 38 | X139: 487 | Y139: 40 | Z139: 329 | AA139: 32 | AB139: 194 | AC139: 39 | AD139: 52 | AE139: 273 | AF139: 26 | AG139: 231 | AH139: 230 | AI139: 59 | AJ139: 42 | AK139: 126 | AL139: 171 | AM139: 144 | AN139: 15 | AO139: 105 | AP139: 43 | AQ139: 99 | AR139: 124 | AS139: 37 | AT139: 142 | AU139: 106 | AV139: 91 | AW139: 42 | AX139: 58 | AY139: 47 | AZ139: 32 | BA139: 30 | BB139: 51 | BC139: 9 | BD139: 31 | BE139: 21 | BF139: 7 | BG139: 2 | BH139: 5 | BI139: 15 | BJ139: 2 | BK139: 6 | BL139: 7 | BM139: 19 | BN139: 24 | BO139: 9 | BP139: 2 | BQ139: 2 | BR139: 14 | BS139: 1 | BT139: 5 | BU139: 1 | BV139: 3 | BW139: 6 | BX139: 1 | BY139: 2 | BZ139: 1 | CA139: 3 | CB139: 9 | CC139: 2 | CD139: 4 | CE139: 3 | CF139: 1 | CG139: 2 | CH139: 1 | CJ139: 1 | CK139: 1 | CL139: 2 | CN139: 3 | CO139: 1
A140: Product storage error | B140: 21153 | C140: 347 | D140: 282 | E140: 1382 | F140: 3984 | G140: 807 | H140: 820 | I140: 124 | J140: 1401 | K140: 41 | L140: 289 | M140: 355 | N140: 1459 | O140: 261 | P140: 857 | Q140: 24 | R140: 9 | S140: 207 | V140: 1021 | W140: 2361 | X140: 54 | Y140: 2583 | Z140: 1950 | AA140: 130 | AB140: 44 | AC140: 235 | AD140: 114 | AE140: 249 | AF140: 56 | AL140: 5 | AM140: 13 | AN140: 1 | AO140: 293 | AQ140: 3 | AR140: 1 | AS140: 1 | AT140: 4 | AU140: 1 | AV140: 126 | AX140: 1 | AZ140: 61 | BA140: 76 | BC140: 10 | BE140: 1 | BW140: 2 | CC140: 1 | CI140: 16 | CJ140: 2
A141: Crying | B141: 1339 | C141: 66 | D141: 337 | E141: 1508 | F141: 634 | G141: 2866 | H141: 463 | I141: 2961 | J141: 6611 | K141: 228 | L141: 2594 | M141: 210 | N141: 525 | O141: 2309 | P141: 179 | Q141: 165 | R141: 2629 | S141: 220 | T141: 3243 | U141: 3516 | V141: 259 | W141: 1598 | X141: 30 | Y141: 198 | Z141: 84 | AA141: 1289 | AB141: 386 | AC141: 1339 | AD141: 209 | AE141: 21 | AF141: 1055 | AG141: 6 | AH141: 70 | AI141: 33 | AJ141: 987 | AK141: 2 | AL141: 24 | AM141: 13 | AN141: 416 | AO141: 10 | AP141: 776 | AQ141: 208 | AR141: 25 | AS141: 19 | AT141: 13 | AU141: 11 | AV141: 5 | AW141: 12 | AX141: 64 | AY141: 26 | AZ141: 21 | BB141: 2 | BC141: 272 | BD141: 3 | BE141: 2 | BF141: 4 | BG141: 52 | BH141: 171 | BI141: 14 | BJ141: 21 | BK141: 35 | BL141: 34 | BM141: 2 | BO141: 7 | BP141: 63 | BQ141: 36 | BS141: 18 | BT141: 2 | BU141: 22 | BV141: 1 | BW141: 1 | BX141: 46 | BY141: 1 | BZ141: 16 | CA141: 12 | CD141: 2 | CE141: 4 | CF141: 10 | CG141: 2 | CH141: 1 | CI141: 2 | CP141: 1
A142: Peripheral swelling | B142: 24487 | C142: 2718 | D142: 1428 | E142: 266 | F142: 260 | G142: 204 | H142: 4347 | I142: 200 | J142: 80 | K142: 174 | L142: 89 | M142: 1000 | N142: 184 | O142: 1272 | P142: 1645 | Q142: 321 | R142: 19 | S142: 536 | T142: 1 | U142: 13 | V142: 544 | W142: 28 | X142: 72 | Y142: 119 | Z142: 298 | AA142: 33 | AB142: 397 | AC142: 53 | AD142: 211 | AE142: 41 | AF142: 34 | AG142: 61 | AI142: 1 | AK142: 10 | AL142: 48 | AM142: 33 | AO142: 197 | AP142: 33 | AQ142: 48 | AR142: 31 | AS142: 24 | AT142: 14 | AU142: 16 | AV142: 189 | AX142: 4 | AY142: 2 | AZ142: 16 | BA142: 112 | BC142: 1 | BD142: 90 | BE142: 15 | BF142: 1 | BG142: 1 | BH142: 8 | BI142: 1 | BK142: 4 | BL142: 3 | BN142: 8 | BO142: 4 | BQ142: 10 | BU142: 3 | BW142: 6 | BY142: 3 | BZ142: 1 | CC142: 12 | CD142: 2 | CE142: 1 | CG142: 1 | CI142: 2 | CK142: 2 | CS142: 1
A143: Feeling abnormal | B143: 31485 | C143: 1929 | D143: 1003 | E143: 228 | F143: 151 | G143: 245 | H143: 553 | I143: 121 | J143: 100 | K143: 641 | L143: 82 | M143: 519 | N143: 235 | O143: 273 | P143: 527 | Q143: 470 | R143: 41 | S143: 285 | T143: 5 | U143: 12 | V143: 483 | W143: 57 | X143: 67 | Y143: 37 | Z143: 200 | AA143: 44 | AB143: 154 | AC143: 50 | AD143: 33 | AE143: 86 | AF143: 29 | AG143: 64 | AH143: 143 | AI143: 57 | AK143: 33 | AL143: 66 | AM143: 61 | AN143: 7 | AO143: 91 | AP143: 7 | AQ143: 37 | AR143: 221 | AS143: 44 | AT143: 40 | AU143: 23 | AV143: 51 | AW143: 29 | AX143: 6 | AY143: 38 | AZ143: 39 | BA143: 34 | BB143: 15 | BC143: 8 | BD143: 33 | BE143: 14 | BF143: 2 | BI143: 2 | BL143: 1 | BM143: 4 | BN143: 7 | BO143: 4 | BP143: 1 | BQ143: 5 | BR143: 4 | BU143: 2 | BW143: 5 | BY143: 3 | BZ143: 3 | CA143: 4 | CB143: 2 | CC143: 4 | CD143: 4 | CE143: 1 | CG143: 1 | CH143: 1 | CI143: 1 | CK143: 3
A144: Injection site oedema | B144: 251 | C144: 110 | D144: 2623 | E144: 4338 | F144: 1188 | G144: 2085 | H144: 3695 | I144: 5935 | J144: 2446 | K144: 78 | L144: 3618 | M144: 389 | N144: 817 | O144: 158 | P144: 115 | Q144: 484 | R144: 734 | S144: 227 | T144: 2558 | U144: 2143 | V144: 102 | W144: 14 | X144: 2922 | Y144: 156 | Z144: 28 | AA144: 127 | AB144: 49 | AC144: 98 | AD144: 186 | AE144: 217 | AF144: 47 | AG144: 620 | AH144: 10 | AI144: 19 | AJ144: 574 | AK144: 100 | AL144: 35 | AM144: 137 | AN144: 271 | AO144: 8 | AP144: 32 | AQ144: 85 | AR144: 10 | AS144: 3 | AT144: 110 | AU144: 360 | AV144: 2 | AX144: 310 | AY144: 2 | AZ144: 1 | BA144: 6 | BB144: 38 | BC144: 29 | BD144: 4 | BE144: 2 | BF144: 10 | BG144: 49 | BH144: 25 | BI144: 24 | BJ144: 5 | BK144: 6 | BL144: 3 | BM144: 17 | BN144: 5 | BO144: 1 | BP144: 24 | BR144: 11 | BS144: 12 | BT144: 7 | BU144: 2 | BV144: 4 | BX144: 1 | BY144: 1 | BZ144: 6 | CA144: 1 | CE144: 1 | CH144: 2 | CM144: 1 | CN144: 3
A145: Tremor | B145: 19157 | C145: 1340 | D145: 2027 | E145: 1071 | F145: 508 | G145: 1176 | H145: 735 | I145: 828 | J145: 1361 | K145: 1011 | L145: 571 | M145: 699 | N145: 600 | O145: 582 | P145: 646 | Q145: 555 | R145: 484 | S145: 563 | T145: 918 | U145: 946 | V145: 530 | W145: 205 | X145: 321 | Y145: 87 | Z145: 280 | AA145: 229 | AB145: 312 | AC145: 196 | AD145: 66 | AE145: 183 | AF145: 80 | AG145: 127 | AH145: 196 | AI145: 55 | AJ145: 319 | AK145: 37 | AL145: 91 | AM145: 130 | AN145: 104 | AO145: 73 | AP145: 119 | AQ145: 125 | AR145: 190 | AS145: 42 | AT145: 71 | AU145: 55 | AV145: 62 | AW145: 34 | AX145: 41 | AY145: 55 | AZ145: 65 | BA145: 11 | BB145: 86 | BC145: 21 | BD145: 27 | BE145: 10 | BF145: 7 | BG145: 10 | BH145: 19 | BI145: 10 | BJ145: 4 | BK145: 8 | BL145: 6 | BM145: 7 | BN145: 17 | BO145: 5 | BP145: 6 | BQ145: 10 | BR145: 8 | BS145: 6 | BT145: 1 | BU145: 6 | BV145: 2 | BW145: 3 | BX145: 5 | BZ145: 3 | CA145: 6 | CB145: 2 | CD145: 1 | CE145: 4 | CG145: 2 | CH145: 2 | CK145: 1 | CL145: 2 | CM145: 1 | CN145: 3 | CO145: 1
A146: Pallor | B146: 7776 | C146: 114 | D146: 1079 | E146: 1625 | F146: 996 | G146: 2021 | H146: 378 | I146: 1607 | J146: 2423 | K146: 1653 | L146: 1628 | M146: 1452 | N146: 1300 | O146: 1124 | P146: 619 | Q146: 298 | R146: 1142 | S146: 1531 | T146: 1409 | U146: 1419 | V146: 220 | W146: 641 | X146: 416 | Y146: 167 | Z146: 752 | AA146: 334 | AB146: 543 | AC146: 515 | AD146: 262 | AE146: 193 | AF146: 587 | AG146: 54 | AH146: 235 | AI146: 77 | AJ146: 354 | AK146: 17 | AL146: 134 | AM146: 62 | AN146: 163 | AO146: 100 | AP146: 620 | AQ146: 241 | AR146: 407 | AS146: 63 | AT146: 87 | AU146: 78 | AV146: 12 | AW146: 62 | AX146: 61 | AY146: 48 | AZ146: 54 | BA146: 15 | BB146: 5 | BC146: 118 | BD146: 10 | BE146: 6 | BF146: 4 | BG146: 25 | BH146: 73 | BI146: 6 | BJ146: 19 | BK146: 20 | BL146: 36 | BM146: 6 | BN146: 10 | BO146: 14 | BP146: 49 | BQ146: 10 | BR146: 3 | BS146: 6 | BT146: 2 | BU146: 5 | BW146: 1 | BX146: 15 | BZ146: 12 | CA146: 5 | CD146: 5 | CE146: 4 | CF146: 15 | CG146: 4 | CH146: 2 | CI146: 1 | CK146: 1 | CL146: 3
A147: Injection site pruritus | B147: 20090 | C147: 4113 | D147: 1909 | E147: 783 | F147: 1685 | G147: 306 | H147: 1058 | I147: 699 | J147: 193 | K147: 402 | L147: 448 | M147: 1366 | N147: 547 | O147: 996 | P147: 967 | Q147: 277 | R147: 49 | S147: 698 | T147: 1 | U147: 22 | V147: 292 | W147: 6 | X147: 123 | Y147: 362 | Z147: 136 | AA147: 37 | AB147: 58 | AC147: 61 | AD147: 552 | AE147: 102 | AF147: 3 | AG147: 186 | AH147: 137 | AI147: 30 | AJ147: 1 | AK147: 56 | AL147: 54 | AM147: 25 | AN147: 1 | AO147: 136 | AP147: 16 | AQ147: 39 | AR147: 11 | AS147: 10 | AT147: 119 | AU147: 14 | AV147: 72 | AW147: 10 | AX147: 10 | AY147: 21 | AZ147: 13 | BA147: 75 | BB147: 1 | BC147: 1 | BD147: 16 | BE147: 20 | BG147: 2 | BH147: 3 | BI147: 1 | BK147: 2 | BL147: 56 | BM147: 9 | BN147: 4 | BO147: 3 | BP147: 1 | BQ147: 2 | BW147: 14 | BY147: 1 | BZ147: 20 | CA147: 2 | CC147: 9 | CD147: 1 | CE147: 1 | CQ147: 2
A148: Blood test | B148: 30639 | C148: 676 | D148: 716 | E148: 314 | F148: 229 | G148: 238 | H148: 363 | I148: 198 | J148: 205 | K148: 828 | L148: 110 | M148: 351 | N148: 195 | O148: 375 | P148: 346 | Q148: 297 | R148: 109 | S148: 178 | T148: 7 | U148: 21 | V148: 487 | W148: 142 | X148: 47 | Y148: 69 | Z148: 174 | AA148: 91 | AB148: 87 | AC148: 94 | AD148: 32 | AE148: 38 | AF148: 82 | AG148: 39 | AH148: 128 | AI148: 27 | AJ148: 4 | AK148: 18 | AL148: 48 | AM148: 41 | AN148: 9 | AO148: 50 | AP148: 70 | AQ148: 60 | AR148: 51 | AS148: 27 | AT148: 33 | AU148: 16 | AV148: 40 | AW148: 22 | AX148: 10 | AY148: 49 | AZ148: 27 | BA148: 12 | BB148: 2 | BC148: 16 | BD148: 17 | BE148: 10 | BF148: 3 | BG148: 5 | BH148: 9 | BI148: 4 | BJ148: 2 | BK148: 6 | BL148: 17 | BM148: 1 | BN148: 3 | BO148: 5 | BP148: 2 | BQ148: 2 | BR148: 3 | BU148: 1 | BW148: 1 | BX148: 1 | BY148: 1 | BZ148: 3 | CA148: 3 | CB148: 1 | CC148: 2 | CD148: 1 | CE148: 2 | CF148: 2 | CJ148: 1 | CK148: 2 | CL148: 1 | CM148: 1
A149: Body temperature | B149: 35036 | C149: 86 | D149: 64 | E149: 62 | F149: 67 | G149: 37 | H149: 78 | I149: 51 | J149: 51 | K149: 36 | L149: 35 | M149: 46 | N149: 36 | O149: 40 | P149: 12 | Q149: 43 | R149: 51 | S149: 16 | U149: 4 | V149: 290 | W149: 24 | X149: 6 | Y149: 4 | AA149: 21 | AB149: 9 | AC149: 13 | AD149: 8 | AE149: 8 | AF149: 10 | AG149: 4 | AH149: 4 | AI149: 4 | AK149: 1 | AL149: 10 | AM149: 3 | AN149: 1 | AO149: 1 | AP149: 9 | AQ149: 5 | AR149: 1 | AS149: 19 | AT149: 2 | AU149: 2 | AV149: 3 | AX149: 1 | AY149: 2 | AZ149: 2 | BC149: 1 | BD149: 1 | BN149: 1 | BO149: 2 | BQ149: 1 | BX149: 2 | CB149: 1 | CF149: 1
A150: Feeling hot | B150: 16033 | C150: 1023 | D150: 1812 | E150: 2215 | F150: 686 | G150: 646 | H150: 1602 | I150: 2871 | J150: 475 | K150: 347 | L150: 2197 | M150: 638 | N150: 654 | O150: 208 | P150: 415 | Q150: 368 | R150: 445 | S150: 334 | T150: 17 | U150: 41 | V150: 264 | W150: 31 | X150: 505 | Y150: 65 | Z150: 119 | AA150: 111 | AB150: 96 | AC150: 34 | AD150: 81 | AE150: 130 | AF150: 17 | AG150: 215 | AH150: 170 | AI150: 46 | AJ150: 8 | AK150: 60 | AL150: 82 | AM150: 62 | AN150: 134 | AO150: 63 | AP150: 15 | AQ150: 66 | AR150: 44 | AS150: 33 | AT150: 60 | AU150: 91 | AV150: 28 | AW150: 26 | AX150: 38 | AY150: 36 | AZ150: 11 | BA150: 21 | BB150: 29 | BC150: 5 | BD150: 10 | BE150: 14 | BF150: 5 | BG150: 30 | BH150: 3 | BI150: 4 | BK150: 2 | BL150: 3 | BM150: 8 | BN150: 4 | BO150: 5 | BP150: 5 | BQ150: 2 | BR150: 6 | BS150: 10 | BT150: 3 | BU150: 1 | BV150: 2 | BW150: 1 | BY150: 3 | BZ150: 2 | CB150: 1 | CC150: 6 | CD150: 2 | CE150: 3 | CF150: 1 | CG150: 2 | CH150: 1 | CJ150: 1 | CK150: 1 | CM150: 1 | CP150: 1
A151: Herpes zoster | B151: 11273 | C151: 18449 | D151: 466 | E151: 555 | F151: 2097 | G151: 211 | H151: 153 | I151: 142 | J151: 137 | K151: 104 | L151: 104 | M151: 117 | N151: 157 | O151: 94 | P151: 159 | Q151: 304 | R151: 105 | S151: 38 | T151: 43 | U151: 22 | V151: 233 | X151: 29 | Y151: 83 | Z151: 16 | AA151: 8 | AB151: 7 | AC151: 7 | AD151: 15 | AE151: 20 | AF151: 1 | AG151: 29 | AH151: 44 | AI151: 13 | AJ151: 6 | AK151: 15 | AL151: 24 | AM151: 14 | AN151: 34 | AO151: 17 | AP151: 2 | AQ151: 13 | AR151: 8 | AS151: 8 | AT151: 10 | AU151: 24 | AV151: 16 | AW151: 5 | AX151: 7 | AY151: 27 | AZ151: 3 | BA151: 12 | BB151: 11 | BD151: 6 | BE151: 3 | BF151: 1 | BG151: 3 | BI151: 1 | BJ151: 1 | BL151: 1 | BM151: 2 | BR151: 1 | BS151: 5 | BT151: 1 | BU151: 1 | BV151: 1 | BW151: 4 | BZ151: 1 | CA151: 1 | CC151: 1 | CD151: 1 | CE151: 2 | CG151: 1 | CH151: 1 | CK151: 1 | CL151: 1 | CQ151: 1
A152: Loss of consciousness | B152: 17087 | C152: 544 | D152: 962 | E152: 656 | F152: 557 | G152: 664 | H152: 334 | I152: 464 | J152: 345 | K152: 2387 | L152: 509 | M152: 1451 | N152: 1090 | O152: 377 | P152: 819 | Q152: 290 | R152: 304 | S152: 1493 | T152: 29 | U152: 92 | V152: 323 | W152: 72 | X152: 201 | Y152: 76 | Z152: 901 | AA152: 45 | AB152: 470 | AC152: 135 | AD152: 107 | AE152: 224 | AF152: 83 | AG152: 100 | AH152: 120 | AI152: 59 | AJ152: 3 | AK152: 26 | AL152: 204 | AM152: 68 | AN152: 19 | AO152: 198 | AP152: 198 | AQ152: 207 | AR152: 588 | AS152: 47 | AT152: 103 | AU152: 52 | AV152: 35 | AW152: 18 | AX152: 13 | AY152: 19 | AZ152: 94 | BA152: 23 | BB152: 5 | BC152: 13 | BD152: 15 | BE152: 15 | BF152: 4 | BG152: 6 | BH152: 14 | BI152: 2 | BK152: 4 | BL152: 11 | BM152: 4 | BN152: 26 | BO152: 9 | BP152: 5 | BQ152: 2 | BR152: 3 | BS152: 2 | BT152: 5 | BU152: 6 | BV152: 1 | BW152: 2 | BX152: 8 | BY152: 1 | BZ152: 2 | CA152: 4 | CB152: 5 | CC152: 3 | CD152: 2 | CE152: 2 | CF152: 5 | CG152: 11 | CH152: 1 | CJ152: 3 | CL152: 2 | CO152: 1 | CP152: 1
A153: Skin warm | B153: 9596 | C153: 2760 | D153: 2885 | E153: 952 | F153: 1730 | G153: 336 | H153: 3951 | I153: 1067 | J153: 268 | K153: 404 | L153: 677 | M153: 1974 | N153: 755 | O153: 1161 | P153: 1430 | Q153: 435 | R153: 206 | S153: 1048 | T153: 4 | U153: 32 | V153: 292 | W153: 92 | X153: 179 | Y153: 394 | Z153: 183 | AA153: 134 | AB153: 249 | AC153: 148 | AD153: 477 | AE153: 91 | AF153: 28 | AG153: 184 | AH153: 123 | AI153: 52 | AJ153: 5 | AK153: 33 | AL153: 63 | AM153: 29 | AN153: 4 | AO153: 161 | AP153: 51 | AQ153: 74 | AR153: 15 | AS153: 34 | AT153: 42 | AU153: 44 | AV153: 121 | AW153: 22 | AX153: 21 | AY153: 43 | AZ153: 21 | BA153: 75 | BB153: 1 | BC153: 13 | BD153: 47 | BE153: 17 | BG153: 9 | BH153: 8 | BI153: 4 | BK153: 4 | BL153: 10 | BM153: 7 | BN153: 9 | BO153: 3 | BP153: 1 | BQ153: 9 | BR153: 1 | BS153: 2 | BU153: 5 | BW153: 10 | BX153: 1 | BY153: 2 | BZ153: 2 | CA153: 3 | CB153: 1 | CC153: 10 | CD153: 1 | CE153: 1 | CH153: 1 | CK153: 1 | CP153: 1
A154: Injection site induration | B154: 5601 | C154: 1601 | D154: 1685 | E154: 2644 | F154: 2371 | G154: 571 | H154: 1840 | I154: 3776 | J154: 1007 | K154: 348 | L154: 2382 | M154: 1493 | N154: 1168 | O154: 888 | P154: 616 | Q154: 219 | R154: 914 | S154: 726 | T154: 12 | U154: 57 | V154: 206 | W154: 106 | X154: 606 | Y154: 514 | Z154: 160 | AA154: 279 | AB154: 185 | AC154: 201 | AD154: 675 | AE154: 85 | AF154: 40 | AG154: 260 | AH154: 52 | AI154: 33 | AJ154: 8 | AK154: 89 | AL154: 56 | AM154: 32 | AN154: 191 | AO154: 56 | AP154: 34 | AQ154: 64 | AR154: 20 | AS154: 24 | AT154: 46 | AU154: 102 | AV154: 30 | AW154: 7 | AX154: 56 | AY154: 9 | AZ154: 12 | BA154: 23 | BB154: 1 | BC154: 20 | BD154: 10 | BE154: 5 | BF154: 2 | BG154: 40 | BH154: 4 | BI154: 3 | BK154: 3 | BL154: 10 | BM154: 8 | BN154: 7 | BO154: 3 | BP154: 6 | BQ154: 1 | BS154: 8 | BT154: 2 | BU154: 7 | BW154: 3 | BX154: 2 | BZ154: 2 | CB154: 1 | CC154: 3 | CD154: 4 | CE154: 4 | CH154: 2 | CM154: 1 | CS154: 1
A155: Condition aggravated | B155: 21010 | C155: 1575 | D155: 946 | E155: 540 | F155: 284 | G155: 971 | H155: 599 | I155: 330 | J155: 468 | K155: 647 | L155: 217 | M155: 279 | N155: 226 | O155: 353 | P155: 361 | Q155: 761 | R155: 225 | S155: 126 | T155: 226 | U155: 222 | V155: 666 | W155: 119 | X155: 127 | Y155: 39 | Z155: 116 | AA155: 57 | AB155: 71 | AC155: 109 | AD155: 44 | AE155: 78 | AF155: 97 | AG155: 86 | AH155: 144 | AI155: 82 | AJ155: 44 | AK155: 35 | AL155: 103 | AM155: 85 | AN155: 25 | AO155: 63 | AP155: 76 | AQ155: 70 | AR155: 83 | AS155: 60 | AT155: 32 | AU155: 32 | AV155: 43 | AW155: 33 | AX155: 49 | AY155: 53 | AZ155: 32 | BA155: 14 | BB155: 54 | BC155: 34 | BD155: 27 | BE155: 7 | BF155: 11 | BG155: 4 | BH155: 17 | BI155: 9 | BJ155: 7 | BK155: 12 | BL155: 13 | BM155: 4 | BN155: 6 | BO155: 10 | BP155: 4 | BQ155: 2 | BR155: 3 | BS155: 1 | BU155: 2 | BV155: 3 | BW155: 2 | BX155: 5 | BY155: 1 | BZ155: 4 | CA155: 4 | CB155: 3 | CC155: 2 | CD155: 3 | CE155: 3 | CF155: 1 | CI155: 1 | CL155: 1 | CQ155: 1 | CS155: 1
A156: Expired product administered | B156: 21350 | C156: 738 | D156: 377 | E156: 1246 | F156: 722 | G156: 530 | H156: 839 | I156: 472 | J156: 449 | K156: 198 | L156: 284 | M156: 325 | N156: 923 | O156: 211 | P156: 508 | Q156: 38 | R156: 18 | S156: 555 | T156: 1 | U156: 3 | V156: 201 | W156: 397 | X156: 147 | Y156: 541 | Z156: 257 | AA156: 96 | AB156: 122 | AC156: 275 | AD156: 163 | AE156: 70 | AF156: 19 | AG156: 13 | AI156: 51 | AK156: 4 | AL156: 85 | AM156: 48 | AO156: 56 | AP156: 3 | AQ156: 11 | AR156: 2 | AS156: 336 | AT156: 28 | AU156: 13 | AV156: 11 | AX156: 4 | AZ156: 8 | BA156: 52 | BC156: 23 | BD156: 4 | BE156: 11 | BF156: 1 | BI156: 1 | BL156: 1 | BN156: 2 | BO156: 1 | BR156: 7 | BW156: 2 | CB156: 1 | CE156: 1 | CJ156: 1 | CK156: 1
A157: Decreased appetite | B157: 17559 | C157: 1132 | D157: 645 | E157: 1095 | F157: 564 | G157: 488 | H157: 676 | I157: 749 | J157: 867 | K157: 344 | L157: 553 | M157: 350 | N157: 493 | O157: 1089 | P157: 335 | Q157: 377 | R157: 571 | S157: 213 | T157: 20 | U157: 151 | V157: 376 | W157: 395 | X157: 54 | Y157: 186 | Z157: 93 | AA157: 289 | AB157: 225 | AC157: 320 | AD157: 143 | AE157: 82 | AF157: 355 | AG157: 36 | AH157: 106 | AI157: 109 | AJ157: 4 | AK157: 35 | AL157: 57 | AM157: 50 | AN157: 119 | AO157: 42 | AP157: 217 | AQ157: 108 | AR157: 93 | AS157: 146 | AT157: 44 | AU157: 26 | AV157: 59 | AW157: 46 | AX157: 12 | AY157: 48 | AZ157: 42 | BA157: 11 | BB157: 5 | BC157: 74 | BD157: 18 | BE157: 11 | BF157: 2 | BG157: 12 | BH157: 39 | BI157: 3 | BJ157: 4 | BK157: 18 | BL157: 6 | BM157: 2 | BN157: 1 | BO157: 11 | BP157: 6 | BQ157: 36 | BS157: 2 | BT157: 1 | BU157: 10 | BV157: 1 | BW157: 2 | BX157: 8 | BY157: 6 | BZ157: 7 | CA157: 2 | CB157: 3 | CC157: 2 | CD157: 2 | CE157: 3 | CF157: 1 | CI157: 2 | CL157: 1 | CM157: 1 | CN157: 1 | CQ157: 1
A158: Back pain | B158: 20440 | C158: 1466 | D158: 1401 | E158: 289 | F158: 154 | G158: 850 | H158: 743 | I158: 78 | J158: 26 | K158: 739 | L158: 93 | M158: 544 | N158: 251 | O158: 158 | P158: 486 | Q158: 513 | R158: 7 | S158: 332 | T158: 39 | U158: 31 | V158: 371 | W158: 5 | X158: 313 | Y158: 9 | Z158: 112 | AA158: 5 | AB158: 141 | AC158: 6 | AD158: 21 | AE158: 176 | AF158: 2 | AG158: 288 | AH158: 134 | AI158: 36 | AJ158: 2 | AK158: 90 | AL158: 92 | AM158: 110 | AN158: 3 | AO158: 80 | AP158: 2 | AQ158: 79 | AR158: 147 | AS158: 19 | AT158: 102 | AU158: 68 | AV158: 69 | AW158: 18 | AX158: 28 | AY158: 41 | AZ158: 43 | BA158: 18 | BB158: 189 | BC158: 2 | BD158: 54 | BE158: 9 | BF158: 22 | BG158: 1 | BH158: 1 | BI158: 9 | BK158: 6 | BL158: 3 | BM158: 10 | BN158: 6 | BO158: 12 | BR158: 7 | BT158: 1 | BU158: 3 | BV158: 3 | BW158: 1 | BY158: 1 | CA158: 3 | CB158: 6 | CC158: 2 | CD158: 4 | CE158: 3 | CL158: 1 | CN158: 1 | CO158: 1
A159: Rash erythematous | B159: 12186 | C159: 2485 | D159: 1405 | E159: 1986 | F159: 1854 | G159: 562 | H159: 816 | I159: 959 | J159: 680 | K159: 328 | L159: 643 | M159: 532 | N159: 929 | O159: 899 | P159: 602 | Q159: 292 | R159: 489 | S159: 281 | T159: 14 | U159: 33 | V159: 262 | W159: 184 | X159: 119 | Y159: 352 | Z159: 102 | AA159: 229 | AB159: 108 | AC159: 199 | AD159: 216 | AE159: 146 | AF159: 67 | AG159: 159 | AH159: 180 | AI159: 61 | AJ159: 3 | AK159: 247 | AL159: 70 | AM159: 58 | AN159: 102 | AO159: 62 | AP159: 45 | AQ159: 69 | AR159: 12 | AS159: 42 | AT159: 66 | AU159: 29 | AV159: 39 | AW159: 38 | AX159: 11 | AY159: 39 | AZ159: 13 | BA159: 30 | BB159: 4 | BC159: 13 | BD159: 16 | BE159: 10 | BF159: 4 | BG159: 21 | BH159: 3 | BI159: 7 | BJ159: 2 | BK159: 8 | BL159: 10 | BM159: 10 | BN159: 13 | BO159: 3 | BQ159: 4 | BS159: 5 | BT159: 5 | BU159: 4 | BV159: 1 | BW159: 7 | BX159: 3 | BY159: 2 | BZ159: 2 | CA159: 3 | CC159: 8 | CD159: 1 | CE159: 2 | CF159: 3 | CH159: 1 | CK159: 1
A160: Vaccination site pain | B160: 28312 | C160: 276 | D160: 223 | E160: 60 | F160: 62 | G160: 41 | H160: 347 | I160: 52 | J160: 60 | K160: 95 | L160: 33 | M160: 148 | N160: 27 | O160: 208 | P160: 127 | Q160: 121 | R160: 7 | S160: 64 | T160: 1 | U160: 25 | V160: 232 | W160: 7 | X160: 9 | Y160: 21 | Z160: 48 | AA160: 5 | AB160: 104 | AC160: 5 | AD160: 53 | AE160: 22 | AF160: 8 | AG160: 33 | AH160: 7 | AI160: 2 | AK160: 16 | AL160: 8 | AM160: 3 | AO160: 26 | AP160: 15 | AQ160: 17 | AR160: 23 | AS160: 3 | AT160: 9 | AU160: 2 | AV160: 21 | AW160: 1 | AX160: 1 | AY160: 3 | AZ160: 5 | BA160: 9 | BC160: 2 | BD160: 5 | BE160: 8 | BH160: 5 | BK160: 6 | BL160: 7 | BN160: 3 | BO160: 2 | BP160: 5 | BQ160: 2 | BT160: 2 | BX160: 4 | CB160: 2 | CC160: 7 | CD160: 1 | CG160: 1 | CK160: 1
A161: Incorrect product storage | C161: 1197 | D161: 1220 | E161: 2283 | F161: 5097 | G161: 2616 | H161: 2295 | I161: 32 | J161: 1436 | K161: 2567 | L161: 25 | M161: 80 | N161: 1985 | O161: 55 | P161: 17 | Q161: 21 | R161: 10 | S161: 277 | U161: 1 | V161: 19 | W161: 3814 | X161: 6 | Y161: 2615 | Z161: 2384 | AA161: 34 | AB161: 9 | AC161: 20 | AD161: 49 | AE161: 4 | AF161: 6 | AH161: 1 | AI161: 5 | AL161: 5 | AN161: 58 | AO161: 49 | AP161: 1 | AQ161: 7 | AR161: 4 | AS161: 81 | AT161: 1 | AX161: 4 | AZ161: 25 | BC161: 2 | BE161: 31 | BF161: 2
A162: Convulsion | C162: 24 | D162: 968 | E162: 3169 | F162: 1147 | G162: 1885 | H162: 266 | I162: 2410 | J162: 3793 | K162: 1446 | L162: 1624 | M162: 399 | N162: 792 | O162: 514 | P162: 23 | Q162: 319 | R162: 1716 | S162: 366 | T162: 2346 | U162: 2343 | V162: 69 | W162: 352 | X162: 307 | Y162: 107 | AA162: 459 | AC162: 359 | AD162: 62 | AE162: 122 | AF162: 147 | AG162: 52 | AH162: 159 | AI162: 73 | AJ162: 641 | AK162: 20 | AL162: 84 | AM162: 64 | AN162: 404 | AP162: 153 | AQ162: 120 | AR162: 199 | AS162: 16 | AT162: 41 | AU162: 34 | AW162: 33 | AX162: 137 | AY162: 37 | AZ162: 35 | BB162: 8 | BC162: 41 | BE162: 3 | BF162: 15 | BG162: 44 | BH162: 17 | BI162: 33 | BJ162: 23 | BK162: 12 | BL162: 21 | BM162: 8 | BN162: 7 | BO162: 8 | BP162: 10 | BQ162: 3 | BR162: 6 | BS162: 17 | BT162: 9 | BU162: 6 | BV162: 10 | BX162: 7 | BY162: 2 | BZ162: 10 | CA162: 21 | CB162: 5 | CD162: 2 | CF162: 8 | CH162: 16 | CL162: 1 | CM162: 1
A163: Injection site hypersensitivity | B163: 184 | C163: 51 | D163: 2610 | E163: 3070 | F163: 1037 | G163: 2178 | H163: 2351 | I163: 2789 | J163: 2062 | K163: 7 | L163: 1033 | M163: 64 | N163: 275 | O163: 24 | P163: 17 | Q163: 487 | R163: 167 | S163: 37 | T163: 3341 | U163: 2411 | V163: 48 | W163: 1 | X163: 3108 | Y163: 16 | AA163: 27 | AB163: 6 | AD163: 13 | AE163: 189 | AF163: 2 | AG163: 374 | AJ163: 761 | AK163: 66 | AL163: 11 | AM163: 184 | AN163: 109 | AP163: 2 | AQ163: 59 | AR163: 1 | AT163: 120 | AU163: 358 | AW163: 1 | AX163: 374 | AZ163: 1 | BB163: 57 | BF163: 11 | BG163: 5 | BI163: 28 | BJ163: 7 | BL163: 1 | BM163: 22 | BO163: 1 | BR163: 12 | BS163: 7 | BT163: 6 | BU163: 1 | BV163: 5 | BX163: 2 | CH163: 1 | CN163: 2
A164: Somnolence | B164: 10245 | C164: 595 | D164: 592 | E164: 1389 | F164: 438 | G164: 1492 | H164: 381 | I164: 1191 | J164: 2128 | K164: 436 | L164: 940 | M164: 299 | N164: 366 | O164: 696 | P164: 217 | Q164: 307 | R164: 656 | S164: 210 | T164: 1542 | U164: 1512 | V164: 258 | W164: 301 | X164: 197 | Y164: 104 | Z164: 91 | AA164: 244 | AB164: 186 | AC164: 267 | AD164: 122 | AE164: 87 | AF164: 299 | AG164: 91 | AH164: 114 | AI164: 40 | AJ164: 450 | AK164: 25 | AL164: 40 | AM164: 99 | AN164: 151 | AO164: 33 | AP164: 300 | AQ164: 139 | AR164: 130 | AS164: 62 | AT164: 32 | AU164: 31 | AV164: 20 | AW164: 26 | AX164: 59 | AY164: 52 | AZ164: 43 | BA164: 7 | BB164: 32 | BC164: 86 | BD164: 11 | BE164: 6 | BF164: 9 | BG164: 18 | BH164: 50 | BI164: 13 | BJ164: 46 | BK164: 17 | BL164: 18 | BM164: 6 | BN164: 5 | BO164: 13 | BP164: 24 | BQ164: 7 | BR164: 4 | BS164: 8 | BT164: 7 | BU164: 2 | BV164: 1 | BW164: 1 | BX164: 17 | BY164: 1 | BZ164: 7 | CA164: 2 | CB164: 10 | CC164: 1 | CD164: 3 | CE164: 4 | CF164: 7 | CG164: 3 | CH164: 1 | CI164: 1 | CK164: 2 | CT164: 1
A165: Oedema peripheral | B165: 3636 | C165: 679 | D165: 2966 | E165: 1794 | F165: 1382 | G165: 1372 | H165: 3941 | I165: 1992 | J165: 742 | K165: 699 | L165: 1227 | M165: 1539 | N165: 791 | O165: 223 | P165: 105 | Q165: 578 | R165: 401 | S165: 722 | T165: 556 | U165: 432 | V165: 330 | W165: 75 | X165: 898 | Y165: 154 | Z165: 27 | AA165: 136 | AB165: 31 | AC165: 89 | AD165: 163 | AE165: 204 | AF165: 31 | AG165: 316 | AH165: 180 | AI165: 88 | AJ165: 121 | AK165: 80 | AL165: 121 | AM165: 128 | AN165: 63 | AO165: 14 | AP165: 50 | AQ165: 82 | AR165: 66 | AS165: 2 | AT165: 64 | AU165: 149 | AV165: 8 | AW165: 27 | AX165: 101 | AY165: 45 | AZ165: 13 | BA165: 6 | BB165: 97 | BC165: 5 | BD165: 2 | BE165: 3 | BF165: 49 | BG165: 15 | BH165: 6 | BI165: 12 | BJ165: 3 | BK165: 6 | BL165: 4 | BM165: 20 | BN165: 4 | BO165: 4 | BP165: 4 | BR165: 3 | BS165: 1 | BT165: 9 | BU165: 5 | BV165: 4 | BW165: 2 | BX165: 3 | BZ165: 3 | CA165: 3 | CB165: 4 | CC165: 1 | CE165: 5 | CF165: 2 | CH165: 1 | CN165: 1
A166: Drug ineffective | B166: 13052 | C166: 53 | D166: 154 | E166: 1965 | F166: 7035 | G166: 2976 | H166: 337 | I166: 386 | J166: 781 | K166: 17 | L166: 234 | M166: 5 | N166: 154 | O166: 95 | P166: 6 | Q166: 98 | R166: 437 | S166: 9 | T166: 355 | U166: 270 | V166: 503 | W166: 21 | X166: 28 | Y166: 5 | Z166: 2 | AA166: 11 | AB166: 5 | AC166: 7 | AD166: 10 | AE166: 41 | AF166: 8 | AG166: 2 | AI166: 18 | AJ166: 90 | AK166: 3 | AL166: 24 | AM166: 56 | AN166: 81 | AO166: 2 | AP166: 13 | AQ166: 20 | AR166: 1 | AS166: 7 | AT166: 9 | AU166: 8 | AX166: 19 | AZ166: 3 | BB166: 24 | BC166: 2 | BF166: 81 | BG166: 17 | BI166: 66 | BJ166: 3 | BK166: 7 | BR166: 1 | BS166: 13 | BT166: 11 | BU166: 8 | BV166: 15 | BX166: 2 | BZ166: 5 | CA166: 1 | CC166: 4 | CF166: 1 | CH166: 2 | CO166: 2
A167: Injection site reaction | B167: 5654 | C167: 1989 | D167: 1930 | E167: 1678 | F167: 1337 | G167: 693 | H167: 2372 | I167: 2203 | J167: 1036 | K167: 245 | L167: 1331 | M167: 631 | N167: 653 | O167: 836 | P167: 610 | Q167: 420 | R167: 455 | S167: 289 | T167: 448 | U167: 724 | V167: 152 | W167: 73 | X167: 681 | Y167: 313 | Z167: 94 | AA167: 170 | AB167: 138 | AC167: 182 | AD167: 377 | AE167: 126 | AF167: 49 | AG167: 247 | AH167: 48 | AI167: 10 | AJ167: 62 | AK167: 239 | AL167: 53 | AM167: 80 | AN167: 108 | AO167: 55 | AP167: 53 | AQ167: 56 | AR167: 24 | AS167: 15 | AT167: 66 | AU167: 125 | AV167: 47 | AW167: 4 | AX167: 97 | AY167: 20 | AZ167: 8 | BA167: 27 | BB167: 9 | BC167: 4 | BD167: 20 | BE167: 13 | BF167: 2 | BG167: 21 | BH167: 9 | BI167: 11 | BJ167: 2 | BK167: 7 | BL167: 17 | BM167: 8 | BN167: 7 | BO167: 3 | BP167: 2 | BQ167: 1 | BR167: 4 | BS167: 3 | BT167: 3 | BU167: 2 | BV167: 3 | BW167: 5 | BX167: 3 | BY167: 2 | BZ167: 7 | CA167: 3 | CB167: 3 | CC167: 3 | CD167: 3 | CE167: 2 | CF167: 6 | CH167: 1 | CP167: 1
A168: Influenza like illness | B168: 16291 | C168: 4156 | D168: 1244 | E168: 196 | F168: 109 | G168: 417 | H168: 883 | I168: 91 | J168: 29 | K168: 441 | L168: 60 | M168: 460 | N168: 170 | O168: 208 | P168: 359 | Q168: 708 | R168: 29 | S168: 117 | T168: 8 | U168: 14 | V168: 395 | W168: 7 | X168: 171 | Y168: 15 | Z168: 39 | AA168: 6 | AB168: 149 | AC168: 7 | AD168: 15 | AE168: 160 | AF168: 4 | AG168: 277 | AH168: 88 | AI168: 153 | AJ168: 2 | AK168: 111 | AL168: 127 | AM168: 134 | AN168: 6 | AO168: 56 | AP168: 4 | AQ168: 56 | AR168: 23 | AS168: 85 | AT168: 101 | AU168: 47 | AV168: 79 | AW168: 35 | AX168: 15 | AY168: 46 | AZ168: 19 | BA168: 22 | BB168: 228 | BC168: 7 | BD168: 14 | BE168: 12 | BF168: 4 | BG168: 2 | BH168: 2 | BI168: 4 | BJ168: 1 | BK168: 12 | BL168: 2 | BM168: 11 | BN168: 22 | BO168: 17 | BP168: 1 | BQ168: 1 | BR168: 6 | BS168: 1 | BT168: 2 | BU168: 2 | BV168: 2 | BW168: 1 | BX168: 1 | BY168: 1 | CA168: 3 | CB168: 5 | CC168: 3 | CE168: 1 | CF168: 3 | CG168: 3 | CH168: 2 | CK168: 1 | CO168: 1
A169: Palpitations | B169: 24101 | C169: 368 | D169: 619 | E169: 89 | F169: 54 | G169: 308 | H169: 179 | I169: 31 | J169: 10 | K169: 570 | L169: 35 | M169: 214 | N169: 117 | O169: 59 | P169: 250 | Q169: 247 | R169: 8 | S169: 72 | T169: 2 | U169: 12 | V169: 229 | W169: 2 | X169: 72 | Y169: 1 | Z169: 79 | AA169: 8 | AB169: 39 | AC169: 4 | AD169: 2 | AE169: 78 | AF169: 3 | AG169: 112 | AH169: 97 | AI169: 26 | AK169: 106 | AL169: 56 | AM169: 60 | AO169: 40 | AP169: 1 | AQ169: 25 | AR169: 91 | AS169: 14 | AT169: 36 | AU169: 16 | AV169: 25 | AW169: 17 | AX169: 6 | AY169: 38 | AZ169: 20 | BA169: 7 | BB169: 26 | BD169: 14 | BE169: 13 | BF169: 1 | BG169: 1 | BH169: 4 | BI169: 1 | BK169: 3 | BL169: 1 | BM169: 2 | BN169: 2 | BO169: 1 | BR169: 1 | BS169: 1 | BU169: 2 | BW169: 5 | BX169: 3 | BY169: 3 | CB169: 3 | CD169: 1 | CG169: 2 | CJ169: 2
A170: Injection site rash | B170: 11370 | C170: 3074 | D170: 1458 | E170: 1073 | F170: 1440 | G170: 313 | H170: 1220 | I170: 888 | J170: 504 | K170: 268 | L170: 485 | M170: 630 | N170: 713 | O170: 1039 | P170: 571 | Q170: 185 | R170: 318 | S170: 315 | T170: 6 | U170: 18 | V170: 206 | W170: 132 | X170: 87 | Y170: 339 | Z170: 88 | AA170: 219 | AB170: 118 | AC170: 198 | AD170: 344 | AE170: 56 | AF170: 43 | AG170: 109 | AH170: 95 | AI170: 14 | AJ170: 2 | AK170: 61 | AL170: 44 | AM170: 21 | AN170: 41 | AO170: 65 | AP170: 15 | AQ170: 39 | AR170: 5 | AS170: 5 | AT170: 56 | AU170: 24 | AV170: 40 | AW170: 3 | AX170: 12 | AY170: 17 | AZ170: 10 | BA170: 42 | BB170: 5 | BC170: 10 | BD170: 20 | BE170: 11 | BF170: 2 | BG170: 10 | BH170: 3 | BI170: 6 | BK170: 1 | BL170: 16 | BM170: 4 | BN170: 1 | BO170: 1 | BP170: 1 | BQ170: 5 | BS170: 2 | BT170: 1 | BU170: 4 | BV170: 1 | BW170: 8 | BX170: 4 | BZ170: 5 | CA170: 1 | CC170: 9 | CE170: 1 | CH170: 1 | CM170: 1 | CP170: 1
A171: Body temperature increased | B171: 9003 | C171: 742 | D171: 1238 | E171: 1154 | F171: 902 | G171: 603 | H171: 1324 | I171: 1125 | J171: 1329 | K171: 389 | L171: 974 | M171: 786 | N171: 634 | O171: 1020 | P171: 358 | Q171: 463 | R171: 1212 | S171: 371 | T171: 41 | U171: 168 | V171: 294 | W171: 540 | X171: 88 | Y171: 239 | Z171: 66 | AA171: 428 | AB171: 242 | AC171: 499 | AD171: 194 | AE171: 89 | AF171: 303 | AG171: 40 | AH171: 182 | AI171: 89 | AJ171: 21 | AK171: 36 | AL171: 73 | AM171: 59 | AN171: 61 | AO171: 25 | AP171: 272 | AQ171: 115 | AR171: 43 | AS171: 56 | AT171: 46 | AU171: 17 | AV171: 31 | AW171: 106 | AX171: 15 | AY171: 52 | AZ171: 23 | BA171: 12 | BC171: 74 | BD171: 18 | BE171: 2 | BF171: 3 | BG171: 16 | BH171: 29 | BI171: 12 | BK171: 11 | BL171: 12 | BM171: 4 | BN171: 6 | BO171: 10 | BP171: 43 | BQ171: 18 | BR171: 1 | BS171: 1 | BT171: 2 | BU171: 6 | BV171: 2 | BW171: 1 | BX171: 4 | BY171: 2 | BZ171: 7 | CA171: 1 | CB171: 6 | CE171: 2 | CF171: 2 | CG171: 5 | CH171: 2 | CI171: 1 | CJ171: 1 | CL171: 1 | CM171: 1
A172: Chest discomfort | B172: 22339 | C172: 353 | D172: 1324 | E172: 128 | F172: 105 | G172: 248 | H172: 337 | I172: 54 | J172: 11 | K172: 288 | L172: 44 | M172: 333 | N172: 152 | O172: 81 | P172: 388 | Q172: 300 | R172: 10 | S172: 136 | T172: 1 | U172: 5 | V172: 264 | W172: 1 | X172: 81 | Y172: 6 | Z172: 51 | AA172: 3 | AB172: 37 | AC172: 1 | AD172: 7 | AE172: 108 | AF172: 1 | AG172: 167 | AH172: 207 | AI172: 55 | AK172: 213 | AL172: 58 | AM172: 66 | AN172: 1 | AO172: 48 | AQ172: 39 | AR172: 45 | AS172: 25 | AT172: 67 | AU172: 20 | AV172: 23 | AW172: 33 | AX172: 5 | AY172: 44 | AZ172: 12 | BA172: 10 | BB172: 12 | BD172: 14 | BE172: 6 | BF172: 2 | BG172: 1 | BH172: 1 | BL172: 1 | BM172: 14 | BN172: 9 | BO172: 2 | BP172: 1 | BR172: 1 | BS172: 1 | BT172: 1 | BW172: 6 | BY172: 4 | CB172: 2 | CC172: 1 | CE172: 1 | CG172: 1 | CJ172: 3 | CK172: 1 | CO172: 1 | CT172: 1
A173: Electrocardiogram | B173: 24539 | C173: 217 | D173: 341 | E173: 75 | F173: 51 | G173: 92 | H173: 123 | I173: 35 | J173: 46 | K173: 281 | L173: 20 | M173: 172 | N173: 79 | O173: 143 | P173: 197 | Q173: 102 | R173: 31 | S173: 98 | T173: 1 | U173: 6 | V173: 319 | W173: 45 | X173: 21 | Y173: 11 | Z173: 81 | AA173: 30 | AB173: 70 | AC173: 28 | AD173: 13 | AE173: 46 | AF173: 22 | AG173: 68 | AH173: 64 | AI173: 16 | AK173: 106 | AL173: 24 | AM173: 10 | AN173: 1 | AO173: 29 | AP173: 37 | AQ173: 20 | AR173: 23 | AS173: 9 | AT173: 12 | AU173: 2 | AV173: 19 | AW173: 14 | AX173: 4 | AY173: 13 | AZ173: 12 | BA173: 5 | BB173: 2 | BC173: 5 | BD173: 8 | BE173: 4 | BH173: 1 | BK173: 2 | BM173: 1 | BN173: 3 | BO173: 1 | BR173: 2 | BW173: 3 | BX173: 1 | BZ173: 1 | CA173: 1 | CB173: 2 | CD173: 1 | CK173: 1
A174: Agitation | B174: 1055 | C174: 35 | D174: 140 | E174: 1814 | F174: 426 | G174: 2378 | H174: 91 | I174: 1814 | J174: 5099 | K174: 55 | L174: 1353 | M174: 42 | N174: 83 | O174: 103 | P174: 26 | Q174: 71 | R174: 743 | S174: 28 | T174: 4819 | U174: 4316 | V174: 65 | W174: 53 | X174: 84 | Y174: 30 | Z174: 11 | AA174: 193 | AB174: 27 | AC174: 37 | AD174: 18 | AE174: 33 | AF174: 49 | AG174: 31 | AH174: 3 | AI174: 7 | AJ174: 1555 | AK174: 9 | AL174: 12 | AM174: 45 | AN174: 320 | AO174: 5 | AP174: 67 | AQ174: 38 | AR174: 7 | AS174: 5 | AT174: 11 | AU174: 13 | AV174: 3 | AW174: 1 | AX174: 98 | AY174: 5 | AZ174: 7 | BA174: 1 | BB174: 3 | BC174: 19 | BD174: 2 | BF174: 4 | BG174: 10 | BH174: 10 | BI174: 12 | BJ174: 119 | BK174: 6 | BL174: 6 | BM174: 1 | BN174: 2 | BO174: 2 | BP174: 16 | BR174: 2 | BS174: 10 | BT174: 3 | BU174: 3 | BV174: 1 | BX174: 4 | BZ174: 2 | CA174: 1 | CB174: 2 | CF174: 7 | CH174: 1 | CI174: 1
A175: Neck pain | B175: 15615 | C175: 1247 | D175: 1589 | E175: 422 | F175: 167 | G175: 797 | H175: 787 | I175: 114 | J175: 27 | K175: 479 | L175: 86 | M175: 742 | N175: 211 | O175: 187 | P175: 588 | Q175: 491 | R175: 8 | S175: 366 | T175: 48 | U175: 38 | V175: 271 | W175: 1 | X175: 384 | Y175: 12 | Z175: 92 | AA175: 5 | AB175: 187 | AC175: 9 | AD175: 24 | AE175: 127 | AG175: 160 | AH175: 134 | AI175: 44 | AJ175: 4 | AK175: 76 | AL175: 96 | AM175: 91 | AN175: 1 | AO175: 90 | AQ175: 84 | AR175: 63 | AS175: 26 | AT175: 64 | AU175: 79 | AV175: 57 | AW175: 15 | AX175: 30 | AY175: 42 | AZ175: 26 | BA175: 28 | BB175: 143 | BC175: 2 | BD175: 27 | BE175: 13 | BF175: 19 | BG175: 2 | BI175: 6 | BK175: 2 | BL175: 2 | BM175: 7 | BN175: 12 | BO175: 7 | BR175: 4 | BT175: 3 | BU175: 2 | BV175: 3 | BW175: 7 | BY175: 1 | BZ175: 1 | CA175: 1 | CB175: 4 | CC175: 3 | CE175: 1 | CF175: 1 | CG175: 2 | CH175: 1 | CL175: 1 | CO175: 2 | CQ175: 2
A176: Oropharyngeal pain | B176: 18345 | C176: 508 | D176: 1314 | E176: 321 | F176: 183 | G176: 193 | H176: 257 | I176: 89 | J176: 28 | K176: 382 | L176: 73 | M176: 362 | N176: 154 | O176: 135 | P176: 457 | Q176: 627 | R176: 7 | S176: 224 | T176: 2 | U176: 13 | V176: 289 | W176: 1 | X176: 37 | Y176: 42 | Z176: 125 | AA176: 7 | AB176: 85 | AC176: 4 | AD176: 46 | AE176: 87 | AF176: 2 | AG176: 40 | AH176: 263 | AI176: 203 | AJ176: 1 | AK176: 40 | AL176: 63 | AM176: 41 | AN176: 1 | AO176: 70 | AP176: 6 | AQ176: 41 | AR176: 55 | AS176: 193 | AT176: 52 | AU176: 19 | AV176: 37 | AW176: 198 | AX176: 7 | AY176: 155 | AZ176: 35 | BA176: 16 | BB176: 2 | BC176: 1 | BD176: 24 | BE176: 10 | BG176: 2 | BH176: 2 | BI176: 1 | BK176: 1 | BL176: 1 | BM176: 3 | BN176: 8 | BO176: 9 | BQ176: 3 | BT176: 2 | BU176: 2 | BW176: 4 | BX176: 1 | BY176: 7 | CA176: 6 | CB176: 4 | CC176: 1 | CD176: 2 | CE176: 1 | CF176: 2 | CG176: 1 | CH176: 2 | CK176: 1 | CL176: 3
A177: Irritability | B177: 1305 | C177: 54 | D177: 393 | E177: 1955 | F177: 1361 | G177: 1044 | H177: 391 | I177: 2368 | J177: 2854 | K177: 82 | L177: 1583 | M177: 61 | N177: 747 | O177: 1908 | P177: 186 | Q177: 219 | R177: 2388 | S177: 67 | T177: 77 | U177: 150 | V177: 183 | W177: 1413 | X177: 29 | Y177: 310 | Z177: 14 | AA177: 1192 | AB177: 211 | AC177: 959 | AD177: 118 | AE177: 22 | AF177: 553 | AG177: 42 | AH177: 55 | AI177: 37 | AJ177: 26 | AK177: 15 | AL177: 12 | AM177: 21 | AN177: 491 | AO177: 6 | AP177: 261 | AQ177: 89 | AR177: 23 | AS177: 37 | AT177: 9 | AU177: 15 | AV177: 1 | AW177: 18 | AX177: 38 | AY177: 30 | AZ177: 7 | BA177: 4 | BB177: 7 | BC177: 157 | BD177: 1 | BE177: 1 | BF177: 3 | BG177: 53 | BH177: 20 | BI177: 11 | BJ177: 21 | BK177: 20 | BL177: 13 | BM177: 1 | BN177: 2 | BO177: 4 | BP177: 13 | BQ177: 40 | BS177: 28 | BT177: 1 | BU177: 17 | BV177: 3 | BX177: 9 | BY177: 1 | BZ177: 11 | CA177: 5 | CD177: 4 | CE177: 2 | CF177: 4 | CG177: 1 | CH177: 5 | CI177: 1 | CM177: 2 | CP177: 2
A178: Abdominal pain | B178: 12806 | C178: 430 | D178: 600 | E178: 637 | F178: 296 | G178: 1471 | H178: 319 | I178: 351 | J178: 343 | K178: 1234 | L178: 318 | M178: 384 | N178: 423 | O178: 349 | P178: 205 | Q178: 316 | R178: 168 | S178: 254 | T178: 187 | U178: 153 | V178: 246 | W178: 410 | X178: 231 | Y178: 48 | Z178: 192 | AA178: 122 | AB178: 125 | AC178: 109 | AD178: 84 | AE178: 495 | AF178: 487 | AG178: 181 | AH178: 104 | AI178: 93 | AJ178: 12 | AK178: 54 | AL178: 116 | AM178: 171 | AN178: 16 | AO178: 20 | AP178: 148 | AQ178: 81 | AR178: 227 | AS178: 46 | AT178: 120 | AU178: 44 | AV178: 23 | AW178: 40 | AX178: 39 | AY178: 31 | AZ178: 49 | BA178: 10 | BB178: 23 | BC178: 43 | BD178: 13 | BE178: 5 | BF178: 11 | BG178: 5 | BH178: 10 | BI178: 8 | BJ178: 71 | BK178: 13 | BL178: 8 | BM178: 17 | BN178: 10 | BO178: 5 | BP178: 9 | BR178: 23 | BS178: 1 | BT178: 4 | BU178: 1 | BV178: 3 | BW178: 3 | BX178: 7 | BY178: 2 | BZ178: 3 | CA178: 2 | CB178: 1 | CD178: 4 | CE178: 1 | CF178: 1 | CG178: 1 | CH178: 2 | CJ178: 2 | CL178: 3 | CN178: 1 | CO178: 2 | CQ178: 1
A179: Insomnia | B179: 13395 | C179: 1389 | D179: 953 | E179: 583 | F179: 247 | G179: 719 | H179: 769 | I179: 421 | J179: 668 | K179: 430 | L179: 250 | M179: 333 | N179: 205 | O179: 411 | P179: 360 | Q179: 394 | R179: 227 | S179: 97 | T179: 418 | U179: 408 | V179: 267 | W179: 84 | X179: 176 | Y179: 46 | Z179: 75 | AA179: 111 | AB179: 74 | AC179: 95 | AD179: 41 | AE179: 101 | AF179: 64 | AG179: 258 | AH179: 71 | AI179: 28 | AJ179: 118 | AK179: 75 | AL179: 49 | AM179: 49 | AN179: 57 | AO179: 70 | AP179: 65 | AQ179: 48 | AR179: 102 | AS179: 26 | AT179: 44 | AU179: 42 | AV179: 64 | AW179: 17 | AX179: 27 | AY179: 39 | AZ179: 34 | BA179: 23 | BB179: 72 | BC179: 42 | BD179: 21 | BE179: 6 | BF179: 8 | BG179: 9 | BH179: 13 | BI179: 6 | BJ179: 11 | BK179: 7 | BL179: 4 | BM179: 7 | BN179: 5 | BO179: 5 | BP179: 1 | BQ179: 13 | BR179: 1 | BS179: 5 | BT179: 2 | BU179: 7 | BV179: 1 | BW179: 2 | BX179: 5 | BY179: 2 | BZ179: 1 | CA179: 4 | CB179: 2 | CC179: 1 | CE179: 1 | CJ179: 1 | CN179: 1 | CO179: 1 | CU179: 1
A180: Heart rate increased | B180: 18882 | C180: 617 | D180: 954 | E180: 215 | F180: 148 | G180: 273 | H180: 313 | I180: 178 | J180: 138 | K180: 333 | L180: 145 | M180: 269 | N180: 157 | O180: 149 | P180: 313 | Q180: 374 | R180: 126 | S180: 139 | T180: 9 | U180: 21 | V180: 278 | W180: 40 | X180: 81 | Y180: 14 | Z180: 56 | AA180: 36 | AB180: 82 | AC180: 34 | AD180: 26 | AE180: 58 | AF180: 29 | AG180: 70 | AH180: 157 | AI180: 26 | AJ180: 1 | AK180: 42 | AL180: 37 | AM180: 32 | AN180: 14 | AO180: 46 | AP180: 25 | AQ180: 47 | AR180: 21 | AS180: 13 | AT180: 36 | AU180: 20 | AV180: 25 | AW180: 35 | AX180: 12 | AY180: 62 | AZ180: 23 | BA180: 25 | BB180: 7 | BC180: 8 | BD180: 16 | BE180: 5 | BF180: 1 | BG180: 1 | BH180: 3 | BI180: 4 | BK180: 3 | BL180: 3 | BM180: 3 | BN180: 2 | BO180: 3 | BP180: 1 | BQ180: 4 | BR180: 2 | BU180: 2 | BV180: 1 | BW180: 2 | BX180: 1 | BY180: 3 | CA180: 1 | CB180: 1 | CC180: 2 | CD180: 2 | CF180: 1 | CG180: 1 | CK180: 1 | CO180: 1
A181: Vaccination failure | B181: 13249 | C181: 4165 | D181: 227 | E181: 300 | F181: 284 | G181: 1101 | H181: 288 | I181: 97 | J181: 122 | K181: 51 | L181: 48 | M181: 453 | N181: 80 | O181: 143 | P181: 212 | Q181: 458 | R181: 124 | S181: 44 | T181: 3 | U181: 39 | V181: 298 | W181: 198 | X181: 7 | Y181: 38 | Z181: 12 | AA181: 10 | AB181: 257 | AC181: 47 | AD181: 40 | AE181: 46 | AF181: 1258 | AH181: 8 | AI181: 12 | AJ181: 2 | AL181: 42 | AM181: 66 | AN181: 2 | AO181: 56 | AP181: 103 | AQ181: 298 | AR181: 48 | AS181: 8 | AT181: 10 | AU181: 8 | AV181: 6 | AX181: 1 | AY181: 5 | AZ181: 11 | BA181: 1 | BB181: 3 | BC181: 122 | BE181: 6 | BF181: 1 | BG181: 4 | BH181: 9 | BI181: 2 | BK181: 4 | BL181: 3 | BO181: 2 | BP181: 5 | BQ181: 3 | BR181: 1 | BX181: 1 | BZ181: 1 | CA181: 1 | CD181: 1 | CE181: 1 | CG181: 18 | CJ181: 1 | CL181: 3 | CS181: 1
A182: Inappropriate schedule of product administration | B182: 19301 | C182: 1075 | D182: 6 | E182: 158 | F182: 198 | G182: 286 | H182: 225 | I182: 73 | J182: 92 | K182: 87 | L182: 50 | M182: 86 | N182: 239 | O182: 119 | P182: 136 | Q182: 14 | R182: 15 | S182: 91 | U182: 2 | V182: 214 | W182: 81 | X182: 9 | Y182: 107 | Z182: 647 | AA182: 41 | AB182: 55 | AC182: 66 | AD182: 80 | AE182: 347 | AF182: 21 | AG182: 5 | AL182: 104 | AM182: 135 | AO182: 11 | AP182: 6 | AQ182: 11 | AR182: 3 | AS182: 4 | AT182: 3 | AU182: 2 | AV182: 9 | AX182: 2 | AZ182: 4 | BA182: 5 | BC182: 6 | BD182: 9 | BH182: 1 | BK182: 1 | BN182: 2 | BR182: 1 | CB182: 1 | CC182: 3 | CI182: 2 | CJ182: 1 | CK182: 1
A183: Cellulitis | B183: 2488 | C183: 1003 | D183: 1680 | E183: 1600 | F183: 1159 | G183: 400 | H183: 4165 | I183: 2206 | J183: 501 | K183: 134 | L183: 1355 | M183: 968 | N183: 511 | O183: 779 | P183: 498 | Q183: 342 | R183: 331 | S183: 430 | T183: 283 | U183: 251 | V183: 135 | W183: 20 | X183: 737 | Y183: 224 | Z183: 71 | AA183: 64 | AB183: 118 | AC183: 41 | AD183: 300 | AE183: 124 | AF183: 9 | AG183: 164 | AH183: 31 | AI183: 20 | AJ183: 43 | AK183: 259 | AL183: 35 | AM183: 19 | AN183: 102 | AO183: 49 | AP183: 7 | AQ183: 41 | AR183: 2 | AS183: 17 | AT183: 26 | AU183: 86 | AV183: 50 | AW183: 4 | AX183: 89 | AY183: 8 | AZ183: 5 | BA183: 26 | BB183: 7 | BC183: 5 | BD183: 24 | BE183: 4 | BF183: 4 | BG183: 22 | BH183: 6 | BI183: 6 | BK183: 8 | BL183: 6 | BM183: 3 | BN183: 2 | BO183: 5 | BP183: 2 | BQ183: 13 | BR183: 3 | BS183: 1 | BT183: 2 | BU183: 1 | BV183: 3 | BW183: 2 | BZ183: 1 | CC183: 4 | CD183: 3 | CE183: 1 | CF183: 1 | CG183: 3 | CH183: 3 | CI183: 1 | CM183: 1 | CN183: 2
A184: Lethargy | B184: 10238 | C184: 921 | D184: 616 | E184: 928 | F184: 562 | G184: 540 | H184: 484 | I184: 983 | J184: 858 | K184: 315 | L184: 703 | M184: 336 | N184: 400 | O184: 702 | P184: 281 | Q184: 352 | R184: 657 | S184: 211 | T184: 39 | U184: 46 | V184: 293 | W184: 482 | X184: 107 | Y184: 162 | Z184: 93 | AA184: 358 | AB184: 142 | AC184: 307 | AD184: 132 | AE184: 78 | AF184: 208 | AG184: 62 | AH184: 101 | AI184: 96 | AJ184: 17 | AK184: 26 | AL184: 31 | AM184: 75 | AN184: 149 | AO184: 41 | AP184: 110 | AQ184: 82 | AR184: 31 | AS184: 84 | AT184: 32 | AU184: 17 | AV184: 41 | AW184: 43 | AX184: 18 | AY184: 55 | AZ184: 27 | BA184: 7 | BB184: 17 | BC184: 84 | BD184: 14 | BE184: 5 | BF184: 4 | BG184: 20 | BH184: 12 | BI184: 4 | BJ184: 6 | BK184: 10 | BL184: 7 | BM184: 5 | BN184: 3 | BO184: 11 | BP184: 31 | BQ184: 24 | BR184: 2 | BS184: 7 | BT184: 1 | BU184: 8 | BX184: 5 | BY184: 2 | BZ184: 4 | CA184: 2 | CC184: 1 | CE184: 1 | CF184: 3 | CG184: 1 | CH184: 1 | CI184: 4 | CK184: 1 | CL184: 2
A185: Screaming | B185: 204 | C185: 19 | D185: 95 | E185: 863 | F185: 227 | G185: 1848 | H185: 163 | I185: 1714 | J185: 4275 | K185: 35 | L185: 1379 | M185: 33 | N185: 143 | O185: 718 | P185: 48 | Q185: 63 | R185: 1088 | S185: 34 | T185: 3546 | U185: 3318 | V185: 115 | W185: 515 | X185: 12 | Y185: 77 | Z185: 16 | AA185: 493 | AB185: 96 | AC185: 406 | AD185: 56 | AE185: 5 | AF185: 267 | AH185: 14 | AI185: 10 | AJ185: 1018 | AL185: 5 | AM185: 4 | AN185: 353 | AP185: 206 | AQ185: 30 | AR185: 2 | AS185: 6 | AT185: 2 | AU185: 4 | AV185: 2 | AW185: 3 | AX185: 34 | AY185: 8 | AZ185: 4 | BA185: 1 | BC185: 101 | BD185: 1 | BF185: 3 | BG185: 19 | BH185: 14 | BI185: 9 | BJ185: 31 | BK185: 5 | BL185: 5 | BO185: 1 | BP185: 5 | BQ185: 15 | BS185: 15 | BT185: 1 | BU185: 10 | BX185: 7 | BZ185: 8 | CA185: 6 | CD185: 1 | CE185: 1 | CF185: 2 | CH185: 1 | CI185: 1
A186: Death | B186: 15168 | C186: 277 | D186: 406 | E186: 196 | F186: 95 | G186: 472 | H186: 356 | I186: 182 | J186: 467 | K186: 338 | L186: 221 | M186: 69 | N186: 76 | O186: 806 | P186: 180 | Q186: 553 | R186: 355 | S186: 57 | T186: 133 | U186: 147 | V186: 331 | W186: 356 | X186: 10 | Y186: 23 | Z186: 30 | AA186: 211 | AB186: 70 | AC186: 251 | AD186: 28 | AE186: 14 | AF186: 244 | AG186: 5 | AH186: 69 | AI186: 23 | AJ186: 10 | AK186: 3 | AL186: 21 | AM186: 138 | AN186: 8 | AO186: 12 | AP186: 174 | AQ186: 78 | AR186: 33 | AS186: 13 | AT186: 38 | AU186: 19 | AV186: 72 | AW186: 9 | AX186: 7 | AY186: 32 | AZ186: 165 | BA186: 5 | BB186: 2 | BC186: 64 | BD186: 9 | BE186: 4 | BF186: 2 | BG186: 10 | BH186: 26 | BI186: 27 | BK186: 50 | BL186: 22 | BN186: 1 | BO186: 5 | BP186: 34 | BQ186: 7 | BR186: 2 | BS186: 1 | BT186: 2 | BV186: 2 | BX186: 2 | BY186: 1 | BZ186: 2 | CA186: 3 | CB186: 3 | CC186: 1 | CD186: 1 | CE186: 1 | CF186: 1 | CG186: 2 | CO186: 2
A187: Tinnitus | B187: 19982 | C187: 447 | D187: 327 | E187: 94 | F187: 39 | G187: 218 | H187: 95 | I187: 19 | J187: 4 | K187: 219 | L187: 23 | M187: 143 | N187: 86 | O187: 30 | P187: 184 | Q187: 104 | S187: 91 | T187: 1 | U187: 8 | V187: 225 | X187: 59 | Y187: 2 | Z187: 73 | AB187: 29 | AD187: 4 | AE187: 44 | AF187: 1 | AG187: 134 | AH187: 39 | AI187: 10 | AK187: 20 | AL187: 32 | AM187: 41 | AN187: 1 | AO187: 34 | AQ187: 23 | AR187: 78 | AS187: 10 | AT187: 16 | AU187: 8 | AV187: 16 | AW187: 5 | AX187: 10 | AY187: 13 | AZ187: 8 | BA187: 10 | BB187: 42 | BD187: 12 | BE187: 3 | BI187: 1 | BK187: 1 | BL187: 1 | BM187: 1 | BN187: 3 | BO187: 2 | BR187: 5 | BU187: 1 | BW187: 2 | BY187: 1 | CA187: 1 | CB187: 2 | CE187: 1 | CG187: 1 | CK187: 1 | CL187: 1 | CN187: 1
A188: Muscular weakness | B188: 11975 | C188: 841 | D188: 1657 | E188: 195 | F188: 150 | G188: 520 | H188: 582 | I188: 148 | J188: 83 | K188: 1002 | L188: 143 | M188: 622 | N188: 291 | O188: 224 | P188: 730 | Q188: 648 | R188: 51 | S188: 332 | T188: 19 | U188: 35 | V188: 263 | W188: 23 | X188: 225 | Y188: 23 | Z188: 161 | AA188: 17 | AB188: 116 | AC188: 29 | AD188: 25 | AE188: 114 | AF188: 9 | AG188: 124 | AH188: 260 | AI188: 52 | AJ188: 1 | AK188: 37 | AL188: 130 | AM188: 112 | AN188: 11 | AO188: 95 | AP188: 17 | AQ188: 62 | AR188: 308 | AS188: 27 | AT188: 59 | AU188: 65 | AV188: 61 | AW188: 29 | AX188: 22 | AY188: 68 | AZ188: 79 | BA188: 26 | BB188: 59 | BC188: 6 | BD188: 24 | BE188: 19 | BF188: 4 | BH188: 2 | BI188: 1 | BK188: 1 | BL188: 5 | BM188: 6 | BN188: 7 | BO188: 17 | BP188: 1 | BQ188: 3 | BR188: 2 | BT188: 1 | BU188: 5 | BV188: 1 | BW188: 3 | BY188: 14 | BZ188: 2 | CA188: 1 | CB188: 9 | CC188: 1 | CD188: 3 | CG188: 6 | CH188: 1 | CK188: 1 | CP188: 1 | CQ188: 1
A189: Mobility decreased | B189: 12304 | C189: 1472 | D189: 1561 | E189: 138 | F189: 61 | G189: 171 | H189: 1835 | I189: 138 | J189: 86 | K189: 264 | L189: 48 | M189: 631 | N189: 119 | O189: 559 | P189: 998 | Q189: 621 | R189: 37 | S189: 126 | T189: 8 | U189: 35 | V189: 324 | W189: 28 | X189: 79 | Y189: 19 | Z189: 106 | AA189: 28 | AB189: 207 | AC189: 43 | AD189: 22 | AE189: 51 | AF189: 11 | AG189: 45 | AH189: 43 | AI189: 8 | AK189: 6 | AL189: 45 | AM189: 24 | AO189: 176 | AP189: 21 | AQ189: 26 | AR189: 62 | AS189: 12 | AT189: 21 | AU189: 41 | AV189: 130 | AW189: 5 | AX189: 10 | AY189: 17 | AZ189: 34 | BA189: 56 | BB189: 8 | BC189: 3 | BD189: 88 | BE189: 19 | BF189: 2 | BG189: 2 | BH189: 4 | BI189: 1 | BK189: 4 | BL189: 2 | BM189: 2 | BN189: 2 | BO189: 4 | BP189: 1 | BQ189: 7 | BR189: 3 | BU189: 3 | BW189: 6 | BX189: 1 | BY189: 2 | CA189: 4 | CC189: 2 | CE189: 2 | CI189: 1 | CJ189: 1 | CL189: 1 | CO189: 1 | CQ189: 1 | CS189: 1
A190: Injection site mass | B190: 3035 | C190: 921 | D190: 1349 | E190: 1662 | F190: 874 | G190: 982 | H190: 954 | I190: 2026 | J190: 1331 | K190: 258 | L190: 941 | M190: 446 | N190: 355 | O190: 365 | P190: 232 | Q190: 261 | R190: 521 | S190: 88 | T190: 1146 | U190: 824 | V190: 96 | W190: 65 | X190: 1355 | Y190: 91 | Z190: 124 | AA190: 179 | AB190: 110 | AC190: 86 | AD190: 95 | AE190: 102 | AF190: 29 | AG190: 386 | AH190: 18 | AI190: 5 | AJ190: 367 | AK190: 18 | AL190: 22 | AM190: 52 | AN190: 271 | AO190: 41 | AP190: 20 | AQ190: 46 | AR190: 3 | AS190: 1 | AT190: 40 | AU190: 191 | AV190: 20 | AW190: 2 | AX190: 150 | AZ190: 5 | BA190: 9 | BB190: 23 | BC190: 15 | BD190: 7 | BE190: 4 | BF190: 3 | BG190: 16 | BH190: 2 | BI190: 13 | BJ190: 7 | BK190: 5 | BL190: 9 | BM190: 4 | BN190: 1 | BO190: 2 | BP190: 1 | BQ190: 11 | BR190: 5 | BS190: 8 | BT190: 1 | BU190: 7 | BV190: 1 | BW190: 1 | BX190: 2 | BY190: 1 | BZ190: 2 | CC190: 1 | CD190: 2 | CH190: 2 | CI190: 2 | CN190: 2 | CS190: 1
A191: Infection | B191: 1918 | C191: 189 | D191: 562 | E191: 2792 | F191: 7016 | G191: 1566 | H191: 558 | I191: 877 | J191: 1547 | K191: 108 | L191: 485 | M191: 97 | N191: 206 | O191: 150 | P191: 61 | Q191: 244 | R191: 318 | S191: 29 | T191: 1122 | U191: 821 | V191: 147 | W191: 29 | X191: 202 | Y191: 16 | Z191: 8 | AA191: 24 | AB191: 17 | AC191: 24 | AD191: 33 | AE191: 91 | AF191: 45 | AG191: 52 | AH191: 9 | AI191: 11 | AJ191: 280 | AK191: 40 | AL191: 30 | AM191: 34 | AN191: 118 | AO191: 9 | AP191: 36 | AQ191: 37 | AR191: 13 | AS191: 6 | AT191: 27 | AU191: 27 | AV191: 6 | AW191: 2 | AX191: 77 | AY191: 3 | AZ191: 6 | BA191: 3 | BB191: 113 | BC191: 5 | BD191: 2 | BE191: 1 | BF191: 48 | BG191: 20 | BH191: 2 | BI191: 32 | BJ191: 28 | BK191: 25 | BL191: 11 | BM191: 4 | BN191: 1 | BO191: 3 | BP191: 2 | BR191: 3 | BS191: 22 | BT191: 12 | BU191: 7 | BV191: 10 | BX191: 3 | BZ191: 5 | CB191: 2 | CC191: 1 | CD191: 1 | CE191: 4 | CH191: 14 | CL191: 1 | CO191: 3
A192: Musculoskeletal stiffness | B192: 9980 | C192: 796 | D192: 1200 | E192: 489 | F192: 298 | G192: 566 | H192: 751 | I192: 474 | J192: 398 | K192: 512 | L192: 399 | M192: 725 | N192: 365 | O192: 441 | P192: 502 | Q192: 403 | R192: 306 | S192: 480 | T192: 17 | U192: 41 | V192: 392 | W192: 134 | X192: 225 | Y192: 62 | Z192: 167 | AA192: 126 | AB192: 187 | AC192: 144 | AD192: 47 | AE192: 126 | AF192: 64 | AG192: 116 | AH192: 102 | AI192: 30 | AJ192: 7 | AK192: 60 | AL192: 85 | AM192: 88 | AN192: 53 | AO192: 70 | AP192: 83 | AQ192: 110 | AR192: 78 | AS192: 19 | AT192: 74 | AU192: 61 | AV192: 57 | AW192: 18 | AX192: 23 | AY192: 34 | AZ192: 29 | BA192: 18 | BB192: 141 | BC192: 14 | BD192: 21 | BE192: 16 | BF192: 9 | BG192: 5 | BH192: 13 | BI192: 3 | BJ192: 1 | BK192: 10 | BL192: 4 | BM192: 8 | BN192: 10 | BO192: 4 | BP192: 4 | BQ192: 5 | BR192: 2 | BS192: 3 | BU192: 2 | BV192: 4 | BW192: 5 | BX192: 4 | BY192: 1 | BZ192: 4 | CA192: 3 | CB192: 7 | CC192: 2 | CD192: 2 | CE192: 2 | CF192: 1 | CH192: 1 | CI192: 1 | CL192: 1 | CP192: 2
A193: Hypersensitivity | B193: 7824 | C193: 709 | D193: 1249 | E193: 1121 | F193: 582 | G193: 1072 | H193: 1074 | I193: 893 | J193: 608 | K193: 366 | L193: 694 | M193: 419 | N193: 396 | O193: 381 | P193: 356 | Q193: 509 | R193: 293 | S193: 224 | T193: 305 | U193: 268 | V193: 251 | W193: 70 | X193: 338 | Y193: 91 | Z193: 87 | AA193: 85 | AB193: 86 | AC193: 84 | AD193: 114 | AE193: 135 | AF193: 60 | AG193: 153 | AH193: 90 | AI193: 45 | AJ193: 71 | AK193: 69 | AL193: 109 | AM193: 110 | AN193: 70 | AO193: 65 | AP193: 70 | AQ193: 61 | AR193: 58 | AS193: 36 | AT193: 77 | AU193: 87 | AV193: 23 | AW193: 20 | AX193: 40 | AY193: 33 | AZ193: 14 | BA193: 22 | BB193: 23 | BC193: 12 | BD193: 8 | BE193: 11 | BF193: 15 | BG193: 15 | BH193: 20 | BI193: 14 | BJ193: 3 | BK193: 13 | BL193: 10 | BM193: 10 | BN193: 8 | BO193: 5 | BP193: 3 | BQ193: 8 | BR193: 4 | BS193: 6 | BT193: 4 | BU193: 3 | BV193: 3 | BW193: 4 | BX193: 3 | BY193: 7 | BZ193: 5 | CA193: 5 | CB193: 6 | CC193: 4 | CD193: 3 | CE193: 6 | CF193: 1 | CG193: 2 | CH193: 2 | CL193: 1
A194: Gait disturbance | B194: 11672 | C194: 629 | D194: 892 | E194: 829 | F194: 389 | G194: 608 | H194: 317 | I194: 548 | J194: 391 | K194: 559 | L194: 313 | M194: 299 | N194: 336 | O194: 438 | P194: 374 | Q194: 403 | R194: 169 | S194: 211 | T194: 178 | U194: 190 | V194: 260 | W194: 9 | X194: 87 | Y194: 134 | Z194: 110 | AA194: 35 | AB194: 157 | AC194: 100 | AD194: 140 | AE194: 84 | AF194: 6 | AG194: 59 | AH194: 139 | AI194: 66 | AJ194: 31 | AK194: 15 | AL194: 88 | AM194: 59 | AN194: 28 | AO194: 36 | AP194: 47 | AQ194: 45 | AR194: 262 | AS194: 21 | AT194: 51 | AU194: 23 | AV194: 36 | AW194: 24 | AX194: 24 | AY194: 42 | AZ194: 70 | BA194: 11 | BB194: 39 | BC194: 4 | BD194: 25 | BE194: 14 | BF194: 11 | BG194: 8 | BH194: 5 | BI194: 4 | BK194: 1 | BL194: 4 | BM194: 3 | BN194: 2 | BO194: 11 | BQ194: 13 | BR194: 6 | BT194: 3 | BU194: 2 | BW194: 1 | BX194: 2 | BY194: 5 | BZ194: 2 | CA194: 2 | CB194: 6 | CC194: 4 | CD194: 3 | CE194: 2 | CF194: 1 | CG194: 2 | CH194: 3 | CI194: 1 | CJ194: 1 | CQ194: 1 | CR194: 1
A195: Blood pressure measurement | B195: 21782 | C195: 2 | D195: 3 | E195: 1 | F195: 1 | G195: 2 | H195: 4 | I195: 1 | J195: 1 | K195: 3 | M195: 2 | N195: 6 | O195: 2 | P195: 9 | Q195: 9 | S195: 3 | V195: 318 | W195: 1 | Y195: 2 | Z195: 4 | AB195: 1 | AD195: 1 | AE195: 1 | AO195: 1 | AR195: 1 | AV195: 3 | BA195: 1 | BK195: 2 | CD195: 1 | CG195: 1
A196: Fall | B196: 11503 | C196: 414 | D196: 646 | E196: 384 | F196: 395 | G196: 287 | H196: 191 | I196: 190 | J196: 107 | K196: 1145 | L196: 183 | M196: 773 | N196: 533 | O196: 163 | P196: 518 | Q196: 182 | R196: 58 | S196: 822 | T196: 7 | U196: 21 | V196: 221 | W196: 7 | X196: 83 | Y196: 59 | Z196: 462 | AA196: 26 | AB196: 147 | AC196: 26 | AD196: 74 | AE196: 58 | AF196: 5 | AG196: 30 | AH196: 115 | AI196: 57 | AJ196: 3 | AK196: 7 | AL196: 70 | AM196: 26 | AN196: 7 | AO196: 98 | AP196: 17 | AQ196: 81 | AR196: 330 | AS196: 24 | AT196: 21 | AU196: 18 | AV196: 24 | AW196: 10 | AX196: 6 | AY196: 9 | AZ196: 41 | BA196: 14 | BB196: 16 | BC196: 5 | BD196: 16 | BE196: 9 | BG196: 4 | BH196: 2 | BL196: 7 | BN196: 5 | BO196: 4 | BQ196: 3 | BS196: 1 | BT196: 2 | BU196: 2 | BW196: 2 | BX196: 1 | BY196: 2 | BZ196: 2 | CA196: 1 | CB196: 4 | CC196: 1 | CD196: 1 | CE196: 2 | CF196: 1 | CG196: 3 | CH196: 1 | CJ196: 2 | CP196: 1 | CQ196: 1 | CT196: 1
A197: Rash pruritic | B197: 10940 | C197: 1798 | D197: 768 | E197: 649 | F197: 832 | G197: 275 | H197: 179 | I197: 225 | J197: 136 | K197: 345 | L197: 194 | M197: 392 | N197: 383 | O197: 287 | P197: 365 | Q197: 157 | R197: 77 | S197: 183 | T197: 5 | U197: 11 | V197: 183 | W197: 19 | X197: 81 | Y197: 140 | Z197: 102 | AA197: 35 | AB197: 59 | AC197: 37 | AD197: 102 | AE197: 164 | AF197: 8 | AG197: 160 | AH197: 110 | AI197: 43 | AJ197: 2 | AK197: 208 | AL197: 69 | AM197: 60 | AN197: 9 | AO197: 45 | AP197: 10 | AQ197: 36 | AR197: 13 | AS197: 30 | AT197: 65 | AU197: 18 | AV197: 29 | AW197: 27 | AX197: 9 | AY197: 37 | AZ197: 10 | BA197: 24 | BB197: 3 | BC197: 5 | BD197: 16 | BE197: 10 | BF197: 4 | BG197: 4 | BI197: 3 | BJ197: 1 | BK197: 1 | BL197: 7 | BM197: 11 | BN197: 16 | BO197: 2 | BQ197: 1 | BR197: 1 | BS197: 1 | BT197: 1 | BU197: 3 | BW197: 5 | BX197: 1 | BY197: 1 | BZ197: 4 | CB197: 1 | CC197: 5 | CD197: 1 | CE197: 1 | CF197: 2 | CG197: 1 | CJ197: 1 | CP197: 1
A198: Tenderness | B198: 5896 | C198: 1244 | D198: 1336 | E198: 936 | F198: 797 | G198: 268 | H198: 1907 | I198: 1093 | J198: 177 | K198: 292 | L198: 798 | M198: 960 | N198: 449 | O198: 356 | P198: 571 | Q198: 258 | R198: 171 | S198: 449 | T198: 2 | U198: 22 | V198: 170 | W198: 23 | X198: 325 | Y198: 115 | Z198: 90 | AA198: 56 | AB198: 135 | AC198: 36 | AD198: 120 | AE198: 98 | AF198: 12 | AG198: 246 | AH198: 47 | AI198: 34 | AJ198: 2 | AK198: 141 | AL198: 33 | AM198: 29 | AN198: 41 | AO198: 63 | AP198: 8 | AQ198: 35 | AR198: 22 | AS198: 10 | AT198: 44 | AU198: 54 | AV198: 37 | AW198: 11 | AX198: 21 | AY198: 17 | AZ198: 12 | BA198: 29 | BB198: 11 | BC198: 1 | BD198: 22 | BE198: 14 | BF198: 2 | BG198: 10 | BH198: 7 | BI198: 4 | BK198: 9 | BL198: 1 | BM198: 2 | BN198: 9 | BO198: 1 | BQ198: 2 | BR198: 2 | BS198: 1 | BT198: 3 | BU198: 1 | BV198: 3 | BX198: 1 | BY198: 3 | CB198: 1 | CC198: 4 | CD198: 3 | CE198: 2 | CH198: 2 | CM198: 1 | CP198: 1
A199: Abdominal pain upper | B199: 12141 | C199: 1013 | D199: 453 | E199: 286 | F199: 233 | G199: 339 | H199: 167 | I199: 225 | J199: 73 | K199: 776 | L199: 175 | M199: 459 | N199: 245 | O199: 154 | P199: 227 | Q199: 272 | R199: 47 | S199: 241 | T199: 6 | U199: 16 | V199: 408 | W199: 68 | X199: 76 | Y199: 65 | Z199: 148 | AA199: 29 | AB199: 88 | AC199: 47 | AD199: 74 | AE199: 244 | AF199: 106 | AG199: 69 | AH199: 115 | AI199: 88 | AK199: 20 | AL199: 68 | AM199: 56 | AN199: 6 | AO199: 37 | AP199: 24 | AQ199: 60 | AR199: 77 | AS199: 89 | AT199: 40 | AU199: 18 | AV199: 39 | AW199: 82 | AX199: 10 | AY199: 59 | AZ199: 67 | BA199: 8 | BB199: 11 | BC199: 18 | BD199: 14 | BE199: 6 | BF199: 1 | BG199: 1 | BH199: 7 | BJ199: 3 | BK199: 1 | BL199: 5 | BM199: 2 | BN199: 10 | BO199: 12 | BP199: 1 | BQ199: 5 | BR199: 4 | BU199: 4 | BV199: 2 | BW199: 2 | BX199: 1 | BY199: 1 | BZ199: 6 | CA199: 2 | CB199: 3 | CD199: 1 | CE199: 3 | CG199: 1 | CJ199: 1 | CN199: 1 | CP199: 1
A200: Immediate post-injection reaction | B200: 6370 | C200: 1151 | D200: 1461 | E200: 681 | F200: 568 | G200: 324 | H200: 464 | I200: 250 | J200: 235 | K200: 1298 | L200: 204 | M200: 864 | N200: 593 | O200: 440 | P200: 899 | Q200: 327 | R200: 140 | S200: 662 | T200: 4 | U200: 23 | V200: 147 | W200: 209 | X200: 57 | Y200: 97 | Z200: 428 | AA200: 105 | AB200: 178 | AC200: 123 | AD200: 107 | AE200: 97 | AF200: 101 | AG200: 63 | AH200: 208 | AI200: 57 | AJ200: 1 | AK200: 7 | AL200: 107 | AM200: 57 | AN200: 4 | AO200: 160 | AP200: 50 | AQ200: 59 | AR200: 166 | AS200: 35 | AT200: 45 | AU200: 26 | AV200: 51 | AW200: 33 | AX200: 11 | AY200: 46 | AZ200: 34 | BA200: 30 | BB200: 6 | BC200: 12 | BD200: 35 | BE200: 16 | BF200: 1 | BG200: 3 | BH200: 8 | BI200: 1 | BK200: 2 | BL200: 9 | BM200: 1 | BN200: 19 | BO200: 5 | BP200: 1 | BQ200: 7 | BR200: 2 | BT200: 1 | BU200: 2 | BW200: 6 | BX200: 1 | BZ200: 1 | CA200: 2 | CB200: 2 | CC200: 4 | CE200: 1 | CF200: 4 | CG200: 1 | CJ200: 1 | CL200: 2
A201: Computerised tomogram | B201: 16123 | C201: 234 | D201: 375 | E201: 92 | F201: 86 | G201: 95 | H201: 126 | I201: 74 | J201: 71 | K201: 336 | L201: 33 | M201: 191 | N201: 109 | O201: 124 | P201: 177 | Q201: 113 | R201: 48 | S201: 117 | U201: 5 | V201: 347 | W201: 42 | X201: 18 | Y201: 18 | Z201: 63 | AA201: 39 | AB201: 30 | AC201: 30 | AD201: 15 | AE201: 24 | AF201: 22 | AG201: 24 | AH201: 82 | AI201: 27 | AJ201: 2 | AK201: 11 | AL201: 16 | AM201: 14 | AN201: 7 | AO201: 28 | AP201: 7 | AQ201: 18 | AR201: 9 | AS201: 10 | AT201: 17 | AU201: 8 | AV201: 17 | AW201: 13 | AY201: 11 | AZ201: 15 | BA201: 6 | BB201: 3 | BC201: 4 | BD201: 11 | BE201: 3 | BG201: 2 | BH201: 1 | BK201: 1 | BL201: 1 | BN201: 1 | BO201: 3 | BP201: 1 | BR201: 1 | BX201: 1 | BY201: 3 | BZ201: 3 | CA201: 3 | CC201: 1 | CE201: 1 | CQ201: 1
A202: Muscle spasms | B202: 12406 | C202: 536 | D202: 671 | E202: 186 | F202: 81 | G202: 393 | H202: 300 | I202: 186 | J202: 227 | K202: 583 | L202: 142 | M202: 357 | N202: 149 | O202: 245 | P202: 279 | Q202: 235 | R202: 83 | S202: 118 | T202: 84 | U202: 108 | V202: 259 | W202: 75 | X202: 198 | Y202: 6 | Z202: 103 | AA202: 40 | AB202: 86 | AC202: 41 | AD202: 14 | AE202: 121 | AF202: 47 | AG202: 189 | AH202: 107 | AI202: 17 | AJ202: 14 | AK202: 40 | AL202: 59 | AM202: 100 | AN202: 4 | AO202: 35 | AP202: 84 | AQ202: 43 | AR202: 64 | AS202: 9 | AT202: 37 | AU202: 66 | AV202: 25 | AW202: 9 | AX202: 14 | AY202: 38 | AZ202: 32 | BA202: 9 | BB202: 58 | BC202: 8 | BD202: 27 | BE202: 10 | BF202: 3 | BG202: 3 | BH202: 10 | BJ202: 1 | BK202: 3 | BL202: 7 | BM202: 6 | BN202: 2 | BO202: 4 | BP202: 4 | BR202: 3 | BS202: 3 | BU202: 3 | BX202: 6 | BY202: 4 | BZ202: 3 | CA202: 3 | CB202: 2 | CE202: 3 | CF202: 5 | CH202: 1 | CJ202: 1 | CL202: 1 | CN202: 1
... 2047 more rows

Sheet GBS enrichment
A1: Vaccine | B1: Headache | C1: GBS | D1: =MAX(D2:D51) -> 0.02618047387 | E1: Enrichment | F1: Fatigue | G1: =MAX(G2:G27) -> 0.4335002782 | H1: Enrichment | I1: Pyrexia | J1: =MAX(J2:J26) -> 0.1484092208 | K1: Enrichment | L1: Average Enrichment | N1: Vaccine | O1: Headache | P1: GBS | Q1: Enrichment | R1: Fatigue | S1: Enrichment | T1: Pyrexia | U1: Enrichment | V1: Average Enrichment | X1: Vaccine
A2: FLUX | B2: 29,755 | C2: 779 | D2: =C2/B2 -> 0.02618047387 | E2: =D2/0.02618 -> 100.0% | F2: 1797 | G2: =C2/F2 -> 0.4335002782 | H2: =G2/0.4335 -> 100.0% | I2: 5249 | J2: =C2/I2 -> 0.1484092208 | K2: =J2/0.148409 -> 100.0% | L2: =AVERAGE(E2,H2,K2) -> 100.0% | N2: FLUX | O2: 29,755 | P2: 779 | Q2: 100.0% | R2: 1,797 | S2: 100.0% | T2: 5,249 | U2: 100.0% | V2: 100.0% | X2: COVID19
A3: FLUX(H1N1) | B3: 2,681 | C3: 65 | D3: 0.02424468482 | E3: 92.6% | F3: 228 | G3: 0.2850877193 | H3: 65.8% | I3: 581 | J3: 0.1118760757 | K3: 75.4% | L3: 77.9% | N3: FLUX(H1N1) | O3: 2,681 | P3: 65 | Q3: 92.6% | R3: 228 | S3: 65.8% | T3: 581 | U3: 75.4% | V3: 77.9% | X3: DTAP
A4: FLU3 | B4: 97,513 | C4: 1,386 | D4: 0.01421348948 | E4: 54.3% | F4: 3576 | G4: 0.3875838926 | H4: 89.4% | I4: 12757 | J4: 0.1086462334 | K4: 73.2% | L4: 72.3% | N4: FLU3 | O4: 97,513 | P4: 1,386 | Q4: 54.3% | R4: 3,576 | S4: 89.4% | T4: 12,757 | U4: 73.2% | V4: 72.3% | X4: FLU(H1N1)
A5: FLU(H1N1) | B5: 9,179 | C5: 139 | D5: 0.01514326179 | E5: 57.8% | F5: 458 | G5: 0.3034934498 | H5: 70.0% | I5: 1065 | J5: 0.1305164319 | K5: 87.9% | L5: 71.9% | N5: FLU(H1N1) | O5: 9,179 | P5: 139 | Q5: 57.8% | R5: 458 | S5: 70.0% | T5: 1,065 | U5: 87.9% | V5: 71.9% | X5: FLU3
A6: HEPAB | B6: 5,707 | C6: 84 | D6: 0.01471876643 | E6: 56.2% | F6: 424 | G6: 0.1981132075 | H6: 45.7% | I6: 636 | J6: 0.1320754717 | K6: 89.0% | L6: 63.6% | N6: HEPAB | O6: 5,707 | P6: 84 | Q6: 56.2% | R6: 424 | S6: 45.7% | T6: 636 | U6: 89.0% | V6: 63.6% | X6: FLU4
A7: HPV2 | B7: 4,798 | C7: 61 | D7: 0.01271363068 | E7: 48.6% | F7: 394 | G7: 0.154822335 | H7: 35.7% | I7: 513 | J7: 0.1189083821 | K7: 80.1% | L7: 54.8% | N7: HPV2 | O7: 4,798 | P7: 61 | Q7: 48.6% | R7: 394 | S7: 35.7% | T7: 513 | U7: 80.1% | V7: 54.8% | X7: FLUN3
A8: FLUN3 | B8: 6,443 | C8: 58 | D8: 0.009002017694 | E8: 34.4% | F8: 245 | G8: 0.2367346939 | H8: 54.6% | I8: 993 | J8: 0.05840886203 | K8: 39.4% | L8: 42.8% | N8: FLUN3 | O8: 6,443 | P8: 58 | Q8: 34.4% | R8: 245 | S8: 54.6% | T8: 993 | U8: 39.4% | V8: 42.8% | X8: FLUX
A9: YF | B9: 4,239 | C9: 50 | D9: 0.01179523473 | E9: 45.1% | F9: 284 | G9: 0.176056338 | H9: 40.6% | I9: 871 | J9: 0.05740528129 | K9: 38.7% | L9: 41.4% | N9: YF | O9: 4,239 | P9: 50 | Q9: 45.1% | R9: 284 | S9: 40.6% | T9: 871 | U9: 38.7% | V9: 41.4% | X9: FLUX(H1N1)
A10: FLU4 | B10: 37,252 | C10: 297 | D10: 0.007972726297 | E10: 30.5% | F10: 1794 | G10: 0.1655518395 | H10: 38.2% | I10: 3956 | J10: 0.07507583418 | K10: 50.6% | L10: 39.7% | N10: FLU4 | O10: 37,252 | P10: 297 | Q10: 30.5% | R10: 1,794 | S10: 38.2% | T10: 3,956 | U10: 50.6% | V10: 39.7% | X10: HEP
A11: TYP | B11: 9,923 | C11: 77 | D11: 0.007759750076 | E11: 29.6% | F11: 551 | G11: 0.1397459165 | H11: 32.2% | I11: 1592 | J11: 0.04836683417 | K11: 32.6% | L11: 31.5% | N11: TYP | O11: 9,923 | P11: 77 | Q11: 29.6% | R11: 551 | S11: 32.2% | T11: 1,592 | U11: 32.6% | V11: 31.5% | X11: HEPA
A12: TDAP | B12: 42,404 | C12: 267 | D12: 0.006296575795 | E12: 24.1% | F12: 2178 | G12: 0.1225895317 | H12: 28.3% | I12: 5935 | J12: 0.0449873631 | K12: 30.3% | L12: 27.5% | N12: TDAP | O12: 42,404 | P12: 267 | Q12: 24.1% | R12: 2,178 | S12: 28.3% | T12: 5,935 | U12: 30.3% | V12: 27.5% | X12: HEPAB
A13: MNQ | B13: 26,174 | C13: 132 | D13: 0.005043172614 | E13: 19.3% | F13: 1007 | G13: 0.131082423 | H13: 30.2% | I13: 2957 | J13: 0.04463983767 | K13: 30.1% | L13: 26.5% | N13: MNQ | O13: 26,174 | P13: 132 | Q13: 19.3% | R13: 1,007 | S13: 30.2% | T13: 2,957 | U13: 30.1% | V13: 26.5% | X13: HPV2
A14: TD | B14: 18,558 | C14: 94 | D14: 0.005065200991 | E14: 19.3% | F14: 518 | G14: 0.1814671815 | H14: 41.9% | I14: 3596 | J14: 0.02614015573 | K14: 17.6% | L14: 26.3% | N14: TD | O14: 18,558 | P14: 94 | Q14: 19.3% | R14: 518 | S14: 41.9% | T14: 3,596 | U14: 17.6% | V14: 26.3% | X14: HPV4
A15: HPV4 | B15: 46,341 | C15: 154 | D15: 0.003323191127 | E15: 12.7% | F15: 3024 | G15: 0.05092592593 | H15: 11.7% | I15: 2681 | J15: 0.05744125326 | K15: 38.7% | L15: 21.0% | N15: HPV4 | O15: 46,341 | P15: 154 | Q15: 12.7% | R15: 3,024 | S15: 11.7% | T15: 2,681 | U15: 38.7% | V15: 21.0% | X15: IPV
A16: HEPA | B16: 41,067 | C16: 131 | D16: 0.003189909173 | E16: 12.2% | F16: 1092 | G16: 0.11996337 | H16: 27.7% | I16: 5691 | J16: 0.02301880162 | K16: 15.5% | L16: 18.5% | N16: HEPA | O16: 41,067 | P16: 131 | Q16: 12.2% | R16: 1,092 | S16: 27.7% | T16: 5,691 | U16: 15.5% | V16: 18.5% | X16: MMR
A17: PNC13 | B17: 38,876 | C17: 137 | D17: 0.003524025105 | E17: 13.5% | F17: 1079 | G17: 0.1269694161 | H17: 29.3% | I17: 7916 | J17: 0.01730672057 | K17: 11.7% | L17: 18.1% | N17: PNC13 | O17: 38,876 | P17: 137 | Q17: 13.5% | R17: 1,079 | S17: 29.3% | T17: 7,916 | U17: 11.7% | V17: 18.1% | X17: MNQ
A18: HEP | B18: 71,720 | C18: 219 | D18: 0.00305354155 | E18: 11.7% | F18: 1805 | G18: 0.1213296399 | H18: 28.0% | I18: 11117 | J18: 0.01969955923 | K18: 13.3% | L18: 17.6% | N18: HEP | O18: 71,720 | P18: 219 | Q18: 11.7% | R18: 1,805 | S18: 28.0% | T18: 11,117 | U18: 13.3% | V18: 17.6% | X18: PNC13
A19: IPV | B19: 43,249 | C19: 81 | D19: 0.001872875673 | E19: 7.2% | F19: 474 | G19: 0.1708860759 | H19: 39.4% | I19: 8900 | J19: 0.009101123596 | K19: 6.1% | L19: 17.6% | N19: IPV | O19: 43,249 | P19: 81 | Q19: 7.2% | R19: 474 | S19: 39.4% | T19: 8,900 | U19: 6.1% | V19: 17.6% | X19: PPV
A20: PPV | B20: 68,903 | C20: 199 | D20: 0.002888118079 | E20: 11.0% | F20: 2215 | G20: 0.08984198646 | H20: 20.7% | I20: 14372 | J20: 0.01384636794 | K20: 9.3% | L20: 13.7% | N20: PPV | O20: 68,903 | P20: 199 | Q20: 11.0% | R20: 2,215 | S20: 20.7% | T20: 14,372 | U20: 9.3% | V20: 13.7% | X20: TD
A21: MMR | B21: 86,556 | C21: 133 | D21: 0.001536577476 | E21: 5.9% | F21: 1185 | G21: 0.1122362869 | H21: 25.9% | I21: 21749 | J21: 0.006115223688 | K21: 4.1% | L21: 12.0% | N21: MMR | O21: 86,556 | P21: 133 | Q21: 5.9% | R21: 1,185 | S21: 25.9% | T21: 21,749 | U21: 4.1% | V21: 12.0% | X21: TDAP
A22: UNK | B22: 23,789 | C22: 78 | D22: 0.003278826348 | E22: 12.5% | F22: 2356 | G22: 0.03310696095 | H22: 7.6% | I22: 3450 | J22: 0.02260869565 | K22: 15.2% | L22: 11.8% | N22: UNK | O22: 23,789 | P22: 78 | Q22: 12.5% | R22: 2,356 | S22: 7.6% | T22: 3,450 | U22: 15.2% | V22: 11.8% | X22: TYP
A23: VARZOS | B23: 105,019 | C23: 270 | D23: 0.002570963349 | E23: 9.8% | F23: 9752 | G23: 0.02768662838 | H23: 6.4% | I23: 14461 | J23: 0.01867090796 | K23: 12.6% | L23: 9.6% | N23: VARZOS | O23: 105,019 | P23: 270 | Q23: 9.8% | R23: 9,752 | S23: 6.4% | T23: 14,461 | U23: 12.6% | V23: 9.6% | X23: UNK
A24: DTAP | B24: 62,560 | C24: 52 | D24: 0.000831202046 | E24: 3.2% | F24: 687 | G24: 0.07569141194 | H24: 17.5% | I24: 12832 | J24: 0.004052369077 | K24: 2.7% | L24: 7.8% | N24: DTAP | O24: 62,560 | P24: 52 | Q24: 3.2% | R24: 687 | S24: 17.5% | T24: 12,832 | U24: 2.7% | V24: 7.8% | X24: VARCEL
A25: VARCEL | B25: 82,205 | C25: 55 | D25: 0.0006690590597 | E25: 2.6% | F25: 779 | G25: 0.07060333761 | H25: 16.3% | I25: 11961 | J25: 0.004598277736 | K25: 3.1% | L25: 7.3% | N25: VARCEL | O25: 82,205 | P25: 55 | Q25: 2.6% | R25: 779 | S25: 16.3% | T25: 11,961 | U25: 3.1% | V25: 7.3% | X25: VARZOS
A26: COVID19 | B26: 1,116,854 | C26: 2,001 | D26: 0.001791639731 | E26: 6.8% | F26: 154437 | G26: 0.01295673964 | H26: 3.0% | I26: 153429 | J26: 0.01304186301 | K26: 8.8% | L26: 6.2% | N26: COVID19 | O26: 1,116,854 | P26: 2,001 | Q26: 6.8% | R26: 154,437 | S26: 3.0% | T26: 153,429 | U26: 8.8% | V26: 6.2% | X26: YF
A27: HIBV | B27: 57999 | F27: 342 | I27: 18576
A28: PNC | B28: 28244 | F28: 182 | I28: 8081
A29: OPV | B29: 24834 | I29: 10360
A30: DTP | B30: 23996 | F30: 67 | I30: 10871
A31: RV5 | B31: 23264 | F31: 145 | I31: 2606
A32: MMRV | B32: 18154 | F32: 133 | I32: 2097
A33: HPV9 | B33: 17297 | F33: 604 | I33: 733
A34: DTAPHEPBIP | B34: 11736 | F34: 105 | I34: 2971
A35: MENB | B35: 11713 | F35: 674 | I35: 2802
A36: DTAPIPVHIB | B36: 11555 | F36: 126 | I36: 2282
A37: DTAPIPV | B37: 11407 | F37: 157 | I37: 1433
A38: RV1 | B38: 9668 | F38: 108 | I38: 1973
A39: ANTH | B39: 9279 | F39: 856 | I39: 970
A40: DTPHIB | B40: 6374 | I40: 2652
A41: SMALL | B41: 5741 | F41: 408 | I41: 869
A42: RAB | B42: 5638 | F42: 299 | I42: 954
A43: HBHEPB | B43: 5579 | I43: 1739
A44: FLUC4 | B44: 5448 | F44: 271 | I44: 359
A45: 6VAX-F | B45: 5289 | F45: 104 | I45: 1325
A46: MEN | B46: 4892 | F46: 265 | I46: 1237
A47: FLUN4 | B47: 4295 | F47: 193 | I47: 641
A48: TTOX | B48: 3647 | F48: 148 | I48: 588
A49: FLUA3 | B49: 3250 | F49: 189 | I49: 315
A50: FLUN(H1N1) | B50: 2892 | F50: 144 | I50: 531
A51: DT | B51: 2724 | I51: 659
A52: HPVX | B52: 2651 | F52: 239 | I52: 217
A53: FLUR4 | B53: 2379 | F53: 91 | I53: 140
A54: LYME | B54: 2225 | E54: 477 | I54: 285
A55: RVX | B55: 1982 | I55: 449
A56: FLUA4 | B56: 1547 | F56: 104 | I56: 154
A57: FLUC3 | B57: 1167 | I57: 73
A58: RUB | B58: 943 | I58: 215
A59: DTAPH | B59: 861 | I59: 231
A60: PNC10 | B60: 853 | I60: 281
A61: MEA | B61: 783 | I61: 253
A62: RV | B62: 702 | I62: 196
A63: BCG | B63: 689 | I63: 168
A64: DTPIPV | B64: 672 | I64: 102
A65: JEV | B65: 566 | I65: 81
A66: JEV1 | B66: 554 | I66: 76
A67: DTIPV | B67: 393 | F67: 53 | I67: 172
A68: DTPHEP | B68: 345 | I68: 118
A69: MENHIB | B69: 321 | I69: 128
A70: CHOL | B70: 295 | I70: 58
A71: HBPV | B71: 260 | I71: 77
A72: MER | B72: 226 | I72: 78
A73: DPP | B73: 215 | I73: 64
A74: MU | B74: 213 | I74: 55
A75: FLUR3 | B75: 205
A76: DTPIHI | B76: 204 | I76: 64

Sheet Bells enrichment
A1: Vaccine | B1: Headache | C1: Bell's palsy | D1: =MAX(D2:D51) -> 0.005113470516 | E1: Enrichment | F1: Fatigue | G1: =MAX(G2:G27) -> 0.03697948031 | H1: Enrichment | I1: Pyrexia | J1: =MAX(J2:J26) -> 0.03722242862 | K1: Enrichment | L1: Average Enrichment | N1: Vaccine | O1: Headache | P1: Bell's palsy | Q1: Enrichment | R1: Fatigue | S1: Enrichment | T1: Pyrexia | U1: Enrichment
A2: COVID19 | B2: 1,116,854 | C2: 5711 | D2: =C2/B2 -> 0.005113470516 | E2: =D2/0.005113 -> 100.0% | F2: 154437 | G2: =C2/F2 -> 0.03697948031 | H2: =G2/0.036979 -> 100.0% | I2: 153429 | J2: =C2/I2 -> 0.03722242862 | K2: =J2/0.037222 -> 100.0% | L2: =AVERAGE(E2,H2,K2) -> 100.0% | N2: COVID19 | O2: 1,116,854 | P2: 5,711 | Q2: 100.0% | R2: 154,437 | S2: 100.0% | T2: 153,429 | U2: 100.0%
A3: UNK | B3: 23,789 | C3: 49 | D3: 0.002059775527 | E3: 40.3% | F3: 2356 | G3: 0.02079796265 | H3: 56.2% | I3: 3450 | J3: 0.01420289855 | K3: 38.2% | L3: 44.9% | N3: UNK | O3: 23,789 | P3: 49 | Q3: 40.3% | R3: 2,356 | S3: 56.2% | T3: 3,450 | U3: 38.2%
A4: FLU4 | B4: 37,252 | C4: 40 | D4: 0.001073767851 | E4: 21.0% | F4: 1794 | G4: 0.02229654404 | H4: 60.3% | I4: 3956 | J4: 0.01011122346 | K4: 27.2% | L4: 36.2% | N4: FLU4 | O4: 37,252 | P4: 40 | Q4: 21.0% | R4: 1,794 | S4: 60.3% | T4: 3,956 | U4: 27.2%
A5: VARZOS | B5: 105,019 | C5: 94 | D5: 0.0008950761291 | E5: 17.5% | F5: 9752 | G5: 0.0096390484 | H5: 26.1% | I5: 14461 | J5: 0.00650024203 | K5: 17.5% | L5: 20.3% | N5: VARZOS | O5: 105,019 | P5: 94 | Q5: 17.5% | R5: 9,752 | S5: 26.1% | T5: 14,461 | U5: 17.5%
A6: FLUX | B6: 29,755 | D6: 0 | E6: 0.0% | F6: 1797 | G6: 0 | H6: 0.0% | I6: 5249 | J6: 0 | K6: 0.0% | L6: 0.0%
A7: FLUX(H1N1) | B7: 2,681 | D7: 0 | E7: 0.0% | F7: 228 | G7: 0 | H7: 0.0% | I7: 581 | J7: 0 | K7: 0.0% | L7: 0.0%
A8: FLU3 | B8: 97,513 | D8: 0 | E8: 0.0% | F8: 3576 | G8: 0 | H8: 0.0% | I8: 12757 | J8: 0 | K8: 0.0% | L8: 0.0%
A9: FLU(H1N1) | B9: 9,179 | D9: 0 | E9: 0.0% | F9: 458 | G9: 0 | H9: 0.0% | I9: 1065 | J9: 0 | K9: 0.0% | L9: 0.0%
A10: HEPAB | B10: 5,707 | D10: 0 | E10: 0.0% | F10: 424 | G10: 0 | H10: 0.0% | I10: 636 | J10: 0 | K10: 0.0% | L10: 0.0%
A11: HPV2 | B11: 4,798 | D11: 0 | E11: 0.0% | F11: 394 | G11: 0 | H11: 0.0% | I11: 513 | J11: 0 | K11: 0.0% | L11: 0.0%
A12: FLUN3 | B12: 6,443 | D12: 0 | E12: 0.0% | F12: 245 | G12: 0 | H12: 0.0% | I12: 993 | J12: 0 | K12: 0.0% | L12: 0.0%
A13: YF | B13: 4,239 | D13: 0 | E13: 0.0% | F13: 284 | G13: 0 | H13: 0.0% | I13: 871 | J13: 0 | K13: 0.0% | L13: 0.0%
A14: TYP | B14: 9,923 | D14: 0 | E14: 0.0% | F14: 551 | G14: 0 | H14: 0.0% | I14: 1592 | J14: 0 | K14: 0.0% | L14: 0.0%
A15: TDAP | B15: 42,404 | D15: 0 | E15: 0.0% | F15: 2178 | G15: 0 | H15: 0.0% | I15: 5935 | J15: 0 | K15: 0.0% | L15: 0.0%
A16: MNQ | B16: 26,174 | D16: 0 | E16: 0.0% | F16: 1007 | G16: 0 | H16: 0.0% | I16: 2957 | J16: 0 | K16: 0.0% | L16: 0.0%
A17: TD | B17: 18,558 | D17: 0 | E17: 0.0% | F17: 518 | G17: 0 | H17: 0.0% | I17: 3596 | J17: 0 | K17: 0.0% | L17: 0.0%
A18: HPV4 | B18: 46,341 | D18: 0 | E18: 0.0% | F18: 3024 | G18: 0 | H18: 0.0% | I18: 2681 | J18: 0 | K18: 0.0% | L18: 0.0%
A19: HEPA | B19: 41,067 | D19: 0 | E19: 0.0% | F19: 1092 | G19: 0 | H19: 0.0% | I19: 5691 | J19: 0 | K19: 0.0% | L19: 0.0%
A20: PNC13 | B20: 38,876 | D20: 0 | E20: 0.0% | F20: 1079 | G20: 0 | H20: 0.0% | I20: 7916 | J20: 0 | K20: 0.0% | L20: 0.0%
A21: HEP | B21: 71,720 | D21: 0 | E21: 0.0% | F21: 1805 | G21: 0 | H21: 0.0% | I21: 11117 | J21: 0 | K21: 0.0% | L21: 0.0%
A22: IPV | B22: 43,249 | D22: 0 | E22: 0.0% | F22: 474 | G22: 0 | H22: 0.0% | I22: 8900 | J22: 0 | K22: 0.0% | L22: 0.0%
A23: PPV | B23: 68,903 | D23: 0 | E23: 0.0% | F23: 2215 | G23: 0 | H23: 0.0% | I23: 14372 | J23: 0 | K23: 0.0% | L23: 0.0%
A24: MMR | B24: 86,556 | D24: 0 | E24: 0.0% | F24: 1185 | G24: 0 | H24: 0.0% | I24: 21749 | J24: 0 | K24: 0.0% | L24: 0.0%
A25: DTAP | B25: 62,560 | D25: 0 | E25: 0.0% | F25: 687 | G25: 0 | H25: 0.0% | I25: 12832 | J25: 0 | K25: 0.0% | L25: 0.0%
A26: VARCEL | B26: 82,205 | D26: 0 | E26: 0.0% | F26: 779 | G26: 0 | H26: 0.0% | I26: 11961 | J26: 0 | K26: 0.0% | L26: 0.0%
A27: HIBV | B27: 57999 | F27: 342 | I27: 18576
A28: PNC | B28: 28244 | F28: 182 | I28: 8081
A29: OPV | B29: 24834 | I29: 10360
A30: DTP | B30: 23996 | F30: 67 | I30: 10871
A31: RV5 | B31: 23264 | F31: 145 | I31: 2606
A32: MMRV | B32: 18154 | F32: 133 | I32: 2097
A33: HPV9 | B33: 17297 | F33: 604 | I33: 733
A34: DTAPHEPBIP | B34: 11736 | F34: 105 | I34: 2971
A35: MENB | B35: 11713 | F35: 674 | I35: 2802
A36: DTAPIPVHIB | B36: 11555 | F36: 126 | I36: 2282
A37: DTAPIPV | B37: 11407 | F37: 157 | I37: 1433
A38: RV1 | B38: 9668 | F38: 108 | I38: 1973
A39: ANTH | B39: 9279 | F39: 856 | I39: 970
A40: DTPHIB | B40: 6374 | I40: 2652
A41: SMALL | B41: 5741 | F41: 408 | I41: 869
A42: RAB | B42: 5638 | F42: 299 | I42: 954
A43: HBHEPB | B43: 5579 | I43: 1739
A44: FLUC4 | B44: 5448 | F44: 271 | I44: 359
A45: 6VAX-F | B45: 5289 | F45: 104 | I45: 1325
A46: MEN | B46: 4892 | F46: 265 | I46: 1237
A47: FLUN4 | B47: 4295 | F47: 193 | I47: 641
A48: TTOX | B48: 3647 | F48: 148 | I48: 588
A49: FLUA3 | B49: 3250 | F49: 189 | I49: 315
A50: FLUN(H1N1) | B50: 2892 | F50: 144 | I50: 531
A51: DT | B51: 2724 | I51: 659
A52: HPVX | B52: 2651 | F52: 239 | I52: 217
A53: FLUR4 | B53: 2379 | F53: 91 | I53: 140
A54: LYME | B54: 2225 | E54: 477 | I54: 285
A55: RVX | B55: 1982 | I55: 449
A56: FLUA4 | B56: 1547 | F56: 104 | I56: 154
A57: FLUC3 | B57: 1167 | I57: 73
A58: RUB | B58: 943 | I58: 215
A59: DTAPH | B59: 861 | I59: 231
A60: PNC10 | B60: 853 | I60: 281
A61: MEA | B61: 783 | I61: 253
A62: RV | B62: 702 | I62: 196
A63: BCG | B63: 689 | I63: 168
A64: DTPIPV | B64: 672 | I64: 102
A65: JEV | B65: 566 | I65: 81
A66: JEV1 | B66: 554 | I66: 76
A67: DTIPV | B67: 393 | F67: 53 | I67: 172
A68: DTPHEP | B68: 345 | I68: 118
A69: MENHIB | B69: 321 | I69: 128
A70: CHOL | B70: 295 | I70: 58
A71: HBPV | B71: 260 | I71: 77
A72: MER | B72: 226 | I72: 78
A73: DPP | B73: 215 | I73: 64
A74: MU | B74: 213 | I74: 55
A75: FLUR3 | B75: 205
A76: DTPIHI | B76: 204 | I76: 64

Sheet V_bells_palsy
A1: Selected VAERS search terms:
A2: Bell's palsy
A4: Dose report
A5: Vaccine Name | B5: All | C5: 1 | D5: 2 | E5: 3 | F5: 4 | G5: 5 | H5: 6 | I5: 7+ | J5: UNK | K5: N/A | L5: All male | M5: 1 male | N5: 2 male | O5: 3 male | P5: 4 male | Q5: 5 male | R5: 6 male | S5: 7+ male | T5: UNK male | U5: N/A male | V5: All female | W5: 1 female | X5: 2 female | Y5: 3 female | Z5: 4 female | AA5: 5 female | AB5: 6 female | AC5: 7+ female | AD5: UNK female | AE5: N/A female | AF5: All Unknown | AG5: 1 Unknown | AH5: 2 Unknown | AI5: 3 Unknown | AJ5: 4 Unknown | AK5: 5 Unknown | AL5: 6 Unknown | AM5: 7+ Unknown | AN5: UNK Unknown | AO5: N/A Unknown
A6: COVID19 | B6: 5711 | C6: 2629 | D6: 1744 | E6: 242 | F6: 8 | G6: 1 | J6: 1076 | K6: 11 | L6: 2447 | M6: 1157 | N6: 752 | O6: 115 | P6: 3 | Q6: 1 | T6: 413 | U6: 6 | V6: 3020 | W6: 1425 | X6: 966 | Y6: 120 | Z6: 5 | AD6: 499 | AE6: 5 | AF6: 244 | AG6: 47 | AH6: 26 | AI6: 7 | AN6: 164
A7: VARZOS | B7: 94 | C7: 31 | D7: 22 | J7: 41 | L7: 35 | M7: 12 | N7: 10 | T7: 13 | V7: 36 | W7: 15 | X7: 10 | AD7: 11 | AF7: 23 | AG7: 4 | AH7: 2 | AN7: 17
A8: UNK | B8: 49 | C8: 6 | D8: 7 | E8: 1 | J8: 35 | L8: 26 | M8: 3 | N8: 3 | T8: 20 | V8: 21 | W8: 3 | X8: 4 | Y8: 1 | AD8: 13 | AF8: 2 | AN8: 2
A9: FLU4 | B9: 40 | C9: 17 | D9: 1 | H9: 1 | I9: 2 | J9: 15 | K9: 4 | L9: 15 | M9: 6 | S9: 1 | T9: 7 | U9: 1 | V9: 23 | W9: 11 | X9: 1 | AB9: 1 | AC9: 1 | AD9: 6 | AE9: 3 | AF9: 2 | AN9: 2
A10: FLUX | B10: 14 | C10: 2 | J10: 12 | L10: 6 | M10: 1 | T10: 5 | V10: 5 | W10: 1 | AD10: 4 | AF10: 3 | AN10: 3
A11: TDAP | B11: 7 | C11: 4 | J11: 3 | L11: 1 | M11: 1 | V11: 6 | W11: 3 | AD11: 3 | AF11: 0 | AG11: 0 | AH11: 0 | AI11: 0 | AJ11: 0 | AK11: 0 | AL11: 0 | AM11: 0 | AN11: 0 | AO11: 0
A12: FLUR4 | B12: 6 | C12: 4 | K12: 2 | L12: 1 | U12: 1 | V12: 4 | W12: 3 | AE12: 1 | AF12: 1 | AG12: 1
A13: VARCEL | B13: 4 | C13: 3 | D13: 1 | L13: 1 | M13: 1 | V13: 3 | W13: 2 | X13: 1 | AF13: 0 | AG13: 0 | AH13: 0 | AI13: 0 | AJ13: 0 | AK13: 0 | AL13: 0 | AM13: 0 | AN13: 0 | AO13: 0
A14: PPV | B14: 4 | J14: 4 | L14: 2 | T14: 2 | V14: 2 | AD14: 2 | AF14: 0 | AG14: 0 | AH14: 0 | AI14: 0 | AJ14: 0 | AK14: 0 | AL14: 0 | AM14: 0 | AN14: 0 | AO14: 0
A15: IPV | B15: 3 | C15: 1 | D15: 1 | E15: 1 | L15: 1 | M15: 1 | V15: 2 | X15: 1 | Y15: 1 | AF15: 0 | AG15: 0 | AH15: 0 | AI15: 0 | AJ15: 0 | AK15: 0 | AL15: 0 | AM15: 0 | AN15: 0 | AO15: 0
A16: HEP | B16: 3 | C16: 2 | J16: 1 | L16: 2 | M16: 1 | T16: 1 | V16: 0 | W16: 0 | X16: 0 | Y16: 0 | Z16: 0 | AA16: 0 | AB16: 0 | AC16: 0 | AD16: 0 | AE16: 0 | AF16: 1 | AG16: 1
A17: MMR | B17: 3 | C17: 3 | L17: 1 | M17: 1 | V17: 2 | W17: 2 | AF17: 0 | AG17: 0 | AH17: 0 | AI17: 0 | AJ17: 0 | AK17: 0 | AL17: 0 | AM17: 0 | AN17: 0 | AO17: 0
A18: FLUC4 | B18: 3 | C18: 2 | J18: 1 | L18: 2 | M18: 2 | V18: 1 | AD18: 1 | AF18: 0 | AG18: 0 | AH18: 0 | AI18: 0 | AJ18: 0 | AK18: 0 | AL18: 0 | AM18: 0 | AN18: 0 | AO18: 0
A19: DTAP | B19: 3 | C19: 1 | F19: 1 | J19: 1 | L19: 0 | M19: 0 | N19: 0 | O19: 0 | P19: 0 | Q19: 0 | R19: 0 | S19: 0 | T19: 0 | U19: 0 | V19: 3 | W19: 1 | Z19: 1 | AD19: 1 | AF19: 0 | AG19: 0 | AH19: 0 | AI19: 0 | AJ19: 0 | AK19: 0 | AL19: 0 | AM19: 0 | AN19: 0 | AO19: 0
A20: FLUA4 | B20: 3 | C20: 1 | J20: 1 | K20: 1 | L20: 2 | T20: 1 | U20: 1 | V20: 1 | W20: 1 | AF20: 0 | AG20: 0 | AH20: 0 | AI20: 0 | AJ20: 0 | AK20: 0 | AL20: 0 | AM20: 0 | AN20: 0 | AO20: 0
A21: DTAPIPV | B21: 2 | D21: 1 | J21: 1 | L21: 0 | M21: 0 | N21: 0 | O21: 0 | P21: 0 | Q21: 0 | R21: 0 | S21: 0 | T21: 0 | U21: 0 | V21: 2 | X21: 1 | AD21: 1 | AF21: 0 | AG21: 0 | AH21: 0 | AI21: 0 | AJ21: 0 | AK21: 0 | AL21: 0 | AM21: 0 | AN21: 0 | AO21: 0
A22: MNQ | B22: 2 | C22: 1 | D22: 1 | L22: 1 | M22: 1 | V22: 1 | X22: 1 | AF22: 0 | AG22: 0 | AH22: 0 | AI22: 0 | AJ22: 0 | AK22: 0 | AL22: 0 | AM22: 0 | AN22: 0 | AO22: 0
A23: MENB | B23: 2 | C23: 2 | L23: 0 | M23: 0 | N23: 0 | O23: 0 | P23: 0 | Q23: 0 | R23: 0 | S23: 0 | T23: 0 | U23: 0 | V23: 2 | W23: 2 | AF23: 0 | AG23: 0 | AH23: 0 | AI23: 0 | AJ23: 0 | AK23: 0 | AL23: 0 | AM23: 0 | AN23: 0 | AO23: 0
A24: HPV9 | B24: 2 | C24: 2 | L24: 1 | M24: 1 | V24: 1 | W24: 1 | AF24: 0 | AG24: 0 | AH24: 0 | AI24: 0 | AJ24: 0 | AK24: 0 | AL24: 0 | AM24: 0 | AN24: 0 | AO24: 0
A25: DF | B25: 1 | C25: 1 | L25: 0 | M25: 0 | N25: 0 | O25: 0 | P25: 0 | Q25: 0 | R25: 0 | S25: 0 | T25: 0 | U25: 0 | V25: 1 | W25: 1 | AF25: 0 | AG25: 0 | AH25: 0 | AI25: 0 | AJ25: 0 | AK25: 0 | AL25: 0 | AM25: 0 | AN25: 0 | AO25: 0
A26: HEPA | B26: 1 | C26: 1 | L26: 1 | M26: 1 | V26: 0 | W26: 0 | X26: 0 | Y26: 0 | Z26: 0 | AA26: 0 | AB26: 0 | AC26: 0 | AD26: 0 | AE26: 0 | AF26: 0 | AG26: 0 | AH26: 0 | AI26: 0 | AJ26: 0 | AK26: 0 | AL26: 0 | AM26: 0 | AN26: 0 | AO26: 0
A27: EBZR | B27: 1 | C27: 1 | L27: 0 | M27: 0 | N27: 0 | O27: 0 | P27: 0 | Q27: 0 | R27: 0 | S27: 0 | T27: 0 | U27: 0 | V27: 1 | W27: 1 | AF27: 0 | AG27: 0 | AH27: 0 | AI27: 0 | AJ27: 0 | AK27: 0 | AL27: 0 | AM27: 0 | AN27: 0 | AO27: 0
A28: DTAPIPVHIB | B28: 1 | D28: 1 | L28: 1 | N28: 1 | V28: 0 | W28: 0 | X28: 0 | Y28: 0 | Z28: 0 | AA28: 0 | AB28: 0 | AC28: 0 | AD28: 0 | AE28: 0 | AF28: 0 | AG28: 0 | AH28: 0 | AI28: 0 | AJ28: 0 | AK28: 0 | AL28: 0 | AM28: 0 | AN28: 0 | AO28: 0
A29: FLUC3 | B29: 1 | J29: 1 | L29: 0 | M29: 0 | N29: 0 | O29: 0 | P29: 0 | Q29: 0 | R29: 0 | S29: 0 | T29: 0 | U29: 0 | V29: 1 | AD29: 1 | AF29: 0 | AG29: 0 | AH29: 0 | AI29: 0 | AJ29: 0 | AK29: 0 | AL29: 0 | AM29: 0 | AN29: 0 | AO29: 0
A30: MMRV | B30: 1 | D30: 1 | L30: 0 | M30: 0 | N30: 0 | O30: 0 | P30: 0 | Q30: 0 | R30: 0 | S30: 0 | T30: 0 | U30: 0 | V30: 1 | X30: 1 | AF30: 0 | AG30: 0 | AH30: 0 | AI30: 0 | AJ30: 0 | AK30: 0 | AL30: 0 | AM30: 0 | AN30: 0 | AO30: 0
A31: TD | B31: 1 | J31: 1 | L31: 1 | T31: 1 | V31: 0 | W31: 0 | X31: 0 | Y31: 0 | Z31: 0 | AA31: 0 | AB31: 0 | AC31: 0 | AD31: 0 | AE31: 0 | AF31: 0 | AG31: 0 | AH31: 0 | AI31: 0 | AJ31: 0 | AK31: 0 | AL31: 0 | AM31: 0 | AN31: 0 | AO31: 0
A32: FLUN4 | B32: 1 | J32: 1 | L32: 0 | M32: 0 | N32: 0 | O32: 0 | P32: 0 | Q32: 0 | R32: 0 | S32: 0 | T32: 0 | U32: 0 | V32: 1 | AD32: 1 | AF32: 0 | AG32: 0 | AH32: 0 | AI32: 0 | AJ32: 0 | AK32: 0 | AL32: 0 | AM32: 0 | AN32: 0 | AO32: 0
A33: ANTH | B33: 1 | E33: 1 | L33: 0 | M33: 0 | N33: 0 | O33: 0 | P33: 0 | Q33: 0 | R33: 0 | S33: 0 | T33: 0 | U33: 0 | V33: 1 | Y33: 1 | AF33: 0 | AG33: 0 | AH33: 0 | AI33: 0 | AJ33: 0 | AK33: 0 | AL33: 0 | AM33: 0 | AN33: 0 | AO33: 0
A34: TYP | B34: 1 | D34: 1 | L34: 0 | M34: 0 | N34: 0 | O34: 0 | P34: 0 | Q34: 0 | R34: 0 | S34: 0 | T34: 0 | U34: 0 | V34: 1 | X34: 1 | AF34: 0 | AG34: 0 | AH34: 0 | AI34: 0 | AJ34: 0 | AK34: 0 | AL34: 0 | AM34: 0 | AN34: 0 | AO34: 0
A35: PNC20 | B35: 1 | C35: 1 | L35: 1 | M35: 1 | V35: 0 | W35: 0 | X35: 0 | Y35: 0 | Z35: 0 | AA35: 0 | AB35: 0 | AC35: 0 | AD35: 0 | AE35: 0 | AF35: 0 | AG35: 0 | AH35: 0 | AI35: 0 | AJ35: 0 | AK35: 0 | AL35: 0 | AM35: 0 | AN35: 0 | AO35: 0
A36: HIBV | B36: 1 | E36: 1 | L36: 0 | M36: 0 | N36: 0 | O36: 0 | P36: 0 | Q36: 0 | R36: 0 | S36: 0 | T36: 0 | U36: 0 | V36: 1 | Y36: 1 | AF36: 0 | AG36: 0 | AH36: 0 | AI36: 0 | AJ36: 0 | AK36: 0 | AL36: 0 | AM36: 0 | AN36: 0 | AO36: 0
A38: Age report
A39: Age | B39: COVID19 | C39: All | D39: 1 | E39: 2 | F39: 3 | G39: 4 | H39: All male | I39: 1 male | J39: 2 male | K39: 3 male | L39: 4 male | M39: All female | N39: 1 female | O39: 2 female | P39: 3 female | Q39: 4 female | R39: VARZOS | S39: All | T39: 1 | U39: 2 | V39: 3 | W39: 4 | X39: All male | Y39: 1 male | Z39: 2 male | AA39: 3 male | AB39: 4 male | AC39: All female | AD39: 1 female | AE39: 2 female | AF39: 3 female | AG39: 4 female | AH39: UNK | AI39: All | AJ39: 1 | AK39: 2 | AL39: 3 | AM39: 4 | AN39: All male | AO39: 1 male | AP39: 2 male | AQ39: 3 male | AR39: 4 male | AS39: All female | AT39: 1 female | AU39: 2 female | AV39: 3 female | AW39: 4 female | AX39: FLU4 | AY39: All | AZ39: 1 | BA39: 2 | BB39: 3 | BC39: 4 | BD39: All male | BE39: 1 male | BF39: 2 male | BG39: 3 male | BH39: 4 male | BI39: All female | BJ39: 1 female | BK39: 2 female | BL39: 3 female | BM39: 4 female | BN39: FLUX | BO39: All | BP39: 1 | BQ39: 2 | BR39: 3 | BS39: 4 | BT39: All male | BU39: 1 male | BV39: 2 male | BW39: 3 male | BX39: 4 male | BY39: All female | BZ39: 1 female | CA39: 2 female | CB39: 3 female | CC39: 4 female | CD39: TDAP | CE39: All | CF39: 1 | CG39: 2 | CH39: 3 | CI39: 4 | CJ39: All male | CK39: 1 male | CL39: 2 male | CM39: 3 male | CN39: 4 male | CO39: All female | CP39: 1 female | CQ39: 2 female | CR39: 3 female | CS39: 4 female | CT39: FLUR4 | CU39: All | CV39: 1 | CW39: 2 | CX39: 3 | CY39: 4 | CZ39: All male | DA39: 1 male | DB39: 2 male | DC39: 3 male | DD39: 4 male | DE39: All female | DF39: 1 female | DG39: 2 female | DH39: 3 female | DI39: 4 female | DJ39: VARCEL | DK39: All | DL39: 1 | DM39: 2 | DN39: 3 | DO39: 4 | DP39: All male | DQ39: 1 male | DR39: 2 male | DS39: 3 male | DT39: 4 male | DU39: All female | DV39: 1 female | DW39: 2 female | DX39: 3 female | DY39: 4 female | DZ39: PPV | EA39: All | EB39: 1 | EC39: 2 | ED39: 3 | EE39: 4 | EF39: All male | EG39: 1 male | EH39: 2 male | EI39: 3 male | EJ39: 4 male | EK39: All female | EL39: 1 female | EM39: 2 female | EN39: 3 female | EO39: 4 female | EP39: IPV | EQ39: All | ER39: 1 | ES39: 2 | ET39: 3 | EU39: 4 | EV39: All male | EW39: 1 male | EX39: 2 male | EY39: 3 male | EZ39: 4 male | FA39: All female | FB39: 1 female | FC39: 2 female | FD39: 3 female | FE39: 4 female | FF39: HEP | FG39: All | FH39: 1 | FI39: 2 | FJ39: 3 | FK39: 4 | FL39: All male | FM39: 1 male | FN39: 2 male | FO39: 3 male | FP39: 4 male | FQ39: All female | FR39: 1 female | FS39: 2 female | FT39: 3 female | FU39: 4 female | FV39: MMR | FW39: All | FX39: 1 | FY39: 2 | FZ39: 3 | GA39: 4 | GB39: All male | GC39: 1 male | GD39: 2 male | GE39: 3 male | GF39: 4 male | GG39: All female | GH39: 1 female | GI39: 2 female | GJ39: 3 female | GK39: 4 female | GL39: FLUC4 | GM39: All | GN39: 1 | GO39: 2 | GP39: 3 | GQ39: 4 | GR39: All male | GS39: 1 male | GT39: 2 male | GU39: 3 male | GV39: 4 male | GW39: All female | GX39: 1 female | GY39: 2 female | GZ39: 3 female | HA39: 4 female | HB39: DTAP | HC39: All | HD39: 1 | HE39: 2 | HF39: 3 | HG39: 4 | HH39: All male | HI39: 1 male | HJ39: 2 male | HK39: 3 male | HL39: 4 male | HM39: All female | HN39: 1 female | HO39: 2 female | HP39: 3 female | HQ39: 4 female | HR39: FLUA4 | HS39: All | HT39: 1 | HU39: 2 | HV39: 3 | HW39: 4 | HX39: All male | HY39: 1 male | HZ39: 2 male | IA39: 3 male | IB39: 4 male | IC39: All female | ID39: 1 female | IE39: 2 female | IF39: 3 female | IG39: 4 female | IH39: DTAPIPV | II39: All | IJ39: 1 | IK39: 2 | IL39: 3 | IM39: 4 | IN39: All male | IO39: 1 male | IP39: 2 male | IQ39: 3 male | IR39: 4 male | IS39: All female | IT39: 1 female | IU39: 2 female | IV39: 3 female | IW39: 4 female | IX39: MNQ | IY39: All | IZ39: 1 | JA39: 2 | JB39: 3 | JC39: 4 | JD39: All male | JE39: 1 male | JF39: 2 male | JG39: 3 male | JH39: 4 male | JI39: All female | JJ39: 1 female | JK39: 2 female | JL39: 3 female | JM39: 4 female | JN39: MENB | JO39: All | JP39: 1 | JQ39: 2 | JR39: 3 | JS39: 4 | JT39: All male | JU39: 1 male | JV39: 2 male | JW39: 3 male | JX39: 4 male | JY39: All female | JZ39: 1 female | KA39: 2 female | KB39: 3 female | KC39: 4 female | KD39: HPV9 | KE39: All | KF39: 1 | KG39: 2 | KH39: 3 | KI39: 4 | KJ39: All male | KK39: 1 male | KL39: 2 male | KM39: 3 male | KN39: 4 male | KO39: All female | KP39: 1 female | KQ39: 2 female | KR39: 3 female | KS39: 4 female | KT39: DF | KU39: All | KV39: 1 | KW39: 2 | KX39: 3 | KY39: 4 | KZ39: All male | LA39: 1 male | LB39: 2 male | LC39: 3 male | LD39: 4 male | LE39: All female | LF39: 1 female | LG39: 2 female | LH39: 3 female | LI39: 4 female | LJ39: HEPA | LK39: All | LL39: 1 | LM39: 2 | LN39: 3 | LO39: 4 | LP39: All male | LQ39: 1 male | LR39: 2 male | LS39: 3 male | LT39: 4 male | LU39: All female | LV39: 1 female | LW39: 2 female | LX39: 3 female | LY39: 4 female | LZ39: EBZR | MA39: All | MB39: 1 | MC39: 2 | MD39: 3 | ME39: 4 | MF39: All male | MG39: 1 male | MH39: 2 male | MI39: 3 male | MJ39: 4 male | MK39: All female | ML39: 1 female | MM39: 2 female | MN39: 3 female | MO39: 4 female | MP39: DTAPIPVHIB | MQ39: All | MR39: 1 | MS39: 2 | MT39: 3 | MU39: 4 | MV39: All male | MW39: 1 male | MX39: 2 male | MY39: 3 male | MZ39: 4 male | NA39: All female | NB39: 1 female | NC39: 2 female | ND39: 3 female | NE39: 4 female | NF39: FLUC3 | NG39: All | NH39: 1 | NI39: 2 | NJ39: 3 | NK39: 4 | NL39: All male | NM39: 1 male | NN39: 2 male | NO39: 3 male | NP39: 4 male | NQ39: All female | NR39: 1 female | NS39: 2 female | NT39: 3 female | NU39: 4 female | NV39: MMRV | NW39: All | NX39: 1 | NY39: 2 | NZ39: 3 | OA39: 4 | OB39: All male | OC39: 1 male | OD39: 2 male | OE39: 3 male | OF39: 4 male | OG39: All female | OH39: 1 female | OI39: 2 female | OJ39: 3 female | OK39: 4 female | OL39: TD | OM39: All | ON39: 1 | OO39: 2 | OP39: 3 | OQ39: 4 | OR39: All male | OS39: 1 male | OT39: 2 male | OU39: 3 male | OV39: 4 male | OW39: All female | OX39: 1 female | OY39: 2 female | OZ39: 3 female | PA39: 4 female | PB39: FLUN4 | PC39: All | PD39: 1 | PE39: 2 | PF39: 3 | PG39: 4 | PH39: All male | PI39: 1 male | PJ39: 2 male | PK39: 3 male | PL39: 4 male | PM39: All female | PN39: 1 female | PO39: 2 female | PP39: 3 female | PQ39: 4 female | PR39: ANTH | PS39: All | PT39: 1 | PU39: 2 | PV39: 3 | PW39: 4 | PX39: All male | PY39: 1 male | PZ39: 2 male | QA39: 3 male | QB39: 4 male | QC39: All female | QD39: 1 female | QE39: 2 female | QF39: 3 female | QG39: 4 female | QH39: TYP | QI39: All | QJ39: 1 | QK39: 2 | QL39: 3 | QM39: 4 | QN39: All male | QO39: 1 male | QP39: 2 male | QQ39: 3 male | QR39: 4 male | QS39: All female | QT39: 1 female | QU39: 2 female | QV39: 3 female | QW39: 4 female | QX39: PNC20 | QY39: All | QZ39: 1 | RA39: 2 | RB39: 3 | RC39: 4 | RD39: All male | RE39: 1 male | RF39: 2 male | RG39: 3 male | RH39: 4 male | RI39: All female | RJ39: 1 female | RK39: 2 female | RL39: 3 female | RM39: 4 female | RN39: HIBV | RO39: All | RP39: 1 | RQ39: 2 | RR39: 3 | RS39: 4 | RT39: All male | RU39: 1 male | RV39: 2 male | RW39: 3 male | RX39: 4 male | RY39: All female | RZ39: 1 female | SA39: 2 female | SB39: 3 female | SC39: 4 female
A40: -1 | B40: COVID19 | C40: 1525 | D40: 617 | E40: 434 | F40: 16 | H40: 576 | I40: 268 | J40: 187 | K40: 5 | M40: 729 | N40: 314 | O40: 225 | P40: 6 | R40: VARZOS | S40: 49 | T40: 12 | U40: 7 | X40: 15 | Y40: 4 | Z40: 1 | AC40: 16 | AD40: 4 | AE40: 4 | AH40: UNK | AI40: 3 | AN40: 1 | AS40: 1 | AX40: FLU4 | AY40: 5 | BD40: 3 | BN40: FLUX | BO40: 8 | BT40: 2 | BY40: 3 | CD40: TDAP | CT40: FLUR4 | DJ40: VARCEL | DZ40: PPV | EA40: 2 | EF40: 1 | EK40: 1 | EP40: IPV | FF40: HEP | FV40: MMR | GL40: FLUC4 | HB40: DTAP | HR40: FLUA4 | IH40: DTAPIPV | II40: 1 | IS40: 1 | IX40: MNQ | JN40: MENB | KD40: HPV9 | KT40: DF | LJ40: HEPA | LZ40: EBZR | MP40: DTAPIPVHIB | NF40: FLUC3 | NV40: MMRV | OL40: TD | PB40: FLUN4 | PR40: ANTH | QH40: TYP | QX40: PNC20 | RN40: HIBV
A41: 0 | B41: COVID19 | R41: VARZOS | AH41: UNK | AX41: FLU4 | BN41: FLUX | CD41: TDAP | CT41: FLUR4 | DJ41: VARCEL | DZ41: PPV | EP41: IPV | FF41: HEP | FV41: MMR | GL41: FLUC4 | HB41: DTAP | HR41: FLUA4 | IH41: DTAPIPV | IX41: MNQ | JN41: MENB | KD41: HPV9 | KT41: DF | LJ41: HEPA | LZ41: EBZR | MP41: DTAPIPVHIB | NF41: FLUC3 | NV41: MMRV | OL41: TD | PB41: FLUN4 | PR41: ANTH | QH41: TYP | QX41: PNC20 | RN41: HIBV
A42: 1 | B42: COVID19 | R42: VARZOS | AH42: UNK | AX42: FLU4 | BN42: FLUX | CD42: TDAP | CT42: FLUR4 | DJ42: VARCEL | DZ42: PPV | EP42: IPV | FF42: HEP | FV42: MMR | GL42: FLUC4 | HB42: DTAP | HC42: 1 | HG42: 1 | HM42: 1 | HQ42: 1 | HR42: FLUA4 | IH42: DTAPIPV | IX42: MNQ | JN42: MENB | KD42: HPV9 | KT42: DF | LJ42: HEPA | LZ42: EBZR | MP42: DTAPIPVHIB | NF42: FLUC3 | NV42: MMRV | OL42: TD | PB42: FLUN4 | PR42: ANTH | QH42: TYP | QX42: PNC20 | RN42: HIBV | RO42: 1 | RR42: 1 | RY42: 1 | SB42: 1
A43: 2 | B43: COVID19 | C43: 1 | D43: 1 | H43: 1 | I43: 1 | R43: VARZOS | AH43: UNK | AX43: FLU4 | BN43: FLUX | CD43: TDAP | CT43: FLUR4 | DJ43: VARCEL | DZ43: PPV | EP43: IPV | FF43: HEP | FV43: MMR | GL43: FLUC4 | HB43: DTAP | HR43: FLUA4 | IH43: DTAPIPV | IX43: MNQ | JN43: MENB | KD43: HPV9 | KT43: DF | LJ43: HEPA | LZ43: EBZR | MP43: DTAPIPVHIB | NF43: FLUC3 | NV43: MMRV | OL43: TD | PB43: FLUN4 | PR43: ANTH | QH43: TYP | QX43: PNC20 | RN43: HIBV
A44: 3 | B44: COVID19 | R44: VARZOS | AH44: UNK | AX44: FLU4 | BN44: FLUX | CD44: TDAP | CT44: FLUR4 | DJ44: VARCEL | DZ44: PPV | EP44: IPV | FF44: HEP | FV44: MMR | GL44: FLUC4 | HB44: DTAP | HR44: FLUA4 | IH44: DTAPIPV | IX44: MNQ | JN44: MENB | KD44: HPV9 | KT44: DF | LJ44: HEPA | LZ44: EBZR | MP44: DTAPIPVHIB | NF44: FLUC3 | NV44: MMRV | OL44: TD | PB44: FLUN4 | PR44: ANTH | QH44: TYP | QX44: PNC20 | RN44: HIBV
A45: 4 | B45: COVID19 | R45: VARZOS | AH45: UNK | AX45: FLU4 | BN45: FLUX | CD45: TDAP | CT45: FLUR4 | DJ45: VARCEL | DZ45: PPV | EP45: IPV | FF45: HEP | FV45: MMR | GL45: FLUC4 | HB45: DTAP | HR45: FLUA4 | IH45: DTAPIPV | II45: 1 | IK45: 1 | IS45: 1 | IU45: 1 | IX45: MNQ | JN45: MENB | KD45: HPV9 | KT45: DF | LJ45: HEPA | LZ45: EBZR | MP45: DTAPIPVHIB | NF45: FLUC3 | NV45: MMRV | NW45: 1 | NY45: 1 | OG45: 1 | OI45: 1 | OL45: TD | PB45: FLUN4 | PR45: ANTH | QH45: TYP | QX45: PNC20 | RN45: HIBV
A46: 5 | B46: COVID19 | R46: VARZOS | AH46: UNK | AX46: FLU4 | BN46: FLUX | CD46: TDAP | CT46: FLUR4 | DJ46: VARCEL | DZ46: PPV | EP46: IPV | FF46: HEP | FV46: MMR | GL46: FLUC4 | HB46: DTAP | HR46: FLUA4 | IH46: DTAPIPV | IX46: MNQ | JN46: MENB | KD46: HPV9 | KT46: DF | LJ46: HEPA | LZ46: EBZR | MP46: DTAPIPVHIB | NF46: FLUC3 | NV46: MMRV | OL46: TD | PB46: FLUN4 | PR46: ANTH | QH46: TYP | QX46: PNC20 | RN46: HIBV
A47: 6 | B47: COVID19 | R47: VARZOS | AH47: UNK | AX47: FLU4 | BN47: FLUX | CD47: TDAP | CT47: FLUR4 | DJ47: VARCEL | DZ47: PPV | EP47: IPV | FF47: HEP | FV47: MMR | GL47: FLUC4 | HB47: DTAP | HR47: FLUA4 | IH47: DTAPIPV | IX47: MNQ | JN47: MENB | KD47: HPV9 | KT47: DF | LJ47: HEPA | LZ47: EBZR | MP47: DTAPIPVHIB | NF47: FLUC3 | NV47: MMRV | OL47: TD | PB47: FLUN4 | PR47: ANTH | QH47: TYP | QX47: PNC20 | RN47: HIBV
A48: 7 | B48: COVID19 | C48: 1 | E48: 1 | H48: 1 | J48: 1 | R48: VARZOS | AH48: UNK | AX48: FLU4 | BN48: FLUX | CD48: TDAP | CT48: FLUR4 | DJ48: VARCEL | DK48: 1 | DM48: 1 | DU48: 1 | DW48: 1 | DZ48: PPV | EP48: IPV | EQ48: 1 | ET48: 1 | FA48: 1 | FD48: 1 | FF48: HEP | FV48: MMR | GL48: FLUC4 | HB48: DTAP | HR48: FLUA4 | IH48: DTAPIPV | IX48: MNQ | JN48: MENB | KD48: HPV9 | KT48: DF | LJ48: HEPA | LZ48: EBZR | MP48: DTAPIPVHIB | NF48: FLUC3 | NV48: MMRV | OL48: TD | PB48: FLUN4 | PR48: ANTH | QH48: TYP | QX48: PNC20 | RN48: HIBV
A49: 8 | B49: COVID19 | C49: 3 | D49: 2 | E49: 1 | H49: 1 | I49: 1 | M49: 2 | N49: 1 | O49: 1 | R49: VARZOS | AH49: UNK | AX49: FLU4 | BN49: FLUX | CD49: TDAP | CT49: FLUR4 | DJ49: VARCEL | DZ49: PPV | EP49: IPV | FF49: HEP | FV49: MMR | GL49: FLUC4 | HB49: DTAP | HR49: FLUA4 | IH49: DTAPIPV | IX49: MNQ | JN49: MENB | KD49: HPV9 | KT49: DF | LJ49: HEPA | LZ49: EBZR | MP49: DTAPIPVHIB | NF49: FLUC3 | NV49: MMRV | OL49: TD | PB49: FLUN4 | PR49: ANTH | QH49: TYP | QX49: PNC20 | RN49: HIBV
A50: 9 | B50: COVID19 | C50: 3 | E50: 1 | M50: 3 | O50: 1 | R50: VARZOS | AH50: UNK | AX50: FLU4 | BN50: FLUX | CD50: TDAP | CT50: FLUR4 | DJ50: VARCEL | DZ50: PPV | EP50: IPV | FF50: HEP | FV50: MMR | GL50: FLUC4 | HB50: DTAP | HR50: FLUA4 | IH50: DTAPIPV | IX50: MNQ | JN50: MENB | KD50: HPV9 | KT50: DF | LJ50: HEPA | LZ50: EBZR | MP50: DTAPIPVHIB | NF50: FLUC3 | NV50: MMRV | OL50: TD | PB50: FLUN4 | PR50: ANTH | QH50: TYP | QX50: PNC20 | RN50: HIBV
A51: 10 | B51: COVID19 | C51: 3 | D51: 1 | E51: 1 | H51: 2 | J51: 1 | M51: 1 | N51: 1 | R51: VARZOS | AH51: UNK | AX51: FLU4 | BN51: FLUX | CD51: TDAP | CT51: FLUR4 | DJ51: VARCEL | DZ51: PPV | EP51: IPV | FF51: HEP | FV51: MMR | GL51: FLUC4 | HB51: DTAP | HR51: FLUA4 | IH51: DTAPIPV | IX51: MNQ | JN51: MENB | KD51: HPV9 | KT51: DF | LJ51: HEPA | LZ51: EBZR | MP51: DTAPIPVHIB | NF51: FLUC3 | NV51: MMRV | OL51: TD | PB51: FLUN4 | PR51: ANTH | QH51: TYP | QX51: PNC20 | RN51: HIBV
A52: 11 | B52: COVID19 | C52: 4 | D52: 2 | E52: 1 | M52: 4 | N52: 2 | O52: 1 | R52: VARZOS | AH52: UNK | AX52: FLU4 | BN52: FLUX | CD52: TDAP | CT52: FLUR4 | DJ52: VARCEL | DZ52: PPV | EP52: IPV | FF52: HEP | FV52: MMR | GL52: FLUC4 | HB52: DTAP | HR52: FLUA4 | IH52: DTAPIPV | IX52: MNQ | JN52: MENB | KD52: HPV9 | KT52: DF | LJ52: HEPA | LZ52: EBZR | MP52: DTAPIPVHIB | NF52: FLUC3 | NV52: MMRV | OL52: TD | PB52: FLUN4 | PR52: ANTH | QH52: TYP | QX52: PNC20 | RN52: HIBV
A53: 12 | B53: COVID19 | C53: 7 | D53: 3 | E53: 4 | H53: 4 | I53: 2 | J53: 2 | M53: 3 | N53: 1 | O53: 2 | R53: VARZOS | AH53: UNK | AI53: 1 | AN53: 1 | AX53: FLU4 | BN53: FLUX | CD53: TDAP | CT53: FLUR4 | DJ53: VARCEL | DZ53: PPV | EP53: IPV | FF53: HEP | FV53: MMR | GL53: FLUC4 | HB53: DTAP | HR53: FLUA4 | IH53: DTAPIPV | IX53: MNQ | JN53: MENB | KD53: HPV9 | KT53: DF | LJ53: HEPA | LZ53: EBZR | MP53: DTAPIPVHIB | NF53: FLUC3 | NV53: MMRV | OL53: TD | PB53: FLUN4 | PR53: ANTH | QH53: TYP | QX53: PNC20 | RN53: HIBV
A54: 13 | B54: COVID19 | C54: 18 | D54: 6 | E54: 6 | F54: 2 | H54: 7 | I54: 2 | J54: 2 | K54: 1 | M54: 11 | N54: 4 | O54: 4 | P54: 1 | R54: VARZOS | AH54: UNK | AX54: FLU4 | BN54: FLUX | CD54: TDAP | CT54: FLUR4 | DJ54: VARCEL | DZ54: PPV | EP54: IPV | FF54: HEP | FV54: MMR | GL54: FLUC4 | HB54: DTAP | HR54: FLUA4 | IH54: DTAPIPV | IX54: MNQ | JN54: MENB | KD54: HPV9 | KT54: DF | LJ54: HEPA | LZ54: EBZR | MP54: DTAPIPVHIB | NF54: FLUC3 | NV54: MMRV | OL54: TD | PB54: FLUN4 | PR54: ANTH | QH54: TYP | QX54: PNC20 | RN54: HIBV
A55: 14 | B55: COVID19 | C55: 14 | D55: 4 | E55: 7 | F55: 1 | H55: 8 | I55: 1 | J55: 5 | K55: 1 | M55: 5 | N55: 3 | O55: 2 | R55: VARZOS | AH55: UNK | AX55: FLU4 | BN55: FLUX | CD55: TDAP | CT55: FLUR4 | DJ55: VARCEL | DZ55: PPV | EP55: IPV | FF55: HEP | FV55: MMR | GL55: FLUC4 | HB55: DTAP | HR55: FLUA4 | IH55: DTAPIPV | IX55: MNQ | JN55: MENB | KD55: HPV9 | KT55: DF | LJ55: HEPA | LZ55: EBZR | MP55: DTAPIPVHIB | NF55: FLUC3 | NV55: MMRV | OL55: TD | PB55: FLUN4 | PR55: ANTH | QH55: TYP | QX55: PNC20 | RN55: HIBV
A56: 15 | B56: COVID19 | C56: 13 | D56: 6 | E56: 3 | F56: 1 | H56: 7 | I56: 3 | J56: 3 | M56: 6 | N56: 3 | P56: 1 | R56: VARZOS | AH56: UNK | AX56: FLU4 | BN56: FLUX | CD56: TDAP | CT56: FLUR4 | DJ56: VARCEL | DZ56: PPV | EP56: IPV | FF56: HEP | FV56: MMR | GL56: FLUC4 | HB56: DTAP | HR56: FLUA4 | IH56: DTAPIPV | IX56: MNQ | JN56: MENB | KD56: HPV9 | KT56: DF | LJ56: HEPA | LZ56: EBZR | MP56: DTAPIPVHIB | NF56: FLUC3 | NV56: MMRV | OL56: TD | PB56: FLUN4 | PR56: ANTH | QH56: TYP | QX56: PNC20 | RN56: HIBV
A57: 16 | B57: COVID19 | C57: 17 | D57: 9 | E57: 5 | H57: 8 | I57: 5 | J57: 2 | M57: 9 | N57: 4 | O57: 3 | R57: VARZOS | AH57: UNK | AX57: FLU4 | BN57: FLUX | CD57: TDAP | CE57: 1 | CF57: 1 | CJ57: 1 | CK57: 1 | CT57: FLUR4 | DJ57: VARCEL | DK57: 1 | DL57: 1 | DP57: 1 | DQ57: 1 | DZ57: PPV | EP57: IPV | EQ57: 1 | ER57: 1 | EV57: 1 | EW57: 1 | FF57: HEP | FG57: 1 | FH57: 1 | FL57: 1 | FM57: 1 | FV57: MMR | FW57: 1 | FX57: 1 | GB57: 1 | GC57: 1 | GL57: FLUC4 | HB57: DTAP | HR57: FLUA4 | IH57: DTAPIPV | IX57: MNQ | IY57: 1 | IZ57: 1 | JD57: 1 | JE57: 1 | JN57: MENB | KD57: HPV9 | KE57: 1 | KF57: 1 | KJ57: 1 | KK57: 1 | KT57: DF | LJ57: HEPA | LK57: 1 | LL57: 1 | LP57: 1 | LQ57: 1 | LZ57: EBZR | MP57: DTAPIPVHIB | NF57: FLUC3 | NV57: MMRV | OL57: TD | PB57: FLUN4 | PR57: ANTH | QH57: TYP | QX57: PNC20 | RN57: HIBV
A58: 17 | B58: COVID19 | C58: 16 | D58: 8 | E58: 4 | H58: 11 | I58: 6 | J58: 3 | M58: 5 | N58: 2 | O58: 1 | R58: VARZOS | AH58: UNK | AX58: FLU4 | BN58: FLUX | CD58: TDAP | CT58: FLUR4 | DJ58: VARCEL | DK58: 1 | DL58: 1 | DU58: 1 | DV58: 1 | DZ58: PPV | EP58: IPV | FF58: HEP | FV58: MMR | FW58: 1 | FX58: 1 | GG58: 1 | GH58: 1 | GL58: FLUC4 | HB58: DTAP | HR58: FLUA4 | IH58: DTAPIPV | IX58: MNQ | JN58: MENB | KD58: HPV9 | KT58: DF | LJ58: HEPA | LZ58: EBZR | MP58: DTAPIPVHIB | NF58: FLUC3 | NV58: MMRV | OL58: TD | PB58: FLUN4 | PR58: ANTH | QH58: TYP | QX58: PNC20 | RN58: HIBV
A59: 18 | B59: COVID19 | C59: 12 | D59: 7 | E59: 1 | F59: 1 | H59: 4 | I59: 2 | M59: 8 | N59: 5 | O59: 1 | P59: 1 | R59: VARZOS | AH59: UNK | AX59: FLU4 | BN59: FLUX | CD59: TDAP | CT59: FLUR4 | DJ59: VARCEL | DZ59: PPV | EP59: IPV | FF59: HEP | FV59: MMR | GL59: FLUC4 | HB59: DTAP | HR59: FLUA4 | IH59: DTAPIPV | IX59: MNQ | IY59: 1 | JA59: 1 | JI59: 1 | JK59: 1 | JN59: MENB | JO59: 1 | JP59: 1 | JY59: 1 | JZ59: 1 | KD59: HPV9 | KT59: DF | KU59: 1 | KV59: 1 | LE59: 1 | LF59: 1 | LJ59: HEPA | LZ59: EBZR | MP59: DTAPIPVHIB | NF59: FLUC3 | NV59: MMRV | OL59: TD | PB59: FLUN4 | PR59: ANTH | QH59: TYP | QX59: PNC20 | RN59: HIBV
A60: 19 | B60: COVID19 | C60: 19 | D60: 7 | E60: 7 | F60: 1 | H60: 8 | I60: 2 | J60: 4 | M60: 11 | N60: 5 | O60: 3 | P60: 1 | R60: VARZOS | AH60: UNK | AI60: 1 | AS60: 1 | AX60: FLU4 | BN60: FLUX | CD60: TDAP | CT60: FLUR4 | DJ60: VARCEL | DZ60: PPV | EP60: IPV | FF60: HEP | FV60: MMR | GL60: FLUC4 | HB60: DTAP | HR60: FLUA4 | IH60: DTAPIPV | IX60: MNQ | JN60: MENB | KD60: HPV9 | KT60: DF | LJ60: HEPA | LZ60: EBZR | MP60: DTAPIPVHIB | NF60: FLUC3 | NV60: MMRV | OL60: TD | PB60: FLUN4 | PR60: ANTH | QH60: TYP | QX60: PNC20 | RN60: HIBV
A61: 20 | B61: COVID19 | C61: 16 | D61: 11 | E61: 2 | H61: 4 | I61: 2 | J61: 1 | M61: 12 | N61: 9 | O61: 1 | R61: VARZOS | AH61: UNK | AX61: FLU4 | AY61: 1 | BA61: 1 | BI61: 1 | BK61: 1 | BN61: FLUX | CD61: TDAP | CT61: FLUR4 | DJ61: VARCEL | DK61: 1 | DL61: 1 | DU61: 1 | DV61: 1 | DZ61: PPV | EP61: IPV | FF61: HEP | FV61: MMR | GL61: FLUC4 | HB61: DTAP | HR61: FLUA4 | IH61: DTAPIPV | IX61: MNQ | JN61: MENB | JO61: 1 | JP61: 1 | JY61: 1 | JZ61: 1 | KD61: HPV9 | KE61: 1 | KF61: 1 | KO61: 1 | KP61: 1 | KT61: DF | LJ61: HEPA | LZ61: EBZR | MP61: DTAPIPVHIB | NF61: FLUC3 | NV61: MMRV | OL61: TD | PB61: FLUN4 | PR61: ANTH | QH61: TYP | QX61: PNC20 | RN61: HIBV
A62: 21 | B62: COVID19 | C62: 33 | D62: 22 | E62: 7 | H62: 11 | I62: 7 | J62: 2 | M62: 22 | N62: 15 | O62: 5 | R62: VARZOS | AH62: UNK | AX62: FLU4 | AY62: 2 | AZ62: 1 | BI62: 2 | BJ62: 1 | BN62: FLUX | CD62: TDAP | CT62: FLUR4 | DJ62: VARCEL | DZ62: PPV | EP62: IPV | FF62: HEP | FV62: MMR | GL62: FLUC4 | HB62: DTAP | HR62: FLUA4 | IH62: DTAPIPV | IX62: MNQ | JN62: MENB | KD62: HPV9 | KT62: DF | LJ62: HEPA | LZ62: EBZR | MP62: DTAPIPVHIB | NF62: FLUC3 | NV62: MMRV | OL62: TD | PB62: FLUN4 | PR62: ANTH | QH62: TYP | QX62: PNC20 | RN62: HIBV
A63: 22 | B63: COVID19 | C63: 28 | D63: 14 | E63: 7 | H63: 12 | I63: 6 | J63: 3 | M63: 16 | N63: 8 | O63: 4 | R63: VARZOS | AH63: UNK | AX63: FLU4 | BN63: FLUX | CD63: TDAP | CT63: FLUR4 | DJ63: VARCEL | DZ63: PPV | EP63: IPV | FF63: HEP | FV63: MMR | FW63: 1 | FX63: 1 | GG63: 1 | GH63: 1 | GL63: FLUC4 | HB63: DTAP | HR63: FLUA4 | IH63: DTAPIPV | IX63: MNQ | JN63: MENB | KD63: HPV9 | KT63: DF | LJ63: HEPA | LZ63: EBZR | MP63: DTAPIPVHIB | NF63: FLUC3 | NV63: MMRV | OL63: TD | PB63: FLUN4 | PR63: ANTH | QH63: TYP | QX63: PNC20 | RN63: HIBV
A64: 23 | B64: COVID19 | C64: 24 | D64: 9 | E64: 13 | F64: 1 | H64: 9 | I64: 7 | J64: 2 | M64: 15 | N64: 2 | O64: 11 | P64: 1 | R64: VARZOS | AH64: UNK | AX64: FLU4 | BN64: FLUX | CD64: TDAP | CT64: FLUR4 | DJ64: VARCEL | DZ64: PPV | EP64: IPV | FF64: HEP | FV64: MMR | GL64: FLUC4 | HB64: DTAP | HR64: FLUA4 | IH64: DTAPIPV | IX64: MNQ | JN64: MENB | KD64: HPV9 | KT64: DF | LJ64: HEPA | LZ64: EBZR | MP64: DTAPIPVHIB | NF64: FLUC3 | NV64: MMRV | OL64: TD | PB64: FLUN4 | PR64: ANTH | QH64: TYP | QX64: PNC20 | RN64: HIBV
A65: 24 | B65: COVID19 | C65: 22 | D65: 12 | E65: 6 | H65: 12 | I65: 5 | J65: 4 | M65: 10 | N65: 7 | O65: 2 | R65: VARZOS | AH65: UNK | AI65: 1 | AS65: 1 | AX65: FLU4 | BN65: FLUX | CD65: TDAP | CT65: FLUR4 | DJ65: VARCEL | DZ65: PPV | EP65: IPV | FF65: HEP | FV65: MMR | GL65: FLUC4 | HB65: DTAP | HR65: FLUA4 | IH65: DTAPIPV | IX65: MNQ | JN65: MENB | KD65: HPV9 | KT65: DF | LJ65: HEPA | LZ65: EBZR | MP65: DTAPIPVHIB | NF65: FLUC3 | NV65: MMRV | OL65: TD | PB65: FLUN4 | PR65: ANTH | QH65: TYP | QX65: PNC20 | RN65: HIBV
A66: 25 | B66: COVID19 | C66: 41 | D66: 25 | E66: 12 | F66: 1 | H66: 22 | I66: 13 | J66: 7 | K66: 1 | M66: 19 | N66: 12 | O66: 5 | R66: VARZOS | AH66: UNK | AI66: 1 | AJ66: 1 | AN66: 1 | AO66: 1 | AX66: FLU4 | BN66: FLUX | CD66: TDAP | CE66: 2 | CF66: 2 | CO66: 2 | CP66: 2 | CT66: FLUR4 | DJ66: VARCEL | DZ66: PPV | EP66: IPV | FF66: HEP | FV66: MMR | GL66: FLUC4 | HB66: DTAP | HR66: FLUA4 | IH66: DTAPIPV | IX66: MNQ | JN66: MENB | KD66: HPV9 | KT66: DF | LJ66: HEPA | LZ66: EBZR | MP66: DTAPIPVHIB | NF66: FLUC3 | NV66: MMRV | OL66: TD | PB66: FLUN4 | PR66: ANTH | QH66: TYP | QX66: PNC20 | RN66: HIBV
A67: 26 | B67: COVID19 | C67: 42 | D67: 18 | E67: 12 | F67: 1 | H67: 8 | I67: 3 | J67: 2 | M67: 34 | N67: 15 | O67: 10 | P67: 1 | R67: VARZOS | AH67: UNK | AX67: FLU4 | AY67: 1 | BI67: 1 | BN67: FLUX | CD67: TDAP | CT67: FLUR4 | DJ67: VARCEL | DZ67: PPV | EP67: IPV | FF67: HEP | FV67: MMR | GL67: FLUC4 | HB67: DTAP | HR67: FLUA4 | IH67: DTAPIPV | IX67: MNQ | JN67: MENB | KD67: HPV9 | KT67: DF | LJ67: HEPA | LZ67: EBZR | MP67: DTAPIPVHIB | NF67: FLUC3 | NV67: MMRV | OL67: TD | PB67: FLUN4 | PR67: ANTH | QH67: TYP | QX67: PNC20 | RN67: HIBV
A68: 27 | B68: COVID19 | C68: 56 | D68: 31 | E68: 15 | H68: 29 | I68: 19 | J68: 5 | M68: 26 | N68: 11 | O68: 10 | R68: VARZOS | AH68: UNK | AX68: FLU4 | BN68: FLUX | CD68: TDAP | CT68: FLUR4 | DJ68: VARCEL | DZ68: PPV | EP68: IPV | FF68: HEP | FV68: MMR | GL68: FLUC4 | HB68: DTAP | HR68: FLUA4 | IH68: DTAPIPV | IX68: MNQ | JN68: MENB | KD68: HPV9 | KT68: DF | LJ68: HEPA | LZ68: EBZR | MP68: DTAPIPVHIB | NF68: FLUC3 | NV68: MMRV | OL68: TD | PB68: FLUN4 | PR68: ANTH | QH68: TYP | QX68: PNC20 | RN68: HIBV
A69: 28 | B69: COVID19 | C69: 52 | D69: 22 | E69: 23 | H69: 23 | I69: 13 | J69: 6 | M69: 29 | N69: 9 | O69: 17 | R69: VARZOS | AH69: UNK | AX69: FLU4 | BN69: FLUX | CD69: TDAP | CT69: FLUR4 | DJ69: VARCEL | DZ69: PPV | EP69: IPV | FF69: HEP | FV69: MMR | GL69: FLUC4 | HB69: DTAP | HR69: FLUA4 | IH69: DTAPIPV | IX69: MNQ | JN69: MENB | KD69: HPV9 | KT69: DF | LJ69: HEPA | LZ69: EBZR | MP69: DTAPIPVHIB | NF69: FLUC3 | NV69: MMRV | OL69: TD | PB69: FLUN4 | PR69: ANTH | QH69: TYP | QX69: PNC20 | RN69: HIBV
A70: 29 | B70: COVID19 | C70: 41 | D70: 20 | E70: 15 | F70: 3 | H70: 8 | I70: 2 | J70: 2 | K70: 2 | M70: 33 | N70: 18 | O70: 13 | P70: 1 | R70: VARZOS | AH70: UNK | AX70: FLU4 | BN70: FLUX | CD70: TDAP | CT70: FLUR4 | DJ70: VARCEL | DZ70: PPV | EP70: IPV | FF70: HEP | FV70: MMR | GL70: FLUC4 | GM70: 1 | GW70: 1 | HB70: DTAP | HR70: FLUA4 | IH70: DTAPIPV | IX70: MNQ | JN70: MENB | KD70: HPV9 | KT70: DF | LJ70: HEPA | LZ70: EBZR | MP70: DTAPIPVHIB | NF70: FLUC3 | NV70: MMRV | OL70: TD | PB70: FLUN4 | PR70: ANTH | QH70: TYP | QX70: PNC20 | RN70: HIBV
A71: 30 | B71: COVID19 | C71: 58 | D71: 27 | E71: 21 | F71: 3 | H71: 33 | I71: 18 | J71: 13 | K71: 1 | M71: 22 | N71: 9 | O71: 8 | P71: 2 | R71: VARZOS | AH71: UNK | AI71: 2 | AJ71: 1 | AN71: 1 | AS71: 1 | AT71: 1 | AX71: FLU4 | AY71: 1 | AZ71: 1 | BI71: 1 | BJ71: 1 | BN71: FLUX | BO71: 1 | BT71: 1 | CD71: TDAP | CT71: FLUR4 | DJ71: VARCEL | DZ71: PPV | EP71: IPV | FF71: HEP | FV71: MMR | GL71: FLUC4 | HB71: DTAP | HR71: FLUA4 | IH71: DTAPIPV | IX71: MNQ | JN71: MENB | KD71: HPV9 | KT71: DF | LJ71: HEPA | LZ71: EBZR | MP71: DTAPIPVHIB | NF71: FLUC3 | NV71: MMRV | OL71: TD | PB71: FLUN4 | PC71: 1 | PM71: 1 | PR71: ANTH | QH71: TYP | QX71: PNC20 | RN71: HIBV
A72: 31 | B72: COVID19 | C72: 54 | D72: 20 | E72: 24 | F72: 2 | H72: 29 | I72: 11 | J72: 11 | K72: 1 | M72: 25 | N72: 9 | O72: 13 | P72: 1 | R72: VARZOS | AH72: UNK | AI72: 1 | AN72: 1 | AX72: FLU4 | AY72: 2 | AZ72: 1 | BI72: 2 | BJ72: 1 | BN72: FLUX | CD72: TDAP | CT72: FLUR4 | DJ72: VARCEL | DZ72: PPV | EP72: IPV | FF72: HEP | FV72: MMR | GL72: FLUC4 | HB72: DTAP | HR72: FLUA4 | IH72: DTAPIPV | IX72: MNQ | JN72: MENB | KD72: HPV9 | KT72: DF | LJ72: HEPA | LZ72: EBZR | MP72: DTAPIPVHIB | NF72: FLUC3 | NV72: MMRV | OL72: TD | PB72: FLUN4 | PR72: ANTH | QH72: TYP | QX72: PNC20 | RN72: HIBV
A73: 32 | B73: COVID19 | C73: 53 | D73: 17 | E73: 20 | F73: 5 | H73: 24 | I73: 7 | J73: 10 | K73: 4 | M73: 29 | N73: 10 | O73: 10 | P73: 1 | R73: VARZOS | AH73: UNK | AX73: FLU4 | AY73: 1 | BI73: 1 | BN73: FLUX | BO73: 1 | BP73: 1 | BY73: 1 | BZ73: 1 | CD73: TDAP | CE73: 1 | CF73: 1 | CO73: 1 | CP73: 1 | CT73: FLUR4 | DJ73: VARCEL | DZ73: PPV | EP73: IPV | FF73: HEP | FV73: MMR | GL73: FLUC4 | GM73: 1 | GN73: 1 | GR73: 1 | GS73: 1 | HB73: DTAP | HR73: FLUA4 | IH73: DTAPIPV | IX73: MNQ | JN73: MENB | KD73: HPV9 | KT73: DF | LJ73: HEPA | LZ73: EBZR | MP73: DTAPIPVHIB | NF73: FLUC3 | NV73: MMRV | OL73: TD | PB73: FLUN4 | PR73: ANTH | QH73: TYP | QX73: PNC20 | RN73: HIBV
A74: 33 | B74: COVID19 | C74: 59 | D74: 33 | E74: 21 | F74: 1 | H74: 22 | I74: 11 | J74: 8 | M74: 35 | N74: 20 | O74: 13 | P74: 1 | R74: VARZOS | AH74: UNK | AI74: 1 | AS74: 1 | AX74: FLU4 | BN74: FLUX | CD74: TDAP | CT74: FLUR4 | DJ74: VARCEL | DZ74: PPV | EP74: IPV | FF74: HEP | FV74: MMR | GL74: FLUC4 | HB74: DTAP | HC74: 1 | HD74: 1 | HM74: 1 | HN74: 1 | HR74: FLUA4 | IH74: DTAPIPV | IX74: MNQ | JN74: MENB | KD74: HPV9 | KT74: DF | LJ74: HEPA | LZ74: EBZR | MP74: DTAPIPVHIB | NF74: FLUC3 | NV74: MMRV | OL74: TD | PB74: FLUN4 | PR74: ANTH | QH74: TYP | QX74: PNC20 | RN74: HIBV
A75: 34 | B75: COVID19 | C75: 79 | D75: 37 | E75: 27 | F75: 6 | H75: 27 | I75: 14 | J75: 7 | K75: 2 | M75: 52 | N75: 23 | O75: 20 | P75: 4 | R75: VARZOS | AH75: UNK | AI75: 1 | AK75: 1 | AS75: 1 | AU75: 1 | AX75: FLU4 | BN75: FLUX | CD75: TDAP | CT75: FLUR4 | DJ75: VARCEL | DZ75: PPV | EP75: IPV | FF75: HEP | FV75: MMR | GL75: FLUC4 | HB75: DTAP | HR75: FLUA4 | IH75: DTAPIPV | IX75: MNQ | JN75: MENB | KD75: HPV9 | KT75: DF | LJ75: HEPA | LZ75: EBZR | MP75: DTAPIPVHIB | NF75: FLUC3 | NV75: MMRV | OL75: TD | PB75: FLUN4 | PR75: ANTH | QH75: TYP | QX75: PNC20 | RN75: HIBV
A76: 35 | B76: COVID19 | C76: 68 | D76: 32 | E76: 24 | F76: 4 | H76: 28 | I76: 12 | J76: 10 | K76: 1 | M76: 39 | N76: 20 | O76: 14 | P76: 2 | R76: VARZOS | AH76: UNK | AI76: 1 | AN76: 1 | AX76: FLU4 | AY76: 3 | AZ76: 2 | BD76: 1 | BE76: 1 | BI76: 2 | BJ76: 1 | BN76: FLUX | CD76: TDAP | CE76: 2 | CO76: 2 | CT76: FLUR4 | CU76: 1 | CV76: 1 | DJ76: VARCEL | DZ76: PPV | EP76: IPV | FF76: HEP | FV76: MMR | GL76: FLUC4 | HB76: DTAP | HR76: FLUA4 | IH76: DTAPIPV | IX76: MNQ | JN76: MENB | KD76: HPV9 | KT76: DF | LJ76: HEPA | LZ76: EBZR | MP76: DTAPIPVHIB | NF76: FLUC3 | NV76: MMRV | OL76: TD | PB76: FLUN4 | PR76: ANTH | QH76: TYP | QX76: PNC20 | RN76: HIBV
A77: 36 | B77: COVID19 | C77: 69 | D77: 43 | E77: 14 | F77: 2 | H77: 29 | I77: 16 | J77: 6 | K77: 1 | M77: 40 | N77: 27 | O77: 8 | P77: 1 | R77: VARZOS | AH77: UNK | AX77: FLU4 | AY77: 1 | AZ77: 1 | BD77: 1 | BE77: 1 | BN77: FLUX | CD77: TDAP | CT77: FLUR4 | DJ77: VARCEL | DZ77: PPV | EP77: IPV | FF77: HEP | FV77: MMR | GL77: FLUC4 | HB77: DTAP | HC77: 1 | HM77: 1 | HR77: FLUA4 | IH77: DTAPIPV | IX77: MNQ | JN77: MENB | KD77: HPV9 | KT77: DF | LJ77: HEPA | LZ77: EBZR | MP77: DTAPIPVHIB | NF77: FLUC3 | NV77: MMRV | OL77: TD | PB77: FLUN4 | PR77: ANTH | QH77: TYP | QX77: PNC20 | RN77: HIBV
A78: 37 | B78: COVID19 | C78: 79 | D78: 45 | E78: 26 | F78: 3 | H78: 29 | I78: 17 | J78: 10 | M78: 50 | N78: 28 | O78: 16 | P78: 3 | R78: VARZOS | AH78: UNK | AX78: FLU4 | AY78: 1 | AZ78: 1 | BI78: 1 | BJ78: 1 | BN78: FLUX | CD78: TDAP | CT78: FLUR4 | DJ78: VARCEL | DZ78: PPV | EP78: IPV | EQ78: 1 | ES78: 1 | FA78: 1 | FC78: 1 | FF78: HEP | FV78: MMR | GL78: FLUC4 | HB78: DTAP | HR78: FLUA4 | IH78: DTAPIPV | IX78: MNQ | JN78: MENB | KD78: HPV9 | KT78: DF | LJ78: HEPA | LZ78: EBZR | MP78: DTAPIPVHIB | NF78: FLUC3 | NV78: MMRV | OL78: TD | PB78: FLUN4 | PR78: ANTH | PS78: 1 | PV78: 1 | QC78: 1 | QF78: 1 | QH78: TYP | QI78: 1 | QK78: 1 | QS78: 1 | QU78: 1 | QX78: PNC20 | RN78: HIBV
A79: 38 | B79: COVID19 | C79: 72 | D79: 27 | E79: 24 | F79: 2 | H79: 26 | I79: 10 | J79: 10 | K79: 1 | M79: 45 | N79: 16 | O79: 14 | P79: 1 | R79: VARZOS | AH79: UNK | AI79: 1 | AN79: 1 | AX79: FLU4 | AY79: 2 | BD79: 2 | BN79: FLUX | CD79: TDAP | CT79: FLUR4 | DJ79: VARCEL | DZ79: PPV | EP79: IPV | FF79: HEP | FV79: MMR | GL79: FLUC4 | HB79: DTAP | HR79: FLUA4 | IH79: DTAPIPV | IX79: MNQ | JN79: MENB | KD79: HPV9 | KT79: DF | LJ79: HEPA | LZ79: EBZR | MP79: DTAPIPVHIB | NF79: FLUC3 | NV79: MMRV | OL79: TD | PB79: FLUN4 | PR79: ANTH | QH79: TYP | QX79: PNC20 | RN79: HIBV
A80: 39 | B80: COVID19 | C80: 78 | D80: 46 | E80: 20 | F80: 3 | H80: 27 | I80: 16 | J80: 5 | K80: 1 | M80: 51 | N80: 30 | O80: 15 | P80: 2 | R80: VARZOS | AH80: UNK | AX80: FLU4 | AY80: 2 | BD80: 2 | BN80: FLUX | CD80: TDAP | CT80: FLUR4 | DJ80: VARCEL | DZ80: PPV | EP80: IPV | FF80: HEP | FV80: MMR | GL80: FLUC4 | HB80: DTAP | HR80: FLUA4 | IH80: DTAPIPV | IX80: MNQ | JN80: MENB | KD80: HPV9 | KT80: DF | LJ80: HEPA | LZ80: EBZR | MP80: DTAPIPVHIB | NF80: FLUC3 | NV80: MMRV | OL80: TD | PB80: FLUN4 | PR80: ANTH | QH80: TYP | QX80: PNC20 | RN80: HIBV
A81: 40 | B81: COVID19 | C81: 74 | D81: 37 | E81: 20 | F81: 5 | H81: 35 | I81: 18 | J81: 8 | K81: 2 | M81: 39 | N81: 19 | O81: 12 | P81: 3 | R81: VARZOS | AH81: UNK | AX81: FLU4 | AY81: 1 | BI81: 1 | BN81: FLUX | CD81: TDAP | CT81: FLUR4 | DJ81: VARCEL | DZ81: PPV | EP81: IPV | FF81: HEP | FV81: MMR | GL81: FLUC4 | HB81: DTAP | HR81: FLUA4 | IH81: DTAPIPV | IX81: MNQ | JN81: MENB | KD81: HPV9 | KT81: DF | LJ81: HEPA | LZ81: EBZR | MP81: DTAPIPVHIB | NF81: FLUC3 | NV81: MMRV | OL81: TD | PB81: FLUN4 | PR81: ANTH | QH81: TYP | QX81: PNC20 | RN81: HIBV
A82: 41 | B82: COVID19 | C82: 83 | D82: 48 | E82: 25 | F82: 3 | H82: 34 | I82: 20 | J82: 11 | K82: 1 | M82: 48 | N82: 28 | O82: 14 | P82: 2 | R82: VARZOS | AH82: UNK | AI82: 3 | AK82: 1 | AN82: 3 | AP82: 1 | AX82: FLU4 | AY82: 1 | AZ82: 1 | BI82: 1 | BJ82: 1 | BN82: FLUX | CD82: TDAP | CT82: FLUR4 | DJ82: VARCEL | DZ82: PPV | EP82: IPV | FF82: HEP | FV82: MMR | GL82: FLUC4 | HB82: DTAP | HR82: FLUA4 | IH82: DTAPIPV | IX82: MNQ | JN82: MENB | KD82: HPV9 | KT82: DF | LJ82: HEPA | LZ82: EBZR | MP82: DTAPIPVHIB | NF82: FLUC3 | NV82: MMRV | OL82: TD | PB82: FLUN4 | PR82: ANTH | QH82: TYP | QX82: PNC20 | RN82: HIBV
A83: 42 | B83: COVID19 | C83: 94 | D83: 39 | E83: 35 | F83: 4 | H83: 47 | I83: 26 | J83: 14 | K83: 2 | M83: 47 | N83: 13 | O83: 21 | P83: 2 | R83: VARZOS | AH83: UNK | AX83: FLU4 | BN83: FLUX | CD83: TDAP | CT83: FLUR4 | DJ83: VARCEL | DZ83: PPV | EP83: IPV | FF83: HEP | FV83: MMR | GL83: FLUC4 | HB83: DTAP | HR83: FLUA4 | IH83: DTAPIPV | IX83: MNQ | JN83: MENB | KD83: HPV9 | KT83: DF | LJ83: HEPA | LZ83: EBZR | MP83: DTAPIPVHIB | NF83: FLUC3 | NV83: MMRV | OL83: TD | PB83: FLUN4 | PR83: ANTH | QH83: TYP | QX83: PNC20 | RN83: HIBV
A84: 43 | B84: COVID19 | C84: 84 | D84: 44 | E84: 26 | F84: 4 | H84: 33 | I84: 17 | J84: 9 | M84: 50 | N84: 27 | O84: 17 | P84: 4 | R84: VARZOS | AH84: UNK | AX84: FLU4 | BN84: FLUX | CD84: TDAP | CT84: FLUR4 | DJ84: VARCEL | DZ84: PPV | EP84: IPV | FF84: HEP | FV84: MMR | GL84: FLUC4 | HB84: DTAP | HR84: FLUA4 | IH84: DTAPIPV | IX84: MNQ | JN84: MENB | KD84: HPV9 | KT84: DF | LJ84: HEPA | LZ84: EBZR | MP84: DTAPIPVHIB | NF84: FLUC3 | NV84: MMRV | OL84: TD | PB84: FLUN4 | PR84: ANTH | QH84: TYP | QX84: PNC20 | RN84: HIBV
A85: 44 | B85: COVID19 | C85: 65 | D85: 33 | E85: 20 | F85: 5 | H85: 36 | I85: 17 | J85: 11 | K85: 3 | M85: 29 | N85: 16 | O85: 9 | P85: 2 | R85: VARZOS | AH85: UNK | AI85: 1 | AK85: 1 | AS85: 1 | AU85: 1 | AX85: FLU4 | AY85: 1 | BI85: 1 | BN85: FLUX | CD85: TDAP | CT85: FLUR4 | DJ85: VARCEL | DZ85: PPV | EP85: IPV | FF85: HEP | FV85: MMR | GL85: FLUC4 | HB85: DTAP | HR85: FLUA4 | IH85: DTAPIPV | IX85: MNQ | JN85: MENB | KD85: HPV9 | KT85: DF | LJ85: HEPA | LZ85: EBZR | MP85: DTAPIPVHIB | NF85: FLUC3 | NV85: MMRV | OL85: TD | PB85: FLUN4 | PR85: ANTH | QH85: TYP | QX85: PNC20 | RN85: HIBV
A86: 45 | B86: COVID19 | C86: 80 | D86: 31 | E86: 26 | F86: 4 | H86: 39 | I86: 14 | J86: 9 | K86: 2 | M86: 41 | N86: 17 | O86: 17 | P86: 2 | R86: VARZOS | AH86: UNK | AX86: FLU4 | AY86: 1 | AZ86: 1 | BI86: 1 | BJ86: 1 | BN86: FLUX | CD86: TDAP | CT86: FLUR4 | DJ86: VARCEL | DZ86: PPV | EP86: IPV | FF86: HEP | FV86: MMR | GL86: FLUC4 | HB86: DTAP | HR86: FLUA4 | IH86: DTAPIPV | IX86: MNQ | JN86: MENB | KD86: HPV9 | KT86: DF | LJ86: HEPA | LZ86: EBZR | MP86: DTAPIPVHIB | NF86: FLUC3 | NV86: MMRV | OL86: TD | PB86: FLUN4 | PR86: ANTH | QH86: TYP | QX86: PNC20 | RN86: HIBV
A87: 46 | B87: COVID19 | C87: 86 | D87: 49 | E87: 23 | F87: 4 | H87: 41 | I87: 24 | J87: 10 | K87: 3 | M87: 45 | N87: 25 | O87: 13 | P87: 1 | R87: VARZOS | AH87: UNK | AX87: FLU4 | BN87: FLUX | CD87: TDAP | CT87: FLUR4 | CU87: 1 | DE87: 1 | DJ87: VARCEL | DZ87: PPV | EP87: IPV | FF87: HEP | FV87: MMR | GL87: FLUC4 | HB87: DTAP | HR87: FLUA4 | IH87: DTAPIPV | IX87: MNQ | JN87: MENB | KD87: HPV9 | KT87: DF | LJ87: HEPA | LZ87: EBZR | MP87: DTAPIPVHIB | NF87: FLUC3 | NV87: MMRV | OL87: TD | PB87: FLUN4 | PR87: ANTH | QH87: TYP | QX87: PNC20 | RN87: HIBV
A88: 47 | B88: COVID19 | C88: 74 | D88: 37 | E88: 24 | F88: 5 | H88: 34 | I88: 14 | J88: 15 | K88: 2 | M88: 40 | N88: 23 | O88: 9 | P88: 3 | R88: VARZOS | AH88: UNK | AX88: FLU4 | BN88: FLUX | CD88: TDAP | CT88: FLUR4 | DJ88: VARCEL | DZ88: PPV | EP88: IPV | FF88: HEP | FV88: MMR | GL88: FLUC4 | HB88: DTAP | HR88: FLUA4 | IH88: DTAPIPV | IX88: MNQ | JN88: MENB | KD88: HPV9 | KT88: DF | LJ88: HEPA | LZ88: EBZR | MP88: DTAPIPVHIB | NF88: FLUC3 | NV88: MMRV | OL88: TD | PB88: FLUN4 | PR88: ANTH | QH88: TYP | QX88: PNC20 | RN88: HIBV
A89: 48 | B89: COVID19 | C89: 72 | D89: 39 | E89: 27 | F89: 1 | H89: 29 | I89: 14 | J89: 14 | M89: 43 | N89: 25 | O89: 13 | P89: 1 | R89: VARZOS | AH89: UNK | AX89: FLU4 | AY89: 1 | AZ89: 1 | BI89: 1 | BJ89: 1 | BN89: FLUX | CD89: TDAP | CT89: FLUR4 | DJ89: VARCEL | DZ89: PPV | EP89: IPV | FF89: HEP | FV89: MMR | GL89: FLUC4 | HB89: DTAP | HR89: FLUA4 | IH89: DTAPIPV | IX89: MNQ | JN89: MENB | KD89: HPV9 | KT89: DF | LJ89: HEPA | LZ89: EBZR | MP89: DTAPIPVHIB | NF89: FLUC3 | NV89: MMRV | OL89: TD | PB89: FLUN4 | PR89: ANTH | QH89: TYP | QX89: PNC20 | RN89: HIBV
A90: 49 | B90: COVID19 | C90: 86 | D90: 50 | E90: 20 | F90: 5 | H90: 46 | I90: 29 | J90: 10 | K90: 2 | M90: 40 | N90: 21 | O90: 10 | P90: 3 | R90: VARZOS | AH90: UNK | AI90: 2 | AN90: 1 | AS90: 1 | AX90: FLU4 | BN90: FLUX | BO90: 1 | BP90: 1 | BT90: 1 | BU90: 1 | CD90: TDAP | CT90: FLUR4 | DJ90: VARCEL | DZ90: PPV | EP90: IPV | FF90: HEP | FV90: MMR | GL90: FLUC4 | HB90: DTAP | HR90: FLUA4 | IH90: DTAPIPV | IX90: MNQ | JN90: MENB | KD90: HPV9 | KT90: DF | LJ90: HEPA | LZ90: EBZR | MP90: DTAPIPVHIB | NF90: FLUC3 | NG90: 1 | NQ90: 1 | NV90: MMRV | OL90: TD | PB90: FLUN4 | PR90: ANTH | QH90: TYP | QX90: PNC20 | RN90: HIBV
A91: 50 | B91: COVID19 | C91: 113 | D91: 59 | E91: 31 | F91: 5 | G91: 1 | H91: 50 | I91: 26 | J91: 13 | K91: 3 | M91: 62 | N91: 33 | O91: 17 | P91: 2 | Q91: 1 | R91: VARZOS | AH91: UNK | AI91: 1 | AJ91: 1 | AS91: 1 | AT91: 1 | AX91: FLU4 | AY91: 1 | BI91: 1 | BN91: FLUX | CD91: TDAP | CE91: 1 | CO91: 1 | CT91: FLUR4 | DJ91: VARCEL | DZ91: PPV | EP91: IPV | FF91: HEP | FV91: MMR | GL91: FLUC4 | HB91: DTAP | HR91: FLUA4 | IH91: DTAPIPV | IX91: MNQ | JN91: MENB | KD91: HPV9 | KT91: DF | LJ91: HEPA | LZ91: EBZR | MP91: DTAPIPVHIB | NF91: FLUC3 | NV91: MMRV | OL91: TD | PB91: FLUN4 | PR91: ANTH | QH91: TYP | QX91: PNC20 | RN91: HIBV
A92: 51 | B92: COVID19 | C92: 106 | D92: 54 | E92: 29 | F92: 6 | H92: 46 | I92: 23 | J92: 11 | K92: 3 | M92: 59 | N92: 31 | O92: 17 | P92: 3 | R92: VARZOS | S92: 3 | T92: 3 | X92: 1 | Y92: 1 | AC92: 2 | AD92: 2 | AH92: UNK | AX92: FLU4 | BN92: FLUX | CD92: TDAP | CT92: FLUR4 | DJ92: VARCEL | DZ92: PPV | EP92: IPV | FF92: HEP | FV92: MMR | GL92: FLUC4 | HB92: DTAP | HR92: FLUA4 | IH92: DTAPIPV | IX92: MNQ | JN92: MENB | KD92: HPV9 | KT92: DF | LJ92: HEPA | LZ92: EBZR | MP92: DTAPIPVHIB | NF92: FLUC3 | NV92: MMRV | OL92: TD | PB92: FLUN4 | PR92: ANTH | QH92: TYP | QX92: PNC20 | QY92: 1 | QZ92: 1 | RD92: 1 | RE92: 1 | RN92: HIBV
A93: 52 | B93: COVID19 | C93: 94 | D93: 47 | E93: 30 | F93: 2 | H93: 46 | I93: 25 | J93: 13 | K93: 2 | M93: 48 | N93: 22 | O93: 17 | R93: VARZOS | S93: 1 | U93: 1 | X93: 1 | Z93: 1 | AH93: UNK | AI93: 1 | AN93: 1 | AX93: FLU4 | AY93: 2 | AZ93: 2 | BD93: 2 | BE93: 2 | BN93: FLUX | CD93: TDAP | CT93: FLUR4 | DJ93: VARCEL | DZ93: PPV | EP93: IPV | FF93: HEP | FV93: MMR | GL93: FLUC4 | HB93: DTAP | HR93: FLUA4 | IH93: DTAPIPV | IX93: MNQ | JN93: MENB | KD93: HPV9 | KT93: DF | LJ93: HEPA | LZ93: EBZR | MP93: DTAPIPVHIB | NF93: FLUC3 | NV93: MMRV | OL93: TD | PB93: FLUN4 | PR93: ANTH | QH93: TYP | QX93: PNC20 | RN93: HIBV
A94: 53 | B94: COVID19 | C94: 104 | D94: 54 | E94: 27 | F94: 6 | H94: 47 | I94: 21 | J94: 13 | K94: 5 | M94: 56 | N94: 32 | O94: 14 | P94: 1 | R94: VARZOS | S94: 3 | T94: 1 | U94: 1 | X94: 2 | Y94: 1 | AC94: 1 | AE94: 1 | AH94: UNK | AX94: FLU4 | BN94: FLUX | CD94: TDAP | CT94: FLUR4 | DJ94: VARCEL | DZ94: PPV | EP94: IPV | FF94: HEP | FV94: MMR | GL94: FLUC4 | HB94: DTAP | HR94: FLUA4 | IH94: DTAPIPV | IX94: MNQ | JN94: MENB | KD94: HPV9 | KT94: DF | LJ94: HEPA | LZ94: EBZR | MP94: DTAPIPVHIB | NF94: FLUC3 | NV94: MMRV | OL94: TD | PB94: FLUN4 | PR94: ANTH | QH94: TYP | QX94: PNC20 | RN94: HIBV
A95: 54 | B95: COVID19 | C95: 76 | D95: 37 | E95: 20 | F95: 6 | H95: 39 | I95: 18 | J95: 10 | K95: 4 | M95: 37 | N95: 19 | O95: 10 | P95: 2 | R95: VARZOS | S95: 1 | T95: 1 | AC95: 1 | AD95: 1 | AH95: UNK | AI95: 4 | AS95: 4 | AX95: FLU4 | AY95: 2 | AZ95: 1 | BD95: 1 | BE95: 1 | BI95: 1 | BN95: FLUX | CD95: TDAP | CT95: FLUR4 | DJ95: VARCEL | DZ95: PPV | EP95: IPV | FF95: HEP | FV95: MMR | GL95: FLUC4 | HB95: DTAP | HR95: FLUA4 | IH95: DTAPIPV | IX95: MNQ | JN95: MENB | KD95: HPV9 | KT95: DF | LJ95: HEPA | LZ95: EBZR | MP95: DTAPIPVHIB | NF95: FLUC3 | NV95: MMRV | OL95: TD | PB95: FLUN4 | PR95: ANTH | QH95: TYP | QX95: PNC20 | RN95: HIBV
A96: 55 | B96: COVID19 | C96: 85 | D96: 40 | E96: 21 | F96: 7 | G96: 1 | H96: 52 | I96: 23 | J96: 13 | K96: 5 | M96: 33 | N96: 17 | O96: 8 | P96: 2 | Q96: 1 | R96: VARZOS | S96: 2 | T96: 1 | X96: 1 | Y96: 1 | AH96: UNK | AX96: FLU4 | BN96: FLUX | CD96: TDAP | CT96: FLUR4 | CU96: 1 | CZ96: 1 | DJ96: VARCEL | DZ96: PPV | EP96: IPV | FF96: HEP | FV96: MMR | GL96: FLUC4 | GM96: 1 | GN96: 1 | GR96: 1 | GS96: 1 | HB96: DTAP | HR96: FLUA4 | IH96: DTAPIPV | IX96: MNQ | JN96: MENB | KD96: HPV9 | KT96: DF | LJ96: HEPA | LZ96: EBZR | MP96: DTAPIPVHIB | NF96: FLUC3 | NV96: MMRV | OL96: TD | PB96: FLUN4 | PR96: ANTH | QH96: TYP | QX96: PNC20 | RN96: HIBV
A97: 56 | B97: COVID19 | C97: 87 | D97: 44 | E97: 24 | F97: 3 | H97: 39 | I97: 18 | J97: 9 | K97: 1 | M97: 48 | N97: 26 | O97: 15 | P97: 2 | R97: VARZOS | S97: 2 | T97: 1 | U97: 1 | X97: 1 | Z97: 1 | AC97: 1 | AD97: 1 | AH97: UNK | AI97: 1 | AS97: 1 | AX97: FLU4 | BN97: FLUX | CD97: TDAP | CT97: FLUR4 | DJ97: VARCEL | DZ97: PPV | EP97: IPV | FF97: HEP | FV97: MMR | GL97: FLUC4 | HB97: DTAP | HR97: FLUA4 | IH97: DTAPIPV | IX97: MNQ | JN97: MENB | KD97: HPV9 | KT97: DF | LJ97: HEPA | LZ97: EBZR | MP97: DTAPIPVHIB | NF97: FLUC3 | NV97: MMRV | OL97: TD | PB97: FLUN4 | PR97: ANTH | QH97: TYP | QX97: PNC20 | RN97: HIBV
A98: 57 | B98: COVID19 | C98: 76 | D98: 38 | E98: 18 | F98: 5 | H98: 30 | I98: 15 | J98: 6 | K98: 2 | M98: 46 | N98: 23 | O98: 12 | P98: 3 | R98: VARZOS | S98: 2 | T98: 1 | AC98: 1 | AD98: 1 | AH98: UNK | AI98: 1 | AL98: 1 | AS98: 1 | AV98: 1 | AX98: FLU4 | AY98: 1 | AZ98: 1 | BD98: 1 | BE98: 1 | BN98: FLUX | BO98: 1 | BT98: 1 | CD98: TDAP | CT98: FLUR4 | DJ98: VARCEL | DZ98: PPV | EP98: IPV | FF98: HEP | FG98: 1 | FL98: 1 | FV98: MMR | GL98: FLUC4 | HB98: DTAP | HR98: FLUA4 | IH98: DTAPIPV | IX98: MNQ | JN98: MENB | KD98: HPV9 | KT98: DF | LJ98: HEPA | LZ98: EBZR | MP98: DTAPIPVHIB | NF98: FLUC3 | NV98: MMRV | OL98: TD | PB98: FLUN4 | PR98: ANTH | QH98: TYP | QX98: PNC20 | RN98: HIBV
A99: 58 | B99: COVID19 | C99: 84 | D99: 38 | E99: 26 | F99: 6 | H99: 44 | I99: 24 | J99: 13 | K99: 2 | M99: 40 | N99: 14 | O99: 13 | P99: 4 | R99: VARZOS | AH99: UNK | AI99: 1 | AN99: 1 | AX99: FLU4 | AY99: 1 | AZ99: 1 | BI99: 1 | BJ99: 1 | BN99: FLUX | CD99: TDAP | CT99: FLUR4 | DJ99: VARCEL | DZ99: PPV | EP99: IPV | FF99: HEP | FV99: MMR | GL99: FLUC4 | HB99: DTAP | HR99: FLUA4 | IH99: DTAPIPV | IX99: MNQ | JN99: MENB | KD99: HPV9 | KT99: DF | LJ99: HEPA | LZ99: EBZR | MP99: DTAPIPVHIB | NF99: FLUC3 | NV99: MMRV | OL99: TD | PB99: FLUN4 | PR99: ANTH | QH99: TYP | QX99: PNC20 | RN99: HIBV
A100: 59 | B100: COVID19 | C100: 68 | D100: 39 | E100: 19 | F100: 3 | H100: 36 | I100: 22 | J100: 9 | K100: 1 | M100: 31 | N100: 16 | O100: 10 | P100: 2 | R100: VARZOS | AH100: UNK | AX100: FLU4 | BN100: FLUX | CD100: TDAP | CT100: FLUR4 | DJ100: VARCEL | DZ100: PPV | EP100: IPV | FF100: HEP | FV100: MMR | GL100: FLUC4 | HB100: DTAP | HR100: FLUA4 | IH100: DTAPIPV | IX100: MNQ | JN100: MENB | KD100: HPV9 | KT100: DF | LJ100: HEPA | LZ100: EBZR | MP100: DTAPIPVHIB | NF100: FLUC3 | NV100: MMRV | OL100: TD | PB100: FLUN4 | PR100: ANTH | QH100: TYP | QX100: PNC20 | RN100: HIBV
A101: 60 | B101: COVID19 | C101: 88 | D101: 36 | E101: 37 | F101: 4 | H101: 36 | I101: 11 | J101: 19 | K101: 3 | M101: 51 | N101: 25 | O101: 18 | R101: VARZOS | S101: 2 | U101: 1 | X101: 1 | Z101: 1 | AC101: 1 | AH101: UNK | AI101: 1 | AN101: 1 | AX101: FLU4 | AY101: 1 | AZ101: 1 | BI101: 1 | BJ101: 1 | BN101: FLUX | CD101: TDAP | CT101: FLUR4 | CU101: 1 | CV101: 1 | DE101: 1 | DF101: 1 | DJ101: VARCEL | DZ101: PPV | EA101: 1 | EK101: 1 | EP101: IPV | FF101: HEP | FG101: 1 | FH101: 1 | FV101: MMR | GL101: FLUC4 | HB101: DTAP | HR101: FLUA4 | IH101: DTAPIPV | IX101: MNQ | JN101: MENB | KD101: HPV9 | KT101: DF | LJ101: HEPA | LZ101: EBZR | MP101: DTAPIPVHIB | NF101: FLUC3 | NV101: MMRV | OL101: TD | PB101: FLUN4 | PR101: ANTH | QH101: TYP | QX101: PNC20 | RN101: HIBV
A102: 61 | B102: COVID19 | C102: 89 | D102: 39 | E102: 30 | F102: 4 | H102: 33 | I102: 16 | J102: 12 | K102: 1 | M102: 55 | N102: 22 | O102: 18 | P102: 3 | R102: VARZOS | S102: 4 | T102: 1 | U102: 2 | AC102: 3 | AD102: 1 | AE102: 2 | AH102: UNK | AI102: 2 | AK102: 2 | AN102: 2 | AP102: 2 | AX102: FLU4 | BN102: FLUX | CD102: TDAP | CT102: FLUR4 | DJ102: VARCEL | DZ102: PPV | EP102: IPV | FF102: HEP | FV102: MMR | GL102: FLUC4 | HB102: DTAP | HR102: FLUA4 | IH102: DTAPIPV | IX102: MNQ | JN102: MENB | KD102: HPV9 | KT102: DF | LJ102: HEPA | LZ102: EBZR | MP102: DTAPIPVHIB | NF102: FLUC3 | NV102: MMRV | OL102: TD | PB102: FLUN4 | PR102: ANTH | QH102: TYP | QX102: PNC20 | RN102: HIBV
A103: 62 | B103: COVID19 | C103: 80 | D103: 39 | E103: 23 | F103: 4 | G103: 1 | H103: 40 | I103: 18 | J103: 13 | K103: 1 | M103: 40 | N103: 21 | O103: 10 | P103: 3 | Q103: 1 | R103: VARZOS | S103: 3 | T103: 3 | X103: 2 | Y103: 2 | AC103: 1 | AD103: 1 | AH103: UNK | AI103: 1 | AN103: 1 | AX103: FLU4 | BN103: FLUX | CD103: TDAP | CT103: FLUR4 | CU103: 1 | CV103: 1 | DE103: 1 | DF103: 1 | DJ103: VARCEL | DZ103: PPV | EP103: IPV | FF103: HEP | FV103: MMR | GL103: FLUC4 | HB103: DTAP | HR103: FLUA4 | IH103: DTAPIPV | IX103: MNQ | JN103: MENB | KD103: HPV9 | KT103: DF | LJ103: HEPA | LZ103: EBZR | MP103: DTAPIPVHIB | NF103: FLUC3 | NV103: MMRV | OL103: TD | PB103: FLUN4 | PR103: ANTH | QH103: TYP | QX103: PNC20 | RN103: HIBV
A104: 63 | B104: COVID19 | C104: 76 | D104: 30 | E104: 26 | F104: 8 | H104: 32 | I104: 8 | J104: 13 | K104: 4 | M104: 44 | N104: 22 | O104: 13 | P104: 4 | R104: VARZOS | S104: 3 | T104: 1 | U104: 2 | X104: 1 | Z104: 1 | AC104: 2 | AD104: 1 | AE104: 1 | AH104: UNK | AI104: 2 | AK104: 1 | AS104: 2 | AU104: 1 | AX104: FLU4 | AY104: 1 | BD104: 1 | BN104: FLUX | BO104: 1 | BY104: 1 | CD104: TDAP | CT104: FLUR4 | DJ104: VARCEL | DZ104: PPV | EP104: IPV | FF104: HEP | FV104: MMR | GL104: FLUC4 | HB104: DTAP | HR104: FLUA4 | IH104: DTAPIPV | IX104: MNQ | JN104: MENB | KD104: HPV9 | KT104: DF | LJ104: HEPA | LZ104: EBZR | MP104: DTAPIPVHIB | NF104: FLUC3 | NV104: MMRV | OL104: TD | PB104: FLUN4 | PR104: ANTH | QH104: TYP | QX104: PNC20 | RN104: HIBV
A105: 64 | B105: COVID19 | C105: 84 | D105: 39 | E105: 32 | F105: 3 | H105: 44 | I105: 21 | J105: 15 | K105: 2 | M105: 40 | N105: 18 | O105: 17 | P105: 1 | R105: VARZOS | AH105: UNK | AX105: FLU4 | AY105: 1 | BI105: 1 | BN105: FLUX | CD105: TDAP | CT105: FLUR4 | CU105: 1 | CV105: 1 | DE105: 1 | DF105: 1 | DJ105: VARCEL | DZ105: PPV | EP105: IPV | FF105: HEP | FV105: MMR | GL105: FLUC4 | HB105: DTAP | HR105: FLUA4 | IH105: DTAPIPV | IX105: MNQ | JN105: MENB | KD105: HPV9 | KT105: DF | LJ105: HEPA | LZ105: EBZR | MP105: DTAPIPVHIB | NF105: FLUC3 | NV105: MMRV | OL105: TD | PB105: FLUN4 | PR105: ANTH | QH105: TYP | QX105: PNC20 | RN105: HIBV
A106: 65 | B106: COVID19 | C106: 94 | D106: 34 | E106: 34 | F106: 10 | H106: 40 | I106: 11 | J106: 18 | K106: 6 | M106: 53 | N106: 22 | O106: 16 | P106: 4 | R106: VARZOS | S106: 2 | T106: 1 | X106: 1 | Y106: 1 | AC106: 1 | AH106: UNK | AI106: 2 | AN106: 1 | AS106: 1 | AX106: FLU4 | BN106: FLUX | BO106: 1 | BT106: 1 | CD106: TDAP | CT106: FLUR4 | DJ106: VARCEL | DZ106: PPV | EP106: IPV | FF106: HEP | FV106: MMR | GL106: FLUC4 | HB106: DTAP | HR106: FLUA4 | HS106: 1 | HX106: 1 | IH106: DTAPIPV | IX106: MNQ | JN106: MENB | KD106: HPV9 | KT106: DF | LJ106: HEPA | LZ106: EBZR | MP106: DTAPIPVHIB | NF106: FLUC3 | NV106: MMRV | OL106: TD | PB106: FLUN4 | PR106: ANTH | QH106: TYP | QX106: PNC20 | RN106: HIBV
A107: 66 | B107: COVID19 | C107: 93 | D107: 41 | E107: 29 | F107: 5 | G107: 1 | H107: 47 | I107: 19 | J107: 13 | K107: 4 | M107: 46 | N107: 22 | O107: 16 | P107: 1 | Q107: 1 | R107: VARZOS | S107: 1 | AH107: UNK | AI107: 1 | AN107: 1 | AX107: FLU4 | BN107: FLUX | CD107: TDAP | CT107: FLUR4 | DJ107: VARCEL | DZ107: PPV | EA107: 1 | EF107: 1 | EP107: IPV | FF107: HEP | FV107: MMR | GL107: FLUC4 | HB107: DTAP | HR107: FLUA4 | IH107: DTAPIPV | IX107: MNQ | JN107: MENB | KD107: HPV9 | KT107: DF | LJ107: HEPA | LZ107: EBZR | MA107: 1 | MB107: 1 | MK107: 1 | ML107: 1 | MP107: DTAPIPVHIB | NF107: FLUC3 | NV107: MMRV | OL107: TD | PB107: FLUN4 | PR107: ANTH | QH107: TYP | QX107: PNC20 | RN107: HIBV
A108: 67 | B108: COVID19 | C108: 58 | D108: 28 | E108: 16 | F108: 3 | H108: 21 | I108: 11 | J108: 6 | K108: 1 | M108: 35 | N108: 15 | O108: 10 | P108: 2 | R108: VARZOS | S108: 5 | T108: 2 | U108: 2 | X108: 3 | Y108: 1 | Z108: 2 | AC108: 2 | AD108: 1 | AH108: UNK | AI108: 2 | AJ108: 1 | AN108: 2 | AO108: 1 | AX108: FLU4 | BN108: FLUX | CD108: TDAP | CT108: FLUR4 | DJ108: VARCEL | DZ108: PPV | EP108: IPV | FF108: HEP | FV108: MMR | GL108: FLUC4 | HB108: DTAP | HR108: FLUA4 | IH108: DTAPIPV | IX108: MNQ | JN108: MENB | KD108: HPV9 | KT108: DF | LJ108: HEPA | LZ108: EBZR | MP108: DTAPIPVHIB | NF108: FLUC3 | NV108: MMRV | OL108: TD | PB108: FLUN4 | PR108: ANTH | QH108: TYP | QX108: PNC20 | RN108: HIBV
A109: 68 | B109: COVID19 | C109: 62 | D109: 30 | E109: 21 | F109: 5 | H109: 30 | I109: 13 | J109: 12 | K109: 2 | M109: 31 | N109: 16 | O109: 9 | P109: 3 | R109: VARZOS | S109: 2 | X109: 1 | AH109: UNK | AI109: 3 | AN109: 3 | AX109: FLU4 | AY109: 1 | BD109: 1 | BN109: FLUX | CD109: TDAP | CT109: FLUR4 | DJ109: VARCEL | DZ109: PPV | EP109: IPV | FF109: HEP | FV109: MMR | GL109: FLUC4 | HB109: DTAP | HR109: FLUA4 | HS109: 1 | HT109: 1 | IC109: 1 | ID109: 1 | IH109: DTAPIPV | IX109: MNQ | JN109: MENB | KD109: HPV9 | KT109: DF | LJ109: HEPA | LZ109: EBZR | MP109: DTAPIPVHIB | NF109: FLUC3 | NV109: MMRV | OL109: TD | PB109: FLUN4 | PR109: ANTH | QH109: TYP | QX109: PNC20 | RN109: HIBV
A110: 69 | B110: COVID19 | C110: 56 | D110: 28 | E110: 14 | F110: 6 | G110: 1 | H110: 25 | I110: 11 | J110: 8 | K110: 1 | L110: 1 | M110: 31 | N110: 17 | O110: 6 | P110: 5 | R110: VARZOS | AH110: UNK | AX110: FLU4 | BN110: FLUX | CD110: TDAP | CT110: FLUR4 | DJ110: VARCEL | DZ110: PPV | EP110: IPV | FF110: HEP | FV110: MMR | GL110: FLUC4 | HB110: DTAP | HR110: FLUA4 | HS110: 1 | HX110: 1 | IH110: DTAPIPV | IX110: MNQ | JN110: MENB | KD110: HPV9 | KT110: DF | LJ110: HEPA | LZ110: EBZR | MP110: DTAPIPVHIB | NF110: FLUC3 | NV110: MMRV | OL110: TD | OM110: 1 | OR110: 1 | PB110: FLUN4 | PR110: ANTH | QH110: TYP | QX110: PNC20 | RN110: HIBV
A111: 70 | B111: COVID19 | C111: 61 | D111: 24 | E111: 17 | F111: 5 | H111: 33 | I111: 15 | J111: 6 | K111: 5 | M111: 28 | N111: 9 | O111: 11 | R111: VARZOS | AH111: UNK | AI111: 2 | AJ111: 1 | AK111: 1 | AS111: 2 | AT111: 1 | AU111: 1 | AX111: FLU4 | BN111: FLUX | CD111: TDAP | CT111: FLUR4 | DJ111: VARCEL | DZ111: PPV | EP111: IPV | FF111: HEP | FV111: MMR | GL111: FLUC4 | HB111: DTAP | HR111: FLUA4 | IH111: DTAPIPV | IX111: MNQ | JN111: MENB | KD111: HPV9 | KT111: DF | LJ111: HEPA | LZ111: EBZR | MP111: DTAPIPVHIB | NF111: FLUC3 | NV111: MMRV | OL111: TD | PB111: FLUN4 | PR111: ANTH | QH111: TYP | QX111: PNC20 | RN111: HIBV
A112: 71 | B112: COVID19 | C112: 72 | D112: 30 | E112: 27 | F112: 7 | H112: 26 | I112: 10 | J112: 9 | K112: 3 | M112: 46 | N112: 20 | O112: 18 | P112: 4 | R112: VARZOS | S112: 1 | U112: 1 | AC112: 1 | AE112: 1 | AH112: UNK | AI112: 1 | AS112: 1 | AX112: FLU4 | BN112: FLUX | CD112: TDAP | CT112: FLUR4 | DJ112: VARCEL | DZ112: PPV | EP112: IPV | FF112: HEP | FV112: MMR | GL112: FLUC4 | HB112: DTAP | HR112: FLUA4 | IH112: DTAPIPV | IX112: MNQ | JN112: MENB | KD112: HPV9 | KT112: DF | LJ112: HEPA | LZ112: EBZR | MP112: DTAPIPVHIB | NF112: FLUC3 | NV112: MMRV | OL112: TD | PB112: FLUN4 | PR112: ANTH | QH112: TYP | QX112: PNC20 | RN112: HIBV
A113: 72 | B113: COVID19 | C113: 46 | D113: 21 | E113: 17 | F113: 5 | G113: 1 | H113: 25 | I113: 10 | J113: 9 | K113: 3 | L113: 1 | M113: 21 | N113: 11 | O113: 8 | P113: 2 | R113: VARZOS | S113: 1 | U113: 1 | X113: 1 | Z113: 1 | AH113: UNK | AX113: FLU4 | AY113: 1 | BI113: 1 | BN113: FLUX | CD113: TDAP | CT113: FLUR4 | DJ113: VARCEL | DZ113: PPV | EP113: IPV | FF113: HEP | FV113: MMR | GL113: FLUC4 | HB113: DTAP | HR113: FLUA4 | IH113: DTAPIPV | IX113: MNQ | JN113: MENB | KD113: HPV9 | KT113: DF | LJ113: HEPA | LZ113: EBZR | MP113: DTAPIPVHIB | NF113: FLUC3 | NV113: MMRV | OL113: TD | PB113: FLUN4 | PR113: ANTH | QH113: TYP | QX113: PNC20 | RN113: HIBV
A114: 73 | B114: COVID19 | C114: 49 | D114: 17 | E114: 20 | F114: 5 | H114: 19 | I114: 9 | J114: 7 | K114: 2 | M114: 30 | N114: 8 | O114: 13 | P114: 3 | R114: VARZOS | S114: 3 | T114: 1 | U114: 1 | X114: 2 | Y114: 1 | AC114: 1 | AE114: 1 | AH114: UNK | AX114: FLU4 | BN114: FLUX | CD114: TDAP | CT114: FLUR4 | DJ114: VARCEL | DZ114: PPV | EP114: IPV | FF114: HEP | FV114: MMR | GL114: FLUC4 | HB114: DTAP | HR114: FLUA4 | IH114: DTAPIPV | IX114: MNQ | JN114: MENB | KD114: HPV9 | KT114: DF | LJ114: HEPA | LZ114: EBZR | MP114: DTAPIPVHIB | NF114: FLUC3 | NV114: MMRV | OL114: TD | PB114: FLUN4 | PR114: ANTH | QH114: TYP | QX114: PNC20 | RN114: HIBV
A115: 74 | B115: COVID19 | C115: 53 | D115: 24 | E115: 13 | F115: 2 | H115: 28 | I115: 14 | J115: 7 | K115: 1 | M115: 25 | N115: 10 | O115: 6 | P115: 1 | R115: VARZOS | AH115: UNK | AI115: 1 | AJ115: 1 | AN115: 1 | AO115: 1 | AX115: FLU4 | BN115: FLUX | CD115: TDAP | CT115: FLUR4 | DJ115: VARCEL | DZ115: PPV | EP115: IPV | FF115: HEP | FV115: MMR | GL115: FLUC4 | HB115: DTAP | HR115: FLUA4 | IH115: DTAPIPV | IX115: MNQ | JN115: MENB | KD115: HPV9 | KT115: DF | LJ115: HEPA | LZ115: EBZR | MP115: DTAPIPVHIB | MQ115: 1 | MS115: 1 | MV115: 1 | MX115: 1 | NF115: FLUC3 | NV115: MMRV | OL115: TD | PB115: FLUN4 | PR115: ANTH | QH115: TYP | QX115: PNC20 | RN115: HIBV
A116: 75 | B116: COVID19 | C116: 41 | D116: 23 | E116: 11 | F116: 2 | H116: 17 | I116: 9 | J116: 4 | K116: 2 | M116: 24 | N116: 14 | O116: 7 | R116: VARZOS | S116: 1 | U116: 1 | X116: 1 | Z116: 1 | AH116: UNK | AI116: 1 | AN116: 1 | AX116: FLU4 | BN116: FLUX | CD116: TDAP | CT116: FLUR4 | DJ116: VARCEL | DZ116: PPV | EP116: IPV | FF116: HEP | FV116: MMR | GL116: FLUC4 | HB116: DTAP | HR116: FLUA4 | IH116: DTAPIPV | IX116: MNQ | JN116: MENB | KD116: HPV9 | KT116: DF | LJ116: HEPA | LZ116: EBZR | MP116: DTAPIPVHIB | NF116: FLUC3 | NV116: MMRV | OL116: TD | PB116: FLUN4 | PR116: ANTH | QH116: TYP | QX116: PNC20 | RN116: HIBV
A117: 76 | B117: COVID19 | C117: 32 | D117: 14 | E117: 9 | H117: 17 | I117: 7 | J117: 3 | M117: 15 | N117: 7 | O117: 6 | R117: VARZOS | AH117: UNK | AI117: 1 | AX117: FLU4 | BN117: FLUX | CD117: TDAP | CT117: FLUR4 | DJ117: VARCEL | DZ117: PPV | EP117: IPV | FF117: HEP | FV117: MMR | GL117: FLUC4 | HB117: DTAP | HR117: FLUA4 | IH117: DTAPIPV | IX117: MNQ | JN117: MENB | KD117: HPV9 | KT117: DF | LJ117: HEPA | LZ117: EBZR | MP117: DTAPIPVHIB | NF117: FLUC3 | NV117: MMRV | OL117: TD | PB117: FLUN4 | PR117: ANTH | QH117: TYP | QX117: PNC20 | RN117: HIBV
A118: 77 | B118: COVID19 | C118: 21 | D118: 11 | E118: 5 | F118: 3 | H118: 7 | I118: 3 | J118: 3 | M118: 14 | N118: 8 | O118: 2 | P118: 3 | R118: VARZOS | AH118: UNK | AX118: FLU4 | AY118: 1 | AZ118: 1 | BI118: 1 | BJ118: 1 | BN118: FLUX | CD118: TDAP | CT118: FLUR4 | DJ118: VARCEL | DZ118: PPV | EP118: IPV | FF118: HEP | FV118: MMR | GL118: FLUC4 | HB118: DTAP | HR118: FLUA4 | IH118: DTAPIPV | IX118: MNQ | JN118: MENB | KD118: HPV9 | KT118: DF | LJ118: HEPA | LZ118: EBZR | MP118: DTAPIPVHIB | NF118: FLUC3 | NV118: MMRV | OL118: TD | PB118: FLUN4 | PR118: ANTH | QH118: TYP | QX118: PNC20 | RN118: HIBV
A119: 78 | B119: COVID19 | C119: 29 | D119: 18 | E119: 6 | H119: 10 | I119: 6 | J119: 2 | M119: 19 | N119: 12 | O119: 4 | R119: VARZOS | S119: 2 | T119: 2 | AC119: 2 | AD119: 2 | AH119: UNK | AX119: FLU4 | BN119: FLUX | CD119: TDAP | CT119: FLUR4 | DJ119: VARCEL | DZ119: PPV | EP119: IPV | FF119: HEP | FV119: MMR | GL119: FLUC4 | HB119: DTAP | HR119: FLUA4 | IH119: DTAPIPV | IX119: MNQ | JN119: MENB | KD119: HPV9 | KT119: DF | LJ119: HEPA | LZ119: EBZR | MP119: DTAPIPVHIB | NF119: FLUC3 | NV119: MMRV | OL119: TD | PB119: FLUN4 | PR119: ANTH | QH119: TYP | QX119: PNC20 | RN119: HIBV
A120: 79 | B120: COVID19 | C120: 20 | D120: 8 | E120: 6 | F120: 2 | H120: 9 | I120: 4 | J120: 3 | K120: 1 | M120: 11 | N120: 4 | O120: 3 | P120: 1 | R120: VARZOS | S120: 1 | U120: 1 | X120: 1 | Z120: 1 | AH120: UNK | AX120: FLU4 | BN120: FLUX | CD120: TDAP | CT120: FLUR4 | DJ120: VARCEL | DZ120: PPV | EP120: IPV | FF120: HEP | FV120: MMR | GL120: FLUC4 | HB120: DTAP | HR120: FLUA4 | IH120: DTAPIPV | IX120: MNQ | JN120: MENB | KD120: HPV9 | KT120: DF | LJ120: HEPA | LZ120: EBZR | MP120: DTAPIPVHIB | NF120: FLUC3 | NV120: MMRV | OL120: TD | PB120: FLUN4 | PR120: ANTH | QH120: TYP | QX120: PNC20 | RN120: HIBV
A121: 80 | B121: COVID19 | C121: 17 | D121: 6 | E121: 8 | F121: 1 | H121: 7 | I121: 4 | J121: 2 | M121: 10 | N121: 2 | O121: 6 | P121: 1 | R121: VARZOS | AH121: UNK | AX121: FLU4 | BN121: FLUX | CD121: TDAP | CT121: FLUR4 | DJ121: VARCEL | DZ121: PPV | EP121: IPV | FF121: HEP | FV121: MMR | GL121: FLUC4 | HB121: DTAP | HR121: FLUA4 | IH121: DTAPIPV | IX121: MNQ | JN121: MENB | KD121: HPV9 | KT121: DF | LJ121: HEPA | LZ121: EBZR | MP121: DTAPIPVHIB | NF121: FLUC3 | NV121: MMRV | OL121: TD | PB121: FLUN4 | PR121: ANTH | QH121: TYP | QX121: PNC20 | RN121: HIBV
A122: 81 | B122: COVID19 | C122: 19 | D122: 8 | E122: 4 | F122: 3 | G122: 1 | H122: 10 | I122: 3 | J122: 2 | K122: 3 | L122: 1 | M122: 9 | N122: 5 | O122: 2 | R122: VARZOS | AH122: UNK | AX122: FLU4 | BN122: FLUX | CD122: TDAP | CT122: FLUR4 | DJ122: VARCEL | DZ122: PPV | EP122: IPV | FF122: HEP | FV122: MMR | GL122: FLUC4 | HB122: DTAP | HR122: FLUA4 | IH122: DTAPIPV | IX122: MNQ | JN122: MENB | KD122: HPV9 | KT122: DF | LJ122: HEPA | LZ122: EBZR | MP122: DTAPIPVHIB | NF122: FLUC3 | NV122: MMRV | OL122: TD | PB122: FLUN4 | PR122: ANTH | QH122: TYP | QX122: PNC20 | RN122: HIBV
A123: 82 | B123: COVID19 | C123: 13 | D123: 3 | E123: 7 | F123: 2 | H123: 5 | J123: 2 | K123: 2 | M123: 8 | N123: 3 | O123: 5 | R123: VARZOS | AH123: UNK | AX123: FLU4 | BN123: FLUX | CD123: TDAP | CT123: FLUR4 | DJ123: VARCEL | DZ123: PPV | EP123: IPV | FF123: HEP | FV123: MMR | GL123: FLUC4 | HB123: DTAP | HR123: FLUA4 | IH123: DTAPIPV | IX123: MNQ | JN123: MENB | KD123: HPV9 | KT123: DF | LJ123: HEPA | LZ123: EBZR | MP123: DTAPIPVHIB | NF123: FLUC3 | NV123: MMRV | OL123: TD | PB123: FLUN4 | PR123: ANTH | QH123: TYP | QX123: PNC20 | RN123: HIBV
A124: 83 | B124: COVID19 | C124: 8 | D124: 4 | E124: 3 | H124: 4 | I124: 3 | M124: 4 | N124: 1 | O124: 3 | R124: VARZOS | AH124: UNK | AX124: FLU4 | BN124: FLUX | CD124: TDAP | CT124: FLUR4 | DJ124: VARCEL | DZ124: PPV | EP124: IPV | FF124: HEP | FV124: MMR | GL124: FLUC4 | HB124: DTAP | HR124: FLUA4 | IH124: DTAPIPV | IX124: MNQ | JN124: MENB | KD124: HPV9 | KT124: DF | LJ124: HEPA | LZ124: EBZR | MP124: DTAPIPVHIB | NF124: FLUC3 | NV124: MMRV | OL124: TD | PB124: FLUN4 | PR124: ANTH | QH124: TYP | QX124: PNC20 | RN124: HIBV
A125: 84 | B125: COVID19 | C125: 18 | D125: 4 | E125: 9 | F125: 1 | G125: 1 | H125: 9 | I125: 2 | J125: 3 | K125: 1 | M125: 9 | N125: 2 | O125: 6 | Q125: 1 | R125: VARZOS | AH125: UNK | AX125: FLU4 | BN125: FLUX | CD125: TDAP | CT125: FLUR4 | DJ125: VARCEL | DZ125: PPV | EP125: IPV | FF125: HEP | FV125: MMR | GL125: FLUC4 | HB125: DTAP | HR125: FLUA4 | IH125: DTAPIPV | IX125: MNQ | JN125: MENB | KD125: HPV9 | KT125: DF | LJ125: HEPA | LZ125: EBZR | MP125: DTAPIPVHIB | NF125: FLUC3 | NV125: MMRV | OL125: TD | PB125: FLUN4 | PR125: ANTH | QH125: TYP | QX125: PNC20 | RN125: HIBV
A126: 85 | B126: COVID19 | C126: 9 | D126: 5 | E126: 3 | H126: 5 | I126: 3 | J126: 2 | M126: 4 | N126: 2 | O126: 1 | R126: VARZOS | AH126: UNK | AX126: FLU4 | BN126: FLUX | CD126: TDAP | CT126: FLUR4 | DJ126: VARCEL | DZ126: PPV | EP126: IPV | FF126: HEP | FV126: MMR | GL126: FLUC4 | HB126: DTAP | HR126: FLUA4 | IH126: DTAPIPV | IX126: MNQ | JN126: MENB | KD126: HPV9 | KT126: DF | LJ126: HEPA | LZ126: EBZR | MP126: DTAPIPVHIB | NF126: FLUC3 | NV126: MMRV | OL126: TD | PB126: FLUN4 | PR126: ANTH | QH126: TYP | QX126: PNC20 | RN126: HIBV
A127: 86 | B127: COVID19 | C127: 6 | D127: 3 | E127: 3 | H127: 3 | I127: 2 | J127: 1 | M127: 3 | N127: 1 | O127: 2 | R127: VARZOS | AH127: UNK | AX127: FLU4 | BN127: FLUX | CD127: TDAP | CT127: FLUR4 | DJ127: VARCEL | DZ127: PPV | EP127: IPV | FF127: HEP | FV127: MMR | GL127: FLUC4 | HB127: DTAP | HR127: FLUA4 | IH127: DTAPIPV | IX127: MNQ | JN127: MENB | KD127: HPV9 | KT127: DF | LJ127: HEPA | LZ127: EBZR | MP127: DTAPIPVHIB | NF127: FLUC3 | NV127: MMRV | OL127: TD | PB127: FLUN4 | PR127: ANTH | QH127: TYP | QX127: PNC20 | RN127: HIBV
A128: 87 | B128: COVID19 | C128: 14 | D128: 6 | E128: 3 | F128: 3 | H128: 2 | I128: 1 | J128: 1 | M128: 12 | N128: 5 | O128: 2 | P128: 3 | R128: VARZOS | AH128: UNK | AX128: FLU4 | BN128: FLUX | CD128: TDAP | CT128: FLUR4 | DJ128: VARCEL | DZ128: PPV | EP128: IPV | FF128: HEP | FV128: MMR | GL128: FLUC4 | HB128: DTAP | HR128: FLUA4 | IH128: DTAPIPV | IX128: MNQ | JN128: MENB | KD128: HPV9 | KT128: DF | LJ128: HEPA | LZ128: EBZR | MP128: DTAPIPVHIB | NF128: FLUC3 | NV128: MMRV | OL128: TD | PB128: FLUN4 | PR128: ANTH | QH128: TYP | QX128: PNC20 | RN128: HIBV
A129: 88 | B129: COVID19 | C129: 9 | D129: 7 | H129: 5 | I129: 3 | M129: 4 | N129: 4 | R129: VARZOS | AH129: UNK | AX129: FLU4 | BN129: FLUX | CD129: TDAP | CT129: FLUR4 | DJ129: VARCEL | DZ129: PPV | EP129: IPV | FF129: HEP | FV129: MMR | GL129: FLUC4 | HB129: DTAP | HR129: FLUA4 | IH129: DTAPIPV | IX129: MNQ | JN129: MENB | KD129: HPV9 | KT129: DF | LJ129: HEPA | LZ129: EBZR | MP129: DTAPIPVHIB | NF129: FLUC3 | NV129: MMRV | OL129: TD | PB129: FLUN4 | PR129: ANTH | QH129: TYP | QX129: PNC20 | RN129: HIBV
A130: 89 | B130: COVID19 | C130: 4 | D130: 1 | E130: 1 | H130: 2 | M130: 2 | N130: 1 | O130: 1 | R130: VARZOS | AH130: UNK | AX130: FLU4 | BN130: FLUX | CD130: TDAP | CT130: FLUR4 | DJ130: VARCEL | DZ130: PPV | EP130: IPV | FF130: HEP | FV130: MMR | GL130: FLUC4 | HB130: DTAP | HR130: FLUA4 | IH130: DTAPIPV | IX130: MNQ | JN130: MENB | KD130: HPV9 | KT130: DF | LJ130: HEPA | LZ130: EBZR | MP130: DTAPIPVHIB | NF130: FLUC3 | NV130: MMRV | OL130: TD | PB130: FLUN4 | PR130: ANTH | QH130: TYP | QX130: PNC20 | RN130: HIBV
A131: 90 | B131: COVID19 | C131: 2 | E131: 1 | H131: 2 | J131: 1 | R131: VARZOS | AH131: UNK | AX131: FLU4 | BN131: FLUX | CD131: TDAP | CT131: FLUR4 | DJ131: VARCEL | DZ131: PPV | EP131: IPV | FF131: HEP | FV131: MMR | GL131: FLUC4 | HB131: DTAP | HR131: FLUA4 | IH131: DTAPIPV | IX131: MNQ | JN131: MENB | KD131: HPV9 | KT131: DF | LJ131: HEPA | LZ131: EBZR | MP131: DTAPIPVHIB | NF131: FLUC3 | NV131: MMRV | OL131: TD | PB131: FLUN4 | PR131: ANTH | QH131: TYP | QX131: PNC20 | RN131: HIBV
A132: 91 | B132: COVID19 | C132: 4 | D132: 2 | E132: 2 | M132: 4 | N132: 2 | O132: 2 | R132: VARZOS | AH132: UNK | AX132: FLU4 | BN132: FLUX | CD132: TDAP | CT132: FLUR4 | DJ132: VARCEL | DZ132: PPV | EP132: IPV | FF132: HEP | FV132: MMR | GL132: FLUC4 | HB132: DTAP | HR132: FLUA4 | IH132: DTAPIPV | IX132: MNQ | JN132: MENB | KD132: HPV9 | KT132: DF | LJ132: HEPA | LZ132: EBZR | MP132: DTAPIPVHIB | NF132: FLUC3 | NV132: MMRV | OL132: TD | PB132: FLUN4 | PR132: ANTH | QH132: TYP | QX132: PNC20 | RN132: HIBV
A133: 92 | B133: COVID19 | C133: 4 | D133: 3 | E133: 1 | M133: 4 | N133: 3 | O133: 1 | R133: VARZOS | AH133: UNK | AX133: FLU4 | BN133: FLUX | CD133: TDAP | CT133: FLUR4 | DJ133: VARCEL | DZ133: PPV | EP133: IPV | FF133: HEP | FV133: MMR | GL133: FLUC4 | HB133: DTAP | HR133: FLUA4 | IH133: DTAPIPV | IX133: MNQ | JN133: MENB | KD133: HPV9 | KT133: DF | LJ133: HEPA | LZ133: EBZR | MP133: DTAPIPVHIB | NF133: FLUC3 | NV133: MMRV | OL133: TD | PB133: FLUN4 | PR133: ANTH | QH133: TYP | QX133: PNC20 | RN133: HIBV
A134: 93 | B134: COVID19 | C134: 3 | D134: 1 | E134: 2 | H134: 1 | J134: 1 | R134: VARZOS | AH134: UNK | AX134: FLU4 | BN134: FLUX | CD134: TDAP | CT134: FLUR4 | DJ134: VARCEL | DZ134: PPV | EP134: IPV | FF134: HEP | FV134: MMR | GL134: FLUC4 | HB134: DTAP | HR134: FLUA4 | IH134: DTAPIPV | IX134: MNQ | JN134: MENB | KD134: HPV9 | KT134: DF | LJ134: HEPA | LZ134: EBZR | MP134: DTAPIPVHIB | NF134: FLUC3 | NV134: MMRV | OL134: TD | PB134: FLUN4 | PR134: ANTH | QH134: TYP | QX134: PNC20 | RN134: HIBV
A135: 94 | B135: COVID19 | C135: 1 | D135: 1 | M135: 1 | N135: 1 | R135: VARZOS | AH135: UNK | AX135: FLU4 | BN135: FLUX | CD135: TDAP | CT135: FLUR4 | DJ135: VARCEL | DZ135: PPV | EP135: IPV | FF135: HEP | FV135: MMR | GL135: FLUC4 | HB135: DTAP | HR135: FLUA4 | IH135: DTAPIPV | IX135: MNQ | JN135: MENB | KD135: HPV9 | KT135: DF | LJ135: HEPA | LZ135: EBZR | MP135: DTAPIPVHIB | NF135: FLUC3 | NV135: MMRV | OL135: TD | PB135: FLUN4 | PR135: ANTH | QH135: TYP | QX135: PNC20 | RN135: HIBV
A136: 95 | B136: COVID19 | C136: 1 | E136: 1 | R136: VARZOS | AH136: UNK | AX136: FLU4 | BN136: FLUX | CD136: TDAP | CT136: FLUR4 | DJ136: VARCEL | DZ136: PPV | EP136: IPV | FF136: HEP | FV136: MMR | GL136: FLUC4 | HB136: DTAP | HR136: FLUA4 | IH136: DTAPIPV | IX136: MNQ | JN136: MENB | KD136: HPV9 | KT136: DF | LJ136: HEPA | LZ136: EBZR | MP136: DTAPIPVHIB | NF136: FLUC3 | NV136: MMRV | OL136: TD | PB136: FLUN4 | PR136: ANTH | QH136: TYP | QX136: PNC20 | RN136: HIBV
A137: 96 | B137: COVID19 | C137: 3 | E137: 2 | F137: 1 | M137: 3 | O137: 2 | P137: 1 | R137: VARZOS | AH137: UNK | AX137: FLU4 | BN137: FLUX | CD137: TDAP | CT137: FLUR4 | DJ137: VARCEL | DZ137: PPV | EP137: IPV | FF137: HEP | FV137: MMR | GL137: FLUC4 | HB137: DTAP | HR137: FLUA4 | IH137: DTAPIPV | IX137: MNQ | JN137: MENB | KD137: HPV9 | KT137: DF | LJ137: HEPA | LZ137: EBZR | MP137: DTAPIPVHIB | NF137: FLUC3 | NV137: MMRV | OL137: TD | PB137: FLUN4 | PR137: ANTH | QH137: TYP | QX137: PNC20 | RN137: HIBV
A138: 97 | B138: COVID19 | C138: 1 | E138: 1 | M138: 1 | O138: 1 | R138: VARZOS | AH138: UNK | AX138: FLU4 | BN138: FLUX | CD138: TDAP | CT138: FLUR4 | DJ138: VARCEL | DZ138: PPV | EP138: IPV | FF138: HEP | FV138: MMR | GL138: FLUC4 | HB138: DTAP | HR138: FLUA4 | IH138: DTAPIPV | IX138: MNQ | JN138: MENB | KD138: HPV9 | KT138: DF | LJ138: HEPA | LZ138: EBZR | MP138: DTAPIPVHIB | NF138: FLUC3 | NV138: MMRV | OL138: TD | PB138: FLUN4 | PR138: ANTH | QH138: TYP | QX138: PNC20 | RN138: HIBV
A139: 98 | B139: COVID19 | R139: VARZOS | AH139: UNK | AX139: FLU4 | BN139: FLUX | CD139: TDAP | CT139: FLUR4 | DJ139: VARCEL | DZ139: PPV | EP139: IPV | FF139: HEP | FV139: MMR | GL139: FLUC4 | HB139: DTAP | HR139: FLUA4 | IH139: DTAPIPV | IX139: MNQ | JN139: MENB | KD139: HPV9 | KT139: DF | LJ139: HEPA | LZ139: EBZR | MP139: DTAPIPVHIB | NF139: FLUC3 | NV139: MMRV | OL139: TD | PB139: FLUN4 | PR139: ANTH | QH139: TYP | QX139: PNC20 | RN139: HIBV
A140: 99 | B140: COVID19 | R140: VARZOS | AH140: UNK | AX140: FLU4 | BN140: FLUX | CD140: TDAP | CT140: FLUR4 | DJ140: VARCEL | DZ140: PPV | EP140: IPV | FF140: HEP | FV140: MMR | GL140: FLUC4 | HB140: DTAP | HR140: FLUA4 | IH140: DTAPIPV | IX140: MNQ | JN140: MENB | KD140: HPV9 | KT140: DF | LJ140: HEPA | LZ140: EBZR | MP140: DTAPIPVHIB | NF140: FLUC3 | NV140: MMRV | OL140: TD | PB140: FLUN4 | PR140: ANTH | QH140: TYP | QX140: PNC20 | RN140: HIBV
A141: 100 | B141: COVID19 | R141: VARZOS | AH141: UNK | AX141: FLU4 | BN141: FLUX | CD141: TDAP | CT141: FLUR4 | DJ141: VARCEL | DZ141: PPV | EP141: IPV | FF141: HEP | FV141: MMR | GL141: FLUC4 | HB141: DTAP | HR141: FLUA4 | IH141: DTAPIPV | IX141: MNQ | JN141: MENB | KD141: HPV9 | KT141: DF | LJ141: HEPA | LZ141: EBZR | MP141: DTAPIPVHIB | NF141: FLUC3 | NV141: MMRV | OL141: TD | PB141: FLUN4 | PR141: ANTH | QH141: TYP | QX141: PNC20 | RN141: HIBV
A142: 101 | B142: COVID19 | R142: VARZOS | AH142: UNK | AX142: FLU4 | BN142: FLUX | CD142: TDAP | CT142: FLUR4 | DJ142: VARCEL | DZ142: PPV | EP142: IPV | FF142: HEP | FV142: MMR | GL142: FLUC4 | HB142: DTAP | HR142: FLUA4 | IH142: DTAPIPV | IX142: MNQ | JN142: MENB | KD142: HPV9 | KT142: DF | LJ142: HEPA | LZ142: EBZR | MP142: DTAPIPVHIB | NF142: FLUC3 | NV142: MMRV | OL142: TD | PB142: FLUN4 | PR142: ANTH | QH142: TYP | QX142: PNC20 | RN142: HIBV
A143: 102 | B143: COVID19 | R143: VARZOS | AH143: UNK | AX143: FLU4 | BN143: FLUX | CD143: TDAP | CT143: FLUR4 | DJ143: VARCEL | DZ143: PPV | EP143: IPV | FF143: HEP | FV143: MMR | GL143: FLUC4 | HB143: DTAP | HR143: FLUA4 | IH143: DTAPIPV | IX143: MNQ | JN143: MENB | KD143: HPV9 | KT143: DF | LJ143: HEPA | LZ143: EBZR | MP143: DTAPIPVHIB | NF143: FLUC3 | NV143: MMRV | OL143: TD | PB143: FLUN4 | PR143: ANTH | QH143: TYP | QX143: PNC20 | RN143: HIBV
A144: 103 | B144: COVID19 | R144: VARZOS | AH144: UNK | AX144: FLU4 | BN144: FLUX | CD144: TDAP | CT144: FLUR4 | DJ144: VARCEL | DZ144: PPV | EP144: IPV | FF144: HEP | FV144: MMR | GL144: FLUC4 | HB144: DTAP | HR144: FLUA4 | IH144: DTAPIPV | IX144: MNQ | JN144: MENB | KD144: HPV9 | KT144: DF | LJ144: HEPA | LZ144: EBZR | MP144: DTAPIPVHIB | NF144: FLUC3 | NV144: MMRV | OL144: TD | PB144: FLUN4 | PR144: ANTH | QH144: TYP | QX144: PNC20 | RN144: HIBV
A145: 104 | B145: COVID19 | R145: VARZOS | AH145: UNK | AX145: FLU4 | BN145: FLUX | CD145: TDAP | CT145: FLUR4 | DJ145: VARCEL | DZ145: PPV | EP145: IPV | FF145: HEP | FV145: MMR | GL145: FLUC4 | HB145: DTAP | HR145: FLUA4 | IH145: DTAPIPV | IX145: MNQ | JN145: MENB | KD145: HPV9 | KT145: DF | LJ145: HEPA | LZ145: EBZR | MP145: DTAPIPVHIB | NF145: FLUC3 | NV145: MMRV | OL145: TD | PB145: FLUN4 | PR145: ANTH | QH145: TYP | QX145: PNC20 | RN145: HIBV
A146: 105 | B146: COVID19 | R146: VARZOS | AH146: UNK | AX146: FLU4 | BN146: FLUX | CD146: TDAP | CT146: FLUR4 | DJ146: VARCEL | DZ146: PPV | EP146: IPV | FF146: HEP | FV146: MMR | GL146: FLUC4 | HB146: DTAP | HR146: FLUA4 | IH146: DTAPIPV | IX146: MNQ | JN146: MENB | KD146: HPV9 | KT146: DF | LJ146: HEPA | LZ146: EBZR | MP146: DTAPIPVHIB | NF146: FLUC3 | NV146: MMRV | OL146: TD | PB146: FLUN4 | PR146: ANTH | QH146: TYP | QX146: PNC20 | RN146: HIBV
A147: 106 | B147: COVID19 | R147: VARZOS | AH147: UNK | AX147: FLU4 | BN147: FLUX | CD147: TDAP | CT147: FLUR4 | DJ147: VARCEL | DZ147: PPV | EP147: IPV | FF147: HEP | FV147: MMR | GL147: FLUC4 | HB147: DTAP | HR147: FLUA4 | IH147: DTAPIPV | IX147: MNQ | JN147: MENB | KD147: HPV9 | KT147: DF | LJ147: HEPA | LZ147: EBZR | MP147: DTAPIPVHIB | NF147: FLUC3 | NV147: MMRV | OL147: TD | PB147: FLUN4 | PR147: ANTH | QH147: TYP | QX147: PNC20 | RN147: HIBV
A148: 107 | B148: COVID19 | R148: VARZOS | AH148: UNK | AX148: FLU4 | BN148: FLUX | CD148: TDAP | CT148: FLUR4 | DJ148: VARCEL | DZ148: PPV | EP148: IPV | FF148: HEP | FV148: MMR | GL148: FLUC4 | HB148: DTAP | HR148: FLUA4 | IH148: DTAPIPV | IX148: MNQ | JN148: MENB | KD148: HPV9 | KT148: DF | LJ148: HEPA | LZ148: EBZR | MP148: DTAPIPVHIB | NF148: FLUC3 | NV148: MMRV | OL148: TD | PB148: FLUN4 | PR148: ANTH | QH148: TYP | QX148: PNC20 | RN148: HIBV
A149: 108 | B149: COVID19 | R149: VARZOS | AH149: UNK | AX149: FLU4 | BN149: FLUX | CD149: TDAP | CT149: FLUR4 | DJ149: VARCEL | DZ149: PPV | EP149: IPV | FF149: HEP | FV149: MMR | GL149: FLUC4 | HB149: DTAP | HR149: FLUA4 | IH149: DTAPIPV | IX149: MNQ | JN149: MENB | KD149: HPV9 | KT149: DF | LJ149: HEPA | LZ149: EBZR | MP149: DTAPIPVHIB | NF149: FLUC3 | NV149: MMRV | OL149: TD | PB149: FLUN4 | PR149: ANTH | QH149: TYP | QX149: PNC20 | RN149: HIBV
A150: 109 | B150: COVID19 | R150: VARZOS | AH150: UNK | AX150: FLU4 | BN150: FLUX | CD150: TDAP | CT150: FLUR4 | DJ150: VARCEL | DZ150: PPV | EP150: IPV | FF150: HEP | FV150: MMR | GL150: FLUC4 | HB150: DTAP | HR150: FLUA4 | IH150: DTAPIPV | IX150: MNQ | JN150: MENB | KD150: HPV9 | KT150: DF | LJ150: HEPA | LZ150: EBZR | MP150: DTAPIPVHIB | NF150: FLUC3 | NV150: MMRV | OL150: TD | PB150: FLUN4 | PR150: ANTH | QH150: TYP | QX150: PNC20 | RN150: HIBV
A151: 110 | B151: COVID19 | R151: VARZOS | AH151: UNK | AX151: FLU4 | BN151: FLUX | CD151: TDAP | CT151: FLUR4 | DJ151: VARCEL | DZ151: PPV | EP151: IPV | FF151: HEP | FV151: MMR | GL151: FLUC4 | HB151: DTAP | HR151: FLUA4 | IH151: DTAPIPV | IX151: MNQ | JN151: MENB | KD151: HPV9 | KT151: DF | LJ151: HEPA | LZ151: EBZR | MP151: DTAPIPVHIB | NF151: FLUC3 | NV151: MMRV | OL151: TD | PB151: FLUN4 | PR151: ANTH | QH151: TYP | QX151: PNC20 | RN151: HIBV
A152: 111 | B152: COVID19 | R152: VARZOS | AH152: UNK | AX152: FLU4 | BN152: FLUX | CD152: TDAP | CT152: FLUR4 | DJ152: VARCEL | DZ152: PPV | EP152: IPV | FF152: HEP | FV152: MMR | GL152: FLUC4 | HB152: DTAP | HR152: FLUA4 | IH152: DTAPIPV | IX152: MNQ | JN152: MENB | KD152: HPV9 | KT152: DF | LJ152: HEPA | LZ152: EBZR | MP152: DTAPIPVHIB | NF152: FLUC3 | NV152: MMRV | OL152: TD | PB152: FLUN4 | PR152: ANTH | QH152: TYP | QX152: PNC20 | RN152: HIBV
A153: 112 | B153: COVID19 | R153: VARZOS | AH153: UNK | AX153: FLU4 | BN153: FLUX | CD153: TDAP | CT153: FLUR4 | DJ153: VARCEL | DZ153: PPV | EP153: IPV | FF153: HEP | FV153: MMR | GL153: FLUC4 | HB153: DTAP | HR153: FLUA4 | IH153: DTAPIPV | IX153: MNQ | JN153: MENB | KD153: HPV9 | KT153: DF | LJ153: HEPA | LZ153: EBZR | MP153: DTAPIPVHIB | NF153: FLUC3 | NV153: MMRV | OL153: TD | PB153: FLUN4 | PR153: ANTH | QH153: TYP | QX153: PNC20 | RN153: HIBV
A154: 113 | B154: COVID19 | R154: VARZOS | AH154: UNK | AX154: FLU4 | BN154: FLUX | CD154: TDAP | CT154: FLUR4 | DJ154: VARCEL | DZ154: PPV | EP154: IPV | FF154: HEP | FV154: MMR | GL154: FLUC4 | HB154: DTAP | HR154: FLUA4 | IH154: DTAPIPV | IX154: MNQ | JN154: MENB | KD154: HPV9 | KT154: DF | LJ154: HEPA | LZ154: EBZR | MP154: DTAPIPVHIB | NF154: FLUC3 | NV154: MMRV | OL154: TD | PB154: FLUN4 | PR154: ANTH | QH154: TYP | QX154: PNC20 | RN154: HIBV
A155: 114 | B155: COVID19 | R155: VARZOS | AH155: UNK | AX155: FLU4 | BN155: FLUX | CD155: TDAP | CT155: FLUR4 | DJ155: VARCEL | DZ155: PPV | EP155: IPV | FF155: HEP | FV155: MMR | GL155: FLUC4 | HB155: DTAP | HR155: FLUA4 | IH155: DTAPIPV | IX155: MNQ | JN155: MENB | KD155: HPV9 | KT155: DF | LJ155: HEPA | LZ155: EBZR | MP155: DTAPIPVHIB | NF155: FLUC3 | NV155: MMRV | OL155: TD | PB155: FLUN4 | PR155: ANTH | QH155: TYP | QX155: PNC20 | RN155: HIBV
A156: 115 | B156: COVID19 | R156: VARZOS | AH156: UNK | AX156: FLU4 | BN156: FLUX | CD156: TDAP | CT156: FLUR4 | DJ156: VARCEL | DZ156: PPV | EP156: IPV | FF156: HEP | FV156: MMR | GL156: FLUC4 | HB156: DTAP | HR156: FLUA4 | IH156: DTAPIPV | IX156: MNQ | JN156: MENB | KD156: HPV9 | KT156: DF | LJ156: HEPA | LZ156: EBZR | MP156: DTAPIPVHIB | NF156: FLUC3 | NV156: MMRV | OL156: TD | PB156: FLUN4 | PR156: ANTH | QH156: TYP | QX156: PNC20 | RN156: HIBV
A157: 116 | B157: COVID19 | R157: VARZOS | AH157: UNK | AX157: FLU4 | BN157: FLUX | CD157: TDAP | CT157: FLUR4 | DJ157: VARCEL | DZ157: PPV | EP157: IPV | FF157: HEP | FV157: MMR | GL157: FLUC4 | HB157: DTAP | HR157: FLUA4 | IH157: DTAPIPV | IX157: MNQ | JN157: MENB | KD157: HPV9 | KT157: DF | LJ157: HEPA | LZ157: EBZR | MP157: DTAPIPVHIB | NF157: FLUC3 | NV157: MMRV | OL157: TD | PB157: FLUN4 | PR157: ANTH | QH157: TYP | QX157: PNC20 | RN157: HIBV
A158: 117 | B158: COVID19 | R158: VARZOS | AH158: UNK | AX158: FLU4 | BN158: FLUX | CD158: TDAP | CT158: FLUR4 | DJ158: VARCEL | DZ158: PPV | EP158: IPV | FF158: HEP | FV158: MMR | GL158: FLUC4 | HB158: DTAP | HR158: FLUA4 | IH158: DTAPIPV | IX158: MNQ | JN158: MENB | KD158: HPV9 | KT158: DF | LJ158: HEPA | LZ158: EBZR | MP158: DTAPIPVHIB | NF158: FLUC3 | NV158: MMRV | OL158: TD | PB158: FLUN4 | PR158: ANTH | QH158: TYP | QX158: PNC20 | RN158: HIBV
A159: 118 | B159: COVID19 | R159: VARZOS | AH159: UNK | AX159: FLU4 | BN159: FLUX | CD159: TDAP | CT159: FLUR4 | DJ159: VARCEL | DZ159: PPV | EP159: IPV | FF159: HEP | FV159: MMR | GL159: FLUC4 | HB159: DTAP | HR159: FLUA4 | IH159: DTAPIPV | IX159: MNQ | JN159: MENB | KD159: HPV9 | KT159: DF | LJ159: HEPA | LZ159: EBZR | MP159: DTAPIPVHIB | NF159: FLUC3 | NV159: MMRV | OL159: TD | PB159: FLUN4 | PR159: ANTH | QH159: TYP | QX159: PNC20 | RN159: HIBV
A160: 119 | B160: COVID19 | R160: VARZOS | AH160: UNK | AX160: FLU4 | BN160: FLUX | CD160: TDAP | CT160: FLUR4 | DJ160: VARCEL | DZ160: PPV | EP160: IPV | FF160: HEP | FV160: MMR | GL160: FLUC4 | HB160: DTAP | HR160: FLUA4 | IH160: DTAPIPV | IX160: MNQ | JN160: MENB | KD160: HPV9 | KT160: DF | LJ160: HEPA | LZ160: EBZR | MP160: DTAPIPVHIB | NF160: FLUC3 | NV160: MMRV | OL160: TD | PB160: FLUN4 | PR160: ANTH | QH160: TYP | QX160: PNC20 | RN160: HIBV
A161: 120 | B161: COVID19 | R161: VARZOS | AH161: UNK | AX161: FLU4 | BN161: FLUX | CD161: TDAP | CT161: FLUR4 | DJ161: VARCEL | DZ161: PPV | EP161: IPV | FF161: HEP | FV161: MMR | GL161: FLUC4 | HB161: DTAP | HR161: FLUA4 | IH161: DTAPIPV | IX161: MNQ | JN161: MENB | KD161: HPV9 | KT161: DF | LJ161: HEPA | LZ161: EBZR | MP161: DTAPIPVHIB | NF161: FLUC3 | NV161: MMRV | OL161: TD | PB161: FLUN4 | PR161: ANTH | QH161: TYP | QX161: PNC20 | RN161: HIBV
A163: Onset report
A164: Onset | B164: COVID19 | C164: All | D164: 1 | E164: 2 | F164: 3 | G164: 4 | H164: All male | I164: 1 male | J164: 2 male | K164: 3 male | L164: 4 male | M164: All female | N164: 1 female | O164: 2 female | P164: 3 female | Q164: 4 female | R164: VARZOS | S164: All | T164: 1 | U164: 2 | V164: 3 | W164: 4 | X164: All male | Y164: 1 male | Z164: 2 male | AA164: 3 male | AB164: 4 male | AC164: All female | AD164: 1 female | AE164: 2 female | AF164: 3 female | AG164: 4 female | AH164: UNK | AI164: All | AJ164: 1 | AK164: 2 | AL164: 3 | AM164: 4 | AN164: All male | AO164: 1 male | AP164: 2 male | AQ164: 3 male | AR164: 4 male | AS164: All female | AT164: 1 female | AU164: 2 female | AV164: 3 female | AW164: 4 female | AX164: FLU4 | AY164: All | AZ164: 1 | BA164: 2 | BB164: 3 | BC164: 4 | BD164: All male | BE164: 1 male | BF164: 2 male | BG164: 3 male | BH164: 4 male | BI164: All female | BJ164: 1 female | BK164: 2 female | BL164: 3 female | BM164: 4 female | BN164: FLUX | BO164: All | BP164: 1 | BQ164: 2 | BR164: 3 | BS164: 4 | BT164: All male | BU164: 1 male | BV164: 2 male | BW164: 3 male | BX164: 4 male | BY164: All female | BZ164: 1 female | CA164: 2 female | CB164: 3 female | CC164: 4 female | CD164: TDAP | CE164: All | CF164: 1 | CG164: 2 | CH164: 3 | CI164: 4 | CJ164: All male | CK164: 1 male | CL164: 2 male | CM164: 3 male | CN164: 4 male | CO164: All female | CP164: 1 female | CQ164: 2 female | CR164: 3 female | CS164: 4 female | CT164: FLUR4 | CU164: All | CV164: 1 | CW164: 2 | CX164: 3 | CY164: 4 | CZ164: All male | DA164: 1 male | DB164: 2 male | DC164: 3 male | DD164: 4 male | DE164: All female | DF164: 1 female | DG164: 2 female | DH164: 3 female | DI164: 4 female | DJ164: VARCEL | DK164: All | DL164: 1 | DM164: 2 | DN164: 3 | DO164: 4 | DP164: All male | DQ164: 1 male | DR164: 2 male | DS164: 3 male | DT164: 4 male | DU164: All female | DV164: 1 female | DW164: 2 female | DX164: 3 female | DY164: 4 female | DZ164: PPV | EA164: All | EB164: 1 | EC164: 2 | ED164: 3 | EE164: 4 | EF164: All male | EG164: 1 male | EH164: 2 male | EI164: 3 male | EJ164: 4 male | EK164: All female | EL164: 1 female | EM164: 2 female | EN164: 3 female | EO164: 4 female | EP164: IPV | EQ164: All | ER164: 1 | ES164: 2 | ET164: 3 | EU164: 4 | EV164: All male | EW164: 1 male | EX164: 2 male | EY164: 3 male | EZ164: 4 male | FA164: All female | FB164: 1 female | FC164: 2 female | FD164: 3 female | FE164: 4 female | FF164: HEP | FG164: All | FH164: 1 | FI164: 2 | FJ164: 3 | FK164: 4 | FL164: All male | FM164: 1 male | FN164: 2 male | FO164: 3 male | FP164: 4 male | FQ164: All female | FR164: 1 female | FS164: 2 female | FT164: 3 female | FU164: 4 female | FV164: MMR | FW164: All | FX164: 1 | FY164: 2 | FZ164: 3 | GA164: 4 | GB164: All male | GC164: 1 male | GD164: 2 male | GE164: 3 male | GF164: 4 male | GG164: All female | GH164: 1 female | GI164: 2 female | GJ164: 3 female | GK164: 4 female | GL164: FLUC4 | GM164: All | GN164: 1 | GO164: 2 | GP164: 3 | GQ164: 4 | GR164: All male | GS164: 1 male | GT164: 2 male | GU164: 3 male | GV164: 4 male | GW164: All female | GX164: 1 female | GY164: 2 female | GZ164: 3 female | HA164: 4 female | HB164: DTAP | HC164: All | HD164: 1 | HE164: 2 | HF164: 3 | HG164: 4 | HH164: All male | HI164: 1 male | HJ164: 2 male | HK164: 3 male | HL164: 4 male | HM164: All female | HN164: 1 female | HO164: 2 female | HP164: 3 female | HQ164: 4 female | HR164: FLUA4 | HS164: All | HT164: 1 | HU164: 2 | HV164: 3 | HW164: 4 | HX164: All male | HY164: 1 male | HZ164: 2 male | IA164: 3 male | IB164: 4 male | IC164: All female | ID164: 1 female | IE164: 2 female | IF164: 3 female | IG164: 4 female | IH164: DTAPIPV | II164: All | IJ164: 1 | IK164: 2 | IL164: 3 | IM164: 4 | IN164: All male | IO164: 1 male | IP164: 2 male | IQ164: 3 male | IR164: 4 male | IS164: All female | IT164: 1 female | IU164: 2 female | IV164: 3 female | IW164: 4 female | IX164: MNQ | IY164: All | IZ164: 1 | JA164: 2 | JB164: 3 | JC164: 4 | JD164: All male | JE164: 1 male | JF164: 2 male | JG164: 3 male | JH164: 4 male | JI164: All female | JJ164: 1 female | JK164: 2 female | JL164: 3 female | JM164: 4 female | JN164: MENB | JO164: All | JP164: 1 | JQ164: 2 | JR164: 3 | JS164: 4 | JT164: All male | JU164: 1 male | JV164: 2 male | JW164: 3 male | JX164: 4 male | JY164: All female | JZ164: 1 female | KA164: 2 female | KB164: 3 female | KC164: 4 female | KD164: HPV9 | KE164: All | KF164: 1 | KG164: 2 | KH164: 3 | KI164: 4 | KJ164: All male | KK164: 1 male | KL164: 2 male | KM164: 3 male | KN164: 4 male | KO164: All female | KP164: 1 female | KQ164: 2 female | KR164: 3 female | KS164: 4 female | KT164: DF | KU164: All | KV164: 1 | KW164: 2 | KX164: 3 | KY164: 4 | KZ164: All male | LA164: 1 male | LB164: 2 male | LC164: 3 male | LD164: 4 male | LE164: All female | LF164: 1 female | LG164: 2 female | LH164: 3 female | LI164: 4 female | LJ164: HEPA | LK164: All | LL164: 1 | LM164: 2 | LN164: 3 | LO164: 4 | LP164: All male | LQ164: 1 male | LR164: 2 male | LS164: 3 male | LT164: 4 male | LU164: All female | LV164: 1 female | LW164: 2 female | LX164: 3 female | LY164: 4 female | LZ164: EBZR | MA164: All | MB164: 1 | MC164: 2 | MD164: 3 | ME164: 4 | MF164: All male | MG164: 1 male | MH164: 2 male | MI164: 3 male | MJ164: 4 male | MK164: All female | ML164: 1 female | MM164: 2 female | MN164: 3 female | MO164: 4 female | MP164: DTAPIPVHIB | MQ164: All | MR164: 1 | MS164: 2 | MT164: 3 | MU164: 4 | MV164: All male | MW164: 1 male | MX164: 2 male | MY164: 3 male | MZ164: 4 male | NA164: All female | NB164: 1 female | NC164: 2 female | ND164: 3 female | NE164: 4 female | NF164: FLUC3 | NG164: All | NH164: 1 | NI164: 2 | NJ164: 3 | NK164: 4 | NL164: All male | NM164: 1 male | NN164: 2 male | NO164: 3 male | NP164: 4 male | NQ164: All female | NR164: 1 female | NS164: 2 female | NT164: 3 female | NU164: 4 female | NV164: MMRV | NW164: All | NX164: 1 | NY164: 2 | NZ164: 3 | OA164: 4 | OB164: All male | OC164: 1 male | OD164: 2 male | OE164: 3 male | OF164: 4 male | OG164: All female | OH164: 1 female | OI164: 2 female | OJ164: 3 female | OK164: 4 female | OL164: TD | OM164: All | ON164: 1 | OO164: 2 | OP164: 3 | OQ164: 4 | OR164: All male | OS164: 1 male | OT164: 2 male | OU164: 3 male | OV164: 4 male | OW164: All female | OX164: 1 female | OY164: 2 female | OZ164: 3 female | PA164: 4 female | PB164: FLUN4 | PC164: All | PD164: 1 | PE164: 2 | PF164: 3 | PG164: 4 | PH164: All male | PI164: 1 male | PJ164: 2 male | PK164: 3 male | PL164: 4 male | PM164: All female | PN164: 1 female | PO164: 2 female | PP164: 3 female | PQ164: 4 female | PR164: ANTH | PS164: All | PT164: 1 | PU164: 2 | PV164: 3 | PW164: 4 | PX164: All male | PY164: 1 male | PZ164: 2 male | QA164: 3 male | QB164: 4 male | QC164: All female | QD164: 1 female | QE164: 2 female | QF164: 3 female | QG164: 4 female | QH164: TYP | QI164: All | QJ164: 1 | QK164: 2 | QL164: 3 | QM164: 4 | QN164: All male | QO164: 1 male | QP164: 2 male | QQ164: 3 male | QR164: 4 male | QS164: All female | QT164: 1 female | QU164: 2 female | QV164: 3 female | QW164: 4 female | QX164: PNC20 | QY164: All | QZ164: 1 | RA164: 2 | RB164: 3 | RC164: 4 | RD164: All male | RE164: 1 male | RF164: 2 male | RG164: 3 male | RH164: 4 male | RI164: All female | RJ164: 1 female | RK164: 2 female | RL164: 3 female | RM164: 4 female | RN164: HIBV | RO164: All | RP164: 1 | RQ164: 2 | RR164: 3 | RS164: 4 | RT164: All male | RU164: 1 male | RV164: 2 male | RW164: 3 male | RX164: 4 male | RY164: All female | RZ164: 1 female | SA164: 2 female | SB164: 3 female | SC164: 4 female
A165: 0 | B165: COVID19 | C165: 1413 | D165: 570 | E165: 323 | F165: 44 | G165: 2 | H165: 456 | I165: 195 | J165: 119 | K165: 17 | M165: 752 | N165: 347 | O165: 186 | P165: 22 | Q165: 2 | R165: VARZOS | S165: 55 | T165: 16 | U165: 6 | X165: 14 | Y165: 5 | Z165: 1 | AC165: 18 | AD165: 7 | AE165: 3 | AH165: UNK | AI165: 9 | AN165: 2 | AS165: 7 | AX165: FLU4 | AY165: 6 | BA165: 1 | BD165: 4 | BI165: 2 | BK165: 1 | BN165: FLUX | BO165: 7 | BT165: 2 | BY165: 2 | CD165: TDAP | CE165: 1 | CO165: 1 | CT165: FLUR4 | CU165: 1 | CV165: 1 | DE165: 1 | DF165: 1 | DJ165: VARCEL | DK165: 3 | DL165: 2 | DM165: 1 | DU165: 3 | DV165: 2 | DW165: 1 | DZ165: PPV | EA165: 1 | EK165: 1 | EP165: IPV | EQ165: 1 | ET165: 1 | FA165: 1 | FD165: 1 | FF165: HEP | FV165: MMR | FW165: 1 | FX165: 1 | GG165: 1 | GH165: 1 | GL165: FLUC4 | GM165: 1 | GW165: 1 | HB165: DTAP | HC165: 1 | HM165: 1 | HR165: FLUA4 | IH165: DTAPIPV | II165: 1 | IS165: 1 | IX165: MNQ | JN165: MENB | JO165: 1 | JP165: 1 | JY165: 1 | JZ165: 1 | KD165: HPV9 | KE165: 1 | KF165: 1 | KO165: 1 | KP165: 1 | KT165: DF | LJ165: HEPA | LZ165: EBZR | MP165: DTAPIPVHIB | NF165: FLUC3 | NG165: 1 | NQ165: 1 | NV165: MMRV | OL165: TD | OM165: 1 | OR165: 1 | PB165: FLUN4 | PR165: ANTH | QH165: TYP | QX165: PNC20 | RN165: HIBV
A166: 1 | B166: COVID19 | C166: 491 | D166: 263 | E166: 131 | F166: 25 | G166: 1 | H166: 206 | I166: 109 | J166: 54 | K166: 10 | L166: 1 | M166: 282 | N166: 152 | O166: 76 | P166: 15 | R166: VARZOS | S166: 6 | T166: 3 | U166: 3 | X166: 5 | Y166: 3 | Z166: 2 | AC166: 1 | AE166: 1 | AH166: UNK | AI166: 9 | AK166: 2 | AN166: 4 | AS166: 5 | AU166: 2 | AX166: FLU4 | AY166: 6 | AZ166: 5 | BD166: 3 | BE166: 3 | BI166: 3 | BJ166: 2 | BN166: FLUX | BO166: 3 | BP166: 1 | BT166: 2 | BY166: 1 | BZ166: 1 | CD166: TDAP | CE166: 3 | CF166: 3 | CJ166: 1 | CK166: 1 | CO166: 2 | CP166: 2 | CT166: FLUR4 | DJ166: VARCEL | DK166: 1 | DL166: 1 | DP166: 1 | DQ166: 1 | DZ166: PPV | EP166: IPV | EQ166: 2 | ER166: 1 | ES166: 1 | EV166: 1 | EW166: 1 | FA166: 1 | FC166: 1 | FF166: HEP | FG166: 2 | FH166: 1 | FL166: 2 | FM166: 1 | FV166: MMR | FW166: 2 | FX166: 2 | GB166: 1 | GC166: 1 | GG166: 1 | GH166: 1 | GL166: FLUC4 | GM166: 1 | GN166: 1 | GR166: 1 | GS166: 1 | HB166: DTAP | HR166: FLUA4 | HS166: 1 | HX166: 1 | IH166: DTAPIPV | II166: 1 | IK166: 1 | IS166: 1 | IU166: 1 | IX166: MNQ | IY166: 1 | IZ166: 1 | JD166: 1 | JE166: 1 | JN166: MENB | KD166: HPV9 | KE166: 1 | KF166: 1 | KJ166: 1 | KK166: 1 | KT166: DF | LJ166: HEPA | LK166: 1 | LL166: 1 | LP166: 1 | LQ166: 1 | LZ166: EBZR | MP166: DTAPIPVHIB | NF166: FLUC3 | NV166: MMRV | NW166: 1 | NY166: 1 | OG166: 1 | OI166: 1 | OL166: TD | PB166: FLUN4 | PR166: ANTH | PS166: 1 | PV166: 1 | QC166: 1 | QF166: 1 | QH166: TYP | QI166: 1 | QK166: 1 | QS166: 1 | QU166: 1 | QX166: PNC20 | RN166: HIBV
A167: 2 | B167: COVID19 | C167: 356 | D167: 189 | E167: 100 | F167: 17 | G167: 2 | H167: 157 | I167: 83 | J167: 45 | K167: 7 | M167: 196 | N167: 105 | O167: 55 | P167: 10 | Q167: 2 | R167: VARZOS | S167: 1 | T167: 1 | AC167: 1 | AD167: 1 | AH167: UNK | AI167: 6 | AJ167: 2 | AK167: 1 | AN167: 3 | AS167: 3 | AT167: 2 | AU167: 1 | AX167: FLU4 | AY167: 2 | AZ167: 1 | BD167: 2 | BE167: 1 | BN167: FLUX | CD167: TDAP | CT167: FLUR4 | DJ167: VARCEL | DZ167: PPV | EP167: IPV | FF167: HEP | FV167: MMR | GL167: FLUC4 | HB167: DTAP | HR167: FLUA4 | IH167: DTAPIPV | IX167: MNQ | JN167: MENB | KD167: HPV9 | KT167: DF | LJ167: HEPA | LZ167: EBZR | MP167: DTAPIPVHIB | NF167: FLUC3 | NV167: MMRV | OL167: TD | PB167: FLUN4 | PR167: ANTH | QH167: TYP | QX167: PNC20 | RN167: HIBV
A168: 3 | B168: COVID19 | C168: 267 | D168: 128 | E168: 88 | F168: 12 | G168: 1 | H168: 123 | I168: 56 | J168: 39 | K168: 6 | M168: 144 | N168: 72 | O168: 49 | P168: 6 | Q168: 1 | R168: VARZOS | S168: 6 | T168: 2 | U168: 3 | X168: 1 | Z168: 1 | AC168: 5 | AD168: 2 | AE168: 2 | AH168: UNK | AI168: 3 | AN168: 2 | AX168: FLU4 | AY168: 1 | AZ168: 1 | BI168: 1 | BJ168: 1 | BN168: FLUX | CD168: TDAP | CT168: FLUR4 | CU168: 1 | CZ168: 1 | DJ168: VARCEL | DZ168: PPV | EP168: IPV | FF168: HEP | FV168: MMR | GL168: FLUC4 | HB168: DTAP | HR168: FLUA4 | IH168: DTAPIPV | IX168: MNQ | JN168: MENB | KD168: HPV9 | KT168: DF | LJ168: HEPA | LZ168: EBZR | MP168: DTAPIPVHIB | NF168: FLUC3 | NV168: MMRV | OL168: TD | PB168: FLUN4 | PR168: ANTH | QH168: TYP | QX168: PNC20 | RN168: HIBV
A169: 4 | B169: COVID19 | C169: 206 | D169: 103 | E169: 56 | F169: 8 | H169: 106 | I169: 51 | J169: 31 | K169: 5 | M169: 97 | N169: 51 | O169: 25 | P169: 3 | R169: VARZOS | S169: 1 | U169: 1 | X169: 1 | Z169: 1 | AH169: UNK | AI169: 1 | AS169: 1 | AX169: FLU4 | AY169: 1 | AZ169: 1 | BI169: 1 | BJ169: 1 | BN169: FLUX | CD169: TDAP | CT169: FLUR4 | DJ169: VARCEL | DZ169: PPV | EP169: IPV | FF169: HEP | FV169: MMR | GL169: FLUC4 | HB169: DTAP | HR169: FLUA4 | IH169: DTAPIPV | IX169: MNQ | JN169: MENB | KD169: HPV9 | KT169: DF | LJ169: HEPA | LZ169: EBZR | MP169: DTAPIPVHIB | NF169: FLUC3 | NV169: MMRV | OL169: TD | PB169: FLUN4 | PC169: 1 | PM169: 1 | PR169: ANTH | QH169: TYP | QX169: PNC20 | RN169: HIBV
A170: 5 | B170: COVID19 | C170: 172 | D170: 89 | E170: 56 | F170: 8 | H170: 75 | I170: 40 | J170: 24 | K170: 5 | M170: 96 | N170: 49 | O170: 31 | P170: 3 | R170: VARZOS | AH170: UNK | AX170: FLU4 | AY170: 2 | AZ170: 1 | BI170: 2 | BJ170: 1 | BN170: FLUX | BO170: 1 | BY170: 1 | CD170: TDAP | CT170: FLUR4 | CU170: 1 | CV170: 1 | DE170: 1 | DF170: 1 | DJ170: VARCEL | DZ170: PPV | EP170: IPV | FF170: HEP | FV170: MMR | GL170: FLUC4 | HB170: DTAP | HR170: FLUA4 | IH170: DTAPIPV | IX170: MNQ | JN170: MENB | KD170: HPV9 | KT170: DF | LJ170: HEPA | LZ170: EBZR | MP170: DTAPIPVHIB | NF170: FLUC3 | NV170: MMRV | OL170: TD | PB170: FLUN4 | PR170: ANTH | QH170: TYP | QX170: PNC20 | RN170: HIBV
A171: 6 | B171: COVID19 | C171: 133 | D171: 75 | E171: 32 | F171: 5 | H171: 60 | I171: 33 | J171: 16 | K171: 3 | M171: 72 | N171: 41 | O171: 16 | P171: 2 | R171: VARZOS | S171: 2 | T171: 1 | U171: 1 | X171: 2 | Y171: 1 | Z171: 1 | AH171: UNK | AX171: FLU4 | BN171: FLUX | CD171: TDAP | CT171: FLUR4 | DJ171: VARCEL | DZ171: PPV | EP171: IPV | FF171: HEP | FV171: MMR | GL171: FLUC4 | HB171: DTAP | HR171: FLUA4 | IH171: DTAPIPV | IX171: MNQ | JN171: MENB | KD171: HPV9 | KT171: DF | LJ171: HEPA | LZ171: EBZR | MP171: DTAPIPVHIB | NF171: FLUC3 | NV171: MMRV | OL171: TD | PB171: FLUN4 | PR171: ANTH | QH171: TYP | QX171: PNC20 | RN171: HIBV
A172: 7 | B172: COVID19 | C172: 152 | D172: 81 | E172: 40 | F172: 5 | H172: 68 | I172: 36 | J172: 18 | K172: 2 | M172: 83 | N172: 44 | O172: 22 | P172: 3 | R172: VARZOS | S172: 1 | T172: 1 | AC172: 1 | AD172: 1 | AH172: UNK | AX172: FLU4 | AY172: 2 | BI172: 1 | BN172: FLUX | CD172: TDAP | CT172: FLUR4 | DJ172: VARCEL | DZ172: PPV | EP172: IPV | FF172: HEP | FV172: MMR | GL172: FLUC4 | HB172: DTAP | HR172: FLUA4 | HS172: 1 | HT172: 1 | IC172: 1 | ID172: 1 | IH172: DTAPIPV | IX172: MNQ | JN172: MENB | KD172: HPV9 | KT172: DF | LJ172: HEPA | LZ172: EBZR | MP172: DTAPIPVHIB | NF172: FLUC3 | NV172: MMRV | OL172: TD | PB172: FLUN4 | PR172: ANTH | QH172: TYP | QX172: PNC20 | RN172: HIBV
A173: 8 | B173: COVID19 | C173: 110 | D173: 49 | E173: 34 | F173: 11 | H173: 50 | I173: 23 | J173: 13 | K173: 5 | M173: 60 | N173: 26 | O173: 21 | P173: 6 | R173: VARZOS | AH173: UNK | AI173: 1 | AJ173: 1 | AS173: 1 | AT173: 1 | AX173: FLU4 | AY173: 2 | AZ173: 2 | BI173: 2 | BJ173: 2 | BN173: FLUX | CD173: TDAP | CT173: FLUR4 | DJ173: VARCEL | DZ173: PPV | EA173: 1 | EK173: 1 | EP173: IPV | FF173: HEP | FV173: MMR | GL173: FLUC4 | HB173: DTAP | HR173: FLUA4 | IH173: DTAPIPV | IX173: MNQ | JN173: MENB | KD173: HPV9 | KT173: DF | LJ173: HEPA | LZ173: EBZR | MP173: DTAPIPVHIB | NF173: FLUC3 | NV173: MMRV | OL173: TD | PB173: FLUN4 | PR173: ANTH | QH173: TYP | QX173: PNC20 | RN173: HIBV
A174: 9 | B174: COVID19 | C174: 122 | D174: 60 | E174: 34 | F174: 2 | H174: 65 | I174: 31 | J174: 17 | K174: 2 | M174: 57 | N174: 29 | O174: 17 | R174: VARZOS | S174: 2 | U174: 1 | X174: 2 | Z174: 1 | AH174: UNK | AX174: FLU4 | BN174: FLUX | CD174: TDAP | CT174: FLUR4 | DJ174: VARCEL | DZ174: PPV | EP174: IPV | FF174: HEP | FV174: MMR | GL174: FLUC4 | HB174: DTAP | HR174: FLUA4 | IH174: DTAPIPV | IX174: MNQ | JN174: MENB | KD174: HPV9 | KT174: DF | LJ174: HEPA | LZ174: EBZR | MP174: DTAPIPVHIB | NF174: FLUC3 | NV174: MMRV | OL174: TD | PB174: FLUN4 | PR174: ANTH | QH174: TYP | QX174: PNC20 | RN174: HIBV
A175: 10 | B175: COVID19 | C175: 110 | D175: 57 | E175: 32 | F175: 9 | H175: 46 | I175: 23 | J175: 13 | K175: 4 | M175: 61 | N175: 32 | O175: 19 | P175: 5 | R175: VARZOS | S175: 1 | U175: 1 | AC175: 1 | AE175: 1 | AH175: UNK | AI175: 1 | AN175: 1 | AX175: FLU4 | AY175: 1 | BI175: 1 | BN175: FLUX | CD175: TDAP | CT175: FLUR4 | DJ175: VARCEL | DZ175: PPV | EP175: IPV | FF175: HEP | FV175: MMR | GL175: FLUC4 | HB175: DTAP | HC175: 1 | HG175: 1 | HM175: 1 | HQ175: 1 | HR175: FLUA4 | IH175: DTAPIPV | IX175: MNQ | JN175: MENB | KD175: HPV9 | KT175: DF | LJ175: HEPA | LZ175: EBZR | MP175: DTAPIPVHIB | NF175: FLUC3 | NV175: MMRV | OL175: TD | PB175: FLUN4 | PR175: ANTH | QH175: TYP | QX175: PNC20 | RN175: HIBV | RO175: 1 | RR175: 1 | RY175: 1 | SB175: 1
A176: 11 | B176: COVID19 | C176: 103 | D176: 41 | E176: 37 | F176: 9 | H176: 48 | I176: 18 | J176: 17 | K176: 5 | M176: 54 | N176: 22 | O176: 20 | P176: 4 | R176: VARZOS | S176: 1 | T176: 1 | X176: 1 | Y176: 1 | AH176: UNK | AI176: 1 | AJ176: 1 | AN176: 1 | AO176: 1 | AX176: FLU4 | AY176: 2 | AZ176: 1 | BD176: 1 | BI176: 1 | BJ176: 1 | BN176: FLUX | BO176: 1 | BP176: 1 | BT176: 1 | BU176: 1 | CD176: TDAP | CT176: FLUR4 | CU176: 1 | CV176: 1 | DE176: 1 | DF176: 1 | DJ176: VARCEL | DZ176: PPV | EP176: IPV | FF176: HEP | FV176: MMR | GL176: FLUC4 | HB176: DTAP | HR176: FLUA4 | IH176: DTAPIPV | IX176: MNQ | JN176: MENB | KD176: HPV9 | KT176: DF | LJ176: HEPA | LZ176: EBZR | MP176: DTAPIPVHIB | NF176: FLUC3 | NV176: MMRV | OL176: TD | PB176: FLUN4 | PR176: ANTH | QH176: TYP | QX176: PNC20 | RN176: HIBV
A177: 12 | B177: COVID19 | C177: 99 | D177: 56 | E177: 18 | F177: 7 | H177: 53 | I177: 28 | J177: 9 | K177: 4 | M177: 45 | N177: 28 | O177: 9 | P177: 2 | R177: VARZOS | S177: 1 | X177: 1 | AH177: UNK | AX177: FLU4 | BN177: FLUX | CD177: TDAP | CT177: FLUR4 | DJ177: VARCEL | DZ177: PPV | EP177: IPV | FF177: HEP | FV177: MMR | GL177: FLUC4 | HB177: DTAP | HR177: FLUA4 | IH177: DTAPIPV | IX177: MNQ | IY177: 1 | JA177: 1 | JI177: 1 | JK177: 1 | JN177: MENB | JO177: 1 | JP177: 1 | JY177: 1 | JZ177: 1 | KD177: HPV9 | KT177: DF | LJ177: HEPA | LZ177: EBZR | MP177: DTAPIPVHIB | NF177: FLUC3 | NV177: MMRV | OL177: TD | PB177: FLUN4 | PR177: ANTH | QH177: TYP | QX177: PNC20 | RN177: HIBV
A178: 13 | B178: COVID19 | C178: 82 | D178: 46 | E178: 20 | F178: 4 | H178: 43 | I178: 26 | J178: 11 | K178: 1 | M178: 38 | N178: 20 | O178: 9 | P178: 3 | R178: VARZOS | S178: 1 | U178: 1 | X178: 1 | Z178: 1 | AH178: UNK | AI178: 1 | AN178: 1 | AX178: FLU4 | BN178: FLUX | CD178: TDAP | CE178: 1 | CF178: 1 | CO178: 1 | CP178: 1 | CT178: FLUR4 | DJ178: VARCEL | DZ178: PPV | EP178: IPV | FF178: HEP | FV178: MMR | GL178: FLUC4 | HB178: DTAP | HR178: FLUA4 | IH178: DTAPIPV | IX178: MNQ | JN178: MENB | KD178: HPV9 | KT178: DF | LJ178: HEPA | LZ178: EBZR | MP178: DTAPIPVHIB | NF178: FLUC3 | NV178: MMRV | OL178: TD | PB178: FLUN4 | PR178: ANTH | QH178: TYP | QX178: PNC20 | RN178: HIBV
A179: 14 | B179: COVID19 | C179: 116 | D179: 59 | E179: 33 | F179: 4 | H179: 52 | I179: 25 | J179: 18 | K179: 1 | M179: 62 | N179: 33 | O179: 15 | P179: 3 | R179: VARZOS | AH179: UNK | AI179: 2 | AJ179: 1 | AN179: 2 | AO179: 1 | AX179: FLU4 | AY179: 2 | AZ179: 1 | BI179: 2 | BJ179: 1 | BN179: FLUX | CD179: TDAP | CT179: FLUR4 | CU179: 1 | DE179: 1 | DJ179: VARCEL | DZ179: PPV | EP179: IPV | FF179: HEP | FV179: MMR | GL179: FLUC4 | HB179: DTAP | HR179: FLUA4 | IH179: DTAPIPV | IX179: MNQ | JN179: MENB | KD179: HPV9 | KT179: DF | LJ179: HEPA | LZ179: EBZR | MA179: 1 | MB179: 1 | MK179: 1 | ML179: 1 | MP179: DTAPIPVHIB | NF179: FLUC3 | NV179: MMRV | OL179: TD | PB179: FLUN4 | PR179: ANTH | QH179: TYP | QX179: PNC20 | QY179: 1 | QZ179: 1 | RD179: 1 | RE179: 1 | RN179: HIBV
A180: 15 | B180: COVID19 | C180: 77 | D180: 39 | E180: 21 | F180: 3 | H180: 40 | I180: 21 | J180: 9 | K180: 2 | M180: 36 | N180: 18 | O180: 12 | P180: 1 | R180: VARZOS | S180: 1 | T180: 1 | AC180: 1 | AD180: 1 | AH180: UNK | AI180: 2 | AN180: 2 | AX180: FLU4 | BN180: FLUX | CD180: TDAP | CT180: FLUR4 | DJ180: VARCEL | DZ180: PPV | EP180: IPV | FF180: HEP | FV180: MMR | GL180: FLUC4 | HB180: DTAP | HR180: FLUA4 | IH180: DTAPIPV | IX180: MNQ | JN180: MENB | KD180: HPV9 | KT180: DF | LJ180: HEPA | LZ180: EBZR | MP180: DTAPIPVHIB | NF180: FLUC3 | NV180: MMRV | OL180: TD | PB180: FLUN4 | PR180: ANTH | QH180: TYP | QX180: PNC20 | RN180: HIBV
A181: 16 | B181: COVID19 | C181: 89 | D181: 46 | E181: 27 | F181: 3 | H181: 41 | I181: 19 | J181: 12 | K181: 1 | M181: 46 | N181: 26 | O181: 14 | P181: 2 | R181: VARZOS | S181: 1 | T181: 1 | AC181: 1 | AD181: 1 | AH181: UNK | AI181: 1 | AN181: 1 | AX181: FLU4 | BN181: FLUX | CD181: TDAP | CT181: FLUR4 | DJ181: VARCEL | DZ181: PPV | EP181: IPV | FF181: HEP | FV181: MMR | GL181: FLUC4 | HB181: DTAP | HR181: FLUA4 | IH181: DTAPIPV | IX181: MNQ | JN181: MENB | KD181: HPV9 | KT181: DF | LJ181: HEPA | LZ181: EBZR | MP181: DTAPIPVHIB | NF181: FLUC3 | NV181: MMRV | OL181: TD | PB181: FLUN4 | PR181: ANTH | QH181: TYP | QX181: PNC20 | RN181: HIBV
A182: 17 | B182: COVID19 | C182: 89 | D182: 54 | E182: 24 | F182: 1 | H182: 50 | I182: 32 | J182: 10 | M182: 39 | N182: 22 | O182: 14 | P182: 1 | R182: VARZOS | AH182: UNK | AX182: FLU4 | AY182: 1 | AZ182: 1 | BI182: 1 | BJ182: 1 | BN182: FLUX | CD182: TDAP | CE182: 2 | CO182: 2 | CT182: FLUR4 | DJ182: VARCEL | DZ182: PPV | EP182: IPV | FF182: HEP | FV182: MMR | GL182: FLUC4 | HB182: DTAP | HR182: FLUA4 | IH182: DTAPIPV | IX182: MNQ | JN182: MENB | KD182: HPV9 | KT182: DF | LJ182: HEPA | LZ182: EBZR | MP182: DTAPIPVHIB | NF182: FLUC3 | NV182: MMRV | OL182: TD | PB182: FLUN4 | PR182: ANTH | QH182: TYP | QX182: PNC20 | RN182: HIBV
A183: 18 | B183: COVID19 | C183: 60 | D183: 29 | E183: 19 | F183: 5 | H183: 28 | I183: 10 | J183: 11 | K183: 2 | M183: 32 | N183: 19 | O183: 8 | P183: 3 | R183: VARZOS | S183: 1 | X183: 1 | AH183: UNK | AX183: FLU4 | BN183: FLUX | CD183: TDAP | CT183: FLUR4 | DJ183: VARCEL | DZ183: PPV | EP183: IPV | FF183: HEP | FV183: MMR | GL183: FLUC4 | HB183: DTAP | HR183: FLUA4 | IH183: DTAPIPV | IX183: MNQ | JN183: MENB | KD183: HPV9 | KT183: DF | LJ183: HEPA | LZ183: EBZR | MP183: DTAPIPVHIB | NF183: FLUC3 | NV183: MMRV | OL183: TD | PB183: FLUN4 | PR183: ANTH | QH183: TYP | QX183: PNC20 | RN183: HIBV
A184: 19 | B184: COVID19 | C184: 91 | D184: 52 | E184: 26 | F184: 3 | G184: 1 | H184: 45 | I184: 24 | J184: 12 | K184: 2 | L184: 1 | M184: 44 | N184: 27 | O184: 13 | P184: 1 | R184: VARZOS | S184: 2 | U184: 1 | AC184: 2 | AE184: 1 | AH184: UNK | AX184: FLU4 | AY184: 3 | BD184: 2 | BI184: 1 | BN184: FLUX | CD184: TDAP | CT184: FLUR4 | DJ184: VARCEL | DZ184: PPV | EA184: 1 | EF184: 1 | EP184: IPV | FF184: HEP | FV184: MMR | GL184: FLUC4 | HB184: DTAP | HR184: FLUA4 | HS184: 1 | HX184: 1 | IH184: DTAPIPV | IX184: MNQ | JN184: MENB | KD184: HPV9 | KT184: DF | LJ184: HEPA | LZ184: EBZR | MP184: DTAPIPVHIB | NF184: FLUC3 | NV184: MMRV | OL184: TD | PB184: FLUN4 | PR184: ANTH | QH184: TYP | QX184: PNC20 | RN184: HIBV
A185: 20 | B185: COVID19 | C185: 56 | D185: 32 | E185: 16 | F185: 2 | H185: 26 | I185: 15 | J185: 7 | K185: 1 | M185: 30 | N185: 17 | O185: 9 | P185: 1 | R185: VARZOS | AH185: UNK | AX185: FLU4 | BN185: FLUX | CD185: TDAP | CT185: FLUR4 | DJ185: VARCEL | DZ185: PPV | EP185: IPV | FF185: HEP | FV185: MMR | GL185: FLUC4 | HB185: DTAP | HR185: FLUA4 | IH185: DTAPIPV | IX185: MNQ | JN185: MENB | KD185: HPV9 | KT185: DF | LJ185: HEPA | LZ185: EBZR | MP185: DTAPIPVHIB | NF185: FLUC3 | NV185: MMRV | OL185: TD | PB185: FLUN4 | PR185: ANTH | QH185: TYP | QX185: PNC20 | RN185: HIBV
A186: 21 | B186: COVID19 | C186: 72 | D186: 38 | E186: 21 | F186: 4 | H186: 36 | I186: 19 | J186: 11 | K186: 2 | M186: 33 | N186: 17 | O186: 9 | P186: 2 | R186: VARZOS | AH186: UNK | AX186: FLU4 | AY186: 1 | BI186: 1 | BN186: FLUX | CD186: TDAP | CT186: FLUR4 | DJ186: VARCEL | DZ186: PPV | EP186: IPV | FF186: HEP | FV186: MMR | GL186: FLUC4 | HB186: DTAP | HR186: FLUA4 | IH186: DTAPIPV | IX186: MNQ | JN186: MENB | KD186: HPV9 | KT186: DF | LJ186: HEPA | LZ186: EBZR | MP186: DTAPIPVHIB | NF186: FLUC3 | NV186: MMRV | OL186: TD | PB186: FLUN4 | PR186: ANTH | QH186: TYP | QX186: PNC20 | RN186: HIBV
A187: 22 | B187: COVID19 | C187: 59 | D187: 31 | E187: 20 | F187: 3 | H187: 28 | I187: 16 | J187: 7 | K187: 1 | M187: 30 | N187: 14 | O187: 13 | P187: 2 | R187: VARZOS | AH187: UNK | AI187: 3 | AN187: 2 | AS187: 1 | AX187: FLU4 | BN187: FLUX | BO187: 1 | BY187: 1 | CD187: TDAP | CT187: FLUR4 | DJ187: VARCEL | DZ187: PPV | EP187: IPV | FF187: HEP | FV187: MMR | GL187: FLUC4 | HB187: DTAP | HR187: FLUA4 | IH187: DTAPIPV | IX187: MNQ | JN187: MENB | KD187: HPV9 | KT187: DF | KU187: 1 | KV187: 1 | LE187: 1 | LF187: 1 | LJ187: HEPA | LZ187: EBZR | MP187: DTAPIPVHIB | NF187: FLUC3 | NV187: MMRV | OL187: TD | PB187: FLUN4 | PR187: ANTH | QH187: TYP | QX187: PNC20 | RN187: HIBV
A188: 23 | B188: COVID19 | C188: 36 | D188: 19 | E188: 9 | F188: 3 | H188: 17 | I188: 10 | J188: 5 | K188: 1 | M188: 19 | N188: 9 | O188: 4 | P188: 2 | R188: VARZOS | AH188: UNK | AX188: FLU4 | BN188: FLUX | CD188: TDAP | CT188: FLUR4 | DJ188: VARCEL | DZ188: PPV | EP188: IPV | FF188: HEP | FV188: MMR | GL188: FLUC4 | HB188: DTAP | HR188: FLUA4 | IH188: DTAPIPV | IX188: MNQ | JN188: MENB | KD188: HPV9 | KT188: DF | LJ188: HEPA | LZ188: EBZR | MP188: DTAPIPVHIB | NF188: FLUC3 | NV188: MMRV | OL188: TD | PB188: FLUN4 | PR188: ANTH | QH188: TYP | QX188: PNC20 | RN188: HIBV
A189: 24 | B189: COVID19 | C189: 39 | D189: 14 | E189: 14 | F189: 4 | H189: 20 | I189: 10 | J189: 6 | K189: 3 | M189: 19 | N189: 4 | O189: 8 | P189: 1 | R189: VARZOS | AH189: UNK | AX189: FLU4 | AY189: 1 | BI189: 1 | BN189: FLUX | CD189: TDAP | CT189: FLUR4 | DJ189: VARCEL | DZ189: PPV | EP189: IPV | FF189: HEP | FV189: MMR | GL189: FLUC4 | HB189: DTAP | HR189: FLUA4 | IH189: DTAPIPV | IX189: MNQ | JN189: MENB | KD189: HPV9 | KT189: DF | LJ189: HEPA | LZ189: EBZR | MP189: DTAPIPVHIB | NF189: FLUC3 | NV189: MMRV | OL189: TD | PB189: FLUN4 | PR189: ANTH | QH189: TYP | QX189: PNC20 | RN189: HIBV
A190: 25 | B190: COVID19 | C190: 36 | D190: 16 | E190: 14 | F190: 1 | G190: 1 | H190: 20 | I190: 9 | J190: 7 | K190: 1 | L190: 1 | M190: 16 | N190: 7 | O190: 7 | R190: VARZOS | AH190: UNK | AX190: FLU4 | BN190: FLUX | CD190: TDAP | CT190: FLUR4 | DJ190: VARCEL | DZ190: PPV | EP190: IPV | FF190: HEP | FV190: MMR | GL190: FLUC4 | HB190: DTAP | HR190: FLUA4 | IH190: DTAPIPV | IX190: MNQ | JN190: MENB | KD190: HPV9 | KT190: DF | LJ190: HEPA | LZ190: EBZR | MP190: DTAPIPVHIB | NF190: FLUC3 | NV190: MMRV | OL190: TD | PB190: FLUN4 | PR190: ANTH | QH190: TYP | QX190: PNC20 | RN190: HIBV
A191: 26 | B191: COVID19 | C191: 42 | D191: 23 | E191: 8 | F191: 2 | H191: 26 | I191: 13 | J191: 5 | K191: 2 | M191: 16 | N191: 10 | O191: 3 | R191: VARZOS | AH191: UNK | AX191: FLU4 | BN191: FLUX | CD191: TDAP | CT191: FLUR4 | DJ191: VARCEL | DZ191: PPV | EP191: IPV | FF191: HEP | FV191: MMR | GL191: FLUC4 | HB191: DTAP | HR191: FLUA4 | IH191: DTAPIPV | IX191: MNQ | JN191: MENB | KD191: HPV9 | KT191: DF | LJ191: HEPA | LZ191: EBZR | MP191: DTAPIPVHIB | NF191: FLUC3 | NV191: MMRV | OL191: TD | PB191: FLUN4 | PR191: ANTH | QH191: TYP | QX191: PNC20 | RN191: HIBV
A192: 27 | B192: COVID19 | C192: 34 | D192: 16 | E192: 8 | F192: 2 | H192: 13 | I192: 6 | J192: 2 | K192: 2 | M192: 21 | N192: 10 | O192: 6 | R192: VARZOS | AH192: UNK | AX192: FLU4 | BN192: FLUX | CD192: TDAP | CT192: FLUR4 | DJ192: VARCEL | DZ192: PPV | EP192: IPV | FF192: HEP | FV192: MMR | GL192: FLUC4 | HB192: DTAP | HR192: FLUA4 | IH192: DTAPIPV | IX192: MNQ | JN192: MENB | KD192: HPV9 | KT192: DF | LJ192: HEPA | LZ192: EBZR | MP192: DTAPIPVHIB | NF192: FLUC3 | NV192: MMRV | OL192: TD | PB192: FLUN4 | PR192: ANTH | QH192: TYP | QX192: PNC20 | RN192: HIBV
A193: 28 | B193: COVID19 | C193: 26 | D193: 12 | E193: 9 | F193: 1 | H193: 12 | I193: 7 | J193: 5 | M193: 14 | N193: 5 | O193: 4 | P193: 1 | R193: VARZOS | AH193: UNK | AI193: 1 | AL193: 1 | AS193: 1 | AV193: 1 | AX193: FLU4 | BN193: FLUX | CD193: TDAP | CT193: FLUR4 | DJ193: VARCEL | DZ193: PPV | EP193: IPV | FF193: HEP | FV193: MMR | GL193: FLUC4 | HB193: DTAP | HR193: FLUA4 | IH193: DTAPIPV | IX193: MNQ | JN193: MENB | KD193: HPV9 | KT193: DF | LJ193: HEPA | LZ193: EBZR | MP193: DTAPIPVHIB | NF193: FLUC3 | NV193: MMRV | OL193: TD | PB193: FLUN4 | PR193: ANTH | QH193: TYP | QX193: PNC20 | RN193: HIBV
A194: 29 | B194: COVID19 | C194: 38 | D194: 12 | E194: 18 | H194: 15 | I194: 5 | J194: 8 | M194: 23 | N194: 7 | O194: 10 | R194: VARZOS | AH194: UNK | AX194: FLU4 | BN194: FLUX | CD194: TDAP | CT194: FLUR4 | DJ194: VARCEL | DZ194: PPV | EP194: IPV | FF194: HEP | FV194: MMR | GL194: FLUC4 | HB194: DTAP | HR194: FLUA4 | IH194: DTAPIPV | IX194: MNQ | JN194: MENB | KD194: HPV9 | KT194: DF | LJ194: HEPA | LZ194: EBZR | MP194: DTAPIPVHIB | NF194: FLUC3 | NV194: MMRV | OL194: TD | PB194: FLUN4 | PR194: ANTH | QH194: TYP | QX194: PNC20 | RN194: HIBV
A195: 30 | B195: COVID19 | C195: 32 | D195: 9 | E195: 13 | F195: 3 | H195: 13 | I195: 5 | J195: 6 | K195: 1 | M195: 19 | N195: 4 | O195: 7 | P195: 2 | R195: VARZOS | AH195: UNK | AX195: FLU4 | BN195: FLUX | CD195: TDAP | CT195: FLUR4 | DJ195: VARCEL | DZ195: PPV | EP195: IPV | FF195: HEP | FG195: 1 | FH195: 1 | FV195: MMR | GL195: FLUC4 | HB195: DTAP | HR195: FLUA4 | IH195: DTAPIPV | IX195: MNQ | JN195: MENB | KD195: HPV9 | KT195: DF | LJ195: HEPA | LZ195: EBZR | MP195: DTAPIPVHIB | NF195: FLUC3 | NV195: MMRV | OL195: TD | PB195: FLUN4 | PR195: ANTH | QH195: TYP | QX195: PNC20 | RN195: HIBV
A196: 31 | B196: COVID19 | C196: 37 | D196: 12 | E196: 19 | F196: 4 | H196: 14 | I196: 4 | J196: 8 | K196: 2 | M196: 23 | N196: 8 | O196: 11 | P196: 2 | R196: VARZOS | S196: 1 | T196: 1 | X196: 1 | Y196: 1 | AH196: UNK | AX196: FLU4 | BN196: FLUX | CD196: TDAP | CT196: FLUR4 | DJ196: VARCEL | DZ196: PPV | EP196: IPV | FF196: HEP | FV196: MMR | GL196: FLUC4 | HB196: DTAP | HR196: FLUA4 | IH196: DTAPIPV | IX196: MNQ | JN196: MENB | KD196: HPV9 | KT196: DF | LJ196: HEPA | LZ196: EBZR | MP196: DTAPIPVHIB | NF196: FLUC3 | NV196: MMRV | OL196: TD | PB196: FLUN4 | PR196: ANTH | QH196: TYP | QX196: PNC20 | RN196: HIBV
A197: 32 | B197: COVID19 | C197: 37 | D197: 13 | E197: 22 | H197: 19 | I197: 9 | J197: 8 | M197: 18 | N197: 4 | O197: 14 | R197: VARZOS | S197: 1 | U197: 1 | AC197: 1 | AE197: 1 | AH197: UNK | AX197: FLU4 | BN197: FLUX | CD197: TDAP | CT197: FLUR4 | DJ197: VARCEL | DZ197: PPV | EP197: IPV | FF197: HEP | FV197: MMR | GL197: FLUC4 | HB197: DTAP | HR197: FLUA4 | IH197: DTAPIPV | IX197: MNQ | JN197: MENB | KD197: HPV9 | KT197: DF | LJ197: HEPA | LZ197: EBZR | MP197: DTAPIPVHIB | NF197: FLUC3 | NV197: MMRV | OL197: TD | PB197: FLUN4 | PR197: ANTH | QH197: TYP | QX197: PNC20 | RN197: HIBV
A198: 33 | B198: COVID19 | C198: 23 | D198: 10 | E198: 11 | F198: 1 | H198: 10 | I198: 6 | J198: 4 | M198: 13 | N198: 4 | O198: 7 | P198: 1 | R198: VARZOS | S198: 1 | AC198: 1 | AH198: UNK | AX198: FLU4 | AY198: 1 | AZ198: 1 | BD198: 1 | BE198: 1 | BN198: FLUX | CD198: TDAP | CT198: FLUR4 | DJ198: VARCEL | DZ198: PPV | EP198: IPV | FF198: HEP | FV198: MMR | GL198: FLUC4 | HB198: DTAP | HR198: FLUA4 | IH198: DTAPIPV | IX198: MNQ | JN198: MENB | KD198: HPV9 | KT198: DF | LJ198: HEPA | LZ198: EBZR | MP198: DTAPIPVHIB | NF198: FLUC3 | NV198: MMRV | OL198: TD | PB198: FLUN4 | PR198: ANTH | QH198: TYP | QX198: PNC20 | RN198: HIBV
A199: 34 | B199: COVID19 | C199: 29 | D199: 15 | E199: 11 | H199: 14 | I199: 7 | J199: 6 | M199: 13 | N199: 7 | O199: 4 | R199: VARZOS | AH199: UNK | AX199: FLU4 | BN199: FLUX | CD199: TDAP | CT199: FLUR4 | DJ199: VARCEL | DZ199: PPV | EP199: IPV | FF199: HEP | FV199: MMR | GL199: FLUC4 | HB199: DTAP | HR199: FLUA4 | IH199: DTAPIPV | IX199: MNQ | JN199: MENB | KD199: HPV9 | KT199: DF | LJ199: HEPA | LZ199: EBZR | MP199: DTAPIPVHIB | NF199: FLUC3 | NV199: MMRV | OL199: TD | PB199: FLUN4 | PR199: ANTH | QH199: TYP | QX199: PNC20 | RN199: HIBV
A200: 35 | B200: COVID19 | C200: 27 | D200: 10 | E200: 11 | F200: 1 | H200: 12 | I200: 3 | J200: 4 | M200: 15 | N200: 7 | O200: 7 | P200: 1 | R200: VARZOS | AH200: UNK | AI200: 1 | AK200: 1 | AN200: 1 | AP200: 1 | AX200: FLU4 | BN200: FLUX | CD200: TDAP | CT200: FLUR4 | DJ200: VARCEL | DZ200: PPV | EP200: IPV | FF200: HEP | FV200: MMR | GL200: FLUC4 | HB200: DTAP | HR200: FLUA4 | IH200: DTAPIPV | IX200: MNQ | JN200: MENB | KD200: HPV9 | KT200: DF | LJ200: HEPA | LZ200: EBZR | MP200: DTAPIPVHIB | NF200: FLUC3 | NV200: MMRV | OL200: TD | PB200: FLUN4 | PR200: ANTH | QH200: TYP | QX200: PNC20 | RN200: HIBV
A201: 36 | B201: COVID19 | C201: 27 | D201: 9 | E201: 15 | F201: 2 | H201: 15 | I201: 6 | J201: 8 | M201: 11 | N201: 3 | O201: 7 | P201: 1 | R201: VARZOS | AH201: UNK | AX201: FLU4 | AY201: 1 | BD201: 1 | BN201: FLUX | CD201: TDAP | CT201: FLUR4 | CU201: 1 | CV201: 1 | DJ201: VARCEL | DZ201: PPV | EP201: IPV | FF201: HEP | FV201: MMR | GL201: FLUC4 | HB201: DTAP | HR201: FLUA4 | IH201: DTAPIPV | IX201: MNQ | JN201: MENB | KD201: HPV9 | KT201: DF | LJ201: HEPA | LZ201: EBZR | MP201: DTAPIPVHIB | NF201: FLUC3 | NV201: MMRV | OL201: TD | PB201: FLUN4 | PR201: ANTH | QH201: TYP | QX201: PNC20 | RN201: HIBV
A202: 37 | B202: COVID19 | C202: 14 | D202: 5 | E202: 7 | H202: 6 | I202: 2 | J202: 3 | M202: 8 | N202: 3 | O202: 4 | R202: VARZOS | AH202: UNK | AX202: FLU4 | AY202: 1 | BI202: 1 | BN202: FLUX | CD202: TDAP | CT202: FLUR4 | DJ202: VARCEL | DZ202: PPV | EP202: IPV | FF202: HEP | FV202: MMR | GL202: FLUC4 | HB202: DTAP | HR202: FLUA4 | IH202: DTAPIPV | IX202: MNQ | JN202: MENB | KD202: HPV9 | KT202: DF | LJ202: HEPA | LZ202: EBZR | MP202: DTAPIPVHIB | NF202: FLUC3 | NV202: MMRV | OL202: TD | PB202: FLUN4 | PR202: ANTH | QH202: TYP | QX202: PNC20 | RN202: HIBV
A203: 38 | B203: COVID19 | C203: 17 | D203: 6 | E203: 8 | F203: 1 | H203: 9 | I203: 4 | J203: 2 | K203: 1 | M203: 8 | N203: 2 | O203: 6 | R203: VARZOS | AH203: UNK | AX203: FLU4 | BN203: FLUX | CD203: TDAP | CT203: FLUR4 | DJ203: VARCEL | DZ203: PPV | EP203: IPV | FF203: HEP | FV203: MMR | GL203: FLUC4 | HB203: DTAP | HR203: FLUA4 | IH203: DTAPIPV | IX203: MNQ | JN203: MENB | KD203: HPV9 | KT203: DF | LJ203: HEPA | LZ203: EBZR | MP203: DTAPIPVHIB | NF203: FLUC3 | NV203: MMRV | OL203: TD | PB203: FLUN4 | PR203: ANTH | QH203: TYP | QX203: PNC20 | RN203: HIBV
... 1565 more rows

Sheet V_fatigure
A1: Selected VAERS search terms:
A2: Fatigue
A4: Dose report
A5: Vaccine Name | B5: All | C5: 1 | D5: 2 | E5: 3 | F5: 4 | G5: 5 | H5: 6 | I5: 7+ | J5: UNK | K5: N/A | L5: All male | M5: 1 male | N5: 2 male | O5: 3 male | P5: 4 male | Q5: 5 male | R5: 6 male | S5: 7+ male | T5: UNK male | U5: N/A male | V5: All female | W5: 1 female | X5: 2 female | Y5: 3 female | Z5: 4 female | AA5: 5 female | AB5: 6 female | AC5: 7+ female | AD5: UNK female | AE5: N/A female | AF5: All Unknown | AG5: 1 Unknown | AH5: 2 Unknown | AI5: 3 Unknown | AJ5: 4 Unknown | AK5: 5 Unknown | AL5: 6 Unknown | AM5: 7+ Unknown | AN5: UNK Unknown | AO5: N/A Unknown
A6: COVID19 | B6: 154437 | C6: 69579 | D6: 52602 | E6: 8472 | F6: 493 | G6: 16 | H6: 7 | I6: 25 | J6: 22804 | K6: 439 | L6: 38194 | M6: 17038 | N6: 12891 | O6: 2079 | P6: 146 | Q6: 5 | R6: 2 | S6: 6 | T6: 5927 | U6: 100 | V6: 113046 | W6: 51373 | X6: 38953 | Y6: 6226 | Z6: 336 | AA6: 11 | AB6: 5 | AC6: 19 | AD6: 15784 | AE6: 339 | AF6: 3197 | AG6: 1168 | AH6: 758 | AI6: 167 | AJ6: 11 | AN6: 1093
A7: VARZOS | B7: 9752 | C7: 4372 | D7: 3209 | E7: 19 | F7: 2 | G7: 2 | I7: 4 | J7: 2131 | K7: 13 | L7: 2679 | M7: 1181 | N7: 877 | O7: 12 | T7: 607 | U7: 2 | V7: 6623 | W7: 3041 | X7: 2198 | Y7: 7 | Z7: 2 | AA7: 2 | AC7: 4 | AD7: 1358 | AE7: 11 | AF7: 450 | AG7: 150 | AH7: 134 | AN7: 166
A8: FLU3 | B8: 3576 | C8: 1092 | D8: 231 | E8: 83 | F8: 45 | G8: 29 | H8: 44 | I8: 104 | J8: 1891 | K8: 57 | L8: 1053 | M8: 322 | N8: 65 | O8: 30 | P8: 11 | Q8: 6 | R8: 15 | S8: 34 | T8: 555 | U8: 15 | V8: 2471 | W8: 761 | X8: 163 | Y8: 52 | Z8: 34 | AA8: 23 | AB8: 29 | AC8: 68 | AD8: 1299 | AE8: 42 | AF8: 52 | AG8: 9 | AH8: 3 | AI8: 1 | AM8: 2 | AN8: 37
A9: HPV4 | B9: 3024 | C9: 1006 | D9: 604 | E9: 669 | F9: 21 | G9: 2 | J9: 722 | L9: 177 | M9: 56 | N9: 40 | O9: 37 | Q9: 1 | T9: 43 | V9: 2767 | W9: 937 | X9: 540 | Y9: 620 | Z9: 21 | AA9: 1 | AD9: 648 | AF9: 80 | AG9: 13 | AH9: 24 | AI9: 12 | AN9: 31
A10: UNK | B10: 2356 | C10: 410 | D10: 277 | E10: 41 | F10: 10 | G10: 2 | I10: 1 | J10: 1599 | K10: 16 | L10: 584 | M10: 93 | N10: 79 | O10: 14 | P10: 3 | T10: 393 | U10: 2 | V10: 1721 | W10: 313 | X10: 195 | Y10: 27 | Z10: 7 | AA10: 2 | AD10: 1163 | AE10: 14 | AF10: 51 | AG10: 4 | AH10: 3 | AM10: 1 | AN10: 43
A11: PPV | B11: 2215 | C11: 890 | D11: 269 | E11: 27 | F11: 5 | G11: 2 | J11: 984 | K11: 38 | L11: 664 | M11: 261 | N11: 72 | O11: 9 | P11: 2 | Q11: 1 | T11: 308 | U11: 11 | V11: 1507 | W11: 622 | X11: 196 | Y11: 18 | Z11: 3 | AA11: 1 | AD11: 640 | AE11: 27 | AF11: 44 | AG11: 7 | AH11: 1 | AN11: 36
A12: TDAP | B12: 2178 | C12: 886 | D12: 111 | E12: 19 | F12: 9 | G12: 11 | H12: 52 | I12: 10 | J12: 1020 | K12: 60 | L12: 632 | M12: 275 | N12: 29 | O12: 3 | P12: 2 | Q12: 5 | R12: 20 | S12: 5 | T12: 280 | U12: 13 | V12: 1516 | W12: 606 | X12: 81 | Y12: 15 | Z12: 6 | AA12: 6 | AB12: 31 | AC12: 5 | AD12: 719 | AE12: 47 | AF12: 30 | AG12: 5 | AH12: 1 | AI12: 1 | AJ12: 1 | AL12: 1 | AN12: 21
A13: HEP | B13: 1805 | C13: 496 | D13: 374 | E13: 241 | F13: 65 | G13: 12 | H13: 4 | I13: 2 | J13: 611 | L13: 583 | M13: 158 | N13: 117 | O13: 87 | P13: 15 | Q13: 5 | R13: 1 | T13: 200 | V13: 1196 | W13: 337 | X13: 252 | Y13: 152 | Z13: 50 | AA13: 7 | AB13: 3 | AC13: 2 | AD13: 393 | AF13: 26 | AG13: 1 | AH13: 5 | AI13: 2 | AN13: 18
A14: FLUX | B14: 1797 | C14: 273 | D14: 63 | E14: 20 | F14: 15 | G14: 9 | H14: 8 | I14: 20 | J14: 1387 | K14: 2 | L14: 556 | M14: 77 | N14: 18 | O14: 3 | P14: 1 | Q14: 4 | R14: 1 | S14: 8 | T14: 444 | V14: 1197 | W14: 194 | X14: 45 | Y14: 17 | Z14: 13 | AA14: 5 | AB14: 7 | AC14: 12 | AD14: 902 | AE14: 2 | AF14: 44 | AG14: 2 | AJ14: 1 | AN14: 41
A15: FLU4 | B15: 1794 | C15: 745 | D15: 45 | E15: 12 | F15: 9 | G15: 6 | H15: 11 | I15: 33 | J15: 781 | K15: 152 | L15: 508 | M15: 217 | N15: 23 | O15: 3 | P15: 3 | Q15: 4 | R15: 7 | S15: 14 | T15: 198 | U15: 39 | V15: 1265 | W15: 526 | X15: 22 | Y15: 9 | Z15: 6 | AA15: 2 | AB15: 4 | AC15: 19 | AD15: 565 | AE15: 112 | AF15: 21 | AG15: 2 | AN15: 18 | AO15: 1
A16: MMR | B16: 1185 | C16: 410 | D16: 225 | E16: 29 | F16: 4 | H16: 1 | I16: 2 | J16: 508 | K16: 6 | L16: 481 | M16: 169 | N16: 94 | O16: 7 | P16: 2 | R16: 1 | S16: 1 | T16: 204 | U16: 3 | V16: 690 | W16: 239 | X16: 130 | Y16: 22 | Z16: 2 | AC16: 1 | AD16: 293 | AE16: 3 | AF16: 14 | AG16: 2 | AH16: 1 | AN16: 11
A17: HEPA | B17: 1092 | C17: 474 | D17: 259 | E17: 12 | F17: 2 | J17: 345 | L17: 458 | M17: 190 | N17: 119 | O17: 7 | T17: 142 | V17: 619 | W17: 278 | X17: 139 | Y17: 5 | Z17: 2 | AD17: 195 | AF17: 15 | AG17: 6 | AH17: 1 | AN17: 8
A18: PNC13 | B18: 1079 | C18: 394 | D18: 106 | E18: 46 | F18: 49 | G18: 3 | J18: 460 | K18: 21 | L18: 340 | M18: 113 | N18: 53 | O18: 24 | P18: 26 | Q18: 2 | T18: 119 | U18: 3 | V18: 718 | W18: 280 | X18: 51 | Y18: 22 | Z18: 23 | AA18: 1 | AD18: 323 | AE18: 18 | AF18: 21 | AG18: 1 | AH18: 2 | AN18: 18
A19: MNQ | B19: 1007 | C19: 562 | D19: 158 | E19: 8 | F19: 1 | G19: 1 | J19: 275 | K19: 2 | L19: 423 | M19: 242 | N19: 69 | O19: 1 | P19: 1 | Q19: 1 | T19: 108 | U19: 1 | V19: 572 | W19: 318 | X19: 89 | Y19: 7 | AD19: 157 | AE19: 1 | AF19: 12 | AG19: 2 | AN19: 10
A20: ANTH | B20: 856 | C20: 185 | D20: 110 | E20: 125 | F20: 95 | G20: 70 | H20: 47 | I20: 46 | J20: 178 | L20: 608 | M20: 127 | N20: 71 | O20: 90 | P20: 76 | Q20: 52 | R20: 31 | S20: 37 | T20: 124 | V20: 231 | W20: 57 | X20: 37 | Y20: 34 | Z20: 18 | AA20: 18 | AB20: 16 | AC20: 9 | AD20: 42 | AF20: 17 | AG20: 1 | AH20: 2 | AI20: 1 | AJ20: 1 | AN20: 12
A21: VARCEL | B21: 779 | C21: 310 | D21: 244 | E21: 3 | G21: 1 | J21: 220 | K21: 1 | L21: 303 | M21: 124 | N21: 94 | O21: 2 | Q21: 1 | T21: 81 | U21: 1 | V21: 469 | W21: 184 | X21: 149 | Y21: 1 | AD21: 135 | AF21: 7 | AG21: 2 | AH21: 1 | AN21: 4
A22: DTAP | B22: 687 | C22: 102 | D22: 63 | E22: 39 | F22: 85 | G22: 80 | H22: 13 | I22: 2 | J22: 300 | K22: 3 | L22: 325 | M22: 36 | N22: 37 | O22: 23 | P22: 46 | Q22: 47 | R22: 8 | S22: 1 | T22: 126 | U22: 1 | V22: 355 | W22: 65 | X22: 26 | Y22: 16 | Z22: 39 | AA22: 33 | AB22: 5 | AC22: 1 | AD22: 168 | AE22: 2 | AF22: 7 | AG22: 1 | AN22: 6
A23: MENB | B23: 674 | C23: 336 | D23: 136 | E23: 4 | F23: 2 | J23: 195 | K23: 1 | L23: 290 | M23: 144 | N23: 55 | O23: 3 | T23: 88 | V23: 340 | W23: 185 | X23: 78 | Y23: 1 | Z23: 2 | AD23: 73 | AE23: 1 | AF23: 44 | AG23: 7 | AH23: 3 | AN23: 34
A24: HPV9 | B24: 604 | C24: 234 | D24: 128 | E24: 85 | F24: 4 | G24: 1 | J24: 151 | K24: 1 | L24: 185 | M24: 78 | N24: 40 | O24: 26 | P24: 2 | T24: 38 | U24: 1 | V24: 415 | W24: 156 | X24: 87 | Y24: 59 | Z24: 2 | AA24: 1 | AD24: 110 | AF24: 4 | AH24: 1 | AN24: 3
A25: TYP | B25: 551 | C25: 165 | D25: 43 | E25: 26 | F25: 16 | G25: 13 | H25: 1 | I25: 5 | J25: 272 | K25: 10 | L25: 271 | M25: 78 | N25: 18 | O25: 15 | P25: 9 | Q25: 7 | R25: 1 | S25: 4 | T25: 137 | U25: 2 | V25: 274 | W25: 86 | X25: 25 | Y25: 11 | Z25: 7 | AA25: 6 | AC25: 1 | AD25: 130 | AE25: 8 | AF25: 6 | AG25: 1 | AN25: 5
A26: TD | B26: 518 | C26: 79 | D26: 51 | E26: 14 | F26: 10 | G26: 6 | H26: 14 | I26: 6 | J26: 332 | K26: 6 | L26: 177 | M26: 25 | N26: 17 | O26: 8 | P26: 2 | Q26: 2 | R26: 4 | S26: 3 | T26: 116 | V26: 333 | W26: 54 | X26: 33 | Y26: 6 | Z26: 8 | AA26: 4 | AB26: 10 | AC26: 3 | AD26: 209 | AE26: 6 | AF26: 8 | AH26: 1 | AN26: 7
A27: LYME | B27: 477 | C27: 87 | D27: 150 | E27: 117 | F27: 7 | G27: 1 | J27: 115 | L27: 239 | M27: 39 | N27: 79 | O27: 56 | P27: 4 | Q27: 1 | T27: 60 | V27: 231 | W27: 48 | X27: 67 | Y27: 60 | Z27: 3 | AD27: 53 | AF27: 7 | AH27: 4 | AI27: 1 | AN27: 2
A28: IPV | B28: 474 | C28: 66 | D28: 52 | E28: 36 | F28: 67 | G28: 14 | H28: 3 | J28: 234 | K28: 2 | L28: 240 | M28: 29 | N28: 26 | O28: 18 | P28: 38 | Q28: 6 | T28: 123 | V28: 231 | W28: 37 | X28: 25 | Y28: 18 | Z28: 29 | AA28: 8 | AB28: 3 | AD28: 109 | AE28: 2 | AF28: 3 | AH28: 1 | AN28: 2
A29: FLU(H1N1) | B29: 458 | C29: 276 | D29: 37 | G29: 1 | I29: 1 | J29: 143 | L29: 148 | M29: 79 | N29: 12 | T29: 57 | V29: 309 | W29: 196 | X29: 25 | AA29: 1 | AC29: 1 | AD29: 86 | AF29: 1 | AG29: 1
A30: HEPAB | B30: 424 | C30: 128 | D30: 89 | E30: 48 | F30: 2 | G30: 1 | I30: 1 | J30: 155 | L30: 183 | M30: 57 | N30: 37 | O30: 16 | T30: 73 | V30: 232 | W30: 70 | X30: 51 | Y30: 31 | Z30: 2 | AA30: 1 | AC30: 1 | AD30: 76 | AF30: 9 | AG30: 1 | AH30: 1 | AI30: 1 | AN30: 6
A31: SMALL | B31: 408 | C31: 188 | D31: 73 | E31: 8 | F31: 3 | G31: 1 | I31: 1 | J31: 133 | K31: 1 | L31: 260 | M31: 138 | N31: 27 | O31: 1 | P31: 3 | S31: 1 | T31: 89 | U31: 1 | V31: 142 | W31: 50 | X31: 45 | Y31: 7 | AA31: 1 | AD31: 39 | AF31: 6 | AH31: 1 | AN31: 5
A32: HPV2 | B32: 394 | C32: 108 | D32: 55 | E32: 95 | J32: 136 | L32: 5 | T32: 5 | V32: 382 | W32: 107 | X32: 55 | Y32: 95 | AD32: 125 | AF32: 7 | AG32: 1 | AN32: 6
A33: HIBV | B33: 342 | C33: 56 | D33: 60 | E33: 52 | F33: 44 | G33: 1 | J33: 129 | L33: 183 | M33: 27 | N33: 34 | O33: 35 | P33: 20 | Q33: 1 | T33: 66 | V33: 154 | W33: 28 | X33: 26 | Y33: 17 | Z33: 24 | AD33: 59 | AF33: 5 | AG33: 1 | AN33: 4
A34: RAB | B34: 299 | C34: 81 | D34: 69 | E34: 40 | F34: 22 | G34: 12 | I34: 2 | J34: 73 | L34: 103 | M34: 23 | N34: 20 | O34: 16 | P34: 9 | Q34: 5 | S34: 1 | T34: 29 | V34: 192 | W34: 57 | X34: 48 | Y34: 24 | Z34: 13 | AA34: 6 | AC34: 1 | AD34: 43 | AF34: 4 | AG34: 1 | AH34: 1 | AK34: 1 | AN34: 1
A35: YF | B35: 284 | C35: 150 | D35: 15 | E35: 1 | F35: 1 | J35: 116 | K35: 1 | L35: 126 | M35: 58 | N35: 8 | T35: 59 | U35: 1 | V35: 154 | W35: 89 | X35: 7 | Z35: 1 | AD35: 57 | AF35: 4 | AG35: 3 | AI35: 1
A36: FLUC4 | B36: 271 | C36: 118 | D36: 5 | F36: 1 | J36: 133 | K36: 14 | L36: 68 | M36: 33 | P36: 1 | T36: 31 | U36: 3 | V36: 201 | W36: 84 | X36: 5 | AD36: 101 | AE36: 11 | AF36: 2 | AG36: 1 | AN36: 1
A37: MEN | B37: 265 | C37: 105 | D37: 17 | E37: 3 | J37: 140 | L37: 124 | M37: 43 | N37: 6 | T37: 75 | V37: 136 | W37: 61 | X37: 11 | Y37: 3 | AD37: 61 | AF37: 5 | AG37: 1 | AN37: 4
A38: FLUN3 | B38: 245 | C38: 96 | D38: 15 | E38: 7 | G38: 1 | H38: 1 | I38: 1 | J38: 124 | L38: 91 | M38: 28 | N38: 6 | O38: 4 | R38: 1 | S38: 1 | T38: 51 | V38: 151 | W38: 68 | X38: 9 | Y38: 3 | AA38: 1 | AD38: 70 | AF38: 3 | AN38: 3
A39: HPVX | B39: 239 | C39: 34 | D39: 31 | E39: 23 | F39: 3 | J39: 148 | L39: 19 | M39: 7 | N39: 1 | O39: 1 | T39: 10 | V39: 206 | W39: 26 | X39: 28 | Y39: 21 | Z39: 3 | AD39: 128 | AF39: 14 | AG39: 1 | AH39: 2 | AI39: 1 | AN39: 10
A40: FLUX(H1N1) | B40: 228 | C40: 102 | D40: 15 | E40: 1 | H40: 1 | J40: 109 | L40: 80 | M40: 34 | N40: 6 | O40: 1 | T40: 39 | V40: 147 | W40: 68 | X40: 9 | AB40: 1 | AD40: 69 | AF40: 1 | AN40: 1
A41: FLUN4 | B41: 193 | C41: 21 | D41: 7 | E41: 6 | F41: 2 | I41: 3 | J41: 153 | K41: 1 | L41: 90 | M41: 10 | N41: 6 | O41: 5 | P41: 1 | S41: 1 | T41: 67 | V41: 100 | W41: 11 | X41: 1 | Y41: 1 | Z41: 1 | AC41: 2 | AD41: 83 | AE41: 1 | AF41: 3 | AN41: 3
A42: FLUA3 | B42: 189 | C42: 45 | D42: 3 | I42: 1 | J42: 131 | K42: 9 | L42: 59 | M42: 14 | N42: 1 | T42: 43 | U42: 1 | V42: 127 | W42: 31 | X42: 2 | AC42: 1 | AD42: 85 | AE42: 8 | AF42: 3 | AN42: 3
A43: PNC | B43: 182 | C43: 51 | D43: 33 | E43: 23 | F43: 24 | J43: 51 | L43: 91 | M43: 26 | N43: 16 | O43: 12 | P43: 13 | T43: 24 | V43: 85 | W43: 24 | X43: 16 | Y43: 11 | Z43: 11 | AD43: 23 | AF43: 6 | AG43: 1 | AH43: 1 | AN43: 4
A44: DTAPIPV | B44: 157 | C44: 30 | D44: 4 | E44: 4 | F44: 9 | G44: 32 | J44: 76 | K44: 2 | L44: 76 | M44: 16 | N44: 1 | O44: 1 | P44: 2 | Q44: 21 | T44: 34 | U44: 1 | V44: 81 | W44: 14 | X44: 3 | Y44: 3 | Z44: 7 | AA44: 11 | AD44: 42 | AE44: 1 | AF44: 0 | AG44: 0 | AH44: 0 | AI44: 0 | AJ44: 0 | AK44: 0 | AL44: 0 | AM44: 0 | AN44: 0 | AO44: 0
A45: TTOX | B45: 148 | C45: 25 | D45: 7 | E45: 2 | F45: 4 | G45: 2 | H45: 2 | J45: 106 | L45: 32 | M45: 4 | N45: 3 | O45: 2 | T45: 23 | V45: 112 | W45: 21 | X45: 4 | Z45: 4 | AA45: 2 | AB45: 2 | AD45: 79 | AF45: 4 | AN45: 4
A46: RV5 | B46: 145 | C46: 42 | D46: 47 | E46: 22 | F46: 2 | J46: 32 | L46: 80 | M46: 25 | N46: 29 | O46: 14 | P46: 1 | T46: 11 | V46: 61 | W46: 17 | X46: 15 | Y46: 8 | Z46: 1 | AD46: 20 | AF46: 4 | AH46: 3 | AN46: 1
A47: FLUN(H1N1) | B47: 144 | C47: 102 | D47: 9 | J47: 33 | L47: 46 | M47: 33 | N47: 2 | T47: 11 | V47: 97 | W47: 68 | X47: 7 | AD47: 22 | AF47: 1 | AG47: 1
A48: MMRV | B48: 133 | C48: 54 | D48: 24 | E48: 3 | J48: 52 | L48: 67 | M48: 27 | N48: 13 | O48: 3 | T48: 24 | V48: 65 | W48: 27 | X48: 11 | AD48: 27 | AF48: 1 | AN48: 1
A49: DTAPIPVHIB | B49: 126 | C49: 28 | D49: 26 | E49: 15 | F49: 11 | J49: 45 | K49: 1 | L49: 71 | M49: 15 | N49: 15 | O49: 10 | P49: 6 | T49: 25 | V49: 54 | W49: 13 | X49: 10 | Y49: 5 | Z49: 5 | AD49: 20 | AE49: 1 | AF49: 1 | AH49: 1
A50: RV1 | B50: 108 | C50: 29 | D50: 33 | E50: 1 | J50: 45 | L50: 44 | M50: 9 | N50: 14 | O50: 1 | T50: 20 | V50: 55 | W50: 18 | X50: 15 | AD50: 22 | AF50: 9 | AG50: 2 | AH50: 4 | AN50: 3
A51: DTAPHEPBIP | B51: 105 | C51: 27 | D51: 37 | E51: 17 | F51: 3 | G51: 1 | J51: 20 | L51: 54 | M51: 17 | N51: 21 | O51: 8 | P51: 2 | T51: 6 | V51: 50 | W51: 10 | X51: 16 | Y51: 9 | Z51: 1 | AA51: 1 | AD51: 13 | AF51: 1 | AN51: 1
A52: FLUA4 | B52: 104 | C52: 51 | I52: 1 | J52: 48 | K52: 4 | L52: 26 | M52: 10 | T52: 16 | V52: 78 | W52: 41 | AC52: 1 | AD52: 32 | AE52: 4 | AF52: 0 | AG52: 0 | AH52: 0 | AI52: 0 | AJ52: 0 | AK52: 0 | AL52: 0 | AM52: 0 | AN52: 0 | AO52: 0
A53: 6VAX-F | B53: 104 | C53: 10 | D53: 20 | E53: 12 | F53: 2 | J53: 60 | L53: 54 | M53: 6 | N53: 10 | O53: 7 | P53: 1 | T53: 30 | V53: 46 | W53: 3 | X53: 10 | Y53: 5 | Z53: 1 | AD53: 27 | AF53: 4 | AG53: 1 | AN53: 3
A54: FLUR4 | B54: 91 | C54: 48 | D54: 1 | J54: 34 | K54: 8 | L54: 19 | M54: 12 | T54: 6 | U54: 1 | V54: 71 | W54: 35 | X54: 1 | AD54: 28 | AE54: 7 | AF54: 1 | AG54: 1
A55: DTP | B55: 67 | C55: 4 | D55: 11 | E55: 1 | F55: 1 | G55: 1 | J55: 49 | L55: 20 | M55: 1 | N55: 5 | T55: 14 | V55: 45 | W55: 3 | X55: 6 | Y55: 1 | Z55: 1 | AA55: 1 | AD55: 33 | AF55: 2 | AN55: 2
A56: DTIPV | B56: 53 | E56: 1 | J56: 52 | L56: 23 | O56: 1 | T56: 22 | V56: 28 | AD56: 28 | AF56: 2 | AN56: 2
A57: DT | B57: 46 | C57: 7 | D57: 4 | F57: 1 | G57: 3 | J57: 31 | L57: 14 | M57: 2 | N57: 2 | Q57: 2 | T57: 8 | V57: 30 | W57: 5 | X57: 2 | Z57: 1 | AA57: 1 | AD57: 21 | AF57: 2 | AN57: 2
A58: FLUC3 | B58: 40 | C58: 9 | D58: 1 | J58: 30 | L58: 11 | M58: 2 | T58: 9 | V58: 28 | W58: 6 | X58: 1 | AD58: 21 | AF58: 1 | AG58: 1
A59: JEV1 | B59: 31 | C59: 12 | D59: 5 | E59: 2 | J59: 11 | K59: 1 | L59: 17 | M59: 9 | N59: 3 | O59: 1 | T59: 4 | V59: 13 | W59: 3 | X59: 2 | Y59: 1 | AD59: 6 | AE59: 1 | AF59: 1 | AN59: 1
A60: OPV | B60: 28 | C60: 3 | D60: 3 | E60: 3 | F60: 2 | J60: 17 | L60: 13 | N60: 1 | O60: 2 | P60: 2 | T60: 8 | V60: 14 | W60: 3 | X60: 2 | Y60: 1 | AD60: 8 | AF60: 1 | AN60: 1
A61: HBHEPB | B61: 27 | C61: 8 | D61: 10 | E61: 4 | F61: 2 | J61: 3 | L61: 13 | M61: 3 | N61: 8 | O61: 1 | P61: 1 | V61: 14 | W61: 5 | X61: 2 | Y61: 3 | Z61: 1 | AD61: 3 | AF61: 0 | AG61: 0 | AH61: 0 | AI61: 0 | AJ61: 0 | AK61: 0 | AL61: 0 | AM61: 0 | AN61: 0 | AO61: 0
A62: RVX | B62: 27 | C62: 11 | D62: 8 | E62: 3 | J62: 5 | L62: 12 | M62: 6 | N62: 4 | O62: 1 | T62: 1 | V62: 14 | W62: 5 | X62: 4 | Y62: 2 | AD62: 3 | AF62: 1 | AN62: 1
A63: CHOL | B63: 26 | C63: 4 | D63: 1 | E63: 1 | J63: 17 | K63: 3 | L63: 12 | M63: 1 | O63: 1 | T63: 8 | U63: 2 | V63: 14 | W63: 3 | X63: 1 | AD63: 9 | AE63: 1 | AF63: 0 | AG63: 0 | AH63: 0 | AI63: 0 | AJ63: 0 | AK63: 0 | AL63: 0 | AM63: 0 | AN63: 0 | AO63: 0
A64: PNC10 | B64: 25 | C64: 4 | D64: 1 | J64: 20 | L64: 15 | M64: 1 | N64: 1 | T64: 13 | V64: 8 | W64: 2 | AD64: 6 | AF64: 2 | AG64: 1 | AN64: 1
A65: BCG | B65: 24 | C65: 2 | J65: 22 | L65: 11 | M65: 1 | T65: 10 | V65: 13 | W65: 1 | AD65: 12 | AF65: 0 | AG65: 0 | AH65: 0 | AI65: 0 | AJ65: 0 | AK65: 0 | AL65: 0 | AM65: 0 | AN65: 0 | AO65: 0
A66: JEV | B66: 23 | C66: 5 | D66: 9 | E66: 2 | F66: 1 | J66: 6 | L66: 11 | N66: 5 | O66: 1 | P66: 1 | T66: 4 | V66: 12 | W66: 5 | X66: 4 | Y66: 1 | AD66: 2 | AF66: 0 | AG66: 0 | AH66: 0 | AI66: 0 | AJ66: 0 | AK66: 0 | AL66: 0 | AM66: 0 | AN66: 0 | AO66: 0
A67: MEA | B67: 15 | C67: 4 | D67: 1 | J67: 10 | L67: 5 | N67: 1 | T67: 4 | V67: 10 | W67: 4 | AD67: 6 | AF67: 0 | AG67: 0 | AH67: 0 | AI67: 0 | AJ67: 0 | AK67: 0 | AL67: 0 | AM67: 0 | AN67: 0 | AO67: 0
A68: RUB | B68: 14 | C68: 3 | D68: 1 | J68: 10 | L68: 4 | M68: 2 | N68: 1 | T68: 1 | V68: 10 | W68: 1 | AD68: 9 | AF68: 0 | AG68: 0 | AH68: 0 | AI68: 0 | AJ68: 0 | AK68: 0 | AL68: 0 | AM68: 0 | AN68: 0 | AO68: 0
A69: PNC20 | B69: 13 | C69: 5 | D69: 1 | J69: 6 | K69: 1 | L69: 2 | M69: 2 | V69: 9 | W69: 3 | X69: 1 | AD69: 4 | AE69: 1 | AF69: 2 | AN69: 2
A70: FLUR3 | B70: 13 | C70: 5 | D70: 2 | J70: 6 | L70: 1 | T70: 1 | V70: 12 | W70: 5 | X70: 2 | AD70: 5 | AF70: 0 | AG70: 0 | AH70: 0 | AI70: 0 | AJ70: 0 | AK70: 0 | AL70: 0 | AM70: 0 | AN70: 0 | AO70: 0
A71: PER | B71: 12 | C71: 2 | H71: 1 | J71: 9 | L71: 4 | M71: 1 | R71: 1 | T71: 2 | V71: 8 | W71: 1 | AD71: 7 | AF71: 0 | AG71: 0 | AH71: 0 | AI71: 0 | AJ71: 0 | AK71: 0 | AL71: 0 | AM71: 0 | AN71: 0 | AO71: 0
A72: DTAPH | B72: 12 | C72: 1 | F72: 4 | J72: 7 | L72: 7 | P72: 3 | T72: 4 | V72: 4 | W72: 1 | Z72: 1 | AD72: 2 | AF72: 1 | AN72: 1
A73: TBE | B73: 11 | C73: 2 | D73: 2 | J73: 7 | L73: 4 | M73: 1 | N73: 1 | T73: 2 | V73: 7 | W73: 1 | X73: 1 | AD73: 5 | AF73: 0 | AG73: 0 | AH73: 0 | AI73: 0 | AJ73: 0 | AK73: 0 | AL73: 0 | AM73: 0 | AN73: 0 | AO73: 0
A74: DPP | B74: 11 | J74: 11 | L74: 4 | T74: 4 | V74: 7 | AD74: 7 | AF74: 0 | AG74: 0 | AH74: 0 | AI74: 0 | AJ74: 0 | AK74: 0 | AL74: 0 | AM74: 0 | AN74: 0 | AO74: 0
A75: DTPIPV | B75: 10 | D75: 1 | E75: 2 | J75: 7 | L75: 6 | O75: 2 | T75: 4 | V75: 3 | X75: 1 | AD75: 2 | AF75: 1 | AN75: 1
A76: ADEN_4_7 | B76: 8 | C76: 4 | D76: 1 | J76: 3 | L76: 3 | T76: 3 | V76: 5 | W76: 4 | X76: 1 | AF76: 0 | AG76: 0 | AH76: 0 | AI76: 0 | AJ76: 0 | AK76: 0 | AL76: 0 | AM76: 0 | AN76: 0 | AO76: 0
A77: MENHIB | B77: 7 | C77: 1 | J77: 6 | L77: 0 | M77: 0 | N77: 0 | O77: 0 | P77: 0 | Q77: 0 | R77: 0 | S77: 0 | T77: 0 | U77: 0 | V77: 6 | W77: 1 | AD77: 5 | AF77: 1 | AN77: 1
A78: JEVX | B78: 7 | C78: 1 | F78: 2 | J78: 4 | L78: 4 | M78: 1 | T78: 3 | V78: 3 | Z78: 2 | AD78: 1 | AF78: 0 | AG78: 0 | AH78: 0 | AI78: 0 | AJ78: 0 | AK78: 0 | AL78: 0 | AM78: 0 | AN78: 0 | AO78: 0
A79: MU | B79: 7 | C79: 2 | J79: 5 | L79: 2 | M79: 1 | T79: 1 | V79: 5 | W79: 1 | AD79: 4 | AF79: 0 | AG79: 0 | AH79: 0 | AI79: 0 | AJ79: 0 | AK79: 0 | AL79: 0 | AM79: 0 | AN79: 0 | AO79: 0
A80: TDAPIPV | B80: 7 | C80: 1 | J80: 6 | L80: 2 | M80: 1 | T80: 1 | V80: 4 | AD80: 4 | AF80: 1 | AN80: 1
A81: DTOX | B81: 6 | C81: 1 | E81: 1 | J81: 4 | L81: 1 | T81: 1 | V81: 5 | W81: 1 | Y81: 1 | AD81: 3 | AF81: 0 | AG81: 0 | AH81: 0 | AI81: 0 | AJ81: 0 | AK81: 0 | AL81: 0 | AM81: 0 | AN81: 0 | AO81: 0
A82: DTPHEP | B82: 6 | C82: 1 | D82: 4 | F82: 1 | L82: 3 | N82: 3 | V82: 3 | W82: 1 | X82: 1 | Z82: 1 | AF82: 0 | AG82: 0 | AH82: 0 | AI82: 0 | AJ82: 0 | AK82: 0 | AL82: 0 | AM82: 0 | AN82: 0 | AO82: 0
A83: EBZR | B83: 5 | C83: 3 | D83: 1 | J83: 1 | L83: 1 | T83: 1 | V83: 4 | W83: 3 | X83: 1 | AF83: 0 | AG83: 0 | AH83: 0 | AI83: 0 | AJ83: 0 | AK83: 0 | AL83: 0 | AM83: 0 | AN83: 0 | AO83: 0
A84: MER | B84: 4 | C84: 1 | J84: 3 | L84: 0 | M84: 0 | N84: 0 | O84: 0 | P84: 0 | Q84: 0 | R84: 0 | S84: 0 | T84: 0 | U84: 0 | V84: 4 | W84: 1 | AD84: 3 | AF84: 0 | AG84: 0 | AH84: 0 | AI84: 0 | AJ84: 0 | AK84: 0 | AL84: 0 | AM84: 0 | AN84: 0 | AO84: 0
A85: DTPPHIB | B85: 4 | C85: 1 | F85: 1 | J85: 2 | L85: 0 | M85: 0 | N85: 0 | O85: 0 | P85: 0 | Q85: 0 | R85: 0 | S85: 0 | T85: 0 | U85: 0 | V85: 4 | W85: 1 | Z85: 1 | AD85: 2 | AF85: 0 | AG85: 0 | AH85: 0 | AI85: 0 | AJ85: 0 | AK85: 0 | AL85: 0 | AM85: 0 | AN85: 0 | AO85: 0
A86: HEPATYP | B86: 3 | J86: 3 | L86: 2 | T86: 2 | V86: 1 | AD86: 1 | AF86: 0 | AG86: 0 | AH86: 0 | AI86: 0 | AJ86: 0 | AK86: 0 | AL86: 0 | AM86: 0 | AN86: 0 | AO86: 0
A87: MNC | B87: 3 | C87: 1 | D87: 1 | J87: 1 | L87: 2 | M87: 1 | T87: 1 | V87: 0 | W87: 0 | X87: 0 | Y87: 0 | Z87: 0 | AA87: 0 | AB87: 0 | AC87: 0 | AD87: 0 | AE87: 0 | AF87: 1 | AH87: 1
A88: DF | B88: 3 | C88: 2 | E88: 1 | L88: 2 | M88: 2 | V88: 1 | Y88: 1 | AF88: 0 | AG88: 0 | AH88: 0 | AI88: 0 | AJ88: 0 | AK88: 0 | AL88: 0 | AM88: 0 | AN88: 0 | AO88: 0
A89: MM | B89: 3 | J89: 3 | L89: 1 | T89: 1 | V89: 2 | AD89: 2 | AF89: 0 | AG89: 0 | AH89: 0 | AI89: 0 | AJ89: 0 | AK89: 0 | AL89: 0 | AM89: 0 | AN89: 0 | AO89: 0
A90: HBPV | B90: 3 | D90: 1 | J90: 2 | L90: 2 | N90: 1 | T90: 1 | V90: 1 | AD90: 1 | AF90: 0 | AG90: 0 | AH90: 0 | AI90: 0 | AJ90: 0 | AK90: 0 | AL90: 0 | AM90: 0 | AN90: 0 | AO90: 0
A91: DTPHIB | B91: 3 | D91: 1 | F91: 1 | J91: 1 | L91: 3 | N91: 1 | P91: 1 | T91: 1 | V91: 0 | W91: 0 | X91: 0 | Y91: 0 | Z91: 0 | AA91: 0 | AB91: 0 | AC91: 0 | AD91: 0 | AE91: 0 | AF91: 0 | AG91: 0 | AH91: 0 | AI91: 0 | AJ91: 0 | AK91: 0 | AL91: 0 | AM91: 0 | AN91: 0 | AO91: 0
A92: MUR | B92: 2 | J92: 2 | L92: 0 | M92: 0 | N92: 0 | O92: 0 | P92: 0 | Q92: 0 | R92: 0 | S92: 0 | T92: 0 | U92: 0 | V92: 2 | AD92: 2 | AF92: 0 | AG92: 0 | AH92: 0 | AI92: 0 | AJ92: 0 | AK92: 0 | AL92: 0 | AM92: 0 | AN92: 0 | AO92: 0
A93: PLAGUE | B93: 2 | J93: 2 | L93: 1 | T93: 1 | V93: 1 | AD93: 1 | AF93: 0 | AG93: 0 | AH93: 0 | AI93: 0 | AJ93: 0 | AK93: 0 | AL93: 0 | AM93: 0 | AN93: 0 | AO93: 0
A94: CEE | B94: 2 | E94: 1 | J94: 1 | L94: 2 | O94: 1 | T94: 1 | V94: 0 | W94: 0 | X94: 0 | Y94: 0 | Z94: 0 | AA94: 0 | AB94: 0 | AC94: 0 | AD94: 0 | AE94: 0 | AF94: 0 | AG94: 0 | AH94: 0 | AI94: 0 | AJ94: 0 | AK94: 0 | AL94: 0 | AM94: 0 | AN94: 0 | AO94: 0
A95: DTPIHI | B95: 2 | J95: 2 | L95: 1 | T95: 1 | V95: 1 | AD95: 1 | AF95: 0 | AG95: 0 | AH95: 0 | AI95: 0 | AJ95: 0 | AK95: 0 | AL95: 0 | AM95: 0 | AN95: 0 | AO95: 0
A96: PNC15 | B96: 1 | C96: 1 | L96: 0 | M96: 0 | N96: 0 | O96: 0 | P96: 0 | Q96: 0 | R96: 0 | S96: 0 | T96: 0 | U96: 0 | V96: 1 | W96: 1 | AF96: 0 | AG96: 0 | AH96: 0 | AI96: 0 | AJ96: 0 | AK96: 0 | AL96: 0 | AM96: 0 | AN96: 0 | AO96: 0
A97: MNQHIB | B97: 1 | J97: 1 | L97: 1 | T97: 1 | V97: 0 | W97: 0 | X97: 0 | Y97: 0 | Z97: 0 | AA97: 0 | AB97: 0 | AC97: 0 | AD97: 0 | AE97: 0 | AF97: 0 | AG97: 0 | AH97: 0 | AI97: 0 | AJ97: 0 | AK97: 0 | AL97: 0 | AM97: 0 | AN97: 0 | AO97: 0
A98: RV | B98: 1 | C98: 1 | L98: 1 | M98: 1 | V98: 0 | W98: 0 | X98: 0 | Y98: 0 | Z98: 0 | AA98: 0 | AB98: 0 | AC98: 0 | AD98: 0 | AE98: 0 | AF98: 0 | AG98: 0 | AH98: 0 | AI98: 0 | AJ98: 0 | AK98: 0 | AL98: 0 | AM98: 0 | AN98: 0 | AO98: 0
A100: Age report
A101: Age | B101: COVID19 | C101: All | D101: 1 | E101: 2 | F101: 3 | G101: 4 | H101: All male | I101: 1 male | J101: 2 male | K101: 3 male | L101: 4 male | M101: All female | N101: 1 female | O101: 2 female | P101: 3 female | Q101: 4 female | R101: VARZOS | S101: All | T101: 1 | U101: 2 | V101: 3 | W101: 4 | X101: All male | Y101: 1 male | Z101: 2 male | AA101: 3 male | AB101: 4 male | AC101: All female | AD101: 1 female | AE101: 2 female | AF101: 3 female | AG101: 4 female | AH101: FLU3 | AI101: All | AJ101: 1 | AK101: 2 | AL101: 3 | AM101: 4 | AN101: All male | AO101: 1 male | AP101: 2 male | AQ101: 3 male | AR101: 4 male | AS101: All female | AT101: 1 female | AU101: 2 female | AV101: 3 female | AW101: 4 female | AX101: HPV4 | AY101: All | AZ101: 1 | BA101: 2 | BB101: 3 | BC101: 4 | BD101: All male | BE101: 1 male | BF101: 2 male | BG101: 3 male | BH101: 4 male | BI101: All female | BJ101: 1 female | BK101: 2 female | BL101: 3 female | BM101: 4 female | BN101: UNK | BO101: All | BP101: 1 | BQ101: 2 | BR101: 3 | BS101: 4 | BT101: All male | BU101: 1 male | BV101: 2 male | BW101: 3 male | BX101: 4 male | BY101: All female | BZ101: 1 female | CA101: 2 female | CB101: 3 female | CC101: 4 female | CD101: PPV | CE101: All | CF101: 1 | CG101: 2 | CH101: 3 | CI101: 4 | CJ101: All male | CK101: 1 male | CL101: 2 male | CM101: 3 male | CN101: 4 male | CO101: All female | CP101: 1 female | CQ101: 2 female | CR101: 3 female | CS101: 4 female | CT101: TDAP | CU101: All | CV101: 1 | CW101: 2 | CX101: 3 | CY101: 4 | CZ101: All male | DA101: 1 male | DB101: 2 male | DC101: 3 male | DD101: 4 male | DE101: All female | DF101: 1 female | DG101: 2 female | DH101: 3 female | DI101: 4 female | DJ101: HEP | DK101: All | DL101: 1 | DM101: 2 | DN101: 3 | DO101: 4 | DP101: All male | DQ101: 1 male | DR101: 2 male | DS101: 3 male | DT101: 4 male | DU101: All female | DV101: 1 female | DW101: 2 female | DX101: 3 female | DY101: 4 female | DZ101: FLUX | EA101: All | EB101: 1 | EC101: 2 | ED101: 3 | EE101: 4 | EF101: All male | EG101: 1 male | EH101: 2 male | EI101: 3 male | EJ101: 4 male | EK101: All female | EL101: 1 female | EM101: 2 female | EN101: 3 female | EO101: 4 female | EP101: FLU4 | EQ101: All | ER101: 1 | ES101: 2 | ET101: 3 | EU101: 4 | EV101: All male | EW101: 1 male | EX101: 2 male | EY101: 3 male | EZ101: 4 male | FA101: All female | FB101: 1 female | FC101: 2 female | FD101: 3 female | FE101: 4 female | FF101: MMR | FG101: All | FH101: 1 | FI101: 2 | FJ101: 3 | FK101: 4 | FL101: All male | FM101: 1 male | FN101: 2 male | FO101: 3 male | FP101: 4 male | FQ101: All female | FR101: 1 female | FS101: 2 female | FT101: 3 female | FU101: 4 female | FV101: HEPA | FW101: All | FX101: 1 | FY101: 2 | FZ101: 3 | GA101: 4 | GB101: All male | GC101: 1 male | GD101: 2 male | GE101: 3 male | GF101: 4 male | GG101: All female | GH101: 1 female | GI101: 2 female | GJ101: 3 female | GK101: 4 female | GL101: PNC13 | GM101: All | GN101: 1 | GO101: 2 | GP101: 3 | GQ101: 4 | GR101: All male | GS101: 1 male | GT101: 2 male | GU101: 3 male | GV101: 4 male | GW101: All female | GX101: 1 female | GY101: 2 female | GZ101: 3 female | HA101: 4 female | HB101: MNQ | HC101: All | HD101: 1 | HE101: 2 | HF101: 3 | HG101: 4 | HH101: All male | HI101: 1 male | HJ101: 2 male | HK101: 3 male | HL101: 4 male | HM101: All female | HN101: 1 female | HO101: 2 female | HP101: 3 female | HQ101: 4 female | HR101: ANTH | HS101: All | HT101: 1 | HU101: 2 | HV101: 3 | HW101: 4 | HX101: All male | HY101: 1 male | HZ101: 2 male | IA101: 3 male | IB101: 4 male | IC101: All female | ID101: 1 female | IE101: 2 female | IF101: 3 female | IG101: 4 female | IH101: VARCEL | II101: All | IJ101: 1 | IK101: 2 | IL101: 3 | IM101: 4 | IN101: All male | IO101: 1 male | IP101: 2 male | IQ101: 3 male | IR101: 4 male | IS101: All female | IT101: 1 female | IU101: 2 female | IV101: 3 female | IW101: 4 female | IX101: DTAP | IY101: All | IZ101: 1 | JA101: 2 | JB101: 3 | JC101: 4 | JD101: All male | JE101: 1 male | JF101: 2 male | JG101: 3 male | JH101: 4 male | JI101: All female | JJ101: 1 female | JK101: 2 female | JL101: 3 female | JM101: 4 female | JN101: MENB | JO101: All | JP101: 1 | JQ101: 2 | JR101: 3 | JS101: 4 | JT101: All male | JU101: 1 male | JV101: 2 male | JW101: 3 male | JX101: 4 male | JY101: All female | JZ101: 1 female | KA101: 2 female | KB101: 3 female | KC101: 4 female | KD101: HPV9 | KE101: All | KF101: 1 | KG101: 2 | KH101: 3 | KI101: 4 | KJ101: All male | KK101: 1 male | KL101: 2 male | KM101: 3 male | KN101: 4 male | KO101: All female | KP101: 1 female | KQ101: 2 female | KR101: 3 female | KS101: 4 female | KT101: TYP | KU101: All | KV101: 1 | KW101: 2 | KX101: 3 | KY101: 4 | KZ101: All male | LA101: 1 male | LB101: 2 male | LC101: 3 male | LD101: 4 male | LE101: All female | LF101: 1 female | LG101: 2 female | LH101: 3 female | LI101: 4 female | LJ101: TD | LK101: All | LL101: 1 | LM101: 2 | LN101: 3 | LO101: 4 | LP101: All male | LQ101: 1 male | LR101: 2 male | LS101: 3 male | LT101: 4 male | LU101: All female | LV101: 1 female | LW101: 2 female | LX101: 3 female | LY101: 4 female | LZ101: LYME | MA101: All | MB101: 1 | MC101: 2 | MD101: 3 | ME101: 4 | MF101: All male | MG101: 1 male | MH101: 2 male | MI101: 3 male | MJ101: 4 male | MK101: All female | ML101: 1 female | MM101: 2 female | MN101: 3 female | MO101: 4 female | MP101: IPV | MQ101: All | MR101: 1 | MS101: 2 | MT101: 3 | MU101: 4 | MV101: All male | MW101: 1 male | MX101: 2 male | MY101: 3 male | MZ101: 4 male | NA101: All female | NB101: 1 female | NC101: 2 female | ND101: 3 female | NE101: 4 female | NF101: FLU(H1N1) | NG101: All | NH101: 1 | NI101: 2 | NJ101: 3 | NK101: 4 | NL101: All male | NM101: 1 male | NN101: 2 male | NO101: 3 male | NP101: 4 male | NQ101: All female | NR101: 1 female | NS101: 2 female | NT101: 3 female | NU101: 4 female | NV101: HEPAB | NW101: All | NX101: 1 | NY101: 2 | NZ101: 3 | OA101: 4 | OB101: All male | OC101: 1 male | OD101: 2 male | OE101: 3 male | OF101: 4 male | OG101: All female | OH101: 1 female | OI101: 2 female | OJ101: 3 female | OK101: 4 female | OL101: SMALL | OM101: All | ON101: 1 | OO101: 2 | OP101: 3 | OQ101: 4 | OR101: All male | OS101: 1 male | OT101: 2 male | OU101: 3 male | OV101: 4 male | OW101: All female | OX101: 1 female | OY101: 2 female | OZ101: 3 female | PA101: 4 female | PB101: HPV2 | PC101: All | PD101: 1 | PE101: 2 | PF101: 3 | PG101: 4 | PH101: All male | PI101: 1 male | PJ101: 2 male | PK101: 3 male | PL101: 4 male | PM101: All female | PN101: 1 female | PO101: 2 female | PP101: 3 female | PQ101: 4 female | PR101: HIBV | PS101: All | PT101: 1 | PU101: 2 | PV101: 3 | PW101: 4 | PX101: All male | PY101: 1 male | PZ101: 2 male | QA101: 3 male | QB101: 4 male | QC101: All female | QD101: 1 female | QE101: 2 female | QF101: 3 female | QG101: 4 female | QH101: RAB | QI101: All | QJ101: 1 | QK101: 2 | QL101: 3 | QM101: 4 | QN101: All male | QO101: 1 male | QP101: 2 male | QQ101: 3 male | QR101: 4 male | QS101: All female | QT101: 1 female | QU101: 2 female | QV101: 3 female | QW101: 4 female | QX101: YF | QY101: All | QZ101: 1 | RA101: 2 | RB101: 3 | RC101: 4 | RD101: All male | RE101: 1 male | RF101: 2 male | RG101: 3 male | RH101: 4 male | RI101: All female | RJ101: 1 female | RK101: 2 female | RL101: 3 female | RM101: 4 female | RN101: FLUC4 | RO101: All | RP101: 1 | RQ101: 2 | RR101: 3 | RS101: 4 | RT101: All male | RU101: 1 male | RV101: 2 male | RW101: 3 male | RX101: 4 male | RY101: All female | RZ101: 1 female | SA101: 2 female | SB101: 3 female | SC101: 4 female | SD101: MEN | SE101: All | SF101: 1 | SG101: 2 | SH101: 3 | SI101: 4 | SJ101: All male | SK101: 1 male | SL101: 2 male | SM101: 3 male | SN101: 4 male | SO101: All female | SP101: 1 female | SQ101: 2 female | SR101: 3 female | SS101: 4 female | ST101: FLUN3 | SU101: All | SV101: 1 | SW101: 2 | SX101: 3 | SY101: 4 | SZ101: All male | TA101: 1 male | TB101: 2 male | TC101: 3 male | TD101: 4 male | TE101: All female | TF101: 1 female | TG101: 2 female | TH101: 3 female | TI101: 4 female | TJ101: HPVX | TK101: All | TL101: 1 | TM101: 2 | TN101: 3 | TO101: 4 | TP101: All male | TQ101: 1 male | TR101: 2 male | TS101: 3 male | TT101: 4 male | TU101: All female | TV101: 1 female | TW101: 2 female | TX101: 3 female | TY101: 4 female | TZ101: FLUX(H1N1) | UA101: All | UB101: 1 | UC101: 2 | UD101: 3 | UE101: 4 | UF101: All male | UG101: 1 male | UH101: 2 male | UI101: 3 male | UJ101: 4 male | UK101: All female | UL101: 1 female | UM101: 2 female | UN101: 3 female | UO101: 4 female | UP101: FLUN4 | UQ101: All | UR101: 1 | US101: 2 | UT101: 3 | UU101: 4 | UV101: All male | UW101: 1 male | UX101: 2 male | UY101: 3 male | UZ101: 4 male | VA101: All female | VB101: 1 female | VC101: 2 female | VD101: 3 female | VE101: 4 female | VF101: FLUA3 | VG101: All | VH101: 1 | VI101: 2 | VJ101: 3 | VK101: 4 | VL101: All male | VM101: 1 male | VN101: 2 male | VO101: 3 male | VP101: 4 male | VQ101: All female | VR101: 1 female | VS101: 2 female | VT101: 3 female | VU101: 4 female | VV101: PNC | VW101: All | VX101: 1 | VY101: 2 | VZ101: 3 | WA101: 4 | WB101: All male | WC101: 1 male | WD101: 2 male | WE101: 3 male | WF101: 4 male | WG101: All female | WH101: 1 female | WI101: 2 female | WJ101: 3 female | WK101: 4 female | WL101: DTAPIPV | WM101: All | WN101: 1 | WO101: 2 | WP101: 3 | WQ101: 4 | WR101: All male | WS101: 1 male | WT101: 2 male | WU101: 3 male | WV101: 4 male | WW101: All female | WX101: 1 female | WY101: 2 female | WZ101: 3 female | XA101: 4 female | XB101: TTOX | XC101: All | XD101: 1 | XE101: 2 | XF101: 3 | XG101: 4 | XH101: All male | XI101: 1 male | XJ101: 2 male | XK101: 3 male | XL101: 4 male | XM101: All female | XN101: 1 female | XO101: 2 female | XP101: 3 female | XQ101: 4 female | XR101: RV5 | XS101: All | XT101: 1 | XU101: 2 | XV101: 3 | XW101: 4 | XX101: All male | XY101: 1 male | XZ101: 2 male | YA101: 3 male | YB101: 4 male | YC101: All female | YD101: 1 female | YE101: 2 female | YF101: 3 female | YG101: 4 female | YH101: FLUN(H1N1) | YI101: All | YJ101: 1 | YK101: 2 | YL101: 3 | YM101: 4 | YN101: All male | YO101: 1 male | YP101: 2 male | YQ101: 3 male | YR101: 4 male | YS101: All female | YT101: 1 female | YU101: 2 female | YV101: 3 female | YW101: 4 female | YX101: MMRV | YY101: All | YZ101: 1 | ZA101: 2 | ZB101: 3 | ZC101: 4 | ZD101: All male | ZE101: 1 male | ZF101: 2 male | ZG101: 3 male | ZH101: 4 male | ZI101: All female | ZJ101: 1 female | ZK101: 2 female | ZL101: 3 female | ZM101: 4 female | ZN101: DTAPIPVHIB | ZO101: All | ZP101: 1 | ZQ101: 2 | ZR101: 3 | ZS101: 4 | ZT101: All male | ZU101: 1 male | ZV101: 2 male | ZW101: 3 male | ZX101: 4 male | ZY101: All female | ZZ101: 1 female | AAA101: 2 female | AAB101: 3 female | AAC101: 4 female | AAD101: RV1 | AAE101: All | AAF101: 1 | AAG101: 2 | AAH101: 3 | AAI101: 4 | AAJ101: All male | AAK101: 1 male | AAL101: 2 male | AAM101: 3 male | AAN101: 4 male | AAO101: All female | AAP101: 1 female | AAQ101: 2 female | AAR101: 3 female | AAS101: 4 female | AAT101: DTAPHEPBIP | AAU101: All | AAV101: 1 | AAW101: 2 | AAX101: 3 | AAY101: 4 | AAZ101: All male | ABA101: 1 male | ABB101: 2 male | ABC101: 3 male | ABD101: 4 male | ABE101: All female | ABF101: 1 female | ABG101: 2 female | ABH101: 3 female | ABI101: 4 female | ABJ101: FLUA4 | ABK101: All | ABL101: 1 | ABM101: 2 | ABN101: 3 | ABO101: 4 | ABP101: All male | ABQ101: 1 male | ABR101: 2 male | ABS101: 3 male | ABT101: 4 male | ABU101: All female | ABV101: 1 female | ABW101: 2 female | ABX101: 3 female | ABY101: 4 female | ABZ101: 6VAX-F | ACA101: All | ACB101: 1 | ACC101: 2 | ACD101: 3 | ACE101: 4 | ACF101: All male | ACG101: 1 male | ACH101: 2 male | ACI101: 3 male | ACJ101: 4 male | ACK101: All female | ACL101: 1 female | ACM101: 2 female | ACN101: 3 female | ACO101: 4 female | ACP101: FLUR4 | ACQ101: All | ACR101: 1 | ACS101: 2 | ACT101: 3 | ACU101: 4 | ACV101: All male | ACW101: 1 male | ACX101: 2 male | ACY101: 3 male | ACZ101: 4 male | ADA101: All female | ADB101: 1 female | ADC101: 2 female | ADD101: 3 female | ADE101: 4 female | ADF101: DTP | ADG101: All | ADH101: 1 | ADI101: 2 | ADJ101: 3 | ADK101: 4 | ADL101: All male | ADM101: 1 male | ADN101: 2 male | ADO101: 3 male | ADP101: 4 male | ADQ101: All female | ADR101: 1 female | ADS101: 2 female | ADT101: 3 female | ADU101: 4 female | ADV101: DTIPV | ADW101: All | ADX101: 1 | ADY101: 2 | ADZ101: 3 | AEA101: 4 | AEB101: All male | AEC101: 1 male | AED101: 2 male | AEE101: 3 male | AEF101: 4 male | AEG101: All female | AEH101: 1 female | AEI101: 2 female | AEJ101: 3 female | AEK101: 4 female | AEL101: DT | AEM101: All | AEN101: 1 | AEO101: 2 | AEP101: 3 | AEQ101: 4 | AER101: All male | AES101: 1 male | AET101: 2 male | AEU101: 3 male | AEV101: 4 male | AEW101: All female | AEX101: 1 female | AEY101: 2 female | AEZ101: 3 female | AFA101: 4 female | AFB101: FLUC3 | AFC101: All | AFD101: 1 | AFE101: 2 | AFF101: 3 | AFG101: 4 | AFH101: All male | AFI101: 1 male | AFJ101: 2 male | AFK101: 3 male | AFL101: 4 male | AFM101: All female | AFN101: 1 female | AFO101: 2 female | AFP101: 3 female | AFQ101: 4 female | AFR101: JEV1 | AFS101: All | AFT101: 1 | AFU101: 2 | AFV101: 3 | AFW101: 4 | AFX101: All male | AFY101: 1 male | AFZ101: 2 male | AGA101: 3 male | AGB101: 4 male | AGC101: All female | AGD101: 1 female | AGE101: 2 female | AGF101: 3 female | AGG101: 4 female | AGH101: OPV | AGI101: All | AGJ101: 1 | AGK101: 2 | AGL101: 3 | AGM101: 4 | AGN101: All male | AGO101: 1 male | AGP101: 2 male | AGQ101: 3 male | AGR101: 4 male | AGS101: All female | AGT101: 1 female | AGU101: 2 female | AGV101: 3 female | AGW101: 4 female | AGX101: HBHEPB | AGY101: All | AGZ101: 1 | AHA101: 2 | AHB101: 3 | AHC101: 4 | AHD101: All male | AHE101: 1 male | AHF101: 2 male | AHG101: 3 male | AHH101: 4 male | AHI101: All female | AHJ101: 1 female | AHK101: 2 female | AHL101: 3 female | AHM101: 4 female | AHN101: RVX | AHO101: All | AHP101: 1 | AHQ101: 2 | AHR101: 3 | AHS101: 4 | AHT101: All male | AHU101: 1 male | AHV101: 2 male | AHW101: 3 male | AHX101: 4 male | AHY101: All female | AHZ101: 1 female | AIA101: 2 female | AIB101: 3 female | AIC101: 4 female | AID101: CHOL | AIE101: All | AIF101: 1 | AIG101: 2 | AIH101: 3 | AII101: 4 | AIJ101: All male | AIK101: 1 male | AIL101: 2 male | AIM101: 3 male | AIN101: 4 male | AIO101: All female | AIP101: 1 female | AIQ101: 2 female | AIR101: 3 female | AIS101: 4 female | AIT101: PNC10 | AIU101: All | AIV101: 1 | AIW101: 2 | AIX101: 3 | AIY101: 4 | AIZ101: All male | AJA101: 1 male | AJB101: 2 male | AJC101: 3 male | AJD101: 4 male | AJE101: All female | AJF101: 1 female | AJG101: 2 female | AJH101: 3 female | AJI101: 4 female | AJJ101: BCG | AJK101: All | AJL101: 1 | AJM101: 2 | AJN101: 3 | AJO101: 4 | AJP101: All male | AJQ101: 1 male | AJR101: 2 male | AJS101: 3 male | AJT101: 4 male | AJU101: All female | AJV101: 1 female | AJW101: 2 female | AJX101: 3 female | AJY101: 4 female | AJZ101: JEV | AKA101: All | AKB101: 1 | AKC101: 2 | AKD101: 3 | AKE101: 4 | AKF101: All male | AKG101: 1 male | AKH101: 2 male | AKI101: 3 male | AKJ101: 4 male | AKK101: All female | AKL101: 1 female | AKM101: 2 female | AKN101: 3 female | AKO101: 4 female | AKP101: MEA | AKQ101: All | AKR101: 1 | AKS101: 2 | AKT101: 3 | AKU101: 4 | AKV101: All male | AKW101: 1 male | AKX101: 2 male | AKY101: 3 male | AKZ101: 4 male | ALA101: All female | ALB101: 1 female | ALC101: 2 female | ALD101: 3 female | ALE101: 4 female | ALF101: RUB | ALG101: All | ALH101: 1 | ALI101: 2 | ALJ101: 3 | ALK101: 4 | ALL101: All male | ALM101: 1 male | ALN101: 2 male | ALO101: 3 male | ALP101: 4 male | ALQ101: All female | ALR101: 1 female | ALS101: 2 female | ALT101: 3 female | ALU101: 4 female | ALV101: PNC20 | ALW101: All | ALX101: 1 | ALY101: 2 | ALZ101: 3 | AMA101: 4 | AMB101: All male | AMC101: 1 male | AMD101: 2 male | AME101: 3 male | AMF101: 4 male | AMG101: All female | AMH101: 1 female | AMI101: 2 female | AMJ101: 3 female | AMK101: 4 female | AML101: FLUR3 | AMM101: All | AMN101: 1 | AMO101: 2 | AMP101: 3 | AMQ101: 4 | AMR101: All male | AMS101: 1 male | AMT101: 2 male | AMU101: 3 male | AMV101: 4 male | AMW101: All female | AMX101: 1 female | AMY101: 2 female | AMZ101: 3 female | ANA101: 4 female | ANB101: PER | ANC101: All | AND101: 1 | ANE101: 2 | ANF101: 3 | ANG101: 4 | ANH101: All male | ANI101: 1 male | ANJ101: 2 male | ANK101: 3 male | ANL101: 4 male | ANM101: All female | ANN101: 1 female | ANO101: 2 female | ANP101: 3 female | ANQ101: 4 female | ANR101: DTAPH | ANS101: All | ANT101: 1 | ANU101: 2 | ANV101: 3 | ANW101: 4 | ANX101: All male | ANY101: 1 male | ANZ101: 2 male | AOA101: 3 male | AOB101: 4 male | AOC101: All female | AOD101: 1 female | AOE101: 2 female | AOF101: 3 female | AOG101: 4 female | AOH101: TBE | AOI101: All | AOJ101: 1 | AOK101: 2 | AOL101: 3 | AOM101: 4 | AON101: All male | AOO101: 1 male | AOP101: 2 male | AOQ101: 3 male | AOR101: 4 male | AOS101: All female | AOT101: 1 female | AOU101: 2 female | AOV101: 3 female | AOW101: 4 female | AOX101: DPP | AOY101: All | AOZ101: 1 | APA101: 2 | APB101: 3 | APC101: 4 | APD101: All male | APE101: 1 male | APF101: 2 male | APG101: 3 male | APH101: 4 male | API101: All female | APJ101: 1 female | APK101: 2 female | APL101: 3 female | APM101: 4 female | APN101: DTPIPV | APO101: All | APP101: 1 | APQ101: 2 | APR101: 3 | APS101: 4 | APT101: All male | APU101: 1 male | APV101: 2 male | APW101: 3 male | APX101: 4 male | APY101: All female | APZ101: 1 female | AQA101: 2 female | AQB101: 3 female | AQC101: 4 female | AQD101: ADEN_4_7 | AQE101: All | AQF101: 1 | AQG101: 2 | AQH101: 3 | AQI101: 4 | AQJ101: All male | AQK101: 1 male | AQL101: 2 male | AQM101: 3 male | AQN101: 4 male | AQO101: All female | AQP101: 1 female | AQQ101: 2 female | AQR101: 3 female | AQS101: 4 female | AQT101: MENHIB | AQU101: All | AQV101: 1 | AQW101: 2 | AQX101: 3 | AQY101: 4 | AQZ101: All male | ARA101: 1 male | ARB101: 2 male | ARC101: 3 male | ARD101: 4 male | ARE101: All female | ARF101: 1 female | ARG101: 2 female | ARH101: 3 female | ARI101: 4 female | ARJ101: JEVX | ARK101: All | ARL101: 1 | ARM101: 2 | ARN101: 3 | ARO101: 4 | ARP101: All male | ARQ101: 1 male | ARR101: 2 male | ARS101: 3 male | ART101: 4 male | ARU101: All female | ARV101: 1 female | ARW101: 2 female | ARX101: 3 female | ARY101: 4 female | ARZ101: MU | ASA101: All | ASB101: 1 | ASC101: 2 | ASD101: 3 | ASE101: 4 | ASF101: All male | ASG101: 1 male | ASH101: 2 male | ASI101: 3 male | ASJ101: 4 male | ASK101: All female | ASL101: 1 female | ASM101: 2 female | ASN101: 3 female | ASO101: 4 female | ASP101: TDAPIPV | ASQ101: All | ASR101: 1 | ASS101: 2 | AST101: 3 | ASU101: 4 | ASV101: All male | ASW101: 1 male | ASX101: 2 male | ASY101: 3 male | ASZ101: 4 male | ATA101: All female | ATB101: 1 female | ATC101: 2 female | ATD101: 3 female | ATE101: 4 female | ATF101: DTOX | ATG101: All | ATH101: 1 | ATI101: 2 | ATJ101: 3 | ATK101: 4 | ATL101: All male | ATM101: 1 male | ATN101: 2 male | ATO101: 3 male | ATP101: 4 male | ATQ101: All female | ATR101: 1 female | ATS101: 2 female | ATT101: 3 female | ATU101: 4 female | ATV101: DTPHEP | ATW101: All | ATX101: 1 | ATY101: 2 | ATZ101: 3 | AUA101: 4 | AUB101: All male | AUC101: 1 male | AUD101: 2 male | AUE101: 3 male | AUF101: 4 male | AUG101: All female | AUH101: 1 female | AUI101: 2 female | AUJ101: 3 female | AUK101: 4 female | AUL101: EBZR | AUM101: All | AUN101: 1 | AUO101: 2 | AUP101: 3 | AUQ101: 4 | AUR101: All male | AUS101: 1 male | AUT101: 2 male | AUU101: 3 male | AUV101: 4 male | AUW101: All female | AUX101: 1 female | AUY101: 2 female | AUZ101: 3 female | AVA101: 4 female | AVB101: MER | AVC101: All | AVD101: 1 | AVE101: 2 | AVF101: 3 | AVG101: 4 | AVH101: All male | AVI101: 1 male | AVJ101: 2 male | AVK101: 3 male | AVL101: 4 male | AVM101: All female | AVN101: 1 female | AVO101: 2 female | AVP101: 3 female | AVQ101: 4 female | AVR101: DTPPHIB | AVS101: All | AVT101: 1 | AVU101: 2 | AVV101: 3 | AVW101: 4 | AVX101: All male | AVY101: 1 male | AVZ101: 2 male | AWA101: 3 male | AWB101: 4 male | AWC101: All female | AWD101: 1 female | AWE101: 2 female | AWF101: 3 female | AWG101: 4 female | AWH101: HEPATYP | AWI101: All | AWJ101: 1 | AWK101: 2 | AWL101: 3 | AWM101: 4 | AWN101: All male | AWO101: 1 male | AWP101: 2 male | AWQ101: 3 male | AWR101: 4 male | AWS101: All female | AWT101: 1 female | AWU101: 2 female | AWV101: 3 female | AWW101: 4 female | AWX101: MNC | AWY101: All | AWZ101: 1 | AXA101: 2 | AXB101: 3 | AXC101: 4 | AXD101: All male | AXE101: 1 male | AXF101: 2 male | AXG101: 3 male | AXH101: 4 male | AXI101: All female | AXJ101: 1 female | AXK101: 2 female | AXL101: 3 female | AXM101: 4 female | AXN101: DF | AXO101: All | AXP101: 1 | AXQ101: 2 | AXR101: 3 | AXS101: 4 | AXT101: All male | AXU101: 1 male | AXV101: 2 male | AXW101: 3 male | AXX101: 4 male | AXY101: All female | AXZ101: 1 female | AYA101: 2 female | AYB101: 3 female | AYC101: 4 female | AYD101: MM | AYE101: All | AYF101: 1 | AYG101: 2 | AYH101: 3 | AYI101: 4 | AYJ101: All male | AYK101: 1 male | AYL101: 2 male | AYM101: 3 male | AYN101: 4 male | AYO101: All female | AYP101: 1 female | AYQ101: 2 female | AYR101: 3 female | AYS101: 4 female | AYT101: HBPV | AYU101: All | AYV101: 1 | AYW101: 2 | AYX101: 3 | AYY101: 4 | AYZ101: All male | AZA101: 1 male | AZB101: 2 male | AZC101: 3 male | AZD101: 4 male | AZE101: All female | AZF101: 1 female | AZG101: 2 female | AZH101: 3 female | AZI101: 4 female | AZJ101: DTPHIB | AZK101: All | AZL101: 1 | AZM101: 2 | AZN101: 3 | AZO101: 4 | AZP101: All male | AZQ101: 1 male | AZR101: 2 male | AZS101: 3 male | AZT101: 4 male | AZU101: All female | AZV101: 1 female | AZW101: 2 female | AZX101: 3 female | AZY101: 4 female | AZZ101: MUR | BAA101: All | BAB101: 1 | BAC101: 2 | BAD101: 3 | BAE101: 4 | BAF101: All male | BAG101: 1 male | BAH101: 2 male | BAI101: 3 male | BAJ101: 4 male | BAK101: All female | BAL101: 1 female | BAM101: 2 female | BAN101: 3 female | BAO101: 4 female | BAP101: PLAGUE | BAQ101: All | BAR101: 1 | BAS101: 2 | BAT101: 3 | BAU101: 4 | BAV101: All male | BAW101: 1 male | BAX101: 2 male | BAY101: 3 male | BAZ101: 4 male | BBA101: All female | BBB101: 1 female | BBC101: 2 female | BBD101: 3 female | BBE101: 4 female | BBF101: CEE | BBG101: All | BBH101: 1 | BBI101: 2 | BBJ101: 3 | BBK101: 4 | BBL101: All male | BBM101: 1 male | BBN101: 2 male | BBO101: 3 male | BBP101: 4 male | BBQ101: All female | BBR101: 1 female | BBS101: 2 female | BBT101: 3 female | BBU101: 4 female | BBV101: DTPIHI | BBW101: All | BBX101: 1 | BBY101: 2 | BBZ101: 3 | BCA101: 4 | BCB101: All male | BCC101: 1 male | BCD101: 2 male | BCE101: 3 male | BCF101: 4 male | BCG101: All female | BCH101: 1 female | BCI101: 2 female | BCJ101: 3 female | BCK101: 4 female | BCL101: PNC15 | BCM101: All | BCN101: 1 | BCO101: 2 | BCP101: 3 | BCQ101: 4 | BCR101: All male | BCS101: 1 male | BCT101: 2 male | BCU101: 3 male | BCV101: 4 male | BCW101: All female | BCX101: 1 female | BCY101: 2 female | BCZ101: 3 female | BDA101: 4 female | BDB101: MNQHIB | BDC101: All | BDD101: 1 | BDE101: 2 | BDF101: 3 | BDG101: 4 | BDH101: All male | BDI101: 1 male | BDJ101: 2 male | BDK101: 3 male | BDL101: 4 male | BDM101: All female | BDN101: 1 female | BDO101: 2 female | BDP101: 3 female | BDQ101: 4 female | BDR101: RV | BDS101: All | BDT101: 1 | BDU101: 2 | BDV101: 3 | BDW101: 4 | BDX101: All male | BDY101: 1 male | BDZ101: 2 male | BEA101: 3 male | BEB101: 4 male | BEC101: All female | BED101: 1 female | BEE101: 2 female | BEF101: 3 female | BEG101: 4 female
A102: -1 | B102: COVID19 | C102: 25297 | D102: 10443 | E102: 7962 | F102: 682 | G102: 32 | H102: 6255 | I102: 2588 | J102: 1998 | K102: 166 | L102: 7 | M102: 16561 | N102: 7014 | O102: 5413 | P102: 397 | Q102: 15 | R102: VARZOS | S102: 1094 | T102: 469 | U102: 249 | V102: 2 | W102: 1 | X102: 256 | Y102: 112 | Z102: 48 | AA102: 1 | AC102: 483 | AD102: 245 | AE102: 97 | AF102: 1 | AG102: 1 | AH102: FLU3 | AI102: 131 | AJ102: 7 | AK102: 1 | AL102: 1 | AN102: 36 | AS102: 72 | AT102: 6 | AU102: 1 | AV102: 1 | AX102: HPV4 | AY102: 418 | AZ102: 71 | BA102: 73 | BB102: 69 | BC102: 2 | BD102: 16 | BF102: 3 | BG102: 2 | BI102: 340 | BJ102: 64 | BK102: 48 | BL102: 56 | BM102: 2 | BN102: UNK | BO102: 474 | BP102: 10 | BQ102: 5 | BR102: 2 | BS102: 1 | BT102: 113 | BU102: 3 | BV102: 1 | BY102: 336 | BZ102: 5 | CA102: 3 | CB102: 2 | CC102: 1 | CD102: PPV | CE102: 174 | CF102: 8 | CG102: 7 | CH102: 1 | CJ102: 44 | CK102: 3 | CL102: 3 | CM102: 1 | CO102: 99 | CP102: 4 | CQ102: 4 | CT102: TDAP | CU102: 103 | CV102: 13 | CW102: 1 | CX102: 1 | CZ102: 32 | DA102: 3 | DB102: 1 | DE102: 57 | DF102: 6 | DJ102: HEP | DK102: 151 | DL102: 21 | DM102: 32 | DN102: 15 | DO102: 3 | DP102: 44 | DQ102: 8 | DR102: 9 | DS102: 3 | DT102: 2 | DU102: 91 | DV102: 13 | DW102: 19 | DX102: 11 | DY102: 1 | DZ102: FLUX | EA102: 261 | EB102: 6 | EF102: 77 | EG102: 2 | EK102: 155 | EL102: 3 | EP102: FLU4 | EQ102: 70 | ER102: 4 | ET102: 1 | EV102: 15 | FA102: 43 | FB102: 4 | FD102: 1 | FF102: MMR | FG102: 91 | FH102: 14 | FI102: 3 | FL102: 37 | FM102: 6 | FN102: 1 | FQ102: 47 | FR102: 7 | FS102: 1 | FV102: HEPA | FW102: 65 | FX102: 12 | FY102: 6 | GB102: 31 | GC102: 4 | GD102: 3 | GG102: 28 | GH102: 6 | GI102: 2 | GL102: PNC13 | GM102: 127 | GN102: 7 | GO102: 3 | GP102: 6 | GQ102: 1 | GR102: 31 | GS102: 1 | GT102: 2 | GU102: 2 | GV102: 1 | GW102: 83 | GX102: 6 | GY102: 1 | GZ102: 4 | HB102: MNQ | HC102: 48 | HD102: 1 | HE102: 3 | HF102: 1 | HH102: 18 | HJ102: 1 | HM102: 22 | HN102: 1 | HO102: 2 | HP102: 1 | HR102: ANTH | HS102: 29 | HT102: 1 | HU102: 5 | HV102: 5 | HW102: 3 | HX102: 16 | HY102: 1 | HZ102: 1 | IA102: 3 | IB102: 3 | IC102: 8 | IE102: 2 | IF102: 2 | IH102: VARCEL | II102: 21 | IJ102: 3 | IK102: 1 | IN102: 9 | IO102: 2 | IS102: 8 | IU102: 1 | IX102: DTAP | IY102: 37 | IZ102: 4 | JB102: 1 | JC102: 2 | JD102: 21 | JG102: 1 | JH102: 2 | JI102: 10 | JJ102: 3 | JN102: MENB | JO102: 124 | JP102: 30 | JQ102: 13 | JT102: 49 | JU102: 17 | JV102: 5 | JY102: 44 | JZ102: 11 | KA102: 7 | KD102: HPV9 | KE102: 76 | KF102: 18 | KG102: 10 | KH102: 8 | KJ102: 14 | KK102: 3 | KL102: 1 | KM102: 1 | KO102: 60 | KP102: 15 | KQ102: 9 | KR102: 7 | KT102: TYP | KU102: 50 | KV102: 5 | KW102: 1 | KX102: 4 | KY102: 3 | KZ102: 24 | LA102: 2 | LD102: 1 | LE102: 25 | LF102: 3 | LG102: 1 | LH102: 4 | LI102: 2 | LJ102: TD | LK102: 13 | LL102: 1 | LM102: 1 | LP102: 4 | LU102: 5 | LV102: 1 | LW102: 1 | LZ102: LYME | MA102: 68 | MB102: 4 | MC102: 10 | MD102: 11 | MF102: 37 | MG102: 2 | MH102: 3 | MI102: 8 | MK102: 29 | ML102: 2 | MM102: 6 | MN102: 2 | MP102: IPV | MQ102: 23 | MR102: 1 | MS102: 5 | MT102: 3 | MU102: 2 | MV102: 9 | MX102: 3 | MY102: 1 | MZ102: 1 | NA102: 13 | NB102: 1 | NC102: 1 | ND102: 2 | NE102: 1 | NF102: FLU(H1N1) | NG102: 6 | NH102: 1 | NL102: 2 | NQ102: 4 | NR102: 1 | NV102: HEPAB | NW102: 60 | NX102: 8 | NY102: 9 | NZ102: 6 | OB102: 21 | OC102: 2 | OD102: 2 | OG102: 32 | OH102: 5 | OI102: 6 | OJ102: 6 | OL102: SMALL | OM102: 12 | ON102: 2 | OR102: 7 | OS102: 1 | OW102: 3 | OX102: 1 | PB102: HPV2 | PC102: 119 | PD102: 23 | PE102: 16 | PF102: 19 | PM102: 113 | PN102: 22 | PO102: 16 | PP102: 19 | PR102: HIBV | PS102: 19 | PT102: 4 | PU102: 2 | PV102: 3 | PX102: 6 | PY102: 1 | PZ102: 1 | QA102: 1 | QC102: 10 | QD102: 2 | QE102: 1 | QF102: 2 | QH102: RAB | QI102: 34 | QJ102: 7 | QK102: 10 | QM102: 2 | QN102: 10 | QP102: 5 | QS102: 22 | QT102: 7 | QU102: 5 | QW102: 2 | QX102: YF | QY102: 20 | QZ102: 4 | RD102: 13 | RE102: 1 | RI102: 5 | RJ102: 1 | RN102: FLUC4 | RO102: 8 | RP102: 1 | RT102: 3 | RY102: 4 | SD102: MEN | SE102: 30 | SF102: 4 | SJ102: 15 | SK102: 2 | SO102: 11 | SP102: 2 | ST102: FLUN3 | SU102: 15 | SV102: 1 | SZ102: 2 | TE102: 10 | TF102: 1 | TJ102: HPVX | TK102: 82 | TL102: 5 | TM102: 9 | TN102: 7 | TO102: 1 | TP102: 2 | TQ102: 1 | TU102: 72 | TV102: 4 | TW102: 8 | TX102: 6 | TY102: 1 | TZ102: FLUX(H1N1) | UA102: 8 | UB102: 1 | UF102: 2 | UK102: 5 | UL102: 1 | UP102: FLUN4 | UQ102: 42 | UR102: 1 | US102: 1 | UV102: 25 | UW102: 1 | UX102: 1 | VA102: 17 | VF102: FLUA3 | VG102: 17 | VL102: 4 | VQ102: 10 | VV102: PNC | VW102: 11 | VX102: 2 | VY102: 2 | WA102: 1 | WB102: 2 | WC102: 1 | WD102: 1 | WG102: 5 | WH102: 1 | WK102: 1 | WL102: DTAPIPV | WM102: 34 | WN102: 3 | WO102: 1 | WP102: 2 | WR102: 11 | WS102: 1 | WW102: 23 | WX102: 2 | WY102: 1 | WZ102: 2 | XB102: TTOX | XC102: 15 | XH102: 3 | XM102: 11 | XR102: RV5 | XS102: 8 | XT102: 1 | XU102: 2 | XX102: 2 | XZ102: 1 | YC102: 6 | YD102: 1 | YE102: 1 | YH102: FLUN(H1N1) | YI102: 1 | YN102: 1 | YX102: MMRV | YY102: 4 | YZ102: 1 | ZD102: 1 | ZI102: 2 | ZJ102: 1 | ZN102: DTAPIPVHIB | ZO102: 12 | ZP102: 1 | ZQ102: 1 | ZS102: 1 | ZT102: 4 | ZX102: 1 | ZY102: 8 | ZZ102: 1 | AAA102: 1 | AAD102: RV1 | AAE102: 19 | AAG102: 3 | AAJ102: 8 | AAO102: 8 | AAQ102: 2 | AAT102: DTAPHEPBIP | AAU102: 2 | AAZ102: 1 | ABJ102: FLUA4 | ABK102: 2 | ABU102: 2 | ABZ102: 6VAX-F | ACA102: 22 | ACB102: 1 | ACC102: 1 | ACF102: 8 | ACH102: 1 | ACK102: 12 | ACL102: 1 | ACP102: FLUR4 | ACQ102: 3 | ACR102: 1 | ADA102: 3 | ADB102: 1 | ADF102: DTP | ADG102: 16 | ADI102: 3 | ADL102: 2 | ADN102: 1 | ADQ102: 14 | ADS102: 2 | ADV102: DTIPV | ADW102: 16 | AEB102: 6 | AEG102: 9 | AEL102: DT | AEM102: 4 | AER102: 1 | AEW102: 1 | AFB102: FLUC3 | AFC102: 8 | AFD102: 1 | AFH102: 1 | AFM102: 7 | AFN102: 1 | AFR102: JEV1 | AFS102: 1 | AGH102: OPV | AGI102: 3 | AGK102: 1 | AGN102: 2 | AGP102: 1 | AGS102: 1 | AGX102: HBHEPB | AHN102: RVX | AHO102: 3 | AHR102: 1 | AHY102: 2 | AIB102: 1 | AID102: CHOL | AIE102: 2 | AIG102: 1 | AIJ102: 1 | AIO102: 1 | AIQ102: 1 | AIT102: PNC10 | AIU102: 7 | AIZ102: 2 | AJE102: 4 | AJJ102: BCG | AJK102: 6 | AJP102: 2 | AJU102: 4 | AJZ102: JEV | AKP102: MEA | AKQ102: 3 | ALA102: 3 | ALF102: RUB | ALV102: PNC20 | ALW102: 4 | AMG102: 2 | AML102: FLUR3 | ANB102: PER | ANC102: 1 | ANM102: 1 | ANR102: DTAPH | ANS102: 1 | ANX102: 1 | AOH102: TBE | AOI102: 3 | AOK102: 1 | AOS102: 3 | AOU102: 1 | AOX102: DPP | APN102: DTPIPV | APO102: 3 | APR102: 1 | APT102: 1 | APW102: 1 | APY102: 1 | AQD102: ADEN_4_7 | AQT102: MENHIB | AQU102: 2 | ARE102: 2 | ARJ102: JEVX | ARZ102: MU | ASA102: 1 | ASK102: 1 | ASP102: TDAPIPV | ATF102: DTOX | ATG102: 1 | ATL102: 1 | ATV102: DTPHEP | AUL102: EBZR | AVB102: MER | AVR102: DTPPHIB | AWH102: HEPATYP | AWI102: 1 | AWN102: 1 | AWX102: MNC | AWY102: 1 | AXA102: 1 | AXN102: DF | AYD102: MM | AYE102: 1 | AYO102: 1 | AYT102: HBPV | AZJ102: DTPHIB | AZZ102: MUR | BAP102: PLAGUE | BBF102: CEE | BBV102: DTPIHI | BBW102: 1 | BCB102: 1 | BCL102: PNC15 | BDB102: MNQHIB | BDR102: RV
